Workbook

Sheet Final decision changes
A1: Cell | B1: Change (AER Final Decision)
A2: I_Global Inputs'!E40:E41 | B2: Updated corporate and divisional overhead rates to be consistent with the draft and final decision total overhead rate.
A3: I_Global Inputs'!H56 | B3: Updated the inflation escalation for 2024-25 based on actual CPI data for December 2023 from the ABS.
A4: Summary Labour Rates'I6:J6 | B4: Substituted actual real wage price change to be consistent with our final decision for ancillary network services.
A5: I_Global Inputs'!D9:D11 | B5: Substituted labour rates to be consistent with our final decision for ancillary network services.
A6: I_Global Inputs'!H30:L30 | B6: Substituted our final decision pre-tax real WACC.
A7: I_Global Inputs'!F36:L36 | B7: Substituted labour cost escalation forecast to be consistent with our final decision for ancillary network services.
A9: Cell | B9: Change (AER Draft Decision)
A10: I_Global Inputs'!D10 | B10: Substituted our draft decision benchmark labour rate for R4 Field Worker.
A11: I_Global Inputs'!H30:L30 | B11: Substituted our draft decision pre-tax real WACC.
A12: I_Global Inputs'!E56:G56 | B12: Substituted actual CPI consistent with the public lighting control mechanism for the 2019-24 period.
A13: I_Global Inputs'!H56 | B13: Substituted our draft decision CPI forecast.
A19: Cell | B19: Change (Revised Proposal)
A20: I_Global Inputs'!D9:D11 | B20: Benchmarch labour rates in $FY22 terms consistent with raw labour rates in the Revised ANS model
A21: I_Global Inputs'!E36:L36 | B21: Updated labour cost escalation forecast consistent with the Revised ANS model

Sheet Summary Labour Rates
B2: Escalation | C2: FY17 | D2: FY18 | E2: FY19 | F2: FY20 | G2: FY21 | H2: FY22 | I2: FY23 | J2: FY24
C3: Actual | D3: Actual | E3: Actual | F3: Actual | G3: Actual | H3: Actual | I3: Actual | J3: Forecast
B4: ABS CPI index - Dec lagged 1yr | C4: 108.4 | D4: 110 | E4: 112.1 | F4: 114.1 | G4: 116.2 | H4: 117.2 | I4: 121.3 | J4: 130.8
B5: % change | D5: 0.0147601476 | E5: 0.01909090909 | F5: 0.0178412132 | G5: 0.01840490798 | H5: 0.008605851979 | I5: 0.03498293515 | J5: 0.07831821929
B6: X-factor (real wage price change) | F6: -0.01163694551 | G6: -8.235982387e-05 | H6: 0.02676912829 | I6: 0.03567491174 | J6: -0.001729234042
B8: Benchmark Labour Rates | C8: $FY23 | D8: $FY22
B10: R3 EO7 Engineer | C10: 96.04565642 | D10: =C10/((1+$I$5)*(1-$I$6)) -> 96.23234618
B11: R4 Field Worker | C11: 62.24921021 | D11: =C11/((1+$I$5)*(1-$I$6)) -> 62.37020778
B12: R2 Technical Specialist | C12: 64.50278739 | D12: 64.62816537

Sheet O_New Component SLUOS
B2: Final Pricing - FY25 $nominal | F2: Internal Use Only
B4: Vertical Support Type | C4: NEW TC1 & TC3 (Capex + Opex) | D4: NEW TC2 & TC4 (Opex ) | F4: CAPEX Lookup | G4: OPEX Lookup | H4: Capex Tariff Class | I4: Opex Tariff Class | J4: Grouping | K4: Old Tariff No Capex | L4: Old Tariff No Opex
B5: Minor Column (<=9) | C5: =INDEX('C_CAPEX Tariff Summary'!$W$14:$W$147,MATCH(F5,'C_CAPEX Tariff Summary'!$B$14:$B$147,0)) -> 22.66730937 | D5: =INDEX('O_OPEX Tariff Summary'!$Y$4:$Y$135,MATCH(G5,'O_OPEX Tariff Summary'!$Q$4:$Q$135,0)) -> 18.38759435 | F5: Minor Column (<=9) | G5: Minor Column (<=9) | H5: TC1 - Capital Funded by Endeavour Energy Legacy | I5: TC2: Capital Not Funded by Endeavour Energy Legacy | J5: STEEL POLE MINOR | K5: 228 | L5: 425
B6: Major Column (>=9) | C6: =INDEX('C_CAPEX Tariff Summary'!$W$14:$W$147,MATCH(F6,'C_CAPEX Tariff Summary'!$B$14:$B$147,0)) -> 102.9231601 | D6: =INDEX('O_OPEX Tariff Summary'!$Y$4:$Y$135,MATCH(G6,'O_OPEX Tariff Summary'!$Q$4:$Q$135,0)) -> 29.71735722 | F6: Major Column (>=9) | G6: Major Column (>=9) | H6: TC1 - Capital Funded by Endeavour Energy Legacy | I6: TC2: Capital Not Funded by Endeavour Energy Legacy | J6: STEEL POLE MAJOR | K6: 229 | L6: 426
B7: Pole (Wood) - Minor - DEDICATED SL <=11m | C7: =INDEX('C_CAPEX Tariff Summary'!$W$14:$W$147,MATCH(F7,'C_CAPEX Tariff Summary'!$B$14:$B$147,0)) -> 175.3926337 | D7: =INDEX('O_OPEX Tariff Summary'!$Y$4:$Y$135,MATCH(G7,'O_OPEX Tariff Summary'!$Q$4:$Q$135,0)) -> 22.55334538 | F7: Pole (Wood) - Minor - DEDICATED SL <=11m | G7: Pole (Wood) - Minor - DEDICATED SL <=11m | H7: TC3 - Capital Funded by Endeavour Energy | I7: TC4: Capital Not Funded by Endeavour Energy | J7: DEDICATED WOOD POLE MINOR | K7: 595 | L7: 895
B8: Pole (Wood) - Major - DEDICATED SL >11m | C8: =INDEX('C_CAPEX Tariff Summary'!$W$14:$W$147,MATCH(F8,'C_CAPEX Tariff Summary'!$B$14:$B$147,0)) -> 264.6553122 | D8: =INDEX('O_OPEX Tariff Summary'!$Y$4:$Y$135,MATCH(G8,'O_OPEX Tariff Summary'!$Q$4:$Q$135,0)) -> 32.66930846 | F8: Pole (Wood) - Major - DEDICATED SL >11m | G8: Pole (Wood) - Major - DEDICATED SL >11m | H8: TC3 - Capital Funded by Endeavour Energy | I8: TC4: Capital Not Funded by Endeavour Energy | J8: DEDICATED WOOD POLE MAJOR | K8: 596 | L8: 896
B9: Column (Steel) - Minor <=9m | C9: =INDEX('C_CAPEX Tariff Summary'!$W$14:$W$147,MATCH(F9,'C_CAPEX Tariff Summary'!$B$14:$B$147,0)) -> 184.1853047 | D9: =INDEX('O_OPEX Tariff Summary'!$Y$4:$Y$135,MATCH(G9,'O_OPEX Tariff Summary'!$Q$4:$Q$135,0)) -> 18.38759435 | F9: Column (Steel) - Minor <=9m | G9: Column (Steel) - Minor <=9m | H9: TC3 - Capital Funded by Endeavour Energy | I9: TC4: Capital Not Funded by Endeavour Energy | J9: STEEL POLE MINOR | K9: 695 | L9: 995
B10: Column (Steel) - Major >9m | C10: =INDEX('C_CAPEX Tariff Summary'!$W$14:$W$147,MATCH(F10,'C_CAPEX Tariff Summary'!$B$14:$B$147,0)) -> 282.3523636 | D10: =INDEX('O_OPEX Tariff Summary'!$Y$4:$Y$135,MATCH(G10,'O_OPEX Tariff Summary'!$Q$4:$Q$135,0)) -> 23.77122719 | F10: Column (Steel) - Major >9m | G10: Column (Steel) - Major >9m | H10: TC3 - Capital Funded by Endeavour Energy | I10: TC4: Capital Not Funded by Endeavour Energy | J10: STEEL POLE MAJOR | K10: 696 | L10: 996
B11: Pole (Wood) - Minor <=11m | C11: =INDEX('C_CAPEX Tariff Summary'!$W$14:$W$147,MATCH(F11,'C_CAPEX Tariff Summary'!$B$14:$B$147,0)) -> 0 | D11: =INDEX('O_OPEX Tariff Summary'!$Y$4:$Y$135,MATCH(G11,'O_OPEX Tariff Summary'!$Q$4:$Q$135,0)) -> 0 | F11: Pole (Wood) - Minor <=11m | G11: Pole (Wood) - Minor <=11m | H11: TC3 - Capital Funded by Endeavour Energy | I11: TC4: Capital Not Funded by Endeavour Energy | J11: SHARED WOOD POLE MINOR | K11: 597 | L11: 897
B12: Pole (Wood) - Major >11m | C12: =INDEX('C_CAPEX Tariff Summary'!$W$14:$W$147,MATCH(F12,'C_CAPEX Tariff Summary'!$B$14:$B$147,0)) -> 0 | D12: =INDEX('O_OPEX Tariff Summary'!$Y$4:$Y$135,MATCH(G12,'O_OPEX Tariff Summary'!$Q$4:$Q$135,0)) -> 0 | F12: Pole (Wood) - Major >11m | G12: Pole (Wood) - Major >11m | H12: TC3 - Capital Funded by Endeavour Energy | I12: TC4: Capital Not Funded by Endeavour Energy | J12: SHARED WOOD POLE MAJOR | K12: 598 | L12: 898
B15: Horizontal Support Type | C15: NEW TC1 & TC3 (Capex + Opex) | D15: NEW TC2 & TC4 (Opex ) | F15: CAPEX Lookup | G15: OPEX Lookup | H15: Capex Tariff Class | I15: Opex Tariff Class | J15: Grouping | K15: Old Tariff No Capex | L15: Old Tariff No Opex
B16: Pole mounting bracket minor (<=3m) | C16: =INDEX('C_CAPEX Tariff Summary'!$W$14:$W$147,MATCH(F16,'C_CAPEX Tariff Summary'!$B$14:$B$147,0)) -> 9.665719448 | D16: =INDEX('O_OPEX Tariff Summary'!$Y$4:$Y$135,MATCH(G16,'O_OPEX Tariff Summary'!$Q$4:$Q$135,0)) -> 9.665719448 | F16: Pole mounting bracket minor (<=3m) | G16: Pole mounting bracket minor (<=3m) | H16: TC1 - Capital Funded by Endeavour Energy Legacy | I16: TC2: Capital Not Funded by Endeavour Energy Legacy | J16: BRACKET MINOR | K16: 224 | L16: 427
B17: Pole mounting bracket major (>3m) | C17: =INDEX('C_CAPEX Tariff Summary'!$W$14:$W$147,MATCH(F17,'C_CAPEX Tariff Summary'!$B$14:$B$147,0)) -> 12.88762593 | D17: =INDEX('O_OPEX Tariff Summary'!$Y$4:$Y$135,MATCH(G17,'O_OPEX Tariff Summary'!$Q$4:$Q$135,0)) -> 12.88762593 | F17: Pole mounting bracket major (>3m) | G17: Pole mounting bracket major (>3m) | H17: TC1 - Capital Funded by Endeavour Energy Legacy | I17: TC2: Capital Not Funded by Endeavour Energy Legacy | J17: BRACKET MAJOR | K17: 225 | L17: 428
B18: Outreach Minor (<=2m) | C18: =INDEX('C_CAPEX Tariff Summary'!$W$14:$W$147,MATCH(F18,'C_CAPEX Tariff Summary'!$B$14:$B$147,0)) -> 12.25839623 | D18: =INDEX('O_OPEX Tariff Summary'!$Y$4:$Y$135,MATCH(G18,'O_OPEX Tariff Summary'!$Q$4:$Q$135,0)) -> 12.25839623 | F18: Outreach Minor (<=2m) | G18: Outreach Minor (<=2m) | H18: TC1 - Capital Funded by Endeavour Energy Legacy | I18: TC2: Capital Not Funded by Endeavour Energy Legacy | J18: OUTREACH MINOR | K18: 226 | L18: 423
B19: Outreach Major (>2m) | C19: =INDEX('C_CAPEX Tariff Summary'!$W$14:$W$147,MATCH(F19,'C_CAPEX Tariff Summary'!$B$14:$B$147,0)) -> 13.79069576 | D19: =INDEX('O_OPEX Tariff Summary'!$Y$4:$Y$135,MATCH(G19,'O_OPEX Tariff Summary'!$Q$4:$Q$135,0)) -> 13.79069576 | F19: Outreach Major (>2m) | G19: Outreach Major (>2m) | H19: TC1 - Capital Funded by Endeavour Energy Legacy | I19: TC2: Capital Not Funded by Endeavour Energy Legacy | J19: OUTREACH MAJOR | K19: 227 | L19: 424
B20: Bracket - Minor <=3m | C20: =INDEX('C_CAPEX Tariff Summary'!$W$14:$W$147,MATCH(F20,'C_CAPEX Tariff Summary'!$B$14:$B$147,0)) -> 21.8539372 | D20: =INDEX('O_OPEX Tariff Summary'!$Y$4:$Y$135,MATCH(G20,'O_OPEX Tariff Summary'!$Q$4:$Q$135,0)) -> 9.665719448 | F20: Bracket - Minor <=3m | G20: Bracket - Minor <=3m | H20: TC3 - Capital Funded by Endeavour Energy | I20: TC4: Capital Not Funded by Endeavour Energy | J20: BRACKET MINOR | K20: 590 | L20: 890
B21: Bracket - Major >3m | C21: =INDEX('C_CAPEX Tariff Summary'!$W$14:$W$147,MATCH(F21,'C_CAPEX Tariff Summary'!$B$14:$B$147,0)) -> 68.86480278 | D21: =INDEX('O_OPEX Tariff Summary'!$Y$4:$Y$135,MATCH(G21,'O_OPEX Tariff Summary'!$Q$4:$Q$135,0)) -> 12.88762593 | F21: Bracket - Major >3m | G21: Bracket - Major >3m | H21: TC3 - Capital Funded by Endeavour Energy | I21: TC4: Capital Not Funded by Endeavour Energy | J21: BRACKET MAJOR | K21: 591 | L21: 891
B22: Outreach - Minor <=2m | C22: =INDEX('C_CAPEX Tariff Summary'!$W$14:$W$147,MATCH(F22,'C_CAPEX Tariff Summary'!$B$14:$B$147,0)) -> 26.20667228 | D22: =INDEX('O_OPEX Tariff Summary'!$Y$4:$Y$135,MATCH(G22,'O_OPEX Tariff Summary'!$Q$4:$Q$135,0)) -> 12.25839623 | F22: Outreach - Minor <=2m | G22: Outreach - Minor <=2m | H22: TC3 - Capital Funded by Endeavour Energy | I22: TC4: Capital Not Funded by Endeavour Energy | J22: OUTREACH MINOR | K22: 690 | L22: 990
B23: Outreach - Major >2m | C23: =INDEX('C_CAPEX Tariff Summary'!$W$14:$W$147,MATCH(F23,'C_CAPEX Tariff Summary'!$B$14:$B$147,0)) -> 44.15120194 | D23: =INDEX('O_OPEX Tariff Summary'!$Y$4:$Y$135,MATCH(G23,'O_OPEX Tariff Summary'!$Q$4:$Q$135,0)) -> 13.79069576 | F23: Outreach - Major >2m | G23: Outreach - Major >2m | H23: TC3 - Capital Funded by Endeavour Energy | I23: TC4: Capital Not Funded by Endeavour Energy | J23: OUTREACH MAJOR | K23: 691 | L23: 991
B26: Traditional Luminaire Type | C26: NEW TC1 & TC3 (Capex + Opex) | D26: NEW TC2 & TC4 (Opex ) | F26: CAPEX Lookup | G26: OPEX Lookup | H26: Capex Tariff Class | I26: Opex Tariff Class | J26: Grouping | K26: Old Tariff No Capex | L26: Old Tariff No Opex
B27: 1 x 20 W Fluorescent | C27: =INDEX('C_CAPEX Tariff Summary'!$W$14:$W$147,MATCH(F27,'C_CAPEX Tariff Summary'!$B$14:$B$147,0)) -> 49.7725652 | D27: =INDEX('O_OPEX Tariff Summary'!$Y$4:$Y$135,MATCH(G27,'O_OPEX Tariff Summary'!$Q$4:$Q$135,0)) -> 49.7725652 | F27: 1 x 20 W Fluorescent | G27: 1 x 20 W Fluorescent | H27: TC1 - Capital Funded by Endeavour Energy Legacy | I27: TC2: Capital Not Funded by Endeavour Energy Legacy | J27: FLUORESCENT | K27: 13 | L27: 302
B28: 2 x 20 W Fluorescent | C28: =INDEX('C_CAPEX Tariff Summary'!$W$14:$W$147,MATCH(F28,'C_CAPEX Tariff Summary'!$B$14:$B$147,0)) -> 49.7725652 | F28: 2 x 20 W Fluorescent | G28: 2 x 20 W Fluorescent | H28: TC1 - Capital Funded by Endeavour Energy Legacy | J28: FLUORESCENT | K28: 112
B29: 2 x 14 W Fluorescent | C29: =INDEX('C_CAPEX Tariff Summary'!$W$14:$W$147,MATCH(F29,'C_CAPEX Tariff Summary'!$B$14:$B$147,0)) -> 49.20668341 | D29: =INDEX('O_OPEX Tariff Summary'!$Y$4:$Y$135,MATCH(G29,'O_OPEX Tariff Summary'!$Q$4:$Q$135,0)) -> 49.20668341 | F29: 2 x 14 W Fluorescent | G29: 2 x 14 W Fluorescent | H29: TC1 - Capital Funded by Endeavour Energy Legacy | I29: TC2: Capital Not Funded by Endeavour Energy Legacy | J29: FLUORESCENT | K29: 220 | L29: 415
B30: 2 x 24 W Fluorescent | C30: =INDEX('C_CAPEX Tariff Summary'!$W$14:$W$147,MATCH(F30,'C_CAPEX Tariff Summary'!$B$14:$B$147,0)) -> 49.20668341 | D30: =INDEX('O_OPEX Tariff Summary'!$Y$4:$Y$135,MATCH(G30,'O_OPEX Tariff Summary'!$Q$4:$Q$135,0)) -> 49.20668341 | F30: 2 x 24 W Fluorescent | G30: 2 x 24 W Fluorescent | H30: TC1 - Capital Funded by Endeavour Energy Legacy | I30: TC2: Capital Not Funded by Endeavour Energy Legacy | J30: FLUORESCENT | K30: 221 | L30: 416
B31: 1 x 40 W Fluorescent | C31: =INDEX('C_CAPEX Tariff Summary'!$W$14:$W$147,MATCH(F31,'C_CAPEX Tariff Summary'!$B$14:$B$147,0)) -> 49.7725652 | D31: =INDEX('O_OPEX Tariff Summary'!$Y$4:$Y$135,MATCH(G31,'O_OPEX Tariff Summary'!$Q$4:$Q$135,0)) -> 49.7725652 | F31: 1 x 40 W Fluorescent | G31: 1 x 40 W Fluorescent | H31: TC1 - Capital Funded by Endeavour Energy Legacy | I31: TC2: Capital Not Funded by Endeavour Energy Legacy | J31: FLUORESCENT | K31: 70 | L31: 305
B32: 2 x 40 W Fluorescent | C32: =INDEX('C_CAPEX Tariff Summary'!$W$14:$W$147,MATCH(F32,'C_CAPEX Tariff Summary'!$B$14:$B$147,0)) -> 51.37844594 | D32: =INDEX('O_OPEX Tariff Summary'!$Y$4:$Y$135,MATCH(G32,'O_OPEX Tariff Summary'!$Q$4:$Q$135,0)) -> 51.37844594 | F32: 2 x 40 W Fluorescent | G32: 2 x 40 W Fluorescent | H32: TC1 - Capital Funded by Endeavour Energy Legacy | I32: TC2: Capital Not Funded by Endeavour Energy Legacy | J32: FLUORESCENT | K32: 19 | L32: 306
B33: 1 x 42 W Fluorescent | C33: =INDEX('C_CAPEX Tariff Summary'!$W$14:$W$147,MATCH(F33,'C_CAPEX Tariff Summary'!$B$14:$B$147,0)) -> 49.7725652 | D33: =INDEX('O_OPEX Tariff Summary'!$Y$4:$Y$135,MATCH(G33,'O_OPEX Tariff Summary'!$Q$4:$Q$135,0)) -> 49.7725652 | F33: 1 x 42 W Fluorescent | G33: 1 x 42 W Fluorescent | H33: TC1 - Capital Funded by Endeavour Energy Legacy | I33: TC2: Capital Not Funded by Endeavour Energy Legacy | J33: FLUORESCENT | K33: 223 | L33: 421
B34: 50W Mercury | C34: =INDEX('C_CAPEX Tariff Summary'!$W$14:$W$147,MATCH(F34,'C_CAPEX Tariff Summary'!$B$14:$B$147,0)) -> 50.18550596 | D34: =INDEX('O_OPEX Tariff Summary'!$Y$4:$Y$135,MATCH(G34,'O_OPEX Tariff Summary'!$Q$4:$Q$135,0)) -> 50.18550596 | F34: 50W Mercury | G34: 50W Mercury | H34: TC1 - Capital Funded by Endeavour Energy Legacy | I34: TC2: Capital Not Funded by Endeavour Energy Legacy | J34: MERCURY | K34: 185 | L34: 308
B35: 80W Mercury | C35: =INDEX('C_CAPEX Tariff Summary'!$W$14:$W$147,MATCH(F35,'C_CAPEX Tariff Summary'!$B$14:$B$147,0)) -> 49.35962444 | D35: =INDEX('O_OPEX Tariff Summary'!$Y$4:$Y$135,MATCH(G35,'O_OPEX Tariff Summary'!$Q$4:$Q$135,0)) -> 49.35962444 | F35: 80W Mercury | G35: 80W Mercury | H35: TC1 - Capital Funded by Endeavour Energy Legacy | I35: TC2: Capital Not Funded by Endeavour Energy Legacy | J35: MERCURY | K35: 104 | L35: 309
B36: 125W Mercury | C36: =INDEX('C_CAPEX Tariff Summary'!$W$14:$W$147,MATCH(F36,'C_CAPEX Tariff Summary'!$B$14:$B$147,0)) -> 52.20432747 | D36: =INDEX('O_OPEX Tariff Summary'!$Y$4:$Y$135,MATCH(G36,'O_OPEX Tariff Summary'!$Q$4:$Q$135,0)) -> 52.20432747 | F36: 125W Mercury | G36: 125W Mercury | H36: TC1 - Capital Funded by Endeavour Energy Legacy | I36: TC2: Capital Not Funded by Endeavour Energy Legacy | J36: MERCURY | K36: 97 | L36: 318
B37: 250W Mercury | C37: =INDEX('C_CAPEX Tariff Summary'!$W$14:$W$147,MATCH(F37,'C_CAPEX Tariff Summary'!$B$14:$B$147,0)) -> 52.20432747 | D37: =INDEX('O_OPEX Tariff Summary'!$Y$4:$Y$135,MATCH(G37,'O_OPEX Tariff Summary'!$Q$4:$Q$135,0)) -> 52.20432747 | F37: 250W Mercury | G37: 250W Mercury | H37: TC1 - Capital Funded by Endeavour Energy Legacy | I37: TC2: Capital Not Funded by Endeavour Energy Legacy | J37: MERCURY | K37: 30 | L37: 323
B38: 2 x 250W Mercury | C38: =INDEX('C_CAPEX Tariff Summary'!$W$14:$W$147,MATCH(F38,'C_CAPEX Tariff Summary'!$B$14:$B$147,0)) -> 67.86562571 | F38: 2 x 250W Mercury | G38: 2 x 250W Mercury | H38: TC1 - Capital Funded by Endeavour Energy Legacy | J38: MERCURY | K38: 100
B39: 400 W Mercury | C39: =INDEX('C_CAPEX Tariff Summary'!$W$14:$W$147,MATCH(F39,'C_CAPEX Tariff Summary'!$B$14:$B$147,0)) -> 52.20432747 | D39: =INDEX('O_OPEX Tariff Summary'!$Y$4:$Y$135,MATCH(G39,'O_OPEX Tariff Summary'!$Q$4:$Q$135,0)) -> 52.20432747 | F39: 400 W Mercury | G39: 400 W Mercury | H39: TC1 - Capital Funded by Endeavour Energy Legacy | I39: TC2: Capital Not Funded by Endeavour Energy Legacy | J39: MERCURY | K39: 31 | L39: 326
B40: 50W Sodium | C40: =INDEX('C_CAPEX Tariff Summary'!$W$14:$W$147,MATCH(F40,'C_CAPEX Tariff Summary'!$B$14:$B$147,0)) -> 52.08197465 | D40: =INDEX('O_OPEX Tariff Summary'!$Y$4:$Y$135,MATCH(G40,'O_OPEX Tariff Summary'!$Q$4:$Q$135,0)) -> 52.08197465 | F40: 50W Sodium | G40: 50W Sodium | H40: TC1 - Capital Funded by Endeavour Energy Legacy | I40: TC2: Capital Not Funded by Endeavour Energy Legacy | J40: HIGH LOW PRESSURE SODIUM | K40: 182 | L40: 335
B41: 70W Sodium | C41: =INDEX('C_CAPEX Tariff Summary'!$W$14:$W$147,MATCH(F41,'C_CAPEX Tariff Summary'!$B$14:$B$147,0)) -> 50.89515231 | D41: =INDEX('O_OPEX Tariff Summary'!$Y$4:$Y$135,MATCH(G41,'O_OPEX Tariff Summary'!$Q$4:$Q$135,0)) -> 50.89515231 | F41: 70W Sodium | G41: 70W Sodium | H41: TC1 - Capital Funded by Endeavour Energy Legacy | I41: TC2: Capital Not Funded by Endeavour Energy Legacy | J41: HIGH LOW PRESSURE SODIUM | K41: 183 | L41: 332
B42: 90W Sodium | C42: =INDEX('C_CAPEX Tariff Summary'!$W$14:$W$147,MATCH(F42,'C_CAPEX Tariff Summary'!$B$14:$B$147,0)) -> 52.08197465 | F42: 90W Sodium | G42: 90W Sodium | H42: TC1 - Capital Funded by Endeavour Energy Legacy | J42: HIGH LOW PRESSURE SODIUM | K42: 34
B43: 100W Sodium | C43: =INDEX('C_CAPEX Tariff Summary'!$W$14:$W$147,MATCH(F43,'C_CAPEX Tariff Summary'!$B$14:$B$147,0)) -> 52.08197465 | D43: =INDEX('O_OPEX Tariff Summary'!$Y$4:$Y$135,MATCH(G43,'O_OPEX Tariff Summary'!$Q$4:$Q$135,0)) -> 52.08197465 | F43: 100W Sodium | G43: 100W Sodium | H43: TC1 - Capital Funded by Endeavour Energy Legacy | I43: TC2: Capital Not Funded by Endeavour Energy Legacy | J43: HIGH LOW PRESSURE SODIUM | K43: 167 | L43: 380
B44: 120W Sodium | C44: =INDEX('C_CAPEX Tariff Summary'!$W$14:$W$147,MATCH(F44,'C_CAPEX Tariff Summary'!$B$14:$B$147,0)) -> 50.84315236 | F44: 120W Sodium | G44: 120W Sodium | H44: TC1 - Capital Funded by Endeavour Energy Legacy | J44: HIGH LOW PRESSURE SODIUM | K44: 150
B45: 150W Sodium | C45: =INDEX('C_CAPEX Tariff Summary'!$W$14:$W$147,MATCH(F45,'C_CAPEX Tariff Summary'!$B$14:$B$147,0)) -> 50.84315236 | D45: =INDEX('O_OPEX Tariff Summary'!$Y$4:$Y$135,MATCH(G45,'O_OPEX Tariff Summary'!$Q$4:$Q$135,0)) -> 50.84315236 | F45: 150W Sodium | G45: 150W Sodium | H45: TC1 - Capital Funded by Endeavour Energy Legacy | I45: TC2: Capital Not Funded by Endeavour Energy Legacy | J45: HIGH LOW PRESSURE SODIUM | K45: 142 | L45: 338
B46: 250W Sodium | C46: =INDEX('C_CAPEX Tariff Summary'!$W$14:$W$147,MATCH(F46,'C_CAPEX Tariff Summary'!$B$14:$B$147,0)) -> 53.66644365 | D46: =INDEX('O_OPEX Tariff Summary'!$Y$4:$Y$135,MATCH(G46,'O_OPEX Tariff Summary'!$Q$4:$Q$135,0)) -> 53.66644365 | F46: 250W Sodium | G46: 250W Sodium | H46: TC1 - Capital Funded by Endeavour Energy Legacy | I46: TC2: Capital Not Funded by Endeavour Energy Legacy | J46: HIGH LOW PRESSURE SODIUM | K46: 38 | L46: 343
B47: 2 x 250W Sodium | C47: =INDEX('C_CAPEX Tariff Summary'!$W$14:$W$147,MATCH(F47,'C_CAPEX Tariff Summary'!$B$14:$B$147,0)) -> 59.16620285 | D47: =INDEX('O_OPEX Tariff Summary'!$Y$4:$Y$135,MATCH(G47,'O_OPEX Tariff Summary'!$Q$4:$Q$135,0)) -> 59.16620285 | F47: 2 x 250W Sodium | G47: 2 x 250W Sodium | H47: TC1 - Capital Funded by Endeavour Energy Legacy | I47: TC2: Capital Not Funded by Endeavour Energy Legacy | J47: HIGH LOW PRESSURE SODIUM | K47: 103 | L47: 350
B48: 310W Sodium | C48: =INDEX('C_CAPEX Tariff Summary'!$W$14:$W$147,MATCH(F48,'C_CAPEX Tariff Summary'!$B$14:$B$147,0)) -> 51.50079876 | F48: 310W Sodium | G48: 310W Sodium | H48: TC1 - Capital Funded by Endeavour Energy Legacy | J48: HIGH LOW PRESSURE SODIUM | K48: 39
B49: 400 W Sodium | C49: =INDEX('C_CAPEX Tariff Summary'!$W$14:$W$147,MATCH(F49,'C_CAPEX Tariff Summary'!$B$14:$B$147,0)) -> 51.50079876 | D49: =INDEX('O_OPEX Tariff Summary'!$Y$4:$Y$135,MATCH(G49,'O_OPEX Tariff Summary'!$Q$4:$Q$135,0)) -> 51.50079876 | F49: 400 W Sodium | G49: 400 W Sodium | H49: TC1 - Capital Funded by Endeavour Energy Legacy | I49: TC2: Capital Not Funded by Endeavour Energy Legacy | J49: HIGH LOW PRESSURE SODIUM | K49: 25 | L49: 355
B50: 2 x 400 W Sodium | C50: =INDEX('C_CAPEX Tariff Summary'!$W$14:$W$147,MATCH(F50,'C_CAPEX Tariff Summary'!$B$14:$B$147,0)) -> 54.83491307 | D50: =INDEX('O_OPEX Tariff Summary'!$Y$4:$Y$135,MATCH(G50,'O_OPEX Tariff Summary'!$Q$4:$Q$135,0)) -> 54.83491307 | F50: 2 x 400 W Sodium | G50: 2 x 400 W Sodium | H50: TC1 - Capital Funded by Endeavour Energy Legacy | I50: TC2: Capital Not Funded by Endeavour Energy Legacy | J50: HIGH LOW PRESSURE SODIUM | K50: 102 | L50: 358
B51: 4 x 600W Sodium | C51: =INDEX('C_CAPEX Tariff Summary'!$W$14:$W$147,MATCH(F51,'C_CAPEX Tariff Summary'!$B$14:$B$147,0)) -> 65.80189568 | F51: 4 x 600W Sodium | G51: 4 x 600W Sodium | H51: TC1 - Capital Funded by Endeavour Energy Legacy | J51: HIGH LOW PRESSURE SODIUM | K51: 88
B52: 100 W Metal Halide | C52: =INDEX('C_CAPEX Tariff Summary'!$W$14:$W$147,MATCH(F52,'C_CAPEX Tariff Summary'!$B$14:$B$147,0)) -> 57.99467461 | D52: =INDEX('O_OPEX Tariff Summary'!$Y$4:$Y$135,MATCH(G52,'O_OPEX Tariff Summary'!$Q$4:$Q$135,0)) -> 57.99467461 | F52: 100 W Metal Halide | G52: 100 W Metal Halide | H52: TC1 - Capital Funded by Endeavour Energy Legacy | I52: TC2: Capital Not Funded by Endeavour Energy Legacy | J52: METAL HALIDE | K52: 216 | L52: 411
B53: 150 W Metal Halide | C53: =INDEX('C_CAPEX Tariff Summary'!$W$14:$W$147,MATCH(F53,'C_CAPEX Tariff Summary'!$B$14:$B$147,0)) -> 54.89608948 | D53: =INDEX('O_OPEX Tariff Summary'!$Y$4:$Y$135,MATCH(G53,'O_OPEX Tariff Summary'!$Q$4:$Q$135,0)) -> 54.89608948 | F53: 150 W Metal Halide | G53: 150 W Metal Halide | H53: TC1 - Capital Funded by Endeavour Energy Legacy | I53: TC2: Capital Not Funded by Endeavour Energy Legacy | J53: METAL HALIDE | K53: 199 | L53: 365
B54: 250 W Metal Halide | C54: =INDEX('C_CAPEX Tariff Summary'!$W$14:$W$147,MATCH(F54,'C_CAPEX Tariff Summary'!$B$14:$B$147,0)) -> 54.09467852 | D54: =INDEX('O_OPEX Tariff Summary'!$Y$4:$Y$135,MATCH(G54,'O_OPEX Tariff Summary'!$Q$4:$Q$135,0)) -> 54.09467852 | F54: 250 W Metal Halide | G54: 250 W Metal Halide | H54: TC1 - Capital Funded by Endeavour Energy Legacy | I54: TC2: Capital Not Funded by Endeavour Energy Legacy | J54: METAL HALIDE | K54: 198 | L54: 366
B55: 2 x 250 W Metal Halide | C55: =INDEX('C_CAPEX Tariff Summary'!$W$14:$W$147,MATCH(F55,'C_CAPEX Tariff Summary'!$B$14:$B$147,0)) -> 90.03400886 | D55: =INDEX('O_OPEX Tariff Summary'!$Y$4:$Y$135,MATCH(G55,'O_OPEX Tariff Summary'!$Q$4:$Q$135,0)) -> 60.02267258 | F55: 2 x 250 W Metal Halide | G55: 2 x 250 W Metal Halide | H55: TC1 - Capital Funded by Endeavour Energy Legacy | I55: TC2: Capital Not Funded by Endeavour Energy Legacy | J55: METAL HALIDE | K55: 214 | L55: 403
B56: 400 W Metal Halide | C56: =INDEX('C_CAPEX Tariff Summary'!$W$14:$W$147,MATCH(F56,'C_CAPEX Tariff Summary'!$B$14:$B$147,0)) -> 53.67256129 | D56: =INDEX('O_OPEX Tariff Summary'!$Y$4:$Y$135,MATCH(G56,'O_OPEX Tariff Summary'!$Q$4:$Q$135,0)) -> 53.67256129 | F56: 400 W Metal Halide | G56: 400 W Metal Halide | H56: TC1 - Capital Funded by Endeavour Energy Legacy | I56: TC2: Capital Not Funded by Endeavour Energy Legacy | J56: METAL HALIDE | K56: 211 | L56: 396
B57: 2 x 400 W Metal Halide | C57: =INDEX('C_CAPEX Tariff Summary'!$W$14:$W$147,MATCH(F57,'C_CAPEX Tariff Summary'!$B$14:$B$147,0)) -> 112.4390324 | D57: =INDEX('O_OPEX Tariff Summary'!$Y$4:$Y$135,MATCH(G57,'O_OPEX Tariff Summary'!$Q$4:$Q$135,0)) -> 59.17843813 | F57: 2 x 400 W Metal Halide | G57: 2 x 400 W Metal Halide | H57: TC1 - Capital Funded by Endeavour Energy Legacy | I57: TC2: Capital Not Funded by Endeavour Energy Legacy | J57: METAL HALIDE | K57: 212 | L57: 405
B58: 1000 W Metal Halide | C58: =INDEX('C_CAPEX Tariff Summary'!$W$14:$W$147,MATCH(F58,'C_CAPEX Tariff Summary'!$B$14:$B$147,0)) -> 65.80189568 | F58: 4 x 600W Sodium | G58: 1000 W Metal Halide | H58: TC1 - Capital Funded by Endeavour Energy Legacy | J58: METAL HALIDE | K58: 88
B59: 2x14W Energy Efficient Fluro - STD | C59: =INDEX('C_CAPEX Tariff Summary'!$W$14:$W$147,MATCH(F59,'C_CAPEX Tariff Summary'!$B$14:$B$147,0)) -> 89.1563478 | D59: =INDEX('O_OPEX Tariff Summary'!$Y$4:$Y$135,MATCH(G59,'O_OPEX Tariff Summary'!$Q$4:$Q$135,0)) -> 49.20668341 | F59: 2x14W Energy Efficient Fluro - STD | G59: 2x14W Energy Efficient Fluro - STD | H59: TC3 - Capital Funded by Endeavour Energy | I59: TC4: Capital Not Funded by Endeavour Energy | J59: FLUORESCENT | K59: 551 | L59: 851
B60: 2x24W Energy Efficient Fluro - STD | C60: =INDEX('C_CAPEX Tariff Summary'!$W$14:$W$147,MATCH(F60,'C_CAPEX Tariff Summary'!$B$14:$B$147,0)) -> 92.42002418 | D60: =INDEX('O_OPEX Tariff Summary'!$Y$4:$Y$135,MATCH(G60,'O_OPEX Tariff Summary'!$Q$4:$Q$135,0)) -> 49.20668341 | F60: 2x24W Energy Efficient Fluro - STD | G60: 2x24W Energy Efficient Fluro - STD | H60: TC3 - Capital Funded by Endeavour Energy | I60: TC4: Capital Not Funded by Endeavour Energy | J60: FLUORESCENT | K60: 552 | L60: 852
B61: 1x42W Compact Fluorescent - STD | C61: =INDEX('C_CAPEX Tariff Summary'!$W$14:$W$147,MATCH(F61,'C_CAPEX Tariff Summary'!$B$14:$B$147,0)) -> 84.41429519 | D61: =INDEX('O_OPEX Tariff Summary'!$Y$4:$Y$135,MATCH(G61,'O_OPEX Tariff Summary'!$Q$4:$Q$135,0)) -> 49.7725652 | F61: 1x42W Compact Fluorescent - STD | G61: 1x42W Compact Fluorescent - STD | H61: TC3 - Capital Funded by Endeavour Energy | I61: TC4: Capital Not Funded by Endeavour Energy | J61: FLUORESCENT | K61: 553 | L61: 853
B62: 50W Mercury - STANDARD | C62: =INDEX('C_CAPEX Tariff Summary'!$W$14:$W$147,MATCH(F62,'C_CAPEX Tariff Summary'!$B$14:$B$147,0)) -> 80.38646195 | D62: =INDEX('O_OPEX Tariff Summary'!$Y$4:$Y$135,MATCH(G62,'O_OPEX Tariff Summary'!$Q$4:$Q$135,0)) -> 50.18550596 | F62: 50W Mercury - STANDARD | G62: 50W Mercury - STANDARD | H62: TC3 - Capital Funded by Endeavour Energy | I62: TC4: Capital Not Funded by Endeavour Energy | J62: MERCURY | K62: 554 | L62: 854
B63: 80W Mercury - STANDARD | C63: =INDEX('C_CAPEX Tariff Summary'!$W$14:$W$147,MATCH(F63,'C_CAPEX Tariff Summary'!$B$14:$B$147,0)) -> 83.056606 | D63: =INDEX('O_OPEX Tariff Summary'!$Y$4:$Y$135,MATCH(G63,'O_OPEX Tariff Summary'!$Q$4:$Q$135,0)) -> 49.35962444 | F63: 80W Mercury - STANDARD | G63: 80W Mercury - STANDARD | H63: TC3 - Capital Funded by Endeavour Energy | I63: TC4: Capital Not Funded by Endeavour Energy | J63: MERCURY | K63: 555 | L63: 855
B64: 70W Sodium - STANDARD | C64: =INDEX('C_CAPEX Tariff Summary'!$W$14:$W$147,MATCH(F64,'C_CAPEX Tariff Summary'!$B$14:$B$147,0)) -> 84.95907964 | D64: =INDEX('O_OPEX Tariff Summary'!$Y$4:$Y$135,MATCH(G64,'O_OPEX Tariff Summary'!$Q$4:$Q$135,0)) -> 50.89515231 | F64: 70W Sodium - STANDARD | G64: 70W Sodium - STANDARD | H64: TC3 - Capital Funded by Endeavour Energy | I64: TC4: Capital Not Funded by Endeavour Energy | J64: HIGH LOW PRESSURE SODIUM | K64: 556 | L64: 856
B65: 100W Sodium - STANDARD | C65: =INDEX('C_CAPEX Tariff Summary'!$W$14:$W$147,MATCH(F65,'C_CAPEX Tariff Summary'!$B$14:$B$147,0)) -> 93.61991175 | D65: =INDEX('O_OPEX Tariff Summary'!$Y$4:$Y$135,MATCH(G65,'O_OPEX Tariff Summary'!$Q$4:$Q$135,0)) -> 52.08197465 | F65: 100W Sodium - STANDARD | G65: 100W Sodium - STANDARD | H65: TC3 - Capital Funded by Endeavour Energy | I65: TC4: Capital Not Funded by Endeavour Energy | J65: HIGH LOW PRESSURE SODIUM | K65: 557 | L65: 857
B66: 100W Metal Halide - STANDARD | C66: =INDEX('C_CAPEX Tariff Summary'!$W$14:$W$147,MATCH(F66,'C_CAPEX Tariff Summary'!$B$14:$B$147,0)) -> 101.2970549 | D66: =INDEX('O_OPEX Tariff Summary'!$Y$4:$Y$135,MATCH(G66,'O_OPEX Tariff Summary'!$Q$4:$Q$135,0)) -> 57.99467461 | F66: 100W Metal Halide - STANDARD | G66: 100 W Metal Halide | H66: TC3 - Capital Funded by Endeavour Energy | I66: TC2: Capital Not Funded by Endeavour Energy Legacy | J66: METAL HALIDE | K66: 558 | L66: 411
B67: Suburban 70W HPS c/w D2 PECB - STD | C67: =INDEX('C_CAPEX Tariff Summary'!$W$14:$W$147,MATCH(F67,'C_CAPEX Tariff Summary'!$B$14:$B$147,0)) -> 84.95907964 | D67: =INDEX('O_OPEX Tariff Summary'!$Y$4:$Y$135,MATCH(G67,'O_OPEX Tariff Summary'!$Q$4:$Q$135,0)) -> 50.89515231 | F67: Suburban 70W HPS c/w D2 PECB - STD | G67: Suburban 70W HPS c/w D2 PECB - STD | H67: TC3 - Capital Funded by Endeavour Energy | I67: TC4: Capital Not Funded by Endeavour Energy | J67: HIGH LOW PRESSURE SODIUM | K67: 577 | L67: 877
B68: 150W Sodium - STANDARD | C68: =INDEX('C_CAPEX Tariff Summary'!$W$14:$W$147,MATCH(F68,'C_CAPEX Tariff Summary'!$B$14:$B$147,0)) -> 100.4674961 | D68: =INDEX('O_OPEX Tariff Summary'!$Y$4:$Y$135,MATCH(G68,'O_OPEX Tariff Summary'!$Q$4:$Q$135,0)) -> 57.98091026 | F68: 150W Sodium - STANDARD | G68: 150W Sodium - STANDARD | H68: TC3 - Capital Funded by Endeavour Energy | I68: TC4: Capital Not Funded by Endeavour Energy | J68: HIGH LOW PRESSURE SODIUM | K68: 559 | L68: 859
B69: 150W Metal Halide - STANDARD | C69: =INDEX('C_CAPEX Tariff Summary'!$W$14:$W$147,MATCH(F69,'C_CAPEX Tariff Summary'!$B$14:$B$147,0)) -> 105.7302256 | D69: =INDEX('O_OPEX Tariff Summary'!$Y$4:$Y$135,MATCH(G69,'O_OPEX Tariff Summary'!$Q$4:$Q$135,0)) -> 62.03384738 | F69: 150W Metal Halide - STANDARD | G69: 150W Metal Halide - STANDARD | H69: TC3 - Capital Funded by Endeavour Energy | I69: TC4: Capital Not Funded by Endeavour Energy | J69: METAL HALIDE | K69: 560 | L69: 860
B70: 250W Sodium - STANDARD | C70: =INDEX('C_CAPEX Tariff Summary'!$W$14:$W$147,MATCH(F70,'C_CAPEX Tariff Summary'!$B$14:$B$147,0)) -> 105.6224115 | D70: =INDEX('O_OPEX Tariff Summary'!$Y$4:$Y$135,MATCH(G70,'O_OPEX Tariff Summary'!$Q$4:$Q$135,0)) -> 60.80420155 | F70: 250W Sodium - STANDARD | G70: 250W Sodium - STANDARD | H70: TC3 - Capital Funded by Endeavour Energy | I70: TC4: Capital Not Funded by Endeavour Energy | J70: HIGH LOW PRESSURE SODIUM | K70: 561 | L70: 861
B71: 250W Metal Halide - STANDARD | C71: =INDEX('C_CAPEX Tariff Summary'!$W$14:$W$147,MATCH(F71,'C_CAPEX Tariff Summary'!$B$14:$B$147,0)) -> 106.1784384 | D71: =INDEX('O_OPEX Tariff Summary'!$Y$4:$Y$135,MATCH(G71,'O_OPEX Tariff Summary'!$Q$4:$Q$135,0)) -> 61.23243642 | F71: 250W Metal Halide - STANDARD | G71: 250W Metal Halide - STANDARD | H71: TC3 - Capital Funded by Endeavour Energy | I71: TC4: Capital Not Funded by Endeavour Energy | J71: METAL HALIDE | K71: 562 | L71: 862
B72: 400W Sodium - STANDARD | C72: =INDEX('C_CAPEX Tariff Summary'!$W$14:$W$147,MATCH(F72,'C_CAPEX Tariff Summary'!$B$14:$B$147,0)) -> 110.6605875 | D72: =INDEX('O_OPEX Tariff Summary'!$Y$4:$Y$135,MATCH(G72,'O_OPEX Tariff Summary'!$Q$4:$Q$135,0)) -> 58.63855666 | F72: 400W Sodium - STANDARD | G72: 400W Sodium - STANDARD | H72: TC3 - Capital Funded by Endeavour Energy | I72: TC4: Capital Not Funded by Endeavour Energy | J72: HIGH LOW PRESSURE SODIUM | K72: 563 | L72: 863
B73: 80W Mercury - AEROSCREEN | C73: =INDEX('C_CAPEX Tariff Summary'!$W$14:$W$147,MATCH(F73,'C_CAPEX Tariff Summary'!$B$14:$B$147,0)) -> 91.31542125 | D73: =INDEX('O_OPEX Tariff Summary'!$Y$4:$Y$135,MATCH(G73,'O_OPEX Tariff Summary'!$Q$4:$Q$135,0)) -> 57.61843969 | F73: 80W Mercury - AEROSCREEN | G73: 80W Mercury - AEROSCREEN | H73: TC3 - Capital Funded by Endeavour Energy | I73: TC4: Capital Not Funded by Endeavour Energy | J73: MERCURY | K73: 564 | L73: 864
B74: Urban A/Screen 42W CFL c/w D2 PECB | C74: =INDEX('C_CAPEX Tariff Summary'!$W$14:$W$147,MATCH(F74,'C_CAPEX Tariff Summary'!$B$14:$B$147,0)) -> 93.54271421 | D74: =INDEX('O_OPEX Tariff Summary'!$Y$4:$Y$135,MATCH(G74,'O_OPEX Tariff Summary'!$Q$4:$Q$135,0)) -> 49.7725652 | F74: Urban A/Screen 42W CFL c/w D2 PECB | G74: Urban A/Screen 42W CFL c/w D2 PECB | H74: TC3 - Capital Funded by Endeavour Energy | I74: TC4: Capital Not Funded by Endeavour Energy | J74: FLUORESCENT | K74: 578 | L74: 878
B75: 150W Sodium - AEROSCREEN | C75: =INDEX('C_CAPEX Tariff Summary'!$W$14:$W$147,MATCH(F75,'C_CAPEX Tariff Summary'!$B$14:$B$147,0)) -> 104.7862867 | D75: =INDEX('O_OPEX Tariff Summary'!$Y$4:$Y$135,MATCH(G75,'O_OPEX Tariff Summary'!$Q$4:$Q$135,0)) -> 57.98091026 | F75: 150W Sodium - AEROSCREEN | G75: 150W Sodium - AEROSCREEN | H75: TC3 - Capital Funded by Endeavour Energy | I75: TC4: Capital Not Funded by Endeavour Energy | J75: HIGH LOW PRESSURE SODIUM | K75: 565 | L75: 865
B76: 150W Metal Halide - AEROSCREEN | C76: =INDEX('C_CAPEX Tariff Summary'!$W$14:$W$147,MATCH(F76,'C_CAPEX Tariff Summary'!$B$14:$B$147,0)) -> 110.0486844 | D76: =INDEX('O_OPEX Tariff Summary'!$Y$4:$Y$135,MATCH(G76,'O_OPEX Tariff Summary'!$Q$4:$Q$135,0)) -> 62.03384738 | F76: 150W Metal Halide - AEROSCREEN | G76: 150W Metal Halide - AEROSCREEN | H76: TC3 - Capital Funded by Endeavour Energy | I76: TC4: Capital Not Funded by Endeavour Energy | J76: METAL HALIDE | K76: 566 | L76: 866
B77: 250W Sodium (w/o PECB) - AEROSCREEN | C77: =INDEX('C_CAPEX Tariff Summary'!$W$14:$W$147,MATCH(F77,'C_CAPEX Tariff Summary'!$B$14:$B$147,0)) -> 107.4664343 | D77: =INDEX('O_OPEX Tariff Summary'!$Y$4:$Y$135,MATCH(G77,'O_OPEX Tariff Summary'!$Q$4:$Q$135,0)) -> 60.80420155 | F77: 250W Sodium (w/o PECB) - AEROSCREEN | G77: 250W Sodium (w/o PECB) - AEROSCREEN | H77: TC3 - Capital Funded by Endeavour Energy | I77: TC4: Capital Not Funded by Endeavour Energy | J77: HIGH LOW PRESSURE SODIUM | K77: 568 | L77: 868
B78: 250W Metal Halide - AEROSCREEN | C78: =INDEX('C_CAPEX Tariff Summary'!$W$14:$W$147,MATCH(F78,'C_CAPEX Tariff Summary'!$B$14:$B$147,0)) -> 108.0222953 | D78: =INDEX('O_OPEX Tariff Summary'!$Y$4:$Y$135,MATCH(G78,'O_OPEX Tariff Summary'!$Q$4:$Q$135,0)) -> 61.23243642 | F78: 250W Metal Halide - AEROSCREEN | G78: 250W Metal Halide - AEROSCREEN | H78: TC3 - Capital Funded by Endeavour Energy | I78: TC4: Capital Not Funded by Endeavour Energy | J78: METAL HALIDE | K78: 569 | L78: 869
B79: 400W Sodium - AEROSCREEN | C79: =INDEX('C_CAPEX Tariff Summary'!$W$14:$W$147,MATCH(F79,'C_CAPEX Tariff Summary'!$B$14:$B$147,0)) -> 109.473947 | D79: =INDEX('O_OPEX Tariff Summary'!$Y$4:$Y$135,MATCH(G79,'O_OPEX Tariff Summary'!$Q$4:$Q$135,0)) -> 58.63855666 | F79: 400W Sodium - AEROSCREEN | G79: 400W Sodium - AEROSCREEN | H79: TC3 - Capital Funded by Endeavour Energy | I79: TC4: Capital Not Funded by Endeavour Energy | J79: HIGH LOW PRESSURE SODIUM | K79: 570 | L79: 870
B80: 400W Metal Halide - AEROSCREEN | C80: =INDEX('C_CAPEX Tariff Summary'!$W$14:$W$147,MATCH(F80,'C_CAPEX Tariff Summary'!$B$14:$B$147,0)) -> 112.2937978 | D80: =INDEX('O_OPEX Tariff Summary'!$Y$4:$Y$135,MATCH(G80,'O_OPEX Tariff Summary'!$Q$4:$Q$135,0)) -> 60.81031919 | F80: 400W Metal Halide - AEROSCREEN | G80: 400W Metal Halide - AEROSCREEN | H80: TC3 - Capital Funded by Endeavour Energy | I80: TC4: Capital Not Funded by Endeavour Energy | J80: METAL HALIDE | K80: 571 | L80: 871
B81: Roadster A/Screen 100W HPS c/w PECB | C81: =INDEX('C_CAPEX Tariff Summary'!$W$14:$W$147,MATCH(F81,'C_CAPEX Tariff Summary'!$B$14:$B$147,0)) -> 103.1999917 | D81: =INDEX('O_OPEX Tariff Summary'!$Y$4:$Y$135,MATCH(G81,'O_OPEX Tariff Summary'!$Q$4:$Q$135,0)) -> 59.21973255 | F81: Roadster A/Screen 100W HPS c/w PECB | G81: Roadster A/Screen 100W HPS c/w PECB | H81: TC3 - Capital Funded by Endeavour Energy | I81: TC4: Capital Not Funded by Endeavour Energy | J81: HIGH LOW PRESSURE SODIUM | K81: 579 | L81: 879
B82: 80W Mercury - POST TOP | C82: =INDEX('C_CAPEX Tariff Summary'!$W$14:$W$147,MATCH(F82,'C_CAPEX Tariff Summary'!$B$14:$B$147,0)) -> 110.2580583 | D82: =INDEX('O_OPEX Tariff Summary'!$Y$4:$Y$135,MATCH(G82,'O_OPEX Tariff Summary'!$Q$4:$Q$135,0)) -> 49.35962444 | F82: 80W Mercury - POST TOP | G82: 80W Mercury - POST TOP | H82: TC3 - Capital Funded by Endeavour Energy | I82: TC4: Capital Not Funded by Endeavour Energy | J82: MERCURY | K82: 572 | L82: 872
B83: B2001 42WCFL c/w D2 PECB green - PT | C83: =INDEX('C_CAPEX Tariff Summary'!$W$14:$W$147,MATCH(F83,'C_CAPEX Tariff Summary'!$B$14:$B$147,0)) -> 116.0117113 | D83: =INDEX('O_OPEX Tariff Summary'!$Y$4:$Y$135,MATCH(G83,'O_OPEX Tariff Summary'!$Q$4:$Q$135,0)) -> 49.7725652 | F83: B2001 42WCFL c/w D2 PECB green - PT | G83: B2001 42WCFL c/w D2 PECB green - PT | H83: TC3 - Capital Funded by Endeavour Energy | I83: TC4: Capital Not Funded by Endeavour Energy | J83: FLUORESCENT | K83: 580 | L83: 880
B84: 250W Sodium - FLOODLIGHT | C84: =INDEX('C_CAPEX Tariff Summary'!$W$14:$W$147,MATCH(F84,'C_CAPEX Tariff Summary'!$B$14:$B$147,0)) -> 118.8112251 | D84: =INDEX('O_OPEX Tariff Summary'!$Y$4:$Y$135,MATCH(G84,'O_OPEX Tariff Summary'!$Q$4:$Q$135,0)) -> 53.66644365 | F84: 250W Sodium - FLOODLIGHT | G84: 250W Sodium - FLOODLIGHT | H84: TC3 - Capital Funded by Endeavour Energy | I84: TC4: Capital Not Funded by Endeavour Energy | J84: HIGH LOW PRESSURE SODIUM | K84: 573 | L84: 873
B85: 250W Metal Halide - FLOODLIGHT | C85: =INDEX('C_CAPEX Tariff Summary'!$W$14:$W$147,MATCH(F85,'C_CAPEX Tariff Summary'!$B$14:$B$147,0)) -> 119.3669201 | D85: =INDEX('O_OPEX Tariff Summary'!$Y$4:$Y$135,MATCH(G85,'O_OPEX Tariff Summary'!$Q$4:$Q$135,0)) -> 54.09467852 | F85: 250W Metal Halide - FLOODLIGHT | G85: 250W Metal Halide - FLOODLIGHT | H85: TC3 - Capital Funded by Endeavour Energy | I85: TC4: Capital Not Funded by Endeavour Energy | J85: METAL HALIDE | K85: 574 | L85: 874
B86: 400W Sodium - FLOODLIGHT | C86: =INDEX('C_CAPEX Tariff Summary'!$W$14:$W$147,MATCH(F86,'C_CAPEX Tariff Summary'!$B$14:$B$147,0)) -> 118.4189025 | D86: =INDEX('O_OPEX Tariff Summary'!$Y$4:$Y$135,MATCH(G86,'O_OPEX Tariff Summary'!$Q$4:$Q$135,0)) -> 51.50079876 | F86: 400W Sodium - FLOODLIGHT | G86: 400W Sodium - FLOODLIGHT | H86: TC3 - Capital Funded by Endeavour Energy | I86: TC4: Capital Not Funded by Endeavour Energy | J86: HIGH LOW PRESSURE SODIUM | K86: 575 | L86: 875
B87: 400W Metal Halide - FLOODLIGHT | C87: =INDEX('C_CAPEX Tariff Summary'!$W$14:$W$147,MATCH(F87,'C_CAPEX Tariff Summary'!$B$14:$B$147,0)) -> 121.2387533 | D87: =INDEX('O_OPEX Tariff Summary'!$Y$4:$Y$135,MATCH(G87,'O_OPEX Tariff Summary'!$Q$4:$Q$135,0)) -> 53.67256129 | F87: 400W Metal Halide - FLOODLIGHT | G87: 400W Metal Halide - FLOODLIGHT | H87: TC3 - Capital Funded by Endeavour Energy | I87: TC4: Capital Not Funded by Endeavour Energy | J87: METAL HALIDE | K87: 576 | L87: 876
B88: 150W Sodium - FLOODLIGHT | C88: =INDEX('C_CAPEX Tariff Summary'!$W$14:$W$147,MATCH(F88,'C_CAPEX Tariff Summary'!$B$14:$B$147,0)) -> 114.6179034 | D88: =INDEX('O_OPEX Tariff Summary'!$Y$4:$Y$135,MATCH(G88,'O_OPEX Tariff Summary'!$Q$4:$Q$135,0)) -> 50.84315236 | F88: 150W Sodium - FLOODLIGHT | G88: 150W Sodium - FLOODLIGHT | H88: TC3 - Capital Funded by Endeavour Energy | I88: TC4: Capital Not Funded by Endeavour Energy | J88: HIGH LOW PRESSURE SODIUM | K88: 581 | L88: 881
B89: 150W Metal Halide - FLOODLIGHT | C89: =INDEX('C_CAPEX Tariff Summary'!$W$14:$W$147,MATCH(F89,'C_CAPEX Tariff Summary'!$B$14:$B$147,0)) -> 119.8798861 | D89: =INDEX('O_OPEX Tariff Summary'!$Y$4:$Y$135,MATCH(G89,'O_OPEX Tariff Summary'!$Q$4:$Q$135,0)) -> 54.89608948 | F89: 150W Metal Halide - FLOODLIGHT | G89: 150W Metal Halide - FLOODLIGHT | H89: TC3 - Capital Funded by Endeavour Energy | I89: TC4: Capital Not Funded by Endeavour Energy | J89: METAL HALIDE | K89: 582 | L89: 882
B92: LED Luminaire Type | C92: NEW TC3 (Capex + Opex) | D92: NEW TC4 (Opex) | F92: CAPEX Lookup | G92: OPEX Lookup | H92: Capex Tariff Class | I92: Opex Tariff Class | J92: Grouping | K92: Old Tariff No Capex | L92: Old Tariff No Opex
B93: 17W LED Cat P Luminaire | C93: =INDEX('C_CAPEX Tariff Summary'!$W$14:$W$147,MATCH(F93,'C_CAPEX Tariff Summary'!$B$14:$B$147,0)) -> 67.14294015 | D93: =INDEX('O_OPEX Tariff Summary'!$Y$4:$Y$135,MATCH(G93,'O_OPEX Tariff Summary'!$Q$4:$Q$135,0)) -> 34.68169481 | F93: 17W LED Cat P Luminaire | G93: 17W LED Cat P Luminaire | H93: TC3 - Capital Funded by Endeavour Energy | I93: TC4: Capital Not Funded by Endeavour Energy | J93: LED | K93: 589 | L93: 889
B94: 18W LED P4 Gerard | C94: =INDEX('C_CAPEX Tariff Summary'!$W$14:$W$147,MATCH(F94,'C_CAPEX Tariff Summary'!$B$14:$B$147,0)) -> 72.61572992 | D94: =INDEX('O_OPEX Tariff Summary'!$Y$4:$Y$135,MATCH(G94,'O_OPEX Tariff Summary'!$Q$4:$Q$135,0)) -> 34.68169481 | F94: 18W LED P4 Gerard | G94: 18W LED P4 Gerard | H94: TC3 - Capital Funded by Endeavour Energy | I94: TC4: Capital Not Funded by Endeavour Energy | J94: LED | K94: 585 | L94: 885
B95: 25W LED P4 Gerard | C95: =INDEX('C_CAPEX Tariff Summary'!$W$14:$W$147,MATCH(F95,'C_CAPEX Tariff Summary'!$B$14:$B$147,0)) -> 72.61572992 | D95: =INDEX('O_OPEX Tariff Summary'!$Y$4:$Y$135,MATCH(G95,'O_OPEX Tariff Summary'!$Q$4:$Q$135,0)) -> 34.68169481 | F95: 25W LED P4 GE | G95: 25W LED P4 Gerard | H95: TC3 - Capital Funded by Endeavour Energy | I95: TC4: Capital Not Funded by Endeavour Energy | J95: LED | K95: 588 | L95: 867
B96: 25W LED | C96: =INDEX('C_CAPEX Tariff Summary'!$W$14:$W$147,MATCH(F96,'C_CAPEX Tariff Summary'!$B$14:$B$147,0)) -> 72.61589588 | D96: =INDEX('O_OPEX Tariff Summary'!$Y$4:$Y$135,MATCH(G96,'O_OPEX Tariff Summary'!$Q$4:$Q$135,0)) -> 34.68169481 | F96: 25W LED | G96: 25W LED | H96: TC3 - Capital Funded by Endeavour Energy | I96: TC4: Capital Not Funded by Endeavour Energy | J96: LED | K96: 588 | L96: 888
B97: 33W LED | C97: =INDEX('C_CAPEX Tariff Summary'!$W$14:$W$147,MATCH(F97,'C_CAPEX Tariff Summary'!$B$14:$B$147,0)) -> 72.86470989 | D97: =INDEX('O_OPEX Tariff Summary'!$Y$4:$Y$135,MATCH(G97,'O_OPEX Tariff Summary'!$Q$4:$Q$135,0)) -> 34.68169481 | F97: 33W LED | G97: 33W LED | H97: TC3 - Capital Funded by Endeavour Energy | I97: TC4: Capital Not Funded by Endeavour Energy | J97: LED | K97: 587 | L97: 887
B98: 42W LED P3 Gerard | C98: =INDEX('C_CAPEX Tariff Summary'!$W$14:$W$147,MATCH(F98,'C_CAPEX Tariff Summary'!$B$14:$B$147,0)) -> 80.90856394 | D98: =INDEX('O_OPEX Tariff Summary'!$Y$4:$Y$135,MATCH(G98,'O_OPEX Tariff Summary'!$Q$4:$Q$135,0)) -> 39.26109079 | F98: 42W LED P3 Gerard | G98: 42W LED P3 Gerard | H98: TC3 - Capital Funded by Endeavour Energy | I98: TC4: Capital Not Funded by Endeavour Energy | J98: LED | K98: 586 | L98: 886
B99: 82W LED Gerard V5 Cat Luminaire | C99: =INDEX('C_CAPEX Tariff Summary'!$W$14:$W$147,MATCH(F99,'C_CAPEX Tariff Summary'!$B$14:$B$147,0)) -> 106.7408156 | D99: =INDEX('O_OPEX Tariff Summary'!$Y$4:$Y$135,MATCH(G99,'O_OPEX Tariff Summary'!$Q$4:$Q$135,0)) -> 39.26109079 | F99: 82W LED Gerard V5 Cat Luminaire | G99: 82W LED Gerard V5 Cat Luminaire | H99: TC3 - Capital Funded by Endeavour Energy | I99: TC4: Capital Not Funded by Endeavour Energy | J99: LED | K99: 650 | L99: 950
B100: 100W LED Gerard V4 Cat Luminaire | C100: =INDEX('C_CAPEX Tariff Summary'!$W$14:$W$147,MATCH(F100,'C_CAPEX Tariff Summary'!$B$14:$B$147,0)) -> 106.7408156 | D100: =INDEX('O_OPEX Tariff Summary'!$Y$4:$Y$135,MATCH(G100,'O_OPEX Tariff Summary'!$Q$4:$Q$135,0)) -> 39.26109079 | F100: 100W LED Gerard V4 Cat Luminaire | G100: 100W LED Gerard V4 Cat Luminaire | H100: TC3 - Capital Funded by Endeavour Energy | I100: TC4: Capital Not Funded by Endeavour Energy | J100: LED | K100: 651 | L100: 951
B101: 198W LED Gerard V2/V3 Cat Luminaire | C101: =INDEX('C_CAPEX Tariff Summary'!$W$14:$W$147,MATCH(F101,'C_CAPEX Tariff Summary'!$B$14:$B$147,0)) -> 118.6072209 | D101: =INDEX('O_OPEX Tariff Summary'!$Y$4:$Y$135,MATCH(G101,'O_OPEX Tariff Summary'!$Q$4:$Q$135,0)) -> 39.26109079 | F101: 198W LED Gerard V2/V3 Cat Luminaire | G101: 198W LED Gerard V2/V3 Cat Luminaire | H101: TC3 - Capital Funded by Endeavour Energy | I101: TC4: Capital Not Funded by Endeavour Energy | J101: LED | K101: 652 | L101: 952
B102: 33W LED P3 Gerard | C102: =INDEX('C_CAPEX Tariff Summary'!$W$14:$W$147,MATCH(F102,'C_CAPEX Tariff Summary'!$B$14:$B$147,0)) -> 76.32916796 | D102: =INDEX('O_OPEX Tariff Summary'!$Y$4:$Y$135,MATCH(G102,'O_OPEX Tariff Summary'!$Q$4:$Q$135,0)) -> 34.68169481 | F102: 33W LED P3 Gerard | G102: 33W LED P3 Gerard | H102: TC3 - Capital Funded by Endeavour Energy | I102: TC4: Capital Not Funded by Endeavour Energy | J102: LED | K102: 653 | L102: 953
B103: 60W LED RoadLED Midi Optic Tuner | C103: =INDEX('C_CAPEX Tariff Summary'!$W$14:$W$147,MATCH(F103,'C_CAPEX Tariff Summary'!$B$14:$B$147,0)) -> 96.69905172 | D103: =INDEX('O_OPEX Tariff Summary'!$Y$4:$Y$135,MATCH(G103,'O_OPEX Tariff Summary'!$Q$4:$Q$135,0)) -> 39.26109079 | F103: 60W LED RoadLED Midi Optic Tuner | G103: 60W LED RoadLED Midi Optic Tuner | H103: TC3 - Capital Funded by Endeavour Energy | I103: TC4: Capital Not Funded by Endeavour Energy | J103: LED | K103: 659 | L103: 959
B104: 80W LED RoadLED Midi Optic Tuner | C104: =INDEX('C_CAPEX Tariff Summary'!$W$14:$W$147,MATCH(F104,'C_CAPEX Tariff Summary'!$B$14:$B$147,0)) -> 103.8334072 | D104: =INDEX('O_OPEX Tariff Summary'!$Y$4:$Y$135,MATCH(G104,'O_OPEX Tariff Summary'!$Q$4:$Q$135,0)) -> 39.26109079 | F104: 80W LED RoadLED Midi Optic Tuner | G104: 80W LED RoadLED Midi Optic Tuner | H104: TC3 - Capital Funded by Endeavour Energy | I104: TC4: Capital Not Funded by Endeavour Energy | J104: LED | K104: 660 | L104: 960
B105: 70W LED RoadLED Midi | C105: =INDEX('C_CAPEX Tariff Summary'!$W$14:$W$147,MATCH(F105,'C_CAPEX Tariff Summary'!$B$14:$B$147,0)) -> 88.64607785 | D105: =INDEX('O_OPEX Tariff Summary'!$Y$4:$Y$135,MATCH(G105,'O_OPEX Tariff Summary'!$Q$4:$Q$135,0)) -> 39.26109079 | F105: 70W LED RoadLED Midi | G105: 70W LED RoadLED Midi | H105: TC3 - Capital Funded by Endeavour Energy | I105: TC4: Capital Not Funded by Endeavour Energy | J105: LED | K105: 661 | L105: 961
B106: 80W LED RoadLED Midi | C106: =INDEX('C_CAPEX Tariff Summary'!$W$14:$W$147,MATCH(F106,'C_CAPEX Tariff Summary'!$B$14:$B$147,0)) -> 89.29410537 | D106: =INDEX('O_OPEX Tariff Summary'!$Y$4:$Y$135,MATCH(G106,'O_OPEX Tariff Summary'!$Q$4:$Q$135,0)) -> 39.26109079 | F106: 80W LED RoadLED Midi | G106: 80W LED RoadLED Midi | H106: TC3 - Capital Funded by Endeavour Energy | I106: TC4: Capital Not Funded by Endeavour Energy | J106: LED | K106: 662 | L106: 962
B107: 165W LED RoadLED Midi | C107: =INDEX('C_CAPEX Tariff Summary'!$W$14:$W$147,MATCH(F107,'C_CAPEX Tariff Summary'!$B$14:$B$147,0)) -> 91.85818374 | D107: =INDEX('O_OPEX Tariff Summary'!$Y$4:$Y$135,MATCH(G107,'O_OPEX Tariff Summary'!$Q$4:$Q$135,0)) -> 39.26109079 | F107: 165W LED RoadLED Midi | G107: 165W LED RoadLED Midi | H107: TC3 - Capital Funded by Endeavour Energy | I107: TC4: Capital Not Funded by Endeavour Energy | J107: LED | K107: 664 | L107: 964
B108: 17W LED B2001 NUWE Post Top | C108: =INDEX('C_CAPEX Tariff Summary'!$W$14:$W$147,MATCH(F108,'C_CAPEX Tariff Summary'!$B$14:$B$147,0)) -> 102.7943475 | D108: =INDEX('O_OPEX Tariff Summary'!$Y$4:$Y$135,MATCH(G108,'O_OPEX Tariff Summary'!$Q$4:$Q$135,0)) -> 34.68169481 | F108: 17W LED B2001 NUWE Post Top | G108: 17W LED B2001 NUWE Post Top | H108: TC3 - Capital Funded by Endeavour Energy | I108: TC4: Capital Not Funded by Endeavour Energy | J108: LED | K108: 665 | L108: 965
B109: 75W LED Aglo Nilum Plus FLOODLIGHT | C109: =INDEX('C_CAPEX Tariff Summary'!$W$14:$W$147,MATCH(F109,'C_CAPEX Tariff Summary'!$B$14:$B$147,0)) -> 90.52171153 | D109: =INDEX('O_OPEX Tariff Summary'!$Y$4:$Y$135,MATCH(G109,'O_OPEX Tariff Summary'!$Q$4:$Q$135,0)) -> 34.68169481 | F109: 75W LED Aglo Nilum Plus FLOODLIGHT | G109: 75W LED Aglo Nilum Plus FLOODLIGHT | H109: TC3 - Capital Funded by Endeavour Energy | I109: TC4: Capital Not Funded by Endeavour Energy | J109: LED | K109: 655 | L109: 955
B110: 100W LED Aglo Nilum Plus FLOODLIGHT | C110: =INDEX('C_CAPEX Tariff Summary'!$W$14:$W$147,MATCH(F110,'C_CAPEX Tariff Summary'!$B$14:$B$147,0)) -> 92.78970629 | D110: =INDEX('O_OPEX Tariff Summary'!$Y$4:$Y$135,MATCH(G110,'O_OPEX Tariff Summary'!$Q$4:$Q$135,0)) -> 34.68169481 | F110: 100W LED Aglo Nilum Plus FLOODLIGHT | G110: 100W LED Aglo Nilum Plus FLOODLIGHT | H110: TC3 - Capital Funded by Endeavour Energy | I110: TC4: Capital Not Funded by Endeavour Energy | J110: LED | K110: 656 | L110: 956
B111: 150W LED Aglo Nilum Plus FLOODLIGHT | C111: =INDEX('C_CAPEX Tariff Summary'!$W$14:$W$147,MATCH(F111,'C_CAPEX Tariff Summary'!$B$14:$B$147,0)) -> 99.76801789 | D111: =INDEX('O_OPEX Tariff Summary'!$Y$4:$Y$135,MATCH(G111,'O_OPEX Tariff Summary'!$Q$4:$Q$135,0)) -> 34.68169481 | F111: 150W LED Aglo Nilum Plus FLOODLIGHT | G111: 150W LED Aglo Nilum Plus FLOODLIGHT | H111: TC3 - Capital Funded by Endeavour Energy | I111: TC4: Capital Not Funded by Endeavour Energy | J111: LED | K111: 657 | L111: 957
B112: 300W LED Aglo Nilum Plus FLOODLIGHT | C112: =INDEX('C_CAPEX Tariff Summary'!$W$14:$W$147,MATCH(F112,'C_CAPEX Tariff Summary'!$B$14:$B$147,0)) -> 128.2086721 | D112: =INDEX('O_OPEX Tariff Summary'!$Y$4:$Y$135,MATCH(G112,'O_OPEX Tariff Summary'!$Q$4:$Q$135,0)) -> 34.68169481 | F112: 300W LED Aglo Nilum Plus FLOODLIGHT | G112: 300W LED Aglo Nilum Plus FLOODLIGHT | H112: TC3 - Capital Funded by Endeavour Energy | I112: TC4: Capital Not Funded by Endeavour Energy | J112: LED | K112: 658 | L112: 958
B113: 33W LED P4 Pecan | C113: =INDEX('C_CAPEX Tariff Summary'!$W$14:$W$147,MATCH(F113,'C_CAPEX Tariff Summary'!$B$14:$B$147,0)) -> 72.86470989 | D113: =INDEX('O_OPEX Tariff Summary'!$Y$4:$Y$135,MATCH(G113,'O_OPEX Tariff Summary'!$Q$4:$Q$135,0)) -> 34.68169481 | F113: 33W LED P4 Pecan | G113: 33W LED P4 Pecan | H113: TC3 - Capital Funded by Endeavour Energy | I113: TC4: Capital Not Funded by Endeavour Energy | J113: LED | K113: 587 | L113: 887
B114: 13W LED STREETLED3 STD Visor S-S | C114: =INDEX('C_CAPEX Tariff Summary'!$W$14:$W$147,MATCH(F114,'C_CAPEX Tariff Summary'!$B$14:$B$147,0)) -> 66.51799757 | D114: =INDEX('O_OPEX Tariff Summary'!$Y$4:$Y$135,MATCH(G114,'O_OPEX Tariff Summary'!$Q$4:$Q$135,0)) -> 34.68169481 | F114: 13W LED STREETLED3 STD Visor S-S | G114: 13W LED STREETLED3 STD Visor S-S | H114: TC3 - Capital Funded by Endeavour Energy | I114: TC4: Capital Not Funded by Endeavour Energy | J114: LED | K114: 433 | L114: 757
B115: 24W LED STREETLED3 STD Visor S-S | C115: =INDEX('C_CAPEX Tariff Summary'!$W$14:$W$147,MATCH(F115,'C_CAPEX Tariff Summary'!$B$14:$B$147,0)) -> 69.40361632 | D115: =INDEX('O_OPEX Tariff Summary'!$Y$4:$Y$135,MATCH(G115,'O_OPEX Tariff Summary'!$Q$4:$Q$135,0)) -> 34.68169481 | F115: 24W LED STREETLED3 STD Visor S-S | G115: 24W LED STREETLED3 STD Visor S-S | H115: TC3 - Capital Funded by Endeavour Energy | I115: TC4: Capital Not Funded by Endeavour Energy | J115: LED | K115: 431 | L115: 755
B116: 18W LED Bourke Hill S-S | C116: =INDEX('C_CAPEX Tariff Summary'!$W$14:$W$147,MATCH(F116,'C_CAPEX Tariff Summary'!$B$14:$B$147,0)) -> 112.6878975 | D116: =INDEX('O_OPEX Tariff Summary'!$Y$4:$Y$135,MATCH(G116,'O_OPEX Tariff Summary'!$Q$4:$Q$135,0)) -> 34.68169481 | F116: 18W LED Bourke Hill S-S | G116: 18W LED Bourke Hill S-S | H116: TC3 - Capital Funded by Endeavour Energy | I116: TC4: Capital Not Funded by Endeavour Energy | J116: LED | K116: 437 | L116: 761
B117: 24W LED Bourke Hill S-S | C117: =INDEX('C_CAPEX Tariff Summary'!$W$14:$W$147,MATCH(F117,'C_CAPEX Tariff Summary'!$B$14:$B$147,0)) -> 114.7490538 | D117: =INDEX('O_OPEX Tariff Summary'!$Y$4:$Y$135,MATCH(G117,'O_OPEX Tariff Summary'!$Q$4:$Q$135,0)) -> 34.68169481 | F117: 24W LED Bourke Hill S-S | G117: 24W LED Bourke Hill S-S | H117: TC3 - Capital Funded by Endeavour Energy | I117: TC4: Capital Not Funded by Endeavour Energy | J117: LED | K117: 438 | L117: 762
B118: 30W LED ATS PLED MKII | C118: =INDEX('C_CAPEX Tariff Summary'!$W$14:$W$147,MATCH(F118,'C_CAPEX Tariff Summary'!$B$14:$B$147,0)) -> 71.46477257 | D118: =INDEX('O_OPEX Tariff Summary'!$Y$4:$Y$135,MATCH(G118,'O_OPEX Tariff Summary'!$Q$4:$Q$135,0)) -> 34.68169481 | F118: 30W LED ATS PLED MKII | G118: 30W LED ATS PLED MKII | H118: TC3 - Capital Funded by Endeavour Energy | I118: TC4: Capital Not Funded by Endeavour Energy | J118: LED | K118: 454 | L118: 778
B119: 20W LED ATS PLED MKII | C119: =INDEX('C_CAPEX Tariff Summary'!$W$14:$W$147,MATCH(F119,'C_CAPEX Tariff Summary'!$B$14:$B$147,0)) -> 66.12225557 | D119: =INDEX('O_OPEX Tariff Summary'!$Y$4:$Y$135,MATCH(G119,'O_OPEX Tariff Summary'!$Q$4:$Q$135,0)) -> 34.68169481 | F119: 20W LED ATS PLED MKII | G119: 20W LED ATS PLED MKII | H119: TC3 - Capital Funded by Endeavour Energy | I119: TC4: Capital Not Funded by Endeavour Energy | J119: LED | K119: 455 | L119: 779
B120: 13W LED ATS PLED MKII | C120: =INDEX('C_CAPEX Tariff Summary'!$W$14:$W$147,MATCH(F120,'C_CAPEX Tariff Summary'!$B$14:$B$147,0)) -> 64.86082795 | D120: =INDEX('O_OPEX Tariff Summary'!$Y$4:$Y$135,MATCH(G120,'O_OPEX Tariff Summary'!$Q$4:$Q$135,0)) -> 34.68169481 | F120: 13W LED ATS PLED MKII | G120: 13W LED ATS PLED MKII | H120: TC3 - Capital Funded by Endeavour Energy | I120: TC4: Capital Not Funded by Endeavour Energy | J120: LED | K120: 456 | L120: 780
B121: 37W LED 4K ROADLED MIDI STD Visor S-S | C121: =INDEX('C_CAPEX Tariff Summary'!$W$14:$W$147,MATCH(F121,'C_CAPEX Tariff Summary'!$B$14:$B$147,0)) -> 91.08839994 | D121: =INDEX('O_OPEX Tariff Summary'!$Y$4:$Y$135,MATCH(G121,'O_OPEX Tariff Summary'!$Q$4:$Q$135,0)) -> 39.26109079 | F121: 37W LED 4K ROADLED MIDI STD Visor S-S | G121: 37W LED 4K ROADLED MIDI STD Visor S-S | H121: TC3 - Capital Funded by Endeavour Energy | I121: TC4: Capital Not Funded by Endeavour Energy | J121: LED | K121: 439 | L121: 763
B122: 40W LED 3K ROADLED MIDI STD Visor S-S | C122: =INDEX('C_CAPEX Tariff Summary'!$W$14:$W$147,MATCH(F122,'C_CAPEX Tariff Summary'!$B$14:$B$147,0)) -> 91.08839994 | D122: =INDEX('O_OPEX Tariff Summary'!$Y$4:$Y$135,MATCH(G122,'O_OPEX Tariff Summary'!$Q$4:$Q$135,0)) -> 39.26109079 | F122: 40W LED 3K ROADLED MIDI STD Visor S-S | G122: 40W LED 3K ROADLED MIDI STD Visor S-S | H122: TC3 - Capital Funded by Endeavour Energy | I122: TC4: Capital Not Funded by Endeavour Energy | J122: LED | K122: 440 | L122: 764
B123: 55W LED 4K ROADLED MIDI STD Visor S-S | C123: =INDEX('C_CAPEX Tariff Summary'!$W$14:$W$147,MATCH(F123,'C_CAPEX Tariff Summary'!$B$14:$B$147,0)) -> 91.73642747 | D123: =INDEX('O_OPEX Tariff Summary'!$Y$4:$Y$135,MATCH(G123,'O_OPEX Tariff Summary'!$Q$4:$Q$135,0)) -> 39.26109079 | F123: 55W LED 4K ROADLED MIDI STD Visor S-S | G123: 55W LED 4K ROADLED MIDI STD Visor S-S | H123: TC3 - Capital Funded by Endeavour Energy | I123: TC4: Capital Not Funded by Endeavour Energy | J123: LED | K123: 443 | L123: 767
B124: 61W LED 3K ROADLED MIDI STD Visor S-S | C124: =INDEX('C_CAPEX Tariff Summary'!$W$14:$W$147,MATCH(F124,'C_CAPEX Tariff Summary'!$B$14:$B$147,0)) -> 91.73642747 | D124: =INDEX('O_OPEX Tariff Summary'!$Y$4:$Y$135,MATCH(G124,'O_OPEX Tariff Summary'!$Q$4:$Q$135,0)) -> 39.26109079 | F124: 61W LED 3K ROADLED MIDI STD Visor S-S | G124: 61W LED 3K ROADLED MIDI STD Visor S-S | H124: TC3 - Capital Funded by Endeavour Energy | I124: TC4: Capital Not Funded by Endeavour Energy | J124: LED | K124: 444 | L124: 768
B125: 113W LED ROADLED MIDI STD Visor S-S | C125: =INDEX('C_CAPEX Tariff Summary'!$W$14:$W$147,MATCH(F125,'C_CAPEX Tariff Summary'!$B$14:$B$147,0)) -> 94.30050584 | D125: =INDEX('O_OPEX Tariff Summary'!$Y$4:$Y$135,MATCH(G125,'O_OPEX Tariff Summary'!$Q$4:$Q$135,0)) -> 39.26109079 | F125: 113W LED ROADLED MIDI STD Visor S-S | G125: 113W LED ROADLED MIDI STD Visor S-S | H125: TC3 - Capital Funded by Endeavour Energy | I125: TC4: Capital Not Funded by Endeavour Energy | J125: LED | K125: 447 | L125: 771
B126: 275W LED ROADLED S-S | C126: =INDEX('C_CAPEX Tariff Summary'!$W$14:$W$147,MATCH(F126,'C_CAPEX Tariff Summary'!$B$14:$B$147,0)) -> 123.8319281 | D126: =INDEX('O_OPEX Tariff Summary'!$Y$4:$Y$135,MATCH(G126,'O_OPEX Tariff Summary'!$Q$4:$Q$135,0)) -> 39.26109079 | F126: 275W LED ROADLED S-S | G126: 275W LED ROADLED S-S | H126: TC3 - Capital Funded by Endeavour Energy | I126: TC4: Capital Not Funded by Endeavour Energy | J126: LED | K126: 450 | L126: 774
B127: 230W LED Avento S-S | C127: =INDEX('C_CAPEX Tariff Summary'!$W$14:$W$147,MATCH(F127,'C_CAPEX Tariff Summary'!$B$14:$B$147,0)) -> 95.94283514 | D127: =INDEX('O_OPEX Tariff Summary'!$Y$4:$Y$135,MATCH(G127,'O_OPEX Tariff Summary'!$Q$4:$Q$135,0)) -> 39.26109079 | F127: 230W LED Avento S-S | G127: 230W LED Avento S-S | H127: TC3 - Capital Funded by Endeavour Energy | I127: TC4: Capital Not Funded by Endeavour Energy | J127: LED | K127: 452 | L127: 776
B128: 74W LED ATS VLED | C128: =INDEX('C_CAPEX Tariff Summary'!$W$14:$W$147,MATCH(F128,'C_CAPEX Tariff Summary'!$B$14:$B$147,0)) -> 81.78434064 | D128: =INDEX('O_OPEX Tariff Summary'!$Y$4:$Y$135,MATCH(G128,'O_OPEX Tariff Summary'!$Q$4:$Q$135,0)) -> 39.26109079 | F128: 74W LED ATS VLED | G128: 74W LED ATS VLED | H128: TC3 - Capital Funded by Endeavour Energy | I128: TC4: Capital Not Funded by Endeavour Energy | J128: LED | K128: 457 | L128: 781
B129: 155W LED ATS VLED | C129: =INDEX('C_CAPEX Tariff Summary'!$W$14:$W$147,MATCH(F129,'C_CAPEX Tariff Summary'!$B$14:$B$147,0)) -> 87.55557814 | D129: =INDEX('O_OPEX Tariff Summary'!$Y$4:$Y$135,MATCH(G129,'O_OPEX Tariff Summary'!$Q$4:$Q$135,0)) -> 39.26109079 | F129: 155W LED ATS VLED | G129: 155W LED ATS VLED | H129: TC3 - Capital Funded by Endeavour Energy | I129: TC4: Capital Not Funded by Endeavour Energy | J129: LED | K129: 458 | L129: 782
B130: 254W LED 3K ROADLED MIDI STD Visor S-S | C130: =INDEX('C_CAPEX Tariff Summary'!$W$14:$W$147,MATCH(F130,'C_CAPEX Tariff Summary'!$B$14:$B$147,0)) -> 123.8319281 | D130: =INDEX('O_OPEX Tariff Summary'!$Y$4:$Y$135,MATCH(G130,'O_OPEX Tariff Summary'!$Q$4:$Q$135,0)) -> 39.26109079 | F130: 254W LED 3K ROADLED MIDI STD Visor S-S | G130: 254W LED 3K ROADLED MIDI STD Visor S-S | H130: TC3 - Capital Funded by Endeavour Energy | I130: TC4: Capital Not Funded by Endeavour Energy | J130: LED | K130: 451 | L130: 775
B131: 290W LED ATS VLED | C131: =INDEX('C_CAPEX Tariff Summary'!$W$14:$W$147,MATCH(F131,'C_CAPEX Tariff Summary'!$B$14:$B$147,0)) -> 103.7974894 | D131: =INDEX('O_OPEX Tariff Summary'!$Y$4:$Y$135,MATCH(G131,'O_OPEX Tariff Summary'!$Q$4:$Q$135,0)) -> 39.26109079 | F131: 290W LED ATS VLED | G131: 290W LED ATS VLED | H131: TC3 - Capital Funded by Endeavour Energy | I131: TC4: Capital Not Funded by Endeavour Energy | J131: LED | K131: 459 | L131: 783
B132: 120W LED 4K ROADLED MIDI Aeroscreen S-S | C132: =INDEX('C_CAPEX Tariff Summary'!$W$14:$W$147,MATCH(F132,'C_CAPEX Tariff Summary'!$B$14:$B$147,0)) -> 94.30050584 | D132: =INDEX('O_OPEX Tariff Summary'!$Y$4:$Y$135,MATCH(G132,'O_OPEX Tariff Summary'!$Q$4:$Q$135,0)) -> 39.26109079 | F132: 120W LED 4K ROADLED MIDI Aeroscreen S-S | G132: 120W LED 4K ROADLED MIDI Aeroscreen S-S | H132: TC3 - Capital Funded by Endeavour Energy | I132: TC4: Capital Not Funded by Endeavour Energy | J132: LED | K132: 448 | L132: 772
B133: 121W LED 3K ROADLED MIDI Aeroscreen S-S | C133: =INDEX('C_CAPEX Tariff Summary'!$W$14:$W$147,MATCH(F133,'C_CAPEX Tariff Summary'!$B$14:$B$147,0)) -> 94.30050584 | D133: =INDEX('O_OPEX Tariff Summary'!$Y$4:$Y$135,MATCH(G133,'O_OPEX Tariff Summary'!$Q$4:$Q$135,0)) -> 39.26109079 | F133: 121W LED 3K ROADLED MIDI Aeroscreen S-S | G133: 121W LED 3K ROADLED MIDI Aeroscreen S-S | H133: TC3 - Capital Funded by Endeavour Energy | I133: TC4: Capital Not Funded by Endeavour Energy | J133: LED | K133: 449 | L133: 773
B134: 205W LED 3K ROADLED MIDI Aeroscreen S-S | C134: =INDEX('C_CAPEX Tariff Summary'!$W$14:$W$147,MATCH(F134,'C_CAPEX Tariff Summary'!$B$14:$B$147,0)) -> 123.8319281 | D134: =INDEX('O_OPEX Tariff Summary'!$Y$4:$Y$135,MATCH(G134,'O_OPEX Tariff Summary'!$Q$4:$Q$135,0)) -> 39.26109079 | F134: 205W LED 3K ROADLED MIDI Aeroscreen S-S | G134: 205W LED 3K ROADLED MIDI Aeroscreen S-S | H134: TC3 - Capital Funded by Endeavour Energy | I134: TC4: Capital Not Funded by Endeavour Energy | J134: LED | K134: 453 | L134: 777
B135: 9W LED STREETLED Aeroscreen S-S | C135: =INDEX('C_CAPEX Tariff Summary'!$W$14:$W$147,MATCH(F135,'C_CAPEX Tariff Summary'!$B$14:$B$147,0)) -> 66.51799757 | D135: =INDEX('O_OPEX Tariff Summary'!$Y$4:$Y$135,MATCH(G135,'O_OPEX Tariff Summary'!$Q$4:$Q$135,0)) -> 34.68169481 | F135: 9W LED STREETLED Aeroscreen S-S | G135: 9W LED STREETLED Aeroscreen S-S | H135: TC3 - Capital Funded by Endeavour Energy | I135: TC4: Capital Not Funded by Endeavour Energy | J135: LED | K135: 434 | L135: 758
B136: 17W LED STREETLED3 Aeroscreen S-S | C136: =INDEX('C_CAPEX Tariff Summary'!$W$14:$W$147,MATCH(F136,'C_CAPEX Tariff Summary'!$B$14:$B$147,0)) -> 66.93022882 | D136: =INDEX('O_OPEX Tariff Summary'!$Y$4:$Y$135,MATCH(G136,'O_OPEX Tariff Summary'!$Q$4:$Q$135,0)) -> 34.68169481 | F136: 17W LED STREETLED3 Aeroscreen S-S | G136: 17W LED STREETLED3 Aeroscreen S-S | H136: TC3 - Capital Funded by Endeavour Energy | I136: TC4: Capital Not Funded by Endeavour Energy | J136: LED | K136: 432 | L136: 756
B137: 36W LED 4K ROADLED MIDI Aeroscreen S-S | C137: =INDEX('C_CAPEX Tariff Summary'!$W$14:$W$147,MATCH(F137,'C_CAPEX Tariff Summary'!$B$14:$B$147,0)) -> 88.64607785 | D137: =INDEX('O_OPEX Tariff Summary'!$Y$4:$Y$135,MATCH(G137,'O_OPEX Tariff Summary'!$Q$4:$Q$135,0)) -> 39.26109079 | F137: 36W LED 4K ROADLED MIDI Aeroscreen S-S | G137: 36W LED 4K ROADLED MIDI Aeroscreen S-S | H137: TC3 - Capital Funded by Endeavour Energy | I137: TC4: Capital Not Funded by Endeavour Energy | J137: LED | K137: 441 | L137: 765
B138: 39W LED 3K ROADLED MIDI Aeroscreen S-S | C138: =INDEX('C_CAPEX Tariff Summary'!$W$14:$W$147,MATCH(F138,'C_CAPEX Tariff Summary'!$B$14:$B$147,0)) -> 88.64607785 | D138: =INDEX('O_OPEX Tariff Summary'!$Y$4:$Y$135,MATCH(G138,'O_OPEX Tariff Summary'!$Q$4:$Q$135,0)) -> 39.26109079 | F138: 39W LED 3K ROADLED MIDI Aeroscreen S-S | G138: 39W LED 3K ROADLED MIDI Aeroscreen S-S | H138: TC3 - Capital Funded by Endeavour Energy | I138: TC4: Capital Not Funded by Endeavour Energy | J138: LED | K138: 442 | L138: 766
B139: 57W LED 4K ROADLED MIDI Aeroscreen S-S | C139: =INDEX('C_CAPEX Tariff Summary'!$W$14:$W$147,MATCH(F139,'C_CAPEX Tariff Summary'!$B$14:$B$147,0)) -> 89.29410537 | D139: =INDEX('O_OPEX Tariff Summary'!$Y$4:$Y$135,MATCH(G139,'O_OPEX Tariff Summary'!$Q$4:$Q$135,0)) -> 39.26109079 | F139: 57W LED 4K ROADLED MIDI Aeroscreen S-S | G139: 57W LED 4K ROADLED MIDI Aeroscreen S-S | H139: TC3 - Capital Funded by Endeavour Energy | I139: TC4: Capital Not Funded by Endeavour Energy | J139: LED | K139: 445 | L139: 769
B140: 63W LED 3K ROADLED MIDI Aerosreen S-S | C140: =INDEX('C_CAPEX Tariff Summary'!$W$14:$W$147,MATCH(F140,'C_CAPEX Tariff Summary'!$B$14:$B$147,0)) -> 89.29410537 | D140: =INDEX('O_OPEX Tariff Summary'!$Y$4:$Y$135,MATCH(G140,'O_OPEX Tariff Summary'!$Q$4:$Q$135,0)) -> 39.26109079 | F140: 63W LED 3K ROADLED MIDI Aerosreen S-S | G140: 63W LED 3K ROADLED MIDI Aerosreen S-S | H140: TC3 - Capital Funded by Endeavour Energy | I140: TC4: Capital Not Funded by Endeavour Energy | J140: LED | K140: 446 | L140: 770
B141: 17W LED Post Top B2001 S-S | C141: =INDEX('C_CAPEX Tariff Summary'!$W$14:$W$147,MATCH(F141,'C_CAPEX Tariff Summary'!$B$14:$B$147,0)) -> 101.1143571 | D141: =INDEX('O_OPEX Tariff Summary'!$Y$4:$Y$135,MATCH(G141,'O_OPEX Tariff Summary'!$Q$4:$Q$135,0)) -> 34.68169481 | F141: 17W LED Post Top B2001 S-S | G141: 17W LED Post Top B2001 S-S | H141: TC3 - Capital Funded by Endeavour Energy | I141: TC4: Capital Not Funded by Endeavour Energy | J141: LED | K141: 435 | L141: 759
B142: 28W LED Post Top B2001 S-S | C142: =INDEX('C_CAPEX Tariff Summary'!$W$14:$W$147,MATCH(F142,'C_CAPEX Tariff Summary'!$B$14:$B$147,0)) -> 103.9999759 | D142: =INDEX('O_OPEX Tariff Summary'!$Y$4:$Y$135,MATCH(G142,'O_OPEX Tariff Summary'!$Q$4:$Q$135,0)) -> 34.68169481 | F142: 28W LED Post Top B2001 S-S | G142: 28W LED Post Top B2001 S-S | H142: TC3 - Capital Funded by Endeavour Energy | I142: TC4: Capital Not Funded by Endeavour Energy | J142: LED | K142: 436 | L142: 760
B143: 150W LED SLED Maximus Pedestrian | C143: =INDEX('C_CAPEX Tariff Summary'!$W$14:$W$147,MATCH(F143,'C_CAPEX Tariff Summary'!$B$14:$B$147,0)) -> 108.6178529 | D143: =INDEX('O_OPEX Tariff Summary'!$Y$4:$Y$135,MATCH(G143,'O_OPEX Tariff Summary'!$Q$4:$Q$135,0)) -> 34.68169481 | F143: 150W LED SLED Maximus Pedestrian | G143: 150W LED SLED Maximus Pedestrian | H143: TC3 - Capital Funded by Endeavour Energy | I143: TC4: Capital Not Funded by Endeavour Energy | J143: LED | K143: 667 | L143: 967
B144: 175W LED SLED Maximus Pedestrian | C144: =INDEX('C_CAPEX Tariff Summary'!$W$14:$W$147,MATCH(F144,'C_CAPEX Tariff Summary'!$B$14:$B$147,0)) -> 118.873489 | D144: =INDEX('O_OPEX Tariff Summary'!$Y$4:$Y$135,MATCH(G144,'O_OPEX Tariff Summary'!$Q$4:$Q$135,0)) -> 34.68169481 | F144: 175W LED SLED Maximus Pedestrian | G144: 175W LED SLED Maximus Pedestrian | H144: TC3 - Capital Funded by Endeavour Energy | I144: TC4: Capital Not Funded by Endeavour Energy | J144: LED | K144: 668 | L144: 968

Sheet C_CAPEX Tariff Summary
B1: SLUOS Capital Charge
B3: Description
B4: This sheet details all CAPEX-related SLUOS, broken down for each component.
B6: Parameters
B7: Return on Asset Percentage | F7: ='I_Global Inputs'!O30 -> 0.03599660461
B8: LED Luminaire life span in years | F8: 16
B9: Traditional Luminaire life span in years | F9: 20
B10: Pole/bracket lifespan in years | F10: 35
B11: Legacy Support | F11: 10
M13: Cost Build up $FY22 | T13: Capital Annuity Charges - Nominal Price Path | AC13: Capex Charges if paid by council up front | AU13: Capex Revenue
B14: Name | C14: EE Tariff No | D14: Tariff Classification | E14: Classification | F14: Light globe category | G14: Grouping | H14: Type | I14: Calculation Method | J14: Mapping | K14: Category | L14: Mapped to Assembly/Item | M14: Installation ( Labour, Plant) | N14: Material | O14: Traffic Control | P14: Overheads | Q14: Total Capital Cost | R14: Maintenance Cost | T14: FY22 | U14: FY23 | V14: FY24 | W14: FY25 | X14: FY26 | Y14: FY27 | Z14: FY28 | AA14: FY29 | AC14: FY22 | AD14: FY23 | AE14: =V14 -> FY24 | AF14: FY25 | AG14: FY26 | AH14: FY27 | AI14: FY28 | AJ14: FY29 | AL14: Network Profile | AM14: FY23 | AN14: FY24 | AO14: =AF14 -> FY25 | AP14: =AG14 -> FY26 | AQ14: =AH14 -> FY27 | AR14: =AI14 -> FY28 | AS14: =AJ14 -> FY29 | AU14: FY23 | AV14: FY24 | AW14: =AO14 -> FY25 | AX14: =AP14 -> FY26 | AY14: =AQ14 -> FY27 | AZ14: =AR14 -> FY28 | BA14: =AS14 -> FY29
B15: 1 x 20 W Fluorescent | C15: 13 | D15: TC1 - Capital Funded by Endeavour Energy Legacy | F15: FLUORESCENT | G15: Lamp | H15: Luminaire | I15: Direct | J15: =B15&" "&"Legacy TC1" -> 1 x 20 W Fluorescent Legacy TC1 | K15: =INDEX('I_Asset number input'!$C$5:$C$265,MATCH('C_CAPEX Tariff Summary'!B15,'I_Asset number input'!$D$5:$D$265,0)) -> FLUORESCENT | L15: 1 x 20 W Fluorescent | M15: 0 | O15: 0 | P15: 0 | Q15: =SUM(M15:P15) -> 0 | R15: =INDEX('C_OPEX Calc'!$AK$10:$AK$147,MATCH('C_CAPEX Tariff Summary'!B15,'C_OPEX Calc'!$D$10:$D$147,0)) -> 42.86072477 | T15: =-PMT(return_on_assests_pct,$F$9,$Q15)+R15 -> 42.86072477 | U15: =T15*(1+CPIFY23) -> 44.36011873 | V15: =U15*(1+CPIFY24) -> 47.83432423 | W15: =V15*(1+CPIFY25) -> 49.7725652 | X15: =W15*(1+CPIFY26) -> 51.16619702 | Y15: =X15*(1+CPIFY27) -> 52.59885054 | Z15: =Y15*(1+CPIFY28) -> 54.07161836 | AA15: =Z15*(1+CPIFY29) -> 55.58562367 | AC15: =Q15 -> 0 | AD15: =AC15*(1+CPIFY23) -> 0 | AE15: =AD15*(1+CPIFY24) -> 0 | AF15: =AE15*(1+CPIFY25) -> 0 | AG15: =AF15*(1+CPIFY26) -> 0 | AH15: =AG15*(1+CPIFY27) -> 0 | AI15: =AH15*(1+CPIFY28) -> 0 | AJ15: =AI15*(1+CPIFY29) -> 0 | AL15: =J15 -> 1 x 20 W Fluorescent Legacy TC1 | AM15: =IFERROR((_xlfn.XLOOKUP($AL15,'I_Asset number input'!$P$5:$P$316,'I_Asset number input'!G$5:G$316)),0) -> 232.435 | AN15: =IFERROR((_xlfn.XLOOKUP($AL15,'I_Asset number input'!$P$5:$P$316,'I_Asset number input'!H$5:H$316)),0) -> 0 | AO15: =IFERROR((_xlfn.XLOOKUP($AL15,'I_Asset number input'!$P$5:$P$316,'I_Asset number input'!I$5:I$316)),0) -> 0 | AP15: =IFERROR((_xlfn.XLOOKUP($AL15,'I_Asset number input'!$P$5:$P$316,'I_Asset number input'!J$5:J$316)),0) -> 0 | AQ15: =IFERROR((_xlfn.XLOOKUP($AL15,'I_Asset number input'!$P$5:$P$316,'I_Asset number input'!K$5:K$316)),0) -> 0 | AR15: =IFERROR((_xlfn.XLOOKUP($AL15,'I_Asset number input'!$P$5:$P$316,'I_Asset number input'!L$5:L$316)),0) -> 0 | AS15: =IFERROR((_xlfn.XLOOKUP($AL15,'I_Asset number input'!$P$5:$P$316,'I_Asset number input'!M$5:M$316)),0) -> 0 | AU15: =U15*AM15 -> 10310.8442 | AV15: =V15*AN15 -> 0 | AW15: =W15*AO15 -> 0 | AX15: =X15*AP15 -> 0 | AY15: =Y15*AQ15 -> 0 | AZ15: =Z15*AR15 -> 0 | BA15: =AA15*AS15 -> 0
B16: 2 x 20 W Fluorescent | C16: 112 | D16: TC1 - Capital Funded by Endeavour Energy Legacy | F16: FLUORESCENT | G16: Lamp | H16: Luminaire | I16: Direct | J16: =B16&" "&"Legacy TC1" -> 2 x 20 W Fluorescent Legacy TC1 | K16: =INDEX('I_Asset number input'!$C$5:$C$265,MATCH('C_CAPEX Tariff Summary'!B16,'I_Asset number input'!$D$5:$D$265,0)) -> FLUORESCENT | L16: 2 x 20 W Fluorescent | M16: 0 | O16: 0 | P16: 0 | Q16: 0 | R16: =+R15 -> 42.86072477 | T16: 42.86072477 | U16: 44.36011873 | V16: 47.83432423 | W16: =V16*(1+CPIFY25) -> 49.7725652 | X16: =W16*(1+CPIFY26) -> 51.16619702 | Y16: =X16*(1+CPIFY27) -> 52.59885054 | Z16: =Y16*(1+CPIFY28) -> 54.07161836 | AA16: =Z16*(1+CPIFY29) -> 55.58562367 | AC16: 0 | AD16: 0 | AE16: 0 | AF16: 0 | AG16: 0 | AH16: 0 | AI16: 0 | AJ16: 0 | AL16: 2 x 20 W Fluorescent Legacy TC1 | AM16: =IFERROR((_xlfn.XLOOKUP($AL16,'I_Asset number input'!$P$5:$P$316,'I_Asset number input'!G$5:G$316)),0) -> 99.47 | AN16: =IFERROR((_xlfn.XLOOKUP($AL16,'I_Asset number input'!$P$5:$P$316,'I_Asset number input'!H$5:H$316)),0) -> 0 | AO16: =IFERROR((_xlfn.XLOOKUP($AL16,'I_Asset number input'!$P$5:$P$316,'I_Asset number input'!I$5:I$316)),0) -> 0 | AP16: =IFERROR((_xlfn.XLOOKUP($AL16,'I_Asset number input'!$P$5:$P$316,'I_Asset number input'!J$5:J$316)),0) -> 0 | AQ16: =IFERROR((_xlfn.XLOOKUP($AL16,'I_Asset number input'!$P$5:$P$316,'I_Asset number input'!K$5:K$316)),0) -> 0 | AR16: =IFERROR((_xlfn.XLOOKUP($AL16,'I_Asset number input'!$P$5:$P$316,'I_Asset number input'!L$5:L$316)),0) -> 0 | AS16: =IFERROR((_xlfn.XLOOKUP($AL16,'I_Asset number input'!$P$5:$P$316,'I_Asset number input'!M$5:M$316)),0) -> 0 | AU16: 4412.50101 | AV16: 0 | AW16: 0 | AX16: 0 | AY16: 0 | AZ16: 0 | BA16: 0
B17: 2 x 14 W Fluorescent | C17: 220 | D17: TC1 - Capital Funded by Endeavour Energy Legacy | F17: FLUORESCENT | G17: Lamp | H17: Luminaire | I17: Direct | J17: 2 x 14 W Fluorescent Legacy TC1 | K17: =INDEX('I_Asset number input'!$C$5:$C$265,MATCH('C_CAPEX Tariff Summary'!B17,'I_Asset number input'!$D$5:$D$265,0)) -> FLUORESCENT | L17: 2 x 14 W Fluorescent | M17: 0 | O17: 0 | P17: 0 | Q17: 0 | R17: =INDEX('C_OPEX Calc'!$AK$10:$AK$147,MATCH('C_CAPEX Tariff Summary'!B17,'C_OPEX Calc'!$D$10:$D$147,0)) -> 42.37342613 | T17: 42.37342613 | U17: 43.85577295 | V17: 47.29047899 | W17: 49.20668341 | X17: 50.58447055 | Y17: 52.00083572 | Z17: 53.45685912 | AA17: 54.95365118 | AC17: 0 | AD17: 0 | AE17: 0 | AF17: 0 | AG17: 0 | AH17: 0 | AI17: 0 | AJ17: 0 | AL17: 2 x 14 W Fluorescent Legacy TC1 | AM17: =IFERROR((_xlfn.XLOOKUP($AL17,'I_Asset number input'!$P$5:$P$316,'I_Asset number input'!G$5:G$316)),0) -> 2595.355 | AN17: =IFERROR((_xlfn.XLOOKUP($AL17,'I_Asset number input'!$P$5:$P$316,'I_Asset number input'!H$5:H$316)),0) -> 0 | AO17: =IFERROR((_xlfn.XLOOKUP($AL17,'I_Asset number input'!$P$5:$P$316,'I_Asset number input'!I$5:I$316)),0) -> 0 | AP17: =IFERROR((_xlfn.XLOOKUP($AL17,'I_Asset number input'!$P$5:$P$316,'I_Asset number input'!J$5:J$316)),0) -> 0 | AQ17: =IFERROR((_xlfn.XLOOKUP($AL17,'I_Asset number input'!$P$5:$P$316,'I_Asset number input'!K$5:K$316)),0) -> 0 | AR17: =IFERROR((_xlfn.XLOOKUP($AL17,'I_Asset number input'!$P$5:$P$316,'I_Asset number input'!L$5:L$316)),0) -> 0 | AS17: =IFERROR((_xlfn.XLOOKUP($AL17,'I_Asset number input'!$P$5:$P$316,'I_Asset number input'!M$5:M$316)),0) -> 0 | AU17: 113821.2996 | AV17: 0 | AW17: 0 | AX17: 0 | AY17: 0 | AZ17: 0 | BA17: 0
B18: 2 x 24 W Fluorescent | C18: 221 | D18: TC1 - Capital Funded by Endeavour Energy Legacy | F18: FLUORESCENT | G18: Lamp | H18: Luminaire | I18: Direct | J18: 2 x 24 W Fluorescent Legacy TC1 | K18: =INDEX('I_Asset number input'!$C$5:$C$265,MATCH('C_CAPEX Tariff Summary'!B18,'I_Asset number input'!$D$5:$D$265,0)) -> FLUORESCENT | L18: 2 x 24 W Fluorescent | M18: 0 | O18: 0 | P18: 0 | Q18: 0 | R18: =INDEX('C_OPEX Calc'!$AK$10:$AK$147,MATCH('C_CAPEX Tariff Summary'!B18,'C_OPEX Calc'!$D$10:$D$147,0)) -> 42.37342613 | T18: 42.37342613 | U18: 43.85577295 | V18: 47.29047899 | W18: 49.20668341 | X18: 50.58447055 | Y18: 52.00083572 | Z18: 53.45685912 | AA18: 54.95365118 | AC18: 0 | AD18: 0 | AE18: 0 | AF18: 0 | AG18: 0 | AH18: 0 | AI18: 0 | AJ18: 0 | AL18: 2 x 24 W Fluorescent Legacy TC1 | AM18: =IFERROR((_xlfn.XLOOKUP($AL18,'I_Asset number input'!$P$5:$P$316,'I_Asset number input'!G$5:G$316)),0) -> 1213.94 | AN18: =IFERROR((_xlfn.XLOOKUP($AL18,'I_Asset number input'!$P$5:$P$316,'I_Asset number input'!H$5:H$316)),0) -> 0 | AO18: =IFERROR((_xlfn.XLOOKUP($AL18,'I_Asset number input'!$P$5:$P$316,'I_Asset number input'!I$5:I$316)),0) -> 0 | AP18: =IFERROR((_xlfn.XLOOKUP($AL18,'I_Asset number input'!$P$5:$P$316,'I_Asset number input'!J$5:J$316)),0) -> 0 | AQ18: =IFERROR((_xlfn.XLOOKUP($AL18,'I_Asset number input'!$P$5:$P$316,'I_Asset number input'!K$5:K$316)),0) -> 0 | AR18: =IFERROR((_xlfn.XLOOKUP($AL18,'I_Asset number input'!$P$5:$P$316,'I_Asset number input'!L$5:L$316)),0) -> 0 | AS18: =IFERROR((_xlfn.XLOOKUP($AL18,'I_Asset number input'!$P$5:$P$316,'I_Asset number input'!M$5:M$316)),0) -> 0 | AU18: 53238.27701 | AV18: 0 | AW18: 0 | AX18: 0 | AY18: 0 | AZ18: 0 | BA18: 0
B19: 1 x 40 W Fluorescent | C19: 70 | D19: TC1 - Capital Funded by Endeavour Energy Legacy | F19: FLUORESCENT | G19: Lamp | H19: Luminaire | I19: Direct | J19: 1 x 40 W Fluorescent Legacy TC1 | K19: =INDEX('I_Asset number input'!$C$5:$C$265,MATCH('C_CAPEX Tariff Summary'!B19,'I_Asset number input'!$D$5:$D$265,0)) -> FLUORESCENT | L19: 1 x 40 W Fluorescent | M19: 0 | O19: 0 | P19: 0 | Q19: 0 | R19: =INDEX('C_OPEX Calc'!$AK$10:$AK$147,MATCH('C_CAPEX Tariff Summary'!B19,'C_OPEX Calc'!$D$10:$D$147,0)) -> 42.86072477 | T19: 42.86072477 | U19: 44.36011873 | V19: 47.83432423 | W19: 49.7725652 | X19: 51.16619702 | Y19: 52.59885054 | Z19: 54.07161836 | AA19: 55.58562367 | AC19: 0 | AD19: 0 | AE19: 0 | AF19: 0 | AG19: 0 | AH19: 0 | AI19: 0 | AJ19: 0 | AL19: 1 x 40 W Fluorescent Legacy TC1 | AM19: =IFERROR((_xlfn.XLOOKUP($AL19,'I_Asset number input'!$P$5:$P$316,'I_Asset number input'!G$5:G$316)),0) -> 1236.27 | AN19: =IFERROR((_xlfn.XLOOKUP($AL19,'I_Asset number input'!$P$5:$P$316,'I_Asset number input'!H$5:H$316)),0) -> 0 | AO19: =IFERROR((_xlfn.XLOOKUP($AL19,'I_Asset number input'!$P$5:$P$316,'I_Asset number input'!I$5:I$316)),0) -> 0 | AP19: =IFERROR((_xlfn.XLOOKUP($AL19,'I_Asset number input'!$P$5:$P$316,'I_Asset number input'!J$5:J$316)),0) -> 0 | AQ19: =IFERROR((_xlfn.XLOOKUP($AL19,'I_Asset number input'!$P$5:$P$316,'I_Asset number input'!K$5:K$316)),0) -> 0 | AR19: =IFERROR((_xlfn.XLOOKUP($AL19,'I_Asset number input'!$P$5:$P$316,'I_Asset number input'!L$5:L$316)),0) -> 0 | AS19: =IFERROR((_xlfn.XLOOKUP($AL19,'I_Asset number input'!$P$5:$P$316,'I_Asset number input'!M$5:M$316)),0) -> 0 | AU19: 54841.08398 | AV19: 0 | AW19: 0 | AX19: 0 | AY19: 0 | AZ19: 0 | BA19: 0
B20: 2 x 40 W Fluorescent | C20: 19 | D20: TC1 - Capital Funded by Endeavour Energy Legacy | F20: FLUORESCENT | G20: Lamp | H20: Luminaire | I20: Direct | J20: 2 x 40 W Fluorescent Legacy TC1 | K20: =INDEX('I_Asset number input'!$C$5:$C$265,MATCH('C_CAPEX Tariff Summary'!B20,'I_Asset number input'!$D$5:$D$265,0)) -> FLUORESCENT | L20: 2 x 40 W Fluorescent | M20: 0 | O20: 0 | P20: 0 | Q20: 0 | R20: =INDEX('C_OPEX Calc'!$AK$10:$AK$147,MATCH('C_CAPEX Tariff Summary'!B20,'C_OPEX Calc'!$D$10:$D$147,0)) -> 44.2435993 | T20: 44.2435993 | U20: 45.79137026 | V20: 49.37766884 | W20: 51.37844594 | X20: 52.81704243 | Y20: 54.29591962 | Z20: 55.81620537 | AA20: 57.37905912 | AC20: 0 | AD20: 0 | AE20: 0 | AF20: 0 | AG20: 0 | AH20: 0 | AI20: 0 | AJ20: 0 | AL20: 2 x 40 W Fluorescent Legacy TC1 | AM20: =IFERROR((_xlfn.XLOOKUP($AL20,'I_Asset number input'!$P$5:$P$316,'I_Asset number input'!G$5:G$316)),0) -> 32.48 | AN20: =IFERROR((_xlfn.XLOOKUP($AL20,'I_Asset number input'!$P$5:$P$316,'I_Asset number input'!H$5:H$316)),0) -> 0 | AO20: =IFERROR((_xlfn.XLOOKUP($AL20,'I_Asset number input'!$P$5:$P$316,'I_Asset number input'!I$5:I$316)),0) -> 0 | AP20: =IFERROR((_xlfn.XLOOKUP($AL20,'I_Asset number input'!$P$5:$P$316,'I_Asset number input'!J$5:J$316)),0) -> 0 | AQ20: =IFERROR((_xlfn.XLOOKUP($AL20,'I_Asset number input'!$P$5:$P$316,'I_Asset number input'!K$5:K$316)),0) -> 0 | AR20: =IFERROR((_xlfn.XLOOKUP($AL20,'I_Asset number input'!$P$5:$P$316,'I_Asset number input'!L$5:L$316)),0) -> 0 | AS20: =IFERROR((_xlfn.XLOOKUP($AL20,'I_Asset number input'!$P$5:$P$316,'I_Asset number input'!M$5:M$316)),0) -> 0 | AU20: 1487.303706 | AV20: 0 | AW20: 0 | AX20: 0 | AY20: 0 | AZ20: 0 | BA20: 0
B21: 1 x 42 W Fluorescent | C21: 223 | D21: TC1 - Capital Funded by Endeavour Energy Legacy | F21: FLUORESCENT | G21: Lamp | H21: Luminaire | I21: Direct | J21: 1 x 42 W Fluorescent Legacy TC1 | K21: =INDEX('I_Asset number input'!$C$5:$C$265,MATCH('C_CAPEX Tariff Summary'!B21,'I_Asset number input'!$D$5:$D$265,0)) -> FLUORESCENT | L21: 1 x 42 W Fluorescent | M21: 0 | O21: 0 | P21: 0 | Q21: 0 | R21: =INDEX('C_OPEX Calc'!$AK$10:$AK$147,MATCH('C_CAPEX Tariff Summary'!B21,'C_OPEX Calc'!$D$10:$D$147,0)) -> 42.86072477 | T21: 42.86072477 | U21: 44.36011873 | V21: 47.83432423 | W21: 49.7725652 | X21: 51.16619702 | Y21: 52.59885054 | Z21: 54.07161836 | AA21: 55.58562367 | AC21: 0 | AD21: 0 | AE21: 0 | AF21: 0 | AG21: 0 | AH21: 0 | AI21: 0 | AJ21: 0 | AL21: 1 x 42 W Fluorescent Legacy TC1 | AM21: =IFERROR((_xlfn.XLOOKUP($AL21,'I_Asset number input'!$P$5:$P$316,'I_Asset number input'!G$5:G$316)),0) -> 1398.67 | AN21: =IFERROR((_xlfn.XLOOKUP($AL21,'I_Asset number input'!$P$5:$P$316,'I_Asset number input'!H$5:H$316)),0) -> 0 | AO21: =IFERROR((_xlfn.XLOOKUP($AL21,'I_Asset number input'!$P$5:$P$316,'I_Asset number input'!I$5:I$316)),0) -> 0 | AP21: =IFERROR((_xlfn.XLOOKUP($AL21,'I_Asset number input'!$P$5:$P$316,'I_Asset number input'!J$5:J$316)),0) -> 0 | AQ21: =IFERROR((_xlfn.XLOOKUP($AL21,'I_Asset number input'!$P$5:$P$316,'I_Asset number input'!K$5:K$316)),0) -> 0 | AR21: =IFERROR((_xlfn.XLOOKUP($AL21,'I_Asset number input'!$P$5:$P$316,'I_Asset number input'!L$5:L$316)),0) -> 0 | AS21: =IFERROR((_xlfn.XLOOKUP($AL21,'I_Asset number input'!$P$5:$P$316,'I_Asset number input'!M$5:M$316)),0) -> 0 | AU21: 62045.16726 | AV21: 0 | AW21: 0 | AX21: 0 | AY21: 0 | AZ21: 0 | BA21: 0
B22: 50W Mercury | C22: 185 | D22: TC1 - Capital Funded by Endeavour Energy Legacy | F22: MERCURY | G22: Lamp | H22: Luminaire | I22: Direct | J22: 50W Mercury Legacy TC1 | K22: =INDEX('I_Asset number input'!$C$5:$C$265,MATCH('C_CAPEX Tariff Summary'!B22,'I_Asset number input'!$D$5:$D$265,0)) -> MERCURY | L22: 50W Mercury | M22: 0 | O22: 0 | P22: 0 | Q22: 0 | R22: =INDEX('C_OPEX Calc'!$AK$10:$AK$147,MATCH('C_CAPEX Tariff Summary'!B22,'C_OPEX Calc'!$D$10:$D$147,0)) -> 43.21632108 | T22: 43.21632108 | U22: 44.72815484 | V22: 48.23118427 | W22: 50.18550596 | X22: 51.59070013 | Y22: 53.03523973 | Z22: 54.52022644 | AA22: 56.04679279 | AC22: 0 | AD22: 0 | AE22: 0 | AF22: 0 | AG22: 0 | AH22: 0 | AI22: 0 | AJ22: 0 | AL22: 50W Mercury Legacy TC1 | AM22: =IFERROR((_xlfn.XLOOKUP($AL22,'I_Asset number input'!$P$5:$P$316,'I_Asset number input'!G$5:G$316)),0) -> 750.085 | AN22: =IFERROR((_xlfn.XLOOKUP($AL22,'I_Asset number input'!$P$5:$P$316,'I_Asset number input'!H$5:H$316)),0) -> 0 | AO22: =IFERROR((_xlfn.XLOOKUP($AL22,'I_Asset number input'!$P$5:$P$316,'I_Asset number input'!I$5:I$316)),0) -> 0 | AP22: =IFERROR((_xlfn.XLOOKUP($AL22,'I_Asset number input'!$P$5:$P$316,'I_Asset number input'!J$5:J$316)),0) -> 0 | AQ22: =IFERROR((_xlfn.XLOOKUP($AL22,'I_Asset number input'!$P$5:$P$316,'I_Asset number input'!K$5:K$316)),0) -> 0 | AR22: =IFERROR((_xlfn.XLOOKUP($AL22,'I_Asset number input'!$P$5:$P$316,'I_Asset number input'!L$5:L$316)),0) -> 0 | AS22: =IFERROR((_xlfn.XLOOKUP($AL22,'I_Asset number input'!$P$5:$P$316,'I_Asset number input'!M$5:M$316)),0) -> 0 | AU22: 33549.91802 | AV22: 0 | AW22: 0 | AX22: 0 | AY22: 0 | AZ22: 0 | BA22: 0
B23: 80W Mercury | C23: 104 | D23: TC1 - Capital Funded by Endeavour Energy Legacy | F23: MERCURY | G23: Lamp | H23: Luminaire | I23: Direct | J23: 80W Mercury Legacy TC1 | K23: =INDEX('I_Asset number input'!$C$5:$C$265,MATCH('C_CAPEX Tariff Summary'!B23,'I_Asset number input'!$D$5:$D$265,0)) -> MERCURY | L23: 80W Mercury | M23: 0 | O23: 0 | P23: 0 | Q23: 0 | R23: =INDEX('C_OPEX Calc'!$AK$10:$AK$147,MATCH('C_CAPEX Tariff Summary'!B23,'C_OPEX Calc'!$D$10:$D$147,0)) -> 42.50512846 | T23: 42.50512846 | U23: 43.99208262 | V23: 47.43746419 | W23: 49.35962444 | X23: 50.74169392 | Y23: 52.16246135 | Z23: 53.62301027 | AA23: 55.12445456 | AC23: 0 | AD23: 0 | AE23: 0 | AF23: 0 | AG23: 0 | AH23: 0 | AI23: 0 | AJ23: 0 | AL23: 80W Mercury Legacy TC1 | AM23: =IFERROR((_xlfn.XLOOKUP($AL23,'I_Asset number input'!$P$5:$P$316,'I_Asset number input'!G$5:G$316)),0) -> 9524.76 | AN23: =IFERROR((_xlfn.XLOOKUP($AL23,'I_Asset number input'!$P$5:$P$316,'I_Asset number input'!H$5:H$316)),0) -> 0 | AO23: =IFERROR((_xlfn.XLOOKUP($AL23,'I_Asset number input'!$P$5:$P$316,'I_Asset number input'!I$5:I$316)),0) -> 0 | AP23: =IFERROR((_xlfn.XLOOKUP($AL23,'I_Asset number input'!$P$5:$P$316,'I_Asset number input'!J$5:J$316)),0) -> 0 | AQ23: =IFERROR((_xlfn.XLOOKUP($AL23,'I_Asset number input'!$P$5:$P$316,'I_Asset number input'!K$5:K$316)),0) -> 0 | AR23: =IFERROR((_xlfn.XLOOKUP($AL23,'I_Asset number input'!$P$5:$P$316,'I_Asset number input'!L$5:L$316)),0) -> 0 | AS23: =IFERROR((_xlfn.XLOOKUP($AL23,'I_Asset number input'!$P$5:$P$316,'I_Asset number input'!M$5:M$316)),0) -> 0 | AU23: 419014.0288 | AV23: 0 | AW23: 0 | AX23: 0 | AY23: 0 | AZ23: 0 | BA23: 0
B24: 125W Mercury | C24: 97 | D24: TC1 - Capital Funded by Endeavour Energy Legacy | F24: MERCURY | G24: Lamp | H24: Luminaire | I24: Direct | J24: 125W Mercury Legacy TC1 | K24: =INDEX('I_Asset number input'!$C$5:$C$265,MATCH('C_CAPEX Tariff Summary'!B24,'I_Asset number input'!$D$5:$D$265,0)) -> MERCURY | L24: 125W Mercury | M24: 0 | O24: 0 | P24: 0 | Q24: 0 | R24: =INDEX('C_OPEX Calc'!$AK$10:$AK$147,MATCH('C_CAPEX Tariff Summary'!B24,'C_OPEX Calc'!$D$10:$D$147,0)) -> 44.95479191 | T24: 44.95479191 | U24: 46.52744248 | V24: 50.17138893 | W24: 52.20432747 | X24: 53.66604864 | Y24: 55.168698 | Z24: 56.71342154 | AA24: 58.30139735 | AC24: 0 | AD24: 0 | AE24: 0 | AF24: 0 | AG24: 0 | AH24: 0 | AI24: 0 | AJ24: 0 | AL24: 125W Mercury Legacy TC1 | AM24: =IFERROR((_xlfn.XLOOKUP($AL24,'I_Asset number input'!$P$5:$P$316,'I_Asset number input'!G$5:G$316)),0) -> 1215.97 | AN24: =IFERROR((_xlfn.XLOOKUP($AL24,'I_Asset number input'!$P$5:$P$316,'I_Asset number input'!H$5:H$316)),0) -> 0 | AO24: =IFERROR((_xlfn.XLOOKUP($AL24,'I_Asset number input'!$P$5:$P$316,'I_Asset number input'!I$5:I$316)),0) -> 0 | AP24: =IFERROR((_xlfn.XLOOKUP($AL24,'I_Asset number input'!$P$5:$P$316,'I_Asset number input'!J$5:J$316)),0) -> 0 | AQ24: =IFERROR((_xlfn.XLOOKUP($AL24,'I_Asset number input'!$P$5:$P$316,'I_Asset number input'!K$5:K$316)),0) -> 0 | AR24: =IFERROR((_xlfn.XLOOKUP($AL24,'I_Asset number input'!$P$5:$P$316,'I_Asset number input'!L$5:L$316)),0) -> 0 | AS24: =IFERROR((_xlfn.XLOOKUP($AL24,'I_Asset number input'!$P$5:$P$316,'I_Asset number input'!M$5:M$316)),0) -> 0 | AU24: 56575.97424 | AV24: 0 | AW24: 0 | AX24: 0 | AY24: 0 | AZ24: 0 | BA24: 0
B25: 250W Mercury | C25: 30 | D25: TC1 - Capital Funded by Endeavour Energy Legacy | F25: MERCURY | G25: Lamp | H25: Luminaire | I25: Direct | J25: 250W Mercury Legacy TC1 | K25: =INDEX('I_Asset number input'!$C$5:$C$265,MATCH('C_CAPEX Tariff Summary'!B25,'I_Asset number input'!$D$5:$D$265,0)) -> MERCURY | L25: 250W Mercury | M25: 0 | O25: 0 | P25: 0 | Q25: 0 | R25: =INDEX('C_OPEX Calc'!$AK$10:$AK$147,MATCH('C_CAPEX Tariff Summary'!B25,'C_OPEX Calc'!$D$10:$D$147,0)) -> 44.95479191 | T25: 44.95479191 | U25: 46.52744248 | V25: 50.17138893 | W25: 52.20432747 | X25: 53.66604864 | Y25: 55.168698 | Z25: 56.71342154 | AA25: 58.30139735 | AC25: 0 | AD25: 0 | AE25: 0 | AF25: 0 | AG25: 0 | AH25: 0 | AI25: 0 | AJ25: 0 | AL25: 250W Mercury Legacy TC1 | AM25: =IFERROR((_xlfn.XLOOKUP($AL25,'I_Asset number input'!$P$5:$P$316,'I_Asset number input'!G$5:G$316)),0) -> 1396.64 | AN25: =IFERROR((_xlfn.XLOOKUP($AL25,'I_Asset number input'!$P$5:$P$316,'I_Asset number input'!H$5:H$316)),0) -> 0 | AO25: =IFERROR((_xlfn.XLOOKUP($AL25,'I_Asset number input'!$P$5:$P$316,'I_Asset number input'!I$5:I$316)),0) -> 0 | AP25: =IFERROR((_xlfn.XLOOKUP($AL25,'I_Asset number input'!$P$5:$P$316,'I_Asset number input'!J$5:J$316)),0) -> 0 | AQ25: =IFERROR((_xlfn.XLOOKUP($AL25,'I_Asset number input'!$P$5:$P$316,'I_Asset number input'!K$5:K$316)),0) -> 0 | AR25: =IFERROR((_xlfn.XLOOKUP($AL25,'I_Asset number input'!$P$5:$P$316,'I_Asset number input'!L$5:L$316)),0) -> 0 | AS25: =IFERROR((_xlfn.XLOOKUP($AL25,'I_Asset number input'!$P$5:$P$316,'I_Asset number input'!M$5:M$316)),0) -> 0 | AU25: 64982.08727 | AV25: 0 | AW25: 0 | AX25: 0 | AY25: 0 | AZ25: 0 | BA25: 0
B26: 2 x 250W Mercury | C26: 100 | D26: TC1 - Capital Funded by Endeavour Energy Legacy | F26: MERCURY | G26: Lamp | H26: Luminaire | I26: Direct | J26: 2 x 250W Mercury Legacy TC1 | K26: =INDEX('I_Asset number input'!$C$5:$C$265,MATCH('C_CAPEX Tariff Summary'!B26,'I_Asset number input'!$D$5:$D$265,0)) -> MERCURY | L26: 2 x 250W Mercury | M26: 0 | O26: 0 | P26: 0 | Q26: 0 | R26: =+R25*1.3 -> 58.44122949 | T26: 58.44122949 | U26: 60.48567523 | V26: 65.2228056 | W26: 67.86562571 | X26: 69.76586323 | Y26: 71.7193074 | Z26: 73.72744801 | AA26: 75.79181655 | AC26: 0 | AD26: 0 | AE26: 0 | AF26: 0 | AG26: 0 | AH26: 0 | AI26: 0 | AJ26: 0 | AL26: 2 x 250W Mercury Legacy TC1 | AM26: =IFERROR((_xlfn.XLOOKUP($AL26,'I_Asset number input'!$P$5:$P$316,'I_Asset number input'!G$5:G$316)),0) -> 0 | AN26: =IFERROR((_xlfn.XLOOKUP($AL26,'I_Asset number input'!$P$5:$P$316,'I_Asset number input'!H$5:H$316)),0) -> 0 | AO26: =IFERROR((_xlfn.XLOOKUP($AL26,'I_Asset number input'!$P$5:$P$316,'I_Asset number input'!I$5:I$316)),0) -> 0 | AP26: =IFERROR((_xlfn.XLOOKUP($AL26,'I_Asset number input'!$P$5:$P$316,'I_Asset number input'!J$5:J$316)),0) -> 0 | AQ26: =IFERROR((_xlfn.XLOOKUP($AL26,'I_Asset number input'!$P$5:$P$316,'I_Asset number input'!K$5:K$316)),0) -> 0 | AR26: =IFERROR((_xlfn.XLOOKUP($AL26,'I_Asset number input'!$P$5:$P$316,'I_Asset number input'!L$5:L$316)),0) -> 0 | AS26: =IFERROR((_xlfn.XLOOKUP($AL26,'I_Asset number input'!$P$5:$P$316,'I_Asset number input'!M$5:M$316)),0) -> 0 | AU26: 0 | AV26: 0 | AW26: 0 | AX26: 0 | AY26: 0 | AZ26: 0 | BA26: 0
B27: 400 W Mercury | C27: 31 | D27: TC1 - Capital Funded by Endeavour Energy Legacy | F27: MERCURY | G27: Lamp | H27: Luminaire | I27: Direct | J27: 400 W Mercury Legacy TC1 | K27: =INDEX('I_Asset number input'!$C$5:$C$265,MATCH('C_CAPEX Tariff Summary'!B27,'I_Asset number input'!$D$5:$D$265,0)) -> MERCURY | L27: 400 W Mercury | M27: 0 | O27: 0 | P27: 0 | Q27: 0 | R27: =INDEX('C_OPEX Calc'!$AK$10:$AK$147,MATCH('C_CAPEX Tariff Summary'!B27,'C_OPEX Calc'!$D$10:$D$147,0)) -> 44.95479191 | T27: 44.95479191 | U27: 46.52744248 | V27: 50.17138893 | W27: 52.20432747 | X27: 53.66604864 | Y27: 55.168698 | Z27: 56.71342154 | AA27: 58.30139735 | AC27: 0 | AD27: 0 | AE27: 0 | AF27: 0 | AG27: 0 | AH27: 0 | AI27: 0 | AJ27: 0 | AL27: 400 W Mercury Legacy TC1 | AM27: =IFERROR((_xlfn.XLOOKUP($AL27,'I_Asset number input'!$P$5:$P$316,'I_Asset number input'!G$5:G$316)),0) -> 446.6 | AN27: =IFERROR((_xlfn.XLOOKUP($AL27,'I_Asset number input'!$P$5:$P$316,'I_Asset number input'!H$5:H$316)),0) -> 0 | AO27: =IFERROR((_xlfn.XLOOKUP($AL27,'I_Asset number input'!$P$5:$P$316,'I_Asset number input'!I$5:I$316)),0) -> 0 | AP27: =IFERROR((_xlfn.XLOOKUP($AL27,'I_Asset number input'!$P$5:$P$316,'I_Asset number input'!J$5:J$316)),0) -> 0 | AQ27: =IFERROR((_xlfn.XLOOKUP($AL27,'I_Asset number input'!$P$5:$P$316,'I_Asset number input'!K$5:K$316)),0) -> 0 | AR27: =IFERROR((_xlfn.XLOOKUP($AL27,'I_Asset number input'!$P$5:$P$316,'I_Asset number input'!L$5:L$316)),0) -> 0 | AS27: =IFERROR((_xlfn.XLOOKUP($AL27,'I_Asset number input'!$P$5:$P$316,'I_Asset number input'!M$5:M$316)),0) -> 0 | AU27: 20779.15581 | AV27: 0 | AW27: 0 | AX27: 0 | AY27: 0 | AZ27: 0 | BA27: 0
B28: 50W Sodium | C28: 182 | D28: TC1 - Capital Funded by Endeavour Energy Legacy | F28: HIGH / LOW PRESSURE SODIUM | G28: Lamp | H28: Luminaire | I28: Direct | J28: 50W Sodium Legacy TC1 | K28: =INDEX('I_Asset number input'!$C$5:$C$265,MATCH('C_CAPEX Tariff Summary'!B28,'I_Asset number input'!$D$5:$D$265,0)) -> HIGH LOW PRESSURE SODIUM | L28: 50W Sodium | M28: 0 | O28: 0 | P28: 0 | Q28: 0 | R28: =INDEX('C_OPEX Calc'!$AK$10:$AK$147,MATCH('C_CAPEX Tariff Summary'!B28,'C_OPEX Calc'!$D$10:$D$147,0)) -> 44.84943004 | T28: 44.84943004 | U28: 46.41839475 | V28: 50.05380077 | W28: 52.08197465 | X28: 53.54026994 | Y28: 55.0393975 | Z28: 56.58050063 | AA28: 58.16475465 | AC28: 0 | AD28: 0 | AE28: 0 | AF28: 0 | AG28: 0 | AH28: 0 | AI28: 0 | AJ28: 0 | AL28: 50W Sodium Legacy TC1 | AM28: =IFERROR((_xlfn.XLOOKUP($AL28,'I_Asset number input'!$P$5:$P$316,'I_Asset number input'!G$5:G$316)),0) -> 2.03 | AN28: =IFERROR((_xlfn.XLOOKUP($AL28,'I_Asset number input'!$P$5:$P$316,'I_Asset number input'!H$5:H$316)),0) -> 0 | AO28: =IFERROR((_xlfn.XLOOKUP($AL28,'I_Asset number input'!$P$5:$P$316,'I_Asset number input'!I$5:I$316)),0) -> 0 | AP28: =IFERROR((_xlfn.XLOOKUP($AL28,'I_Asset number input'!$P$5:$P$316,'I_Asset number input'!J$5:J$316)),0) -> 0 | AQ28: =IFERROR((_xlfn.XLOOKUP($AL28,'I_Asset number input'!$P$5:$P$316,'I_Asset number input'!K$5:K$316)),0) -> 0 | AR28: =IFERROR((_xlfn.XLOOKUP($AL28,'I_Asset number input'!$P$5:$P$316,'I_Asset number input'!L$5:L$316)),0) -> 0 | AS28: =IFERROR((_xlfn.XLOOKUP($AL28,'I_Asset number input'!$P$5:$P$316,'I_Asset number input'!M$5:M$316)),0) -> 0 | AU28: 94.22934134 | AV28: 0 | AW28: 0 | AX28: 0 | AY28: 0 | AZ28: 0 | BA28: 0
B29: 70W Sodium | C29: 183 | D29: TC1 - Capital Funded by Endeavour Energy Legacy | F29: HIGH / LOW PRESSURE SODIUM | G29: Lamp | H29: Luminaire | I29: Direct | J29: 70W Sodium Legacy TC1 | K29: =INDEX('I_Asset number input'!$C$5:$C$265,MATCH('C_CAPEX Tariff Summary'!B29,'I_Asset number input'!$D$5:$D$265,0)) -> HIGH LOW PRESSURE SODIUM | L29: 70W Sodium | M29: 0 | O29: 0 | P29: 0 | Q29: 0 | R29: =INDEX('C_OPEX Calc'!$AK$10:$AK$147,MATCH('C_CAPEX Tariff Summary'!B29,'C_OPEX Calc'!$D$10:$D$147,0)) -> 43.82741992 | T29: 43.82741992 | U29: 45.36063171 | V29: 48.91319561 | W29: 50.89515231 | X29: 52.32021657 | Y29: 53.78518264 | Z29: 55.29116775 | AA29: 56.83932045 | AC29: 0 | AD29: 0 | AE29: 0 | AF29: 0 | AG29: 0 | AH29: 0 | AI29: 0 | AJ29: 0 | AL29: 70W Sodium Legacy TC1 | AM29: =IFERROR((_xlfn.XLOOKUP($AL29,'I_Asset number input'!$P$5:$P$316,'I_Asset number input'!G$5:G$316)),0) -> 665.84 | AN29: =IFERROR((_xlfn.XLOOKUP($AL29,'I_Asset number input'!$P$5:$P$316,'I_Asset number input'!H$5:H$316)),0) -> 0 | AO29: =IFERROR((_xlfn.XLOOKUP($AL29,'I_Asset number input'!$P$5:$P$316,'I_Asset number input'!I$5:I$316)),0) -> 0 | AP29: =IFERROR((_xlfn.XLOOKUP($AL29,'I_Asset number input'!$P$5:$P$316,'I_Asset number input'!J$5:J$316)),0) -> 0 | AQ29: =IFERROR((_xlfn.XLOOKUP($AL29,'I_Asset number input'!$P$5:$P$316,'I_Asset number input'!K$5:K$316)),0) -> 0 | AR29: =IFERROR((_xlfn.XLOOKUP($AL29,'I_Asset number input'!$P$5:$P$316,'I_Asset number input'!L$5:L$316)),0) -> 0 | AS29: =IFERROR((_xlfn.XLOOKUP($AL29,'I_Asset number input'!$P$5:$P$316,'I_Asset number input'!M$5:M$316)),0) -> 0 | AU29: 30202.92302 | AV29: 0 | AW29: 0 | AX29: 0 | AY29: 0 | AZ29: 0 | BA29: 0
B30: 90W Sodium | C30: 34 | D30: TC1 - Capital Funded by Endeavour Energy Legacy | F30: HIGH / LOW PRESSURE SODIUM | G30: Lamp | H30: Luminaire | I30: Direct | J30: 90W Sodium Legacy TC1 | K30: =INDEX('I_Asset number input'!$C$5:$C$265,MATCH('C_CAPEX Tariff Summary'!B30,'I_Asset number input'!$D$5:$D$265,0)) -> HIGH LOW PRESSURE SODIUM | L30: 90W Sodium | M30: 0 | O30: 0 | P30: 0 | Q30: 0 | R30: =+R31 -> 44.84943004 | T30: 44.84943004 | U30: 46.41839475 | V30: 50.05380077 | W30: 52.08197465 | X30: 53.54026994 | Y30: 55.0393975 | Z30: 56.58050063 | AA30: 58.16475465 | AC30: 0 | AD30: 0 | AE30: 0 | AF30: 0 | AG30: 0 | AH30: 0 | AI30: 0 | AJ30: 0 | AL30: 90W Sodium Legacy TC1 | AM30: =IFERROR((_xlfn.XLOOKUP($AL30,'I_Asset number input'!$P$5:$P$316,'I_Asset number input'!G$5:G$316)),0) -> 23.345 | AN30: =IFERROR((_xlfn.XLOOKUP($AL30,'I_Asset number input'!$P$5:$P$316,'I_Asset number input'!H$5:H$316)),0) -> 0 | AO30: =IFERROR((_xlfn.XLOOKUP($AL30,'I_Asset number input'!$P$5:$P$316,'I_Asset number input'!I$5:I$316)),0) -> 0 | AP30: =IFERROR((_xlfn.XLOOKUP($AL30,'I_Asset number input'!$P$5:$P$316,'I_Asset number input'!J$5:J$316)),0) -> 0 | AQ30: =IFERROR((_xlfn.XLOOKUP($AL30,'I_Asset number input'!$P$5:$P$316,'I_Asset number input'!K$5:K$316)),0) -> 0 | AR30: =IFERROR((_xlfn.XLOOKUP($AL30,'I_Asset number input'!$P$5:$P$316,'I_Asset number input'!L$5:L$316)),0) -> 0 | AS30: =IFERROR((_xlfn.XLOOKUP($AL30,'I_Asset number input'!$P$5:$P$316,'I_Asset number input'!M$5:M$316)),0) -> 0 | AU30: 1083.637425 | AV30: 0 | AW30: 0 | AX30: 0 | AY30: 0 | AZ30: 0 | BA30: 0
B31: 100W Sodium | C31: 167 | D31: TC1 - Capital Funded by Endeavour Energy Legacy | F31: HIGH / LOW PRESSURE SODIUM | G31: Lamp | H31: Luminaire | I31: Direct | J31: 100W Sodium Legacy TC1 | K31: =INDEX('I_Asset number input'!$C$5:$C$265,MATCH('C_CAPEX Tariff Summary'!B31,'I_Asset number input'!$D$5:$D$265,0)) -> HIGH LOW PRESSURE SODIUM | L31: 100W Sodium | M31: 0 | O31: 0 | P31: 0 | Q31: 0 | R31: =INDEX('C_OPEX Calc'!$AK$10:$AK$147,MATCH('C_CAPEX Tariff Summary'!B31,'C_OPEX Calc'!$D$10:$D$147,0)) -> 44.84943004 | T31: 44.84943004 | U31: 46.41839475 | V31: 50.05380077 | W31: 52.08197465 | X31: 53.54026994 | Y31: 55.0393975 | Z31: 56.58050063 | AA31: 58.16475465 | AC31: 0 | AD31: 0 | AE31: 0 | AF31: 0 | AG31: 0 | AH31: 0 | AI31: 0 | AJ31: 0 | AL31: 100W Sodium Legacy TC1 | AM31: =IFERROR((_xlfn.XLOOKUP($AL31,'I_Asset number input'!$P$5:$P$316,'I_Asset number input'!G$5:G$316)),0) -> 1208.865 | AN31: =IFERROR((_xlfn.XLOOKUP($AL31,'I_Asset number input'!$P$5:$P$316,'I_Asset number input'!H$5:H$316)),0) -> 0 | AO31: =IFERROR((_xlfn.XLOOKUP($AL31,'I_Asset number input'!$P$5:$P$316,'I_Asset number input'!I$5:I$316)),0) -> 0 | AP31: =IFERROR((_xlfn.XLOOKUP($AL31,'I_Asset number input'!$P$5:$P$316,'I_Asset number input'!J$5:J$316)),0) -> 0 | AQ31: =IFERROR((_xlfn.XLOOKUP($AL31,'I_Asset number input'!$P$5:$P$316,'I_Asset number input'!K$5:K$316)),0) -> 0 | AR31: =IFERROR((_xlfn.XLOOKUP($AL31,'I_Asset number input'!$P$5:$P$316,'I_Asset number input'!L$5:L$316)),0) -> 0 | AS31: =IFERROR((_xlfn.XLOOKUP($AL31,'I_Asset number input'!$P$5:$P$316,'I_Asset number input'!M$5:M$316)),0) -> 0 | AU31: 56113.57277 | AV31: 0 | AW31: 0 | AX31: 0 | AY31: 0 | AZ31: 0 | BA31: 0
B32: 120W Sodium | C32: 150 | D32: TC1 - Capital Funded by Endeavour Energy Legacy | F32: HIGH / LOW PRESSURE SODIUM | G32: Lamp | H32: Luminaire | I32: Direct | J32: 120W Sodium Legacy TC1 | K32: =INDEX('I_Asset number input'!$C$5:$C$265,MATCH('C_CAPEX Tariff Summary'!B32,'I_Asset number input'!$D$5:$D$265,0)) -> HIGH LOW PRESSURE SODIUM | L32: 120W Sodium | M32: 0 | O32: 0 | P32: 0 | Q32: 0 | R32: =+R33 -> 43.78264112 | T32: 43.78264112 | U32: 45.31428642 | V32: 48.86322064 | W32: 50.84315236 | X32: 52.26676063 | Y32: 53.73022993 | Z32: 55.23467636 | AA32: 56.7812473 | AC32: 0 | AD32: 0 | AE32: 0 | AF32: 0 | AG32: 0 | AH32: 0 | AI32: 0 | AJ32: 0 | AL32: 120W Sodium Legacy TC1 | AM32: =IFERROR((_xlfn.XLOOKUP($AL32,'I_Asset number input'!$P$5:$P$316,'I_Asset number input'!G$5:G$316)),0) -> 21.315 | AN32: =IFERROR((_xlfn.XLOOKUP($AL32,'I_Asset number input'!$P$5:$P$316,'I_Asset number input'!H$5:H$316)),0) -> 0 | AO32: =IFERROR((_xlfn.XLOOKUP($AL32,'I_Asset number input'!$P$5:$P$316,'I_Asset number input'!I$5:I$316)),0) -> 0 | AP32: =IFERROR((_xlfn.XLOOKUP($AL32,'I_Asset number input'!$P$5:$P$316,'I_Asset number input'!J$5:J$316)),0) -> 0 | AQ32: =IFERROR((_xlfn.XLOOKUP($AL32,'I_Asset number input'!$P$5:$P$316,'I_Asset number input'!K$5:K$316)),0) -> 0 | AR32: =IFERROR((_xlfn.XLOOKUP($AL32,'I_Asset number input'!$P$5:$P$316,'I_Asset number input'!L$5:L$316)),0) -> 0 | AS32: =IFERROR((_xlfn.XLOOKUP($AL32,'I_Asset number input'!$P$5:$P$316,'I_Asset number input'!M$5:M$316)),0) -> 0 | AU32: 965.874015 | AV32: 0 | AW32: 0 | AX32: 0 | AY32: 0 | AZ32: 0 | BA32: 0
B33: 150W Sodium | C33: 142 | D33: TC1 - Capital Funded by Endeavour Energy Legacy | F33: HIGH / LOW PRESSURE SODIUM | G33: Lamp | H33: Luminaire | I33: Direct | J33: 150W Sodium Legacy TC1 | K33: =INDEX('I_Asset number input'!$C$5:$C$265,MATCH('C_CAPEX Tariff Summary'!B33,'I_Asset number input'!$D$5:$D$265,0)) -> HIGH LOW PRESSURE SODIUM | L33: 150W Sodium | M33: 0 | O33: 0 | P33: 0 | Q33: 0 | R33: =INDEX('C_OPEX Calc'!$AK$10:$AK$147,MATCH('C_CAPEX Tariff Summary'!B33,'C_OPEX Calc'!$D$10:$D$147,0)) -> 43.78264112 | T33: 43.78264112 | U33: 45.31428642 | V33: 48.86322064 | W33: 50.84315236 | X33: 52.26676063 | Y33: 53.73022993 | Z33: 55.23467636 | AA33: 56.7812473 | AC33: 0 | AD33: 0 | AE33: 0 | AF33: 0 | AG33: 0 | AH33: 0 | AI33: 0 | AJ33: 0 | AL33: 150W Sodium Legacy TC1 | AM33: =IFERROR((_xlfn.XLOOKUP($AL33,'I_Asset number input'!$P$5:$P$316,'I_Asset number input'!G$5:G$316)),0) -> 9110.64 | AN33: =IFERROR((_xlfn.XLOOKUP($AL33,'I_Asset number input'!$P$5:$P$316,'I_Asset number input'!H$5:H$316)),0) -> 0 | AO33: =IFERROR((_xlfn.XLOOKUP($AL33,'I_Asset number input'!$P$5:$P$316,'I_Asset number input'!I$5:I$316)),0) -> 0 | AP33: =IFERROR((_xlfn.XLOOKUP($AL33,'I_Asset number input'!$P$5:$P$316,'I_Asset number input'!J$5:J$316)),0) -> 0 | AQ33: =IFERROR((_xlfn.XLOOKUP($AL33,'I_Asset number input'!$P$5:$P$316,'I_Asset number input'!K$5:K$316)),0) -> 0 | AR33: =IFERROR((_xlfn.XLOOKUP($AL33,'I_Asset number input'!$P$5:$P$316,'I_Asset number input'!L$5:L$316)),0) -> 0 | AS33: =IFERROR((_xlfn.XLOOKUP($AL33,'I_Asset number input'!$P$5:$P$316,'I_Asset number input'!M$5:M$316)),0) -> 0 | AU33: 412842.1504 | AV33: 0 | AW33: 0 | AX33: 0 | AY33: 0 | AZ33: 0 | BA33: 0
B34: 250W Sodium | C34: 38 | D34: TC1 - Capital Funded by Endeavour Energy Legacy | F34: HIGH / LOW PRESSURE SODIUM | G34: Lamp | H34: Luminaire | I34: Direct | J34: 250W Sodium Legacy TC1 | K34: =INDEX('I_Asset number input'!$C$5:$C$265,MATCH('C_CAPEX Tariff Summary'!B34,'I_Asset number input'!$D$5:$D$265,0)) -> HIGH LOW PRESSURE SODIUM | L34: 250W Sodium | M34: 0 | O34: 0 | P34: 0 | Q34: 0 | R34: =INDEX('C_OPEX Calc'!$AK$10:$AK$147,MATCH('C_CAPEX Tariff Summary'!B34,'C_OPEX Calc'!$D$10:$D$147,0)) -> 46.21386624 | T34: 46.21386624 | U34: 47.83056293 | V34: 51.57656745 | W34: 53.66644365 | X34: 55.16910407 | Y34: 56.71383899 | Z34: 58.30182648 | AA34: 59.93427762 | AC34: 0 | AD34: 0 | AE34: 0 | AF34: 0 | AG34: 0 | AH34: 0 | AI34: 0 | AJ34: 0 | AL34: 250W Sodium Legacy TC1 | AM34: =IFERROR((_xlfn.XLOOKUP($AL34,'I_Asset number input'!$P$5:$P$316,'I_Asset number input'!G$5:G$316)),0) -> 14670.81 | AN34: =IFERROR((_xlfn.XLOOKUP($AL34,'I_Asset number input'!$P$5:$P$316,'I_Asset number input'!H$5:H$316)),0) -> 0 | AO34: =IFERROR((_xlfn.XLOOKUP($AL34,'I_Asset number input'!$P$5:$P$316,'I_Asset number input'!I$5:I$316)),0) -> 0 | AP34: =IFERROR((_xlfn.XLOOKUP($AL34,'I_Asset number input'!$P$5:$P$316,'I_Asset number input'!J$5:J$316)),0) -> 0 | AQ34: =IFERROR((_xlfn.XLOOKUP($AL34,'I_Asset number input'!$P$5:$P$316,'I_Asset number input'!K$5:K$316)),0) -> 0 | AR34: =IFERROR((_xlfn.XLOOKUP($AL34,'I_Asset number input'!$P$5:$P$316,'I_Asset number input'!L$5:L$316)),0) -> 0 | AS34: =IFERROR((_xlfn.XLOOKUP($AL34,'I_Asset number input'!$P$5:$P$316,'I_Asset number input'!M$5:M$316)),0) -> 0 | AU34: 701713.1009 | AV34: 0 | AW34: 0 | AX34: 0 | AY34: 0 | AZ34: 0 | BA34: 0
B35: 2 x 250W Sodium | C35: 103 | D35: TC1 - Capital Funded by Endeavour Energy Legacy | F35: HIGH / LOW PRESSURE SODIUM | G35: Lamp | H35: Luminaire | I35: Direct | J35: 2 x 250W Sodium Legacy TC1 | K35: =INDEX('I_Asset number input'!$C$5:$C$265,MATCH('C_CAPEX Tariff Summary'!B35,'I_Asset number input'!$D$5:$D$265,0)) -> HIGH LOW PRESSURE SODIUM | L35: 2 x 250W Sodium | M35: 0 | O35: 0 | P35: 0 | Q35: 0 | R35: =INDEX('C_OPEX Calc'!$AK$10:$AK$147,MATCH('C_CAPEX Tariff Summary'!B35,'C_OPEX Calc'!$D$10:$D$147,0)) -> 50.94988225 | T35: 50.94988225 | U35: 52.73225867 | V35: 56.86215527 | W35: 59.16620285 | X35: 60.82285653 | Y35: 62.52589651 | Z35: 64.27662161 | AA35: 66.07636702 | AC35: 0 | AD35: 0 | AE35: 0 | AF35: 0 | AG35: 0 | AH35: 0 | AI35: 0 | AJ35: 0 | AL35: 2 x 250W Sodium Legacy TC1 | AM35: =IFERROR((_xlfn.XLOOKUP($AL35,'I_Asset number input'!$P$5:$P$316,'I_Asset number input'!G$5:G$316)),0) -> 81.2 | AN35: =IFERROR((_xlfn.XLOOKUP($AL35,'I_Asset number input'!$P$5:$P$316,'I_Asset number input'!H$5:H$316)),0) -> 0 | AO35: =IFERROR((_xlfn.XLOOKUP($AL35,'I_Asset number input'!$P$5:$P$316,'I_Asset number input'!I$5:I$316)),0) -> 0 | AP35: =IFERROR((_xlfn.XLOOKUP($AL35,'I_Asset number input'!$P$5:$P$316,'I_Asset number input'!J$5:J$316)),0) -> 0 | AQ35: =IFERROR((_xlfn.XLOOKUP($AL35,'I_Asset number input'!$P$5:$P$316,'I_Asset number input'!K$5:K$316)),0) -> 0 | AR35: =IFERROR((_xlfn.XLOOKUP($AL35,'I_Asset number input'!$P$5:$P$316,'I_Asset number input'!L$5:L$316)),0) -> 0 | AS35: =IFERROR((_xlfn.XLOOKUP($AL35,'I_Asset number input'!$P$5:$P$316,'I_Asset number input'!M$5:M$316)),0) -> 0 | AU35: 4281.859404 | AV35: 0 | AW35: 0 | AX35: 0 | AY35: 0 | AZ35: 0 | BA35: 0
B36: 310W Sodium | C36: 39 | D36: TC1 - Capital Funded by Endeavour Energy Legacy | F36: HIGH / LOW PRESSURE SODIUM | G36: Lamp | H36: Luminaire | I36: Direct | J36: 310W Sodium Legacy TC1 | K36: =INDEX('I_Asset number input'!$C$5:$C$265,MATCH('C_CAPEX Tariff Summary'!B36,'I_Asset number input'!$D$5:$D$265,0)) -> HIGH LOW PRESSURE SODIUM | L36: 310W Sodium | M36: 0 | O36: 0 | P36: 0 | Q36: 0 | R36: =+R37 -> 44.34896117 | T36: 44.34896117 | U36: 45.900418 | V36: 49.495257 | W36: 51.50079876 | X36: 52.94282113 | Y36: 54.42522012 | Z36: 55.94912628 | AA36: 57.51570182 | AC36: 0 | AD36: 0 | AE36: 0 | AF36: 0 | AG36: 0 | AH36: 0 | AI36: 0 | AJ36: 0 | AL36: 310W Sodium Legacy TC1 | AM36: =IFERROR((_xlfn.XLOOKUP($AL36,'I_Asset number input'!$P$5:$P$316,'I_Asset number input'!G$5:G$316)),0) -> 257.81 | AN36: =IFERROR((_xlfn.XLOOKUP($AL36,'I_Asset number input'!$P$5:$P$316,'I_Asset number input'!H$5:H$316)),0) -> 0 | AO36: =IFERROR((_xlfn.XLOOKUP($AL36,'I_Asset number input'!$P$5:$P$316,'I_Asset number input'!I$5:I$316)),0) -> 0 | AP36: =IFERROR((_xlfn.XLOOKUP($AL36,'I_Asset number input'!$P$5:$P$316,'I_Asset number input'!J$5:J$316)),0) -> 0 | AQ36: =IFERROR((_xlfn.XLOOKUP($AL36,'I_Asset number input'!$P$5:$P$316,'I_Asset number input'!K$5:K$316)),0) -> 0 | AR36: =IFERROR((_xlfn.XLOOKUP($AL36,'I_Asset number input'!$P$5:$P$316,'I_Asset number input'!L$5:L$316)),0) -> 0 | AS36: =IFERROR((_xlfn.XLOOKUP($AL36,'I_Asset number input'!$P$5:$P$316,'I_Asset number input'!M$5:M$316)),0) -> 0 | AU36: 11833.58676 | AV36: 0 | AW36: 0 | AX36: 0 | AY36: 0 | AZ36: 0 | BA36: 0
B37: 400 W Sodium | C37: 25 | D37: TC1 - Capital Funded by Endeavour Energy Legacy | F37: HIGH / LOW PRESSURE SODIUM | G37: Lamp | H37: Luminaire | I37: Direct | J37: 400 W Sodium Legacy TC1 | K37: =INDEX('I_Asset number input'!$C$5:$C$265,MATCH('C_CAPEX Tariff Summary'!B37,'I_Asset number input'!$D$5:$D$265,0)) -> HIGH LOW PRESSURE SODIUM | L37: 400 W Sodium | M37: 0 | O37: 0 | P37: 0 | Q37: 0 | R37: =INDEX('C_OPEX Calc'!$AK$10:$AK$147,MATCH('C_CAPEX Tariff Summary'!B37,'C_OPEX Calc'!$D$10:$D$147,0)) -> 44.34896117 | T37: 44.34896117 | U37: 45.900418 | V37: 49.495257 | W37: 51.50079876 | X37: 52.94282113 | Y37: 54.42522012 | Z37: 55.94912628 | AA37: 57.51570182 | AC37: 0 | AD37: 0 | AE37: 0 | AF37: 0 | AG37: 0 | AH37: 0 | AI37: 0 | AJ37: 0 | AL37: 400 W Sodium Legacy TC1 | AM37: =IFERROR((_xlfn.XLOOKUP($AL37,'I_Asset number input'!$P$5:$P$316,'I_Asset number input'!G$5:G$316)),0) -> 1478.855 | AN37: =IFERROR((_xlfn.XLOOKUP($AL37,'I_Asset number input'!$P$5:$P$316,'I_Asset number input'!H$5:H$316)),0) -> 0 | AO37: =IFERROR((_xlfn.XLOOKUP($AL37,'I_Asset number input'!$P$5:$P$316,'I_Asset number input'!I$5:I$316)),0) -> 0 | AP37: =IFERROR((_xlfn.XLOOKUP($AL37,'I_Asset number input'!$P$5:$P$316,'I_Asset number input'!J$5:J$316)),0) -> 0 | AQ37: =IFERROR((_xlfn.XLOOKUP($AL37,'I_Asset number input'!$P$5:$P$316,'I_Asset number input'!K$5:K$316)),0) -> 0 | AR37: =IFERROR((_xlfn.XLOOKUP($AL37,'I_Asset number input'!$P$5:$P$316,'I_Asset number input'!L$5:L$316)),0) -> 0 | AS37: =IFERROR((_xlfn.XLOOKUP($AL37,'I_Asset number input'!$P$5:$P$316,'I_Asset number input'!M$5:M$316)),0) -> 0 | AU37: 67880.06266 | AV37: 0 | AW37: 0 | AX37: 0 | AY37: 0 | AZ37: 0 | BA37: 0
B38: 2 x 400 W Sodium | C38: 102 | D38: TC1 - Capital Funded by Endeavour Energy Legacy | F38: HIGH / LOW PRESSURE SODIUM | G38: Lamp | H38: Luminaire | I38: Direct | J38: 2 x 400 W Sodium Legacy TC1 | K38: =INDEX('I_Asset number input'!$C$5:$C$265,MATCH('C_CAPEX Tariff Summary'!B38,'I_Asset number input'!$D$5:$D$265,0)) -> HIGH LOW PRESSURE SODIUM | L38: 2 x 400 W Sodium | M38: 0 | O38: 0 | P38: 0 | Q38: 0 | R38: =INDEX('C_OPEX Calc'!$AK$10:$AK$147,MATCH('C_CAPEX Tariff Summary'!B38,'C_OPEX Calc'!$D$10:$D$147,0)) -> 47.22007209 | T38: 47.22007209 | U38: 48.87196881 | V38: 52.69953438 | W38: 54.83491307 | X38: 56.37029063 | Y38: 57.94865877 | Z38: 59.57122122 | AA38: 61.23921541 | AC38: 0 | AD38: 0 | AE38: 0 | AF38: 0 | AG38: 0 | AH38: 0 | AI38: 0 | AJ38: 0 | AL38: 2 x 400 W Sodium Legacy TC1 | AM38: =IFERROR((_xlfn.XLOOKUP($AL38,'I_Asset number input'!$P$5:$P$316,'I_Asset number input'!G$5:G$316)),0) -> 53.795 | AN38: =IFERROR((_xlfn.XLOOKUP($AL38,'I_Asset number input'!$P$5:$P$316,'I_Asset number input'!H$5:H$316)),0) -> 0 | AO38: =IFERROR((_xlfn.XLOOKUP($AL38,'I_Asset number input'!$P$5:$P$316,'I_Asset number input'!I$5:I$316)),0) -> 0 | AP38: =IFERROR((_xlfn.XLOOKUP($AL38,'I_Asset number input'!$P$5:$P$316,'I_Asset number input'!J$5:J$316)),0) -> 0 | AQ38: =IFERROR((_xlfn.XLOOKUP($AL38,'I_Asset number input'!$P$5:$P$316,'I_Asset number input'!K$5:K$316)),0) -> 0 | AR38: =IFERROR((_xlfn.XLOOKUP($AL38,'I_Asset number input'!$P$5:$P$316,'I_Asset number input'!L$5:L$316)),0) -> 0 | AS38: =IFERROR((_xlfn.XLOOKUP($AL38,'I_Asset number input'!$P$5:$P$316,'I_Asset number input'!M$5:M$316)),0) -> 0 | AU38: 2629.067562 | AV38: 0 | AW38: 0 | AX38: 0 | AY38: 0 | AZ38: 0 | BA38: 0
B39: 4 x 600W Sodium | C39: 88 | D39: TC1 - Capital Funded by Endeavour Energy Legacy | F39: HIGH / LOW PRESSURE SODIUM | G39: Lamp | H39: Luminaire | I39: Direct | J39: 4 x 600W Sodium Legacy TC1 | K39: =INDEX('I_Asset number input'!$C$5:$C$265,MATCH('C_CAPEX Tariff Summary'!B39,'I_Asset number input'!$D$5:$D$265,0)) -> HIGH LOW PRESSURE SODIUM | L39: 4 x 600W Sodium | M39: 0 | O39: 0 | P39: 0 | Q39: 0 | R39: =+R38*1.2 -> 56.66408651 | T39: 56.66408651 | U39: 58.64636257 | V39: 63.23944126 | W39: 65.80189568 | X39: 67.64434876 | Y39: 69.53839053 | Z39: 71.48546546 | AA39: 73.48705849 | AC39: 0 | AD39: 0 | AE39: 0 | AF39: 0 | AG39: 0 | AH39: 0 | AI39: 0 | AJ39: 0 | AL39: 4 x 600W Sodium Legacy TC1 | AM39: =IFERROR((_xlfn.XLOOKUP($AL39,'I_Asset number input'!$P$5:$P$316,'I_Asset number input'!G$5:G$316)),0) -> 4.06 | AN39: =IFERROR((_xlfn.XLOOKUP($AL39,'I_Asset number input'!$P$5:$P$316,'I_Asset number input'!H$5:H$316)),0) -> 0 | AO39: =IFERROR((_xlfn.XLOOKUP($AL39,'I_Asset number input'!$P$5:$P$316,'I_Asset number input'!I$5:I$316)),0) -> 0 | AP39: =IFERROR((_xlfn.XLOOKUP($AL39,'I_Asset number input'!$P$5:$P$316,'I_Asset number input'!J$5:J$316)),0) -> 0 | AQ39: =IFERROR((_xlfn.XLOOKUP($AL39,'I_Asset number input'!$P$5:$P$316,'I_Asset number input'!K$5:K$316)),0) -> 0 | AR39: =IFERROR((_xlfn.XLOOKUP($AL39,'I_Asset number input'!$P$5:$P$316,'I_Asset number input'!L$5:L$316)),0) -> 0 | AS39: =IFERROR((_xlfn.XLOOKUP($AL39,'I_Asset number input'!$P$5:$P$316,'I_Asset number input'!M$5:M$316)),0) -> 0 | AU39: 238.104232 | AV39: 0 | AW39: 0 | AX39: 0 | AY39: 0 | AZ39: 0 | BA39: 0
B40: 100 W Metal Halide | C40: 216 | D40: TC1 - Capital Funded by Endeavour Energy Legacy | F40: METAL HALIDE | G40: Lamp | H40: Luminaire | I40: Direct | J40: 100 W Metal Halide Legacy TC1 | K40: =INDEX('I_Asset number input'!$C$5:$C$265,MATCH('C_CAPEX Tariff Summary'!B40,'I_Asset number input'!$D$5:$D$265,0)) -> METAL HALIDE | L40: 100 W Metal Halide | M40: 0 | O40: 0 | P40: 0 | Q40: 0 | R40: =INDEX('C_OPEX Calc'!$AK$10:$AK$147,MATCH('C_CAPEX Tariff Summary'!B40,'C_OPEX Calc'!$D$10:$D$147,0)) -> 49.94104235 | T40: 49.94104235 | U40: 51.6881266 | V40: 55.73624863 | W40: 57.99467461 | X40: 59.6185255 | Y40: 61.28784421 | Z40: 63.00390385 | AA40: 64.76801316 | AC40: 0 | AD40: 0 | AE40: 0 | AF40: 0 | AG40: 0 | AH40: 0 | AI40: 0 | AJ40: 0 | AL40: 100 W Metal Halide Legacy TC1 | AM40: =IFERROR((_xlfn.XLOOKUP($AL40,'I_Asset number input'!$P$5:$P$316,'I_Asset number input'!G$5:G$316)),0) -> 142.1 | AN40: =IFERROR((_xlfn.XLOOKUP($AL40,'I_Asset number input'!$P$5:$P$316,'I_Asset number input'!H$5:H$316)),0) -> 0 | AO40: =IFERROR((_xlfn.XLOOKUP($AL40,'I_Asset number input'!$P$5:$P$316,'I_Asset number input'!I$5:I$316)),0) -> 0 | AP40: =IFERROR((_xlfn.XLOOKUP($AL40,'I_Asset number input'!$P$5:$P$316,'I_Asset number input'!J$5:J$316)),0) -> 0 | AQ40: =IFERROR((_xlfn.XLOOKUP($AL40,'I_Asset number input'!$P$5:$P$316,'I_Asset number input'!K$5:K$316)),0) -> 0 | AR40: =IFERROR((_xlfn.XLOOKUP($AL40,'I_Asset number input'!$P$5:$P$316,'I_Asset number input'!L$5:L$316)),0) -> 0 | AS40: =IFERROR((_xlfn.XLOOKUP($AL40,'I_Asset number input'!$P$5:$P$316,'I_Asset number input'!M$5:M$316)),0) -> 0 | AU40: 7344.88279 | AV40: 0 | AW40: 0 | AX40: 0 | AY40: 0 | AZ40: 0 | BA40: 0
B41: 150 W Metal Halide | C41: 199 | D41: TC1 - Capital Funded by Endeavour Energy Legacy | F41: METAL HALIDE | G41: Lamp | H41: Luminaire | I41: Direct | J41: 150 W Metal Halide Legacy TC1 | K41: =INDEX('I_Asset number input'!$C$5:$C$265,MATCH('C_CAPEX Tariff Summary'!B41,'I_Asset number input'!$D$5:$D$265,0)) -> METAL HALIDE | L41: 150 W Metal Halide | M41: 0 | O41: 0 | P41: 0 | Q41: 0 | R41: =INDEX('C_OPEX Calc'!$AK$10:$AK$147,MATCH('C_CAPEX Tariff Summary'!B41,'C_OPEX Calc'!$D$10:$D$147,0)) -> 47.27275303 | T41: 47.27275303 | U41: 48.92649268 | V41: 52.75832846 | W41: 54.89608948 | X41: 56.43317998 | Y41: 58.01330902 | Z41: 59.63768167 | AA41: 61.30753676 | AC41: 0 | AD41: 0 | AE41: 0 | AF41: 0 | AG41: 0 | AH41: 0 | AI41: 0 | AJ41: 0 | AL41: 150 W Metal Halide Legacy TC1 | AM41: =IFERROR((_xlfn.XLOOKUP($AL41,'I_Asset number input'!$P$5:$P$316,'I_Asset number input'!G$5:G$316)),0) -> 238.525 | AN41: =IFERROR((_xlfn.XLOOKUP($AL41,'I_Asset number input'!$P$5:$P$316,'I_Asset number input'!H$5:H$316)),0) -> 0 | AO41: =IFERROR((_xlfn.XLOOKUP($AL41,'I_Asset number input'!$P$5:$P$316,'I_Asset number input'!I$5:I$316)),0) -> 0 | AP41: =IFERROR((_xlfn.XLOOKUP($AL41,'I_Asset number input'!$P$5:$P$316,'I_Asset number input'!J$5:J$316)),0) -> 0 | AQ41: =IFERROR((_xlfn.XLOOKUP($AL41,'I_Asset number input'!$P$5:$P$316,'I_Asset number input'!K$5:K$316)),0) -> 0 | AR41: =IFERROR((_xlfn.XLOOKUP($AL41,'I_Asset number input'!$P$5:$P$316,'I_Asset number input'!L$5:L$316)),0) -> 0 | AS41: =IFERROR((_xlfn.XLOOKUP($AL41,'I_Asset number input'!$P$5:$P$316,'I_Asset number input'!M$5:M$316)),0) -> 0 | AU41: 11670.19167 | AV41: 0 | AW41: 0 | AX41: 0 | AY41: 0 | AZ41: 0 | BA41: 0
B42: 250 W Metal Halide | C42: 198 | D42: TC1 - Capital Funded by Endeavour Energy Legacy | F42: METAL HALIDE | G42: Lamp | H42: Luminaire | I42: Direct | J42: 250 W Metal Halide Legacy TC1 | K42: =INDEX('I_Asset number input'!$C$5:$C$265,MATCH('C_CAPEX Tariff Summary'!B42,'I_Asset number input'!$D$5:$D$265,0)) -> METAL HALIDE | L42: 250 W Metal Halide | M42: 0 | O42: 0 | P42: 0 | Q42: 0 | R42: =INDEX('C_OPEX Calc'!$AK$10:$AK$147,MATCH('C_CAPEX Tariff Summary'!B42,'C_OPEX Calc'!$D$10:$D$147,0)) -> 46.58263279 | T42: 46.58263279 | U42: 48.21223001 | V42: 51.98812601 | W42: 54.09467852 | X42: 55.60932951 | Y42: 57.16639074 | Z42: 58.76704968 | AA42: 60.41252707 | AC42: 0 | AD42: 0 | AE42: 0 | AF42: 0 | AG42: 0 | AH42: 0 | AI42: 0 | AJ42: 0 | AL42: 250 W Metal Halide Legacy TC1 | AM42: =IFERROR((_xlfn.XLOOKUP($AL42,'I_Asset number input'!$P$5:$P$316,'I_Asset number input'!G$5:G$316)),0) -> 207.06 | AN42: =IFERROR((_xlfn.XLOOKUP($AL42,'I_Asset number input'!$P$5:$P$316,'I_Asset number input'!H$5:H$316)),0) -> 0 | AO42: =IFERROR((_xlfn.XLOOKUP($AL42,'I_Asset number input'!$P$5:$P$316,'I_Asset number input'!I$5:I$316)),0) -> 0 | AP42: =IFERROR((_xlfn.XLOOKUP($AL42,'I_Asset number input'!$P$5:$P$316,'I_Asset number input'!J$5:J$316)),0) -> 0 | AQ42: =IFERROR((_xlfn.XLOOKUP($AL42,'I_Asset number input'!$P$5:$P$316,'I_Asset number input'!K$5:K$316)),0) -> 0 | AR42: =IFERROR((_xlfn.XLOOKUP($AL42,'I_Asset number input'!$P$5:$P$316,'I_Asset number input'!L$5:L$316)),0) -> 0 | AS42: =IFERROR((_xlfn.XLOOKUP($AL42,'I_Asset number input'!$P$5:$P$316,'I_Asset number input'!M$5:M$316)),0) -> 0 | AU42: 9982.824345 | AV42: 0 | AW42: 0 | AX42: 0 | AY42: 0 | AZ42: 0 | BA42: 0
B43: 2 x 250 W Metal Halide | C43: 214 | D43: TC1 - Capital Funded by Endeavour Energy Legacy | F43: METAL HALIDE | G43: Lamp | H43: Luminaire | I43: Direct | J43: 2 x 250 W Metal Halide Legacy TC1 | K43: =INDEX('I_Asset number input'!$C$5:$C$265,MATCH('C_CAPEX Tariff Summary'!B43,'I_Asset number input'!$D$5:$D$265,0)) -> METAL HALIDE | L43: 2 x 250 W Metal Halide | M43: 0 | O43: 0 | P43: 0 | Q43: 0 | R43: =INDEX('C_OPEX Calc'!$AK$10:$AK$147,MATCH('C_CAPEX Tariff Summary'!B43,'C_OPEX Calc'!$D$10:$D$147,0))*1.5 -> 77.53112299 | T43: 77.53112299 | U43: 80.24338924 | V43: 86.52790859 | W43: 90.03400886 | X43: 92.55496111 | Y43: 95.14650002 | Z43: 97.81060202 | AA43: 100.5492989 | AC43: 0 | AD43: 0 | AE43: 0 | AF43: 0 | AG43: 0 | AH43: 0 | AI43: 0 | AJ43: 0 | AL43: 2 x 250 W Metal Halide Legacy TC1 | AM43: =IFERROR((_xlfn.XLOOKUP($AL43,'I_Asset number input'!$P$5:$P$316,'I_Asset number input'!G$5:G$316)),0) -> 36.54 | AN43: =IFERROR((_xlfn.XLOOKUP($AL43,'I_Asset number input'!$P$5:$P$316,'I_Asset number input'!H$5:H$316)),0) -> 0 | AO43: =IFERROR((_xlfn.XLOOKUP($AL43,'I_Asset number input'!$P$5:$P$316,'I_Asset number input'!I$5:I$316)),0) -> 0 | AP43: =IFERROR((_xlfn.XLOOKUP($AL43,'I_Asset number input'!$P$5:$P$316,'I_Asset number input'!J$5:J$316)),0) -> 0 | AQ43: =IFERROR((_xlfn.XLOOKUP($AL43,'I_Asset number input'!$P$5:$P$316,'I_Asset number input'!K$5:K$316)),0) -> 0 | AR43: =IFERROR((_xlfn.XLOOKUP($AL43,'I_Asset number input'!$P$5:$P$316,'I_Asset number input'!L$5:L$316)),0) -> 0 | AS43: =IFERROR((_xlfn.XLOOKUP($AL43,'I_Asset number input'!$P$5:$P$316,'I_Asset number input'!M$5:M$316)),0) -> 0 | AU43: 2932.093443 | AV43: 0 | AW43: 0 | AX43: 0 | AY43: 0 | AZ43: 0 | BA43: 0
B44: 400 W Metal Halide | C44: 211 | D44: TC1 - Capital Funded by Endeavour Energy Legacy | F44: METAL HALIDE | G44: Lamp | H44: Luminaire | I44: Direct | J44: 400 W Metal Halide Legacy TC1 | K44: =INDEX('I_Asset number input'!$C$5:$C$265,MATCH('C_CAPEX Tariff Summary'!B44,'I_Asset number input'!$D$5:$D$265,0)) -> METAL HALIDE | L44: 400 W Metal Halide | M44: 0 | O44: 0 | P44: 0 | Q44: 0 | R44: =INDEX('C_OPEX Calc'!$AK$10:$AK$147,MATCH('C_CAPEX Tariff Summary'!B44,'C_OPEX Calc'!$D$10:$D$147,0)) -> 46.21913434 | T44: 46.21913434 | U44: 47.83601532 | V44: 51.58244685 | W44: 53.67256129 | X44: 55.17539301 | Y44: 56.72030401 | Z44: 58.30847252 | AA44: 59.94110976 | AC44: 0 | AD44: 0 | AE44: 0 | AF44: 0 | AG44: 0 | AH44: 0 | AI44: 0 | AJ44: 0 | AL44: 400 W Metal Halide Legacy TC1 | AM44: =IFERROR((_xlfn.XLOOKUP($AL44,'I_Asset number input'!$P$5:$P$316,'I_Asset number input'!G$5:G$316)),0) -> 249.69 | AN44: =IFERROR((_xlfn.XLOOKUP($AL44,'I_Asset number input'!$P$5:$P$316,'I_Asset number input'!H$5:H$316)),0) -> 0 | AO44: =IFERROR((_xlfn.XLOOKUP($AL44,'I_Asset number input'!$P$5:$P$316,'I_Asset number input'!I$5:I$316)),0) -> 0 | AP44: =IFERROR((_xlfn.XLOOKUP($AL44,'I_Asset number input'!$P$5:$P$316,'I_Asset number input'!J$5:J$316)),0) -> 0 | AQ44: =IFERROR((_xlfn.XLOOKUP($AL44,'I_Asset number input'!$P$5:$P$316,'I_Asset number input'!K$5:K$316)),0) -> 0 | AR44: =IFERROR((_xlfn.XLOOKUP($AL44,'I_Asset number input'!$P$5:$P$316,'I_Asset number input'!L$5:L$316)),0) -> 0 | AS44: =IFERROR((_xlfn.XLOOKUP($AL44,'I_Asset number input'!$P$5:$P$316,'I_Asset number input'!M$5:M$316)),0) -> 0 | AU44: 11944.17466 | AV44: 0 | AW44: 0 | AX44: 0 | AY44: 0 | AZ44: 0 | BA44: 0
B45: 2 x 400 W Metal Halide | C45: 212 | D45: TC1 - Capital Funded by Endeavour Energy Legacy | F45: METAL HALIDE | G45: Lamp | H45: Luminaire | I45: Direct | J45: 2 x 400 W Metal Halide Legacy TC1 | K45: =INDEX('I_Asset number input'!$C$5:$C$265,MATCH('C_CAPEX Tariff Summary'!B45,'I_Asset number input'!$D$5:$D$265,0)) -> METAL HALIDE | L45: 2 x 400 W Metal Halide | M45: 0 | O45: 0 | P45: 0 | Q45: 0 | R45: =INDEX('C_OPEX Calc'!$AK$10:$AK$147,MATCH('C_CAPEX Tariff Summary'!B45,'C_OPEX Calc'!$D$10:$D$147,0))*1.9 -> 96.82479502 | T45: 96.82479502 | U45: 100.2120105 | V45: 108.0604368 | W45: 112.4390324 | X45: 115.5873254 | Y45: 118.8237705 | Z45: 122.150836 | AA45: 125.5710594 | AC45: 0 | AD45: 0 | AE45: 0 | AF45: 0 | AG45: 0 | AH45: 0 | AI45: 0 | AJ45: 0 | AL45: 2 x 400 W Metal Halide Legacy TC1 | AM45: =IFERROR((_xlfn.XLOOKUP($AL45,'I_Asset number input'!$P$5:$P$316,'I_Asset number input'!G$5:G$316)),0) -> 0 | AN45: =IFERROR((_xlfn.XLOOKUP($AL45,'I_Asset number input'!$P$5:$P$316,'I_Asset number input'!H$5:H$316)),0) -> 0 | AO45: =IFERROR((_xlfn.XLOOKUP($AL45,'I_Asset number input'!$P$5:$P$316,'I_Asset number input'!I$5:I$316)),0) -> 0 | AP45: =IFERROR((_xlfn.XLOOKUP($AL45,'I_Asset number input'!$P$5:$P$316,'I_Asset number input'!J$5:J$316)),0) -> 0 | AQ45: =IFERROR((_xlfn.XLOOKUP($AL45,'I_Asset number input'!$P$5:$P$316,'I_Asset number input'!K$5:K$316)),0) -> 0 | AR45: =IFERROR((_xlfn.XLOOKUP($AL45,'I_Asset number input'!$P$5:$P$316,'I_Asset number input'!L$5:L$316)),0) -> 0 | AS45: =IFERROR((_xlfn.XLOOKUP($AL45,'I_Asset number input'!$P$5:$P$316,'I_Asset number input'!M$5:M$316)),0) -> 0 | AU45: 0 | AV45: 0 | AW45: 0 | AX45: 0 | AY45: 0 | AZ45: 0 | BA45: 0
B46: 1000 W Metal Halide | C46: 196 | D46: TC1 - Capital Funded by Endeavour Energy Legacy | F46: METAL HALIDE | G46: Lamp | H46: Luminaire | I46: Direct | J46: 1000 W Metal Halide Legacy TC1 | K46: =INDEX('I_Asset number input'!$C$5:$C$265,MATCH('C_CAPEX Tariff Summary'!B46,'I_Asset number input'!$D$5:$D$265,0)) -> METAL HALIDE | L46: 1000 W Metal Halide | M46: 0 | O46: 0 | P46: 0 | Q46: 0 | R46: =+R45 -> 96.82479502 | T46: 96.82479502 | U46: 100.2120105 | V46: 108.0604368 | W46: 112.4390324 | X46: 115.5873254 | Y46: 118.8237705 | Z46: 122.150836 | AA46: 125.5710594 | AC46: 0 | AD46: 0 | AE46: 0 | AF46: 0 | AG46: 0 | AH46: 0 | AI46: 0 | AJ46: 0 | AL46: 1000 W Metal Halide Legacy TC1 | AM46: =IFERROR((_xlfn.XLOOKUP($AL46,'I_Asset number input'!$P$5:$P$316,'I_Asset number input'!G$5:G$316)),0) -> 11 | AN46: =IFERROR((_xlfn.XLOOKUP($AL46,'I_Asset number input'!$P$5:$P$316,'I_Asset number input'!H$5:H$316)),0) -> 0 | AO46: =IFERROR((_xlfn.XLOOKUP($AL46,'I_Asset number input'!$P$5:$P$316,'I_Asset number input'!I$5:I$316)),0) -> 0 | AP46: =IFERROR((_xlfn.XLOOKUP($AL46,'I_Asset number input'!$P$5:$P$316,'I_Asset number input'!J$5:J$316)),0) -> 0 | AQ46: =IFERROR((_xlfn.XLOOKUP($AL46,'I_Asset number input'!$P$5:$P$316,'I_Asset number input'!K$5:K$316)),0) -> 0 | AR46: =IFERROR((_xlfn.XLOOKUP($AL46,'I_Asset number input'!$P$5:$P$316,'I_Asset number input'!L$5:L$316)),0) -> 0 | AS46: =IFERROR((_xlfn.XLOOKUP($AL46,'I_Asset number input'!$P$5:$P$316,'I_Asset number input'!M$5:M$316)),0) -> 0 | AU46: 1102.332116 | AV46: 0 | AW46: 0 | AX46: 0 | AY46: 0 | AZ46: 0 | BA46: 0
B47: Pole mounting bracket minor (<=3m) | C47: 224 | D47: TC1 - Capital Funded by Endeavour Energy Legacy | E47: P | F47: SUPPORT ONLY | G47: Support | H47: Bracket | I47: Direct | J47: Pole mounting bracket minor (<=3m) Legacy TC1 | K47: =INDEX('I_Asset number input'!$C$5:$C$265,MATCH('C_CAPEX Tariff Summary'!B47,'I_Asset number input'!$D$5:$D$265,0)) -> BRACKET MINOR | L47: BRACKET MINOR | M47: 0 | O47: 0 | P47: 0 | Q47: =SUM(M47:P47) -> 0 | R47: =INDEX('C_OPEX Calc'!$AK$10:$AK$147,MATCH('C_CAPEX Tariff Summary'!B47,'C_OPEX Calc'!$D$10:$D$147,0)) -> 8.323455689 | T47: =-PMT(return_on_assests_pct,$F$10,$Q47)+R47 -> 8.323455689 | U47: =T47*(1+CPIFY23) -> 8.6146346 | V47: 9.289317442 | W47: 9.665719448 | X47: 9.936359593 | Y47: 10.21457766 | Z47: 10.50058584 | AA47: 10.79460224 | AC47: =Q47 -> 0 | AD47: 0 | AE47: 0 | AF47: 0 | AG47: 0 | AH47: 0 | AI47: 0 | AJ47: 0 | AL47: =J47 -> Pole mounting bracket minor (<=3m) Legacy TC1 | AM47: =IFERROR((_xlfn.XLOOKUP($AL47,'I_Asset number input'!$P$5:$P$316,'I_Asset number input'!G$5:G$316)),0) -> 59462.76 | AN47: =IFERROR((_xlfn.XLOOKUP($AL47,'I_Asset number input'!$P$5:$P$316,'I_Asset number input'!H$5:H$316)),0) -> 59762 | AO47: =IFERROR((_xlfn.XLOOKUP($AL47,'I_Asset number input'!$P$5:$P$316,'I_Asset number input'!I$5:I$316)),0) -> 60658.43 | AP47: =IFERROR((_xlfn.XLOOKUP($AL47,'I_Asset number input'!$P$5:$P$316,'I_Asset number input'!J$5:J$316)),0) -> 61568.30645 | AQ47: =IFERROR((_xlfn.XLOOKUP($AL47,'I_Asset number input'!$P$5:$P$316,'I_Asset number input'!K$5:K$316)),0) -> 62491.83105 | AR47: =IFERROR((_xlfn.XLOOKUP($AL47,'I_Asset number input'!$P$5:$P$316,'I_Asset number input'!L$5:L$316)),0) -> 63429.20851 | AS47: =IFERROR((_xlfn.XLOOKUP($AL47,'I_Asset number input'!$P$5:$P$316,'I_Asset number input'!M$5:M$316)),0) -> 64380.64664 | AU47: =U47*AM47 -> 512249.9497 | AV47: =V47*AN47 -> 555148.1889 | AW47: =W47*AO47 -> 586307.3665 | AX47: =X47*AP47 -> 611764.8324 | AY47: =Y47*AQ47 -> 638327.6614 | AZ47: =Z47*AR47 -> 666043.8485 | BA47: =AA47*AS47 -> 694963.4724
B48: Pole mounting bracket major (>3m) | C48: 225 | D48: TC1 - Capital Funded by Endeavour Energy Legacy | E48: V | F48: SUPPORT ONLY | G48: Support | H48: Bracket | I48: Direct | J48: Pole mounting bracket major (>3m) Legacy TC1 | K48: =INDEX('I_Asset number input'!$C$5:$C$265,MATCH('C_CAPEX Tariff Summary'!B48,'I_Asset number input'!$D$5:$D$265,0)) -> BRACKET MAJOR | L48: BRACKET MAJOR | M48: 0 | O48: 0 | P48: 0 | Q48: 0 | R48: =INDEX('C_OPEX Calc'!$AK$10:$AK$147,MATCH('C_CAPEX Tariff Summary'!B48,'C_OPEX Calc'!$D$10:$D$147,0)) -> 11.09794092 | T48: =-PMT(return_on_assests_pct,$F$10,$Q48)+R48 -> 11.09794092 | U48: 11.48617947 | V48: 12.38575659 | W48: 12.88762593 | X48: 13.24847946 | Y48: 13.61943688 | Z48: 14.00078111 | AA48: 14.39280299 | AC48: 0 | AD48: 0 | AE48: 0 | AF48: 0 | AG48: 0 | AH48: 0 | AI48: 0 | AJ48: 0 | AL48: Pole mounting bracket major (>3m) Legacy TC1 | AM48: =IFERROR((_xlfn.XLOOKUP($AL48,'I_Asset number input'!$P$5:$P$316,'I_Asset number input'!G$5:G$316)),0) -> 26450.9 | AN48: =IFERROR((_xlfn.XLOOKUP($AL48,'I_Asset number input'!$P$5:$P$316,'I_Asset number input'!H$5:H$316)),0) -> 26584 | AO48: =IFERROR((_xlfn.XLOOKUP($AL48,'I_Asset number input'!$P$5:$P$316,'I_Asset number input'!I$5:I$316)),0) -> 26982.76 | AP48: =IFERROR((_xlfn.XLOOKUP($AL48,'I_Asset number input'!$P$5:$P$316,'I_Asset number input'!J$5:J$316)),0) -> 27387.5014 | AQ48: =IFERROR((_xlfn.XLOOKUP($AL48,'I_Asset number input'!$P$5:$P$316,'I_Asset number input'!K$5:K$316)),0) -> 27798.31392 | AR48: =IFERROR((_xlfn.XLOOKUP($AL48,'I_Asset number input'!$P$5:$P$316,'I_Asset number input'!L$5:L$316)),0) -> 28215.28863 | AS48: =IFERROR((_xlfn.XLOOKUP($AL48,'I_Asset number input'!$P$5:$P$316,'I_Asset number input'!M$5:M$316)),0) -> 28638.51796 | AU48: 303819.7845 | AV48: 329262.9532 | AW48: 347743.7175 | AX48: 362842.7497 | AY48: 378597.3819 | AZ48: 395036.0802 | BA48: 412188.5468
B49: Outreach Minor (<=2m) | C49: 226 | D49: TC1 - Capital Funded by Endeavour Energy Legacy | E49: P | F49: SUPPORT ONLY | G49: Support | H49: Bracket | I49: Direct | J49: Outreach Minor (<=2m) Legacy TC1 | K49: =INDEX('I_Asset number input'!$C$5:$C$265,MATCH('C_CAPEX Tariff Summary'!B49,'I_Asset number input'!$D$5:$D$265,0)) -> OUTREACH MINOR | L49: OUTREACH MINOR | M49: 0 | O49: 0 | P49: 0 | Q49: 0 | R49: =INDEX('C_OPEX Calc'!$AK$10:$AK$147,MATCH('C_CAPEX Tariff Summary'!B49,'C_OPEX Calc'!$D$10:$D$147,0)) -> 10.55609139 | T49: =-PMT(return_on_assests_pct,$F$10,$Q49)+R49 -> 10.55609139 | U49: 10.92537445 | V49: 11.78103032 | W49: 12.25839623 | X49: 12.60163133 | Y49: 12.954477 | Z49: 13.31720236 | AA49: 13.69008402 | AC49: 0 | AD49: 0 | AE49: 0 | AF49: 0 | AG49: 0 | AH49: 0 | AI49: 0 | AJ49: 0 | AL49: Outreach Minor (<=2m) Legacy TC1 | AM49: =IFERROR((_xlfn.XLOOKUP($AL49,'I_Asset number input'!$P$5:$P$316,'I_Asset number input'!G$5:G$316)),0) -> 36044.68 | AN49: =IFERROR((_xlfn.XLOOKUP($AL49,'I_Asset number input'!$P$5:$P$316,'I_Asset number input'!H$5:H$316)),0) -> 36225 | AO49: =IFERROR((_xlfn.XLOOKUP($AL49,'I_Asset number input'!$P$5:$P$316,'I_Asset number input'!I$5:I$316)),0) -> 36768.375 | AP49: =IFERROR((_xlfn.XLOOKUP($AL49,'I_Asset number input'!$P$5:$P$316,'I_Asset number input'!J$5:J$316)),0) -> 37319.90062 | AQ49: =IFERROR((_xlfn.XLOOKUP($AL49,'I_Asset number input'!$P$5:$P$316,'I_Asset number input'!K$5:K$316)),0) -> 37879.69913 | AR49: =IFERROR((_xlfn.XLOOKUP($AL49,'I_Asset number input'!$P$5:$P$316,'I_Asset number input'!L$5:L$316)),0) -> 38447.89462 | AS49: =IFERROR((_xlfn.XLOOKUP($AL49,'I_Asset number input'!$P$5:$P$316,'I_Asset number input'!M$5:M$316)),0) -> 39024.61304 | AU49: 393801.626 | AV49: 426767.8235 | AW49: 450721.3095 | AX49: 470291.6288 | AY49: 490711.6913 | AZ49: 512018.3929 | BA49: 534250.2315
B50: Outreach Major (>2m) | C50: 227 | D50: TC1 - Capital Funded by Endeavour Energy Legacy | E50: V | F50: SUPPORT ONLY | G50: Support | H50: Bracket | I50: Direct | J50: Outreach Major (>2m) Legacy TC1 | K50: =INDEX('I_Asset number input'!$C$5:$C$265,MATCH('C_CAPEX Tariff Summary'!B50,'I_Asset number input'!$D$5:$D$265,0)) -> OUTREACH MAJOR | L50: OUTREACH MAJOR | M50: 0 | O50: 0 | P50: 0 | Q50: 0 | R50: =INDEX('C_OPEX Calc'!$AK$10:$AK$147,MATCH('C_CAPEX Tariff Summary'!B50,'C_OPEX Calc'!$D$10:$D$147,0)) -> 11.87560281 | T50: =-PMT(return_on_assests_pct,$F$10,$Q50)+R50 -> 11.87560281 | U50: 12.29104626 | V50: 13.25365911 | W50: 13.79069576 | X50: 14.17683524 | Y50: 14.57378663 | Z50: 14.98185265 | AA50: 15.40134453 | AC50: 0 | AD50: 0 | AE50: 0 | AF50: 0 | AG50: 0 | AH50: 0 | AI50: 0 | AJ50: 0 | AL50: Outreach Major (>2m) Legacy TC1 | AM50: =IFERROR((_xlfn.XLOOKUP($AL50,'I_Asset number input'!$P$5:$P$316,'I_Asset number input'!G$5:G$316)),0) -> 11992.225 | AN50: =IFERROR((_xlfn.XLOOKUP($AL50,'I_Asset number input'!$P$5:$P$316,'I_Asset number input'!H$5:H$316)),0) -> 12052 | AO50: =IFERROR((_xlfn.XLOOKUP($AL50,'I_Asset number input'!$P$5:$P$316,'I_Asset number input'!I$5:I$316)),0) -> 12232.78 | AP50: =IFERROR((_xlfn.XLOOKUP($AL50,'I_Asset number input'!$P$5:$P$316,'I_Asset number input'!J$5:J$316)),0) -> 12416.2717 | AQ50: =IFERROR((_xlfn.XLOOKUP($AL50,'I_Asset number input'!$P$5:$P$316,'I_Asset number input'!K$5:K$316)),0) -> 12602.51578 | AR50: =IFERROR((_xlfn.XLOOKUP($AL50,'I_Asset number input'!$P$5:$P$316,'I_Asset number input'!L$5:L$316)),0) -> 12791.55351 | AS50: =IFERROR((_xlfn.XLOOKUP($AL50,'I_Asset number input'!$P$5:$P$316,'I_Asset number input'!M$5:M$316)),0) -> 12983.42681 | AU50: 147396.9922 | AV50: 159733.0996 | AW50: 168698.5473 | AX50: 176023.4382 | AY50: 183666.3759 | AZ50: 191641.1699 | BA50: 199962.2295
B51: Minor Column (<=9) | C51: 228 | D51: TC1 - Capital Funded by Endeavour Energy Legacy | E51: P | F51: SUPPORT ONLY | G51: Support | H51: Column | I51: Direct | J51: Minor Column (<=9) Legacy TC1 | K51: =INDEX('I_Asset number input'!$C$5:$C$265,MATCH('C_CAPEX Tariff Summary'!B51,'I_Asset number input'!$D$5:$D$265,0)) -> STEEL POLE MINOR | L51: STEEL POLE MINOR | M51: 0 | N51: 38.16 | O51: 0 | P51: 0 | Q51: 38.16 | R51: =INDEX('C_OPEX Calc'!$AK$10:$AK$147,MATCH('C_CAPEX Tariff Summary'!B51,'C_OPEX Calc'!$D$10:$D$147,0)) -> 15.83413709 | T51: =-PMT(return_on_assests_pct,$F$11,$Q51)+R51 -> 20.44562563 | U51: 21.16087363 | V51: =U51*(1+CPIFY23) -> 21.9011431 | W51: =V51*(1+CPIFY23) -> 22.66730937 | X51: 23.46027838 | Y51: 24.28098778 | Z51: 25.130408 | AA51: 26.00954344 | AC51: 38.16 | AD51: 39.49494881 | AE51: 42.58812287 | AF51: 44.3137884 | AG51: 45.55457447 | AH51: 46.83010256 | AI51: 48.14134543 | AJ51: 49.4893031 | AL51: Minor Column (<=9) Legacy TC1 | AM51: =IFERROR((_xlfn.XLOOKUP($AL51,'I_Asset number input'!$P$5:$P$316,'I_Asset number input'!G$5:G$316)),0) -> 34702.85 | AN51: =IFERROR((_xlfn.XLOOKUP($AL51,'I_Asset number input'!$P$5:$P$316,'I_Asset number input'!H$5:H$316)),0) -> 34877 | AO51: =IFERROR((_xlfn.XLOOKUP($AL51,'I_Asset number input'!$P$5:$P$316,'I_Asset number input'!I$5:I$316)),0) -> 35400.155 | AP51: =IFERROR((_xlfn.XLOOKUP($AL51,'I_Asset number input'!$P$5:$P$316,'I_Asset number input'!J$5:J$316)),0) -> 35931.15732 | AQ51: =IFERROR((_xlfn.XLOOKUP($AL51,'I_Asset number input'!$P$5:$P$316,'I_Asset number input'!K$5:K$316)),0) -> 36470.12468 | AR51: =IFERROR((_xlfn.XLOOKUP($AL51,'I_Asset number input'!$P$5:$P$316,'I_Asset number input'!L$5:L$316)),0) -> 37017.17656 | AS51: =IFERROR((_xlfn.XLOOKUP($AL51,'I_Asset number input'!$P$5:$P$316,'I_Asset number input'!M$5:M$316)),0) -> 37572.4342 | AU51: 734342.6235 | AV51: 763846.1679 | AW51: 802426.2651 | AX51: 842954.9535 | AY51: 885530.6518 | AZ51: 930256.7499 | BA51: 977241.8594
B52: Major Column (>=9) | C52: 229 | D52: TC1 - Capital Funded by Endeavour Energy Legacy | E52: V | F52: SUPPORT ONLY | G52: Support | H52: Column | I52: Direct | J52: Major Column (>=9) Legacy TC1 | K52: =INDEX('I_Asset number input'!$C$5:$C$265,MATCH('C_CAPEX Tariff Summary'!B52,'I_Asset number input'!$D$5:$D$265,0)) -> STEEL POLE MAJOR | L52: STEEL POLE MAJOR | M52: 0 | N52: 556.45 | O52: 0 | P52: 0 | Q52: 556.45 | R52: =INDEX('C_OPEX Calc'!$AK$10:$AK$147,MATCH('C_CAPEX Tariff Summary'!B52,'C_OPEX Calc'!$D$10:$D$147,0)) -> 25.59055302 | T52: =-PMT(return_on_assests_pct,$F$11,$Q52)+R52 -> 92.83538539 | U52: 96.08303966 | V52: =U52*(1+CPIFY23) -> 99.44430641 | W52: 102.9231601 | X52: 106.5237144 | Y52: 110.2502266 | Z52: 114.1071031 | AA52: 118.0989045 | AC52: 556.45 | AD52: 575.9162543 | AE52: 621.0209898 | AF52: 646.1846843 | AG52: 664.2778555 | AH52: 682.8776354 | AI52: 701.9982092 | AJ52: 721.6541591 | AL52: Major Column (>=9) Legacy TC1 | AM52: =IFERROR((_xlfn.XLOOKUP($AL52,'I_Asset number input'!$P$5:$P$316,'I_Asset number input'!G$5:G$316)),0) -> 11463.41 | AN52: =IFERROR((_xlfn.XLOOKUP($AL52,'I_Asset number input'!$P$5:$P$316,'I_Asset number input'!H$5:H$316)),0) -> 11521 | AO52: =IFERROR((_xlfn.XLOOKUP($AL52,'I_Asset number input'!$P$5:$P$316,'I_Asset number input'!I$5:I$316)),0) -> 11693.815 | AP52: =IFERROR((_xlfn.XLOOKUP($AL52,'I_Asset number input'!$P$5:$P$316,'I_Asset number input'!J$5:J$316)),0) -> 11869.22222 | AQ52: =IFERROR((_xlfn.XLOOKUP($AL52,'I_Asset number input'!$P$5:$P$316,'I_Asset number input'!K$5:K$316)),0) -> 12047.26056 | AR52: =IFERROR((_xlfn.XLOOKUP($AL52,'I_Asset number input'!$P$5:$P$316,'I_Asset number input'!L$5:L$316)),0) -> 12227.96947 | AS52: =IFERROR((_xlfn.XLOOKUP($AL52,'I_Asset number input'!$P$5:$P$316,'I_Asset number input'!M$5:M$316)),0) -> 12411.38901 | AU52: 1101439.278 | AV52: 1145697.854 | AW52: 1203564.394 | AX52: 1264353.638 | AY52: 1328213.206 | AZ52: 1395298.172 | BA52: 1465771.445
B53: 2x14W Energy Efficient Fluro - STD | C53: 551 | D53: TC3 - Capital Funded by Endeavour Energy | E53: P | F53: Minor Road - Standard | G53: Lamp | H53: Luminaire | I53: Direct | J53: =B53&" "&"Capex" -> 2x14W Energy Efficient Fluro - STD Capex | K53: =INDEX('I_Asset number input'!$C$5:$C$265,MATCH('C_CAPEX Tariff Summary'!B53,'I_Asset number input'!$D$5:$D$265,0)) -> FLUORESCENT | L53: 2x14W Energy Efficient Fluro - STD | M53: =INDEX('Capex OHs Allocation'!$J$23:$J$119,MATCH(B53,'Capex OHs Allocation'!$D$23:$D$119,0))+INDEX('Capex OHs Allocation'!$L$23:$L$119,MATCH('C_CAPEX Tariff Summary'!B53,'Capex OHs Allocation'!$D$23:$D$119,0)) -> 46.93412352 | N53: =INDEX('Stock Cost'!$T$24:$T$115,MATCH('C_CAPEX Tariff Summary'!B53,'Stock Cost'!$C$24:$C$115,0)) -> 258.4078916 | O53: =IF(OR(H53="Luminaire",H53="NW"),IF(E53="P",I_CAPEX!D$41,I_CAPEX!D$42),IF(H53="Bracket",IF(E53="P",I_CAPEX!D$43,I_CAPEX!D$44),IF(H53="Column",IF(E53="P",I_CAPEX!D$45,I_CAPEX!D$46),0))) -> 3.240037959 | P53: =INDEX('Capex OHs Allocation'!$M$23:$M$119,MATCH('C_CAPEX Tariff Summary'!B53,'Capex OHs Allocation'!$D$23:$D$119,0)) -> 175.9719978 | Q53: 484.5540509 | R53: =INDEX('C_OPEX Calc'!$AK$10:$AK$147,MATCH('C_CAPEX Tariff Summary'!B53,'C_OPEX Calc'!$D$10:$D$147,0)) -> 42.37342613 | T53: =IF(H53="Luminaire",IF((MID(B53,1,3)="LED"),-PMT(return_on_assests_pct,LED_lantern_lifespan,Q53),-PMT(return_on_assests_pct,trad_lantern_lifespan,Q53)),IF(H53="NW",-PMT(return_on_assests_pct,Nightvision_lifespan,Q53),-PMT(return_on_assests_pct,pole_lifespan,Q53)))+R53 -> 76.77534138 | U53: 79.46116817 | V53: =U53*(1+CPIFY24) -> 85.68442536 | W53: 89.1563478 | X53: 91.65272553 | Y53: 94.21900185 | Z53: 96.8571339 | AA53: 99.56913365 | AC53: 484.5540509 | AD53: 501.5051738 | AE53: 540.782166 | AF53: 562.6945932 | AG53: 578.4500418 | AH53: 594.646643 | AI53: 611.296749 | AJ53: 628.413058 | AL53: 2x14W Energy Efficient Fluro - STD Capex | AM53: =IFERROR((_xlfn.XLOOKUP($AL53,'I_Asset number input'!$P$5:$P$316,'I_Asset number input'!G$5:G$316)),0) -> 2395.4 | AN53: =IFERROR((_xlfn.XLOOKUP($AL53,'I_Asset number input'!$P$5:$P$316,'I_Asset number input'!H$5:H$316)),0) -> 0 | AO53: =IFERROR((_xlfn.XLOOKUP($AL53,'I_Asset number input'!$P$5:$P$316,'I_Asset number input'!I$5:I$316)),0) -> 0 | AP53: =IFERROR((_xlfn.XLOOKUP($AL53,'I_Asset number input'!$P$5:$P$316,'I_Asset number input'!J$5:J$316)),0) -> 0 | AQ53: =IFERROR((_xlfn.XLOOKUP($AL53,'I_Asset number input'!$P$5:$P$316,'I_Asset number input'!K$5:K$316)),0) -> 0 | AR53: =IFERROR((_xlfn.XLOOKUP($AL53,'I_Asset number input'!$P$5:$P$316,'I_Asset number input'!L$5:L$316)),0) -> 0 | AS53: =IFERROR((_xlfn.XLOOKUP($AL53,'I_Asset number input'!$P$5:$P$316,'I_Asset number input'!M$5:M$316)),0) -> 0 | AU53: 190341.2822 | AV53: 0 | AW53: 0 | AX53: 0 | AY53: 0 | AZ53: 0 | BA53: 0
B54: 2x24W Energy Efficient Fluro - STD | C54: 552 | D54: TC3 - Capital Funded by Endeavour Energy | E54: P | F54: Minor Road - Standard | G54: Lamp | H54: Luminaire | I54: Direct | J54: =B54&" "&"Capex" -> 2x24W Energy Efficient Fluro - STD Capex | K54: =INDEX('I_Asset number input'!$C$5:$C$265,MATCH('C_CAPEX Tariff Summary'!B54,'I_Asset number input'!$D$5:$D$265,0)) -> FLUORESCENT | L54: 2x24W Energy Efficient Fluro - STD | M54: =INDEX('Capex OHs Allocation'!$J$23:$J$119,MATCH(B54,'Capex OHs Allocation'!$D$23:$D$119,0))+INDEX('Capex OHs Allocation'!$L$23:$L$119,MATCH('C_CAPEX Tariff Summary'!B54,'Capex OHs Allocation'!$D$23:$D$119,0)) -> 46.93412352 | N54: =INDEX('Stock Cost'!$T$24:$T$115,MATCH('C_CAPEX Tariff Summary'!B54,'Stock Cost'!$C$24:$C$115,0)) -> 297.9933959 | O54: =IF(OR(H54="Luminaire",H54="NW"),IF(E54="P",I_CAPEX!D$41,I_CAPEX!D$42),IF(H54="Bracket",IF(E54="P",I_CAPEX!D$43,I_CAPEX!D$44),IF(H54="Column",IF(E54="P",I_CAPEX!D$45,I_CAPEX!D$46),0))) -> 3.240037959 | P54: =INDEX('Capex OHs Allocation'!$M$23:$M$119,MATCH('C_CAPEX Tariff Summary'!B54,'Capex OHs Allocation'!$D$23:$D$119,0)) -> 175.9719978 | Q54: 524.1395552 | R54: =INDEX('C_OPEX Calc'!$AK$10:$AK$147,MATCH('C_CAPEX Tariff Summary'!B54,'C_OPEX Calc'!$D$10:$D$147,0)) -> 42.37342613 | T54: =IF(H54="Luminaire",IF((MID(B54,1,3)="LED"),-PMT(return_on_assests_pct,LED_lantern_lifespan,Q54),-PMT(return_on_assests_pct,trad_lantern_lifespan,Q54)),IF(H54="NW",-PMT(return_on_assests_pct,Nightvision_lifespan,Q54),-PMT(return_on_assests_pct,pole_lifespan,Q54)))+R54 -> 79.58579598 | U54: 82.36994072 | V54: 88.82100781 | W54: 92.42002418 | X54: 95.00778485 | Y54: 97.66800283 | Z54: 100.4027069 | AA54: 103.2139827 | AC54: 524.1395552 | AD54: 542.4754952 | AE54: 584.96121 | AF54: 608.6637667 | AG54: 625.7063522 | AH54: 643.22613 | AI54: 661.2364617 | AJ54: 679.7510826 | AL54: 2x24W Energy Efficient Fluro - STD Capex | AM54: =IFERROR((_xlfn.XLOOKUP($AL54,'I_Asset number input'!$P$5:$P$316,'I_Asset number input'!G$5:G$316)),0) -> 2998.31 | AN54: =IFERROR((_xlfn.XLOOKUP($AL54,'I_Asset number input'!$P$5:$P$316,'I_Asset number input'!H$5:H$316)),0) -> 0 | AO54: =IFERROR((_xlfn.XLOOKUP($AL54,'I_Asset number input'!$P$5:$P$316,'I_Asset number input'!I$5:I$316)),0) -> 0 | AP54: =IFERROR((_xlfn.XLOOKUP($AL54,'I_Asset number input'!$P$5:$P$316,'I_Asset number input'!J$5:J$316)),0) -> 0 | AQ54: =IFERROR((_xlfn.XLOOKUP($AL54,'I_Asset number input'!$P$5:$P$316,'I_Asset number input'!K$5:K$316)),0) -> 0 | AR54: =IFERROR((_xlfn.XLOOKUP($AL54,'I_Asset number input'!$P$5:$P$316,'I_Asset number input'!L$5:L$316)),0) -> 0 | AS54: =IFERROR((_xlfn.XLOOKUP($AL54,'I_Asset number input'!$P$5:$P$316,'I_Asset number input'!M$5:M$316)),0) -> 0 | AU54: 246970.617 | AV54: 0 | AW54: 0 | AX54: 0 | AY54: 0 | AZ54: 0 | BA54: 0
B55: 1x42W Compact Fluorescent - STD | C55: 553 | D55: TC3 - Capital Funded by Endeavour Energy | E55: P | F55: Minor Road - Standard | G55: Lamp | H55: Luminaire | I55: Direct | J55: 1x42W Compact Fluorescent - STD Capex | K55: =INDEX('I_Asset number input'!$C$5:$C$265,MATCH('C_CAPEX Tariff Summary'!B55,'I_Asset number input'!$D$5:$D$265,0)) -> FLUORESCENT | L55: 1x42W Compact Fluorescent - STD | M55: =INDEX('Capex OHs Allocation'!$J$23:$J$119,MATCH(B55,'Capex OHs Allocation'!$D$23:$D$119,0))+INDEX('Capex OHs Allocation'!$L$23:$L$119,MATCH('C_CAPEX Tariff Summary'!B55,'Capex OHs Allocation'!$D$23:$D$119,0)) -> 46.93412352 | N55: =INDEX('Stock Cost'!$T$24:$T$115,MATCH('C_CAPEX Tariff Summary'!B55,'Stock Cost'!$C$24:$C$115,0)) -> 194.0273479 | O55: =IF(OR(H55="Luminaire",H55="NW"),IF(E55="P",I_CAPEX!D$41,I_CAPEX!D$42),IF(H55="Bracket",IF(E55="P",I_CAPEX!D$43,I_CAPEX!D$44),IF(H55="Column",IF(E55="P",I_CAPEX!D$45,I_CAPEX!D$46),0))) -> 3.240037959 | P55: =INDEX('Capex OHs Allocation'!$M$23:$M$119,MATCH('C_CAPEX Tariff Summary'!B55,'Capex OHs Allocation'!$D$23:$D$119,0)) -> 175.9719978 | Q55: 420.1735072 | R55: =INDEX('C_OPEX Calc'!$AK$10:$AK$147,MATCH('C_CAPEX Tariff Summary'!B55,'C_OPEX Calc'!$D$10:$D$147,0)) -> 42.86072477 | T55: =IF(H55="Luminaire",IF((MID(B55,1,3)="LED"),-PMT(return_on_assests_pct,LED_lantern_lifespan,Q55),-PMT(return_on_assests_pct,trad_lantern_lifespan,Q55)),IF(H55="NW",-PMT(return_on_assests_pct,Nightvision_lifespan,Q55),-PMT(return_on_assests_pct,pole_lifespan,Q55)))+R55 -> 72.6918104 | U55: 75.23478329 | V55: 81.12703755 | W55: 84.41429519 | X55: 86.77789545 | Y55: 89.20767652 | Z55: 91.70549147 | AA55: 94.27324523 | AC55: 420.1735072 | AD55: 434.8724097 | AE55: 468.9308425 | AF55: 487.9318629 | AG55: 501.593955 | AH55: 515.6385858 | AI55: 530.0764662 | AJ55: 544.9186072 | AL55: 1x42W Compact Fluorescent - STD Capex | AM55: =IFERROR((_xlfn.XLOOKUP($AL55,'I_Asset number input'!$P$5:$P$316,'I_Asset number input'!G$5:G$316)),0) -> 11836.93 | AN55: =IFERROR((_xlfn.XLOOKUP($AL55,'I_Asset number input'!$P$5:$P$316,'I_Asset number input'!H$5:H$316)),0) -> 0 | AO55: =IFERROR((_xlfn.XLOOKUP($AL55,'I_Asset number input'!$P$5:$P$316,'I_Asset number input'!I$5:I$316)),0) -> 0 | AP55: =IFERROR((_xlfn.XLOOKUP($AL55,'I_Asset number input'!$P$5:$P$316,'I_Asset number input'!J$5:J$316)),0) -> 0 | AQ55: =IFERROR((_xlfn.XLOOKUP($AL55,'I_Asset number input'!$P$5:$P$316,'I_Asset number input'!K$5:K$316)),0) -> 0 | AR55: =IFERROR((_xlfn.XLOOKUP($AL55,'I_Asset number input'!$P$5:$P$316,'I_Asset number input'!L$5:L$316)),0) -> 0 | AS55: =IFERROR((_xlfn.XLOOKUP($AL55,'I_Asset number input'!$P$5:$P$316,'I_Asset number input'!M$5:M$316)),0) -> 0 | AU55: 890548.8634 | AV55: 0 | AW55: 0 | AX55: 0 | AY55: 0 | AZ55: 0 | BA55: 0
B56: 50W Mercury - STANDARD | C56: 554 | D56: TC3 - Capital Funded by Endeavour Energy | E56: P | F56: Minor Road - Standard | G56: Lamp | H56: Luminaire | I56: Direct | J56: 50W Mercury - STANDARD Capex | K56: =INDEX('I_Asset number input'!$C$5:$C$265,MATCH('C_CAPEX Tariff Summary'!B56,'I_Asset number input'!$D$5:$D$265,0)) -> MERCURY | L56: 50W Mercury - STANDARD | M56: =INDEX('Capex OHs Allocation'!$J$23:$J$119,MATCH(B56,'Capex OHs Allocation'!$D$23:$D$119,0))+INDEX('Capex OHs Allocation'!$L$23:$L$119,MATCH('C_CAPEX Tariff Summary'!B56,'Capex OHs Allocation'!$D$23:$D$119,0)) -> 46.93412352 | N56: =INDEX('Stock Cost'!$T$24:$T$115,MATCH('C_CAPEX Tariff Summary'!B56,'Stock Cost'!$C$24:$C$115,0)) -> 140.1646918 | O56: =IF(OR(H56="Luminaire",H56="NW"),IF(E56="P",I_CAPEX!D$41,I_CAPEX!D$42),IF(H56="Bracket",IF(E56="P",I_CAPEX!D$43,I_CAPEX!D$44),IF(H56="Column",IF(E56="P",I_CAPEX!D$45,I_CAPEX!D$46),0))) -> 3.240037959 | P56: =INDEX('Capex OHs Allocation'!$M$23:$M$119,MATCH('C_CAPEX Tariff Summary'!B56,'Capex OHs Allocation'!$D$23:$D$119,0)) -> 175.9719978 | Q56: 366.3108511 | R56: =INDEX('C_OPEX Calc'!$AK$10:$AK$147,MATCH('C_CAPEX Tariff Summary'!B56,'C_OPEX Calc'!$D$10:$D$147,0)) -> 43.21632108 | T56: =IF(H56="Luminaire",IF((MID(B56,1,3)="LED"),-PMT(return_on_assests_pct,LED_lantern_lifespan,Q56),-PMT(return_on_assests_pct,trad_lantern_lifespan,Q56)),IF(H56="NW",-PMT(return_on_assests_pct,Nightvision_lifespan,Q56),-PMT(return_on_assests_pct,pole_lifespan,Q56)))+R56 -> 69.22331624 | U56: 71.64495102 | V56: 77.25605601 | W56: 80.38646195 | X56: 82.63728288 | Y56: 84.9511268 | Z56: 87.32975835 | AA56: 89.77499159 | AC56: 366.3108511 | AD56: 379.1254799 | AE56: 408.8179124 | AF56: 425.3831642 | AG56: 437.2938928 | AH56: 449.5381217 | AI56: 462.1251892 | AJ56: 475.0646945 | AL56: 50W Mercury - STANDARD Capex | AM56: =IFERROR((_xlfn.XLOOKUP($AL56,'I_Asset number input'!$P$5:$P$316,'I_Asset number input'!G$5:G$316)),0) -> 32.48 | AN56: =IFERROR((_xlfn.XLOOKUP($AL56,'I_Asset number input'!$P$5:$P$316,'I_Asset number input'!H$5:H$316)),0) -> 0 | AO56: =IFERROR((_xlfn.XLOOKUP($AL56,'I_Asset number input'!$P$5:$P$316,'I_Asset number input'!I$5:I$316)),0) -> 0 | AP56: =IFERROR((_xlfn.XLOOKUP($AL56,'I_Asset number input'!$P$5:$P$316,'I_Asset number input'!J$5:J$316)),0) -> 0 | AQ56: =IFERROR((_xlfn.XLOOKUP($AL56,'I_Asset number input'!$P$5:$P$316,'I_Asset number input'!K$5:K$316)),0) -> 0 | AR56: =IFERROR((_xlfn.XLOOKUP($AL56,'I_Asset number input'!$P$5:$P$316,'I_Asset number input'!L$5:L$316)),0) -> 0 | AS56: =IFERROR((_xlfn.XLOOKUP($AL56,'I_Asset number input'!$P$5:$P$316,'I_Asset number input'!M$5:M$316)),0) -> 0 | AU56: 2327.028009 | AV56: 0 | AW56: 0 | AX56: 0 | AY56: 0 | AZ56: 0 | BA56: 0
B57: 80W Mercury - STANDARD | C57: 555 | D57: TC3 - Capital Funded by Endeavour Energy | E57: P | F57: Minor Road - Standard | G57: Lamp | H57: Luminaire | I57: Direct | J57: 80W Mercury - STANDARD Capex | K57: =INDEX('I_Asset number input'!$C$5:$C$265,MATCH('C_CAPEX Tariff Summary'!B57,'I_Asset number input'!$D$5:$D$265,0)) -> MERCURY | L57: 80W Mercury - STANDARD | M57: =INDEX('Capex OHs Allocation'!$J$23:$J$119,MATCH(B57,'Capex OHs Allocation'!$D$23:$D$119,0))+INDEX('Capex OHs Allocation'!$L$23:$L$119,MATCH('C_CAPEX Tariff Summary'!B57,'Capex OHs Allocation'!$D$23:$D$119,0)) -> 46.93412352 | N57: =INDEX('Stock Cost'!$T$24:$T$115,MATCH('C_CAPEX Tariff Summary'!B57,'Stock Cost'!$C$24:$C$115,0)) -> 182.5683861 | O57: =IF(OR(H57="Luminaire",H57="NW"),IF(E57="P",I_CAPEX!D$41,I_CAPEX!D$42),IF(H57="Bracket",IF(E57="P",I_CAPEX!D$43,I_CAPEX!D$44),IF(H57="Column",IF(E57="P",I_CAPEX!D$45,I_CAPEX!D$46),0))) -> 3.240037959 | P57: =INDEX('Capex OHs Allocation'!$M$23:$M$119,MATCH('C_CAPEX Tariff Summary'!B57,'Capex OHs Allocation'!$D$23:$D$119,0)) -> 175.9719978 | Q57: 408.7145454 | R57: =INDEX('C_OPEX Calc'!$AK$10:$AK$147,MATCH('C_CAPEX Tariff Summary'!B57,'C_OPEX Calc'!$D$10:$D$147,0)) -> 42.50512846 | T57: =IF(H57="Luminaire",IF((MID(B57,1,3)="LED"),-PMT(return_on_assests_pct,LED_lantern_lifespan,Q57),-PMT(return_on_assests_pct,trad_lantern_lifespan,Q57)),IF(H57="NW",-PMT(return_on_assests_pct,Nightvision_lifespan,Q57),-PMT(return_on_assests_pct,pole_lifespan,Q57)))+R57 -> 71.52266145 | U57: 74.02473407 | V57: 79.82221943 | W57: 83.056606 | X57: 85.38219097 | Y57: 87.77289231 | Z57: 90.2305333 | AA57: 92.75698823 | AC57: 408.7145454 | AD57: 423.0125799 | AE57: 456.1421718 | AF57: 474.6249969 | AG57: 487.9144968 | AH57: 501.5761027 | AI57: 515.6202336 | AJ57: 530.0576001 | AL57: 80W Mercury - STANDARD Capex | AM57: =IFERROR((_xlfn.XLOOKUP($AL57,'I_Asset number input'!$P$5:$P$316,'I_Asset number input'!G$5:G$316)),0) -> 1703.17 | AN57: =IFERROR((_xlfn.XLOOKUP($AL57,'I_Asset number input'!$P$5:$P$316,'I_Asset number input'!H$5:H$316)),0) -> 0 | AO57: =IFERROR((_xlfn.XLOOKUP($AL57,'I_Asset number input'!$P$5:$P$316,'I_Asset number input'!I$5:I$316)),0) -> 0 | AP57: =IFERROR((_xlfn.XLOOKUP($AL57,'I_Asset number input'!$P$5:$P$316,'I_Asset number input'!J$5:J$316)),0) -> 0 | AQ57: =IFERROR((_xlfn.XLOOKUP($AL57,'I_Asset number input'!$P$5:$P$316,'I_Asset number input'!K$5:K$316)),0) -> 0 | AR57: =IFERROR((_xlfn.XLOOKUP($AL57,'I_Asset number input'!$P$5:$P$316,'I_Asset number input'!L$5:L$316)),0) -> 0 | AS57: =IFERROR((_xlfn.XLOOKUP($AL57,'I_Asset number input'!$P$5:$P$316,'I_Asset number input'!M$5:M$316)),0) -> 0 | AU57: 126076.7063 | AV57: 0 | AW57: 0 | AX57: 0 | AY57: 0 | AZ57: 0 | BA57: 0
B58: 70W Sodium - STANDARD | C58: 556 | D58: TC3 - Capital Funded by Endeavour Energy | E58: P | F58: Minor Road - Standard | G58: Lamp | H58: Luminaire | I58: Direct | J58: 70W Sodium - STANDARD Capex | K58: =INDEX('I_Asset number input'!$C$5:$C$265,MATCH('C_CAPEX Tariff Summary'!B58,'I_Asset number input'!$D$5:$D$265,0)) -> HIGH LOW PRESSURE SODIUM | L58: 70W Sodium - STANDARD | M58: =INDEX('Capex OHs Allocation'!$J$23:$J$119,MATCH(B58,'Capex OHs Allocation'!$D$23:$D$119,0))+INDEX('Capex OHs Allocation'!$L$23:$L$119,MATCH('C_CAPEX Tariff Summary'!B58,'Capex OHs Allocation'!$D$23:$D$119,0)) -> 46.93412352 | N58: =INDEX('Stock Cost'!$T$24:$T$115,MATCH('C_CAPEX Tariff Summary'!B58,'Stock Cost'!$C$24:$C$115,0)) -> 187.0191133 | O58: =IF(OR(H58="Luminaire",H58="NW"),IF(E58="P",I_CAPEX!D$41,I_CAPEX!D$42),IF(H58="Bracket",IF(E58="P",I_CAPEX!D$43,I_CAPEX!D$44),IF(H58="Column",IF(E58="P",I_CAPEX!D$45,I_CAPEX!D$46),0))) -> 3.240037959 | P58: =INDEX('Capex OHs Allocation'!$M$23:$M$119,MATCH('C_CAPEX Tariff Summary'!B58,'Capex OHs Allocation'!$D$23:$D$119,0)) -> 175.9719978 | Q58: 413.1652726 | R58: =INDEX('C_OPEX Calc'!$AK$10:$AK$147,MATCH('C_CAPEX Tariff Summary'!B58,'C_OPEX Calc'!$D$10:$D$147,0)) -> 43.82741992 | T58: =IF(H58="Luminaire",IF((MID(B58,1,3)="LED"),-PMT(return_on_assests_pct,LED_lantern_lifespan,Q58),-PMT(return_on_assests_pct,trad_lantern_lifespan,Q58)),IF(H58="NW",-PMT(return_on_assests_pct,Nightvision_lifespan,Q58),-PMT(return_on_assests_pct,pole_lifespan,Q58)))+R58 -> 73.16094147 | U58: 75.72032594 | V58: 81.65060703 | W58: 84.95907964 | X58: 87.33793387 | Y58: 89.78339601 | Z58: 92.2973311 | AA58: 94.88165637 | AC58: 413.1652726 | AD58: 427.6190065 | AE58: 461.1093657 | AF58: 479.7934608 | AG58: 493.2276777 | AH58: 507.0380526 | AI58: 521.2351181 | AJ58: 535.8297014 | AL58: 70W Sodium - STANDARD Capex | AM58: =IFERROR((_xlfn.XLOOKUP($AL58,'I_Asset number input'!$P$5:$P$316,'I_Asset number input'!G$5:G$316)),0) -> 175.595 | AN58: =IFERROR((_xlfn.XLOOKUP($AL58,'I_Asset number input'!$P$5:$P$316,'I_Asset number input'!H$5:H$316)),0) -> 0 | AO58: =IFERROR((_xlfn.XLOOKUP($AL58,'I_Asset number input'!$P$5:$P$316,'I_Asset number input'!I$5:I$316)),0) -> 0 | AP58: =IFERROR((_xlfn.XLOOKUP($AL58,'I_Asset number input'!$P$5:$P$316,'I_Asset number input'!J$5:J$316)),0) -> 0 | AQ58: =IFERROR((_xlfn.XLOOKUP($AL58,'I_Asset number input'!$P$5:$P$316,'I_Asset number input'!K$5:K$316)),0) -> 0 | AR58: =IFERROR((_xlfn.XLOOKUP($AL58,'I_Asset number input'!$P$5:$P$316,'I_Asset number input'!L$5:L$316)),0) -> 0 | AS58: =IFERROR((_xlfn.XLOOKUP($AL58,'I_Asset number input'!$P$5:$P$316,'I_Asset number input'!M$5:M$316)),0) -> 0 | AU58: 13296.11063 | AV58: 0 | AW58: 0 | AX58: 0 | AY58: 0 | AZ58: 0 | BA58: 0
B59: 100W Sodium - STANDARD | C59: 557 | D59: TC3 - Capital Funded by Endeavour Energy | E59: P | F59: Minor Road - Standard | G59: Lamp | H59: Luminaire | I59: Direct | J59: 100W Sodium - STANDARD Capex | K59: =INDEX('I_Asset number input'!$C$5:$C$265,MATCH('C_CAPEX Tariff Summary'!B59,'I_Asset number input'!$D$5:$D$265,0)) -> HIGH LOW PRESSURE SODIUM | L59: 100W Sodium - STANDARD | M59: =INDEX('Capex OHs Allocation'!$J$23:$J$119,MATCH(B59,'Capex OHs Allocation'!$D$23:$D$119,0))+INDEX('Capex OHs Allocation'!$L$23:$L$119,MATCH('C_CAPEX Tariff Summary'!B59,'Capex OHs Allocation'!$D$23:$D$119,0)) -> 46.93412352 | N59: =INDEX('Stock Cost'!$T$24:$T$115,MATCH('C_CAPEX Tariff Summary'!B59,'Stock Cost'!$C$24:$C$115,0)) -> 277.6722331 | O59: =IF(OR(H59="Luminaire",H59="NW"),IF(E59="P",I_CAPEX!D$41,I_CAPEX!D$42),IF(H59="Bracket",IF(E59="P",I_CAPEX!D$43,I_CAPEX!D$44),IF(H59="Column",IF(E59="P",I_CAPEX!D$45,I_CAPEX!D$46),0))) -> 3.240037959 | P59: =INDEX('Capex OHs Allocation'!$M$23:$M$119,MATCH('C_CAPEX Tariff Summary'!B59,'Capex OHs Allocation'!$D$23:$D$119,0)) -> 175.9719978 | Q59: 503.8183924 | R59: =INDEX('C_OPEX Calc'!$AK$10:$AK$147,MATCH('C_CAPEX Tariff Summary'!B59,'C_OPEX Calc'!$D$10:$D$147,0)) -> 44.84943004 | T59: =IF(H59="Luminaire",IF((MID(B59,1,3)="LED"),-PMT(return_on_assests_pct,LED_lantern_lifespan,Q59),-PMT(return_on_assests_pct,trad_lantern_lifespan,Q59)),IF(H59="NW",-PMT(return_on_assests_pct,Nightvision_lifespan,Q59),-PMT(return_on_assests_pct,pole_lifespan,Q59)))+R59 -> 80.61905699 | U59: 83.43934824 | V59: 89.97416941 | W59: 93.61991175 | X59: 96.24126928 | Y59: 98.93602482 | Z59: 101.7062335 | AA59: 104.5540081 | AC59: 503.8183924 | AD59: 521.4434385 | AE59: 562.2819601 | AF59: 585.0655564 | AG59: 601.4473919 | AH59: 618.2879189 | AI59: 635.5999806 | AJ59: 653.3967801 | AL59: 100W Sodium - STANDARD Capex | AM59: =IFERROR((_xlfn.XLOOKUP($AL59,'I_Asset number input'!$P$5:$P$316,'I_Asset number input'!G$5:G$316)),0) -> 289.275 | AN59: =IFERROR((_xlfn.XLOOKUP($AL59,'I_Asset number input'!$P$5:$P$316,'I_Asset number input'!H$5:H$316)),0) -> 0 | AO59: =IFERROR((_xlfn.XLOOKUP($AL59,'I_Asset number input'!$P$5:$P$316,'I_Asset number input'!I$5:I$316)),0) -> 0 | AP59: =IFERROR((_xlfn.XLOOKUP($AL59,'I_Asset number input'!$P$5:$P$316,'I_Asset number input'!J$5:J$316)),0) -> 0 | AQ59: =IFERROR((_xlfn.XLOOKUP($AL59,'I_Asset number input'!$P$5:$P$316,'I_Asset number input'!K$5:K$316)),0) -> 0 | AR59: =IFERROR((_xlfn.XLOOKUP($AL59,'I_Asset number input'!$P$5:$P$316,'I_Asset number input'!L$5:L$316)),0) -> 0 | AS59: =IFERROR((_xlfn.XLOOKUP($AL59,'I_Asset number input'!$P$5:$P$316,'I_Asset number input'!M$5:M$316)),0) -> 0 | AU59: 24136.91746 | AV59: 0 | AW59: 0 | AX59: 0 | AY59: 0 | AZ59: 0 | BA59: 0
B60: 100W Metal Halide - STANDARD | C60: 558 | D60: TC3 - Capital Funded by Endeavour Energy | E60: P | F60: Minor Road - Standard | G60: Lamp | H60: Luminaire | I60: Direct | J60: 100W Metal Halide - STANDARD Capex | K60: =INDEX('I_Asset number input'!$C$5:$C$265,MATCH('C_CAPEX Tariff Summary'!B60,'I_Asset number input'!$D$5:$D$265,0)) -> METAL HALIDE | L60: 100W Metal Halide - STANDARD | M60: =INDEX('Capex OHs Allocation'!$J$23:$J$119,MATCH(B60,'Capex OHs Allocation'!$D$23:$D$119,0))+INDEX('Capex OHs Allocation'!$L$23:$L$119,MATCH('C_CAPEX Tariff Summary'!B60,'Capex OHs Allocation'!$D$23:$D$119,0)) -> 46.93412352 | N60: =INDEX('Stock Cost'!$T$24:$T$115,MATCH('C_CAPEX Tariff Summary'!B60,'Stock Cost'!$C$24:$C$115,0)) -> 299.0733665 | O60: =IF(OR(H60="Luminaire",H60="NW"),IF(E60="P",I_CAPEX!D$41,I_CAPEX!D$42),IF(H60="Bracket",IF(E60="P",I_CAPEX!D$43,I_CAPEX!D$44),IF(H60="Column",IF(E60="P",I_CAPEX!D$45,I_CAPEX!D$46),0))) -> 3.240037959 | P60: =INDEX('Capex OHs Allocation'!$M$23:$M$119,MATCH('C_CAPEX Tariff Summary'!B60,'Capex OHs Allocation'!$D$23:$D$119,0)) -> 175.9719978 | Q60: 525.2195258 | R60: =INDEX('C_OPEX Calc'!$AK$10:$AK$147,MATCH('C_CAPEX Tariff Summary'!B60,'C_OPEX Calc'!$D$10:$D$147,0)) -> 49.94104235 | T60: =IF(H60="Luminaire",IF((MID(B60,1,3)="LED"),-PMT(return_on_assests_pct,LED_lantern_lifespan,Q60),-PMT(return_on_assests_pct,trad_lantern_lifespan,Q60)),IF(H60="NW",-PMT(return_on_assests_pct,Nightvision_lifespan,Q60),-PMT(return_on_assests_pct,pole_lifespan,Q60)))+R60 -> 87.23008696 | U60: 90.28165143 | V60: 97.35234961 | W60: 101.2970549 | X60: 104.1333724 | Y60: 107.0491069 | Z60: 110.0464819 | AA60: 113.1277834 | AC60: 525.2195258 | AD60: 543.5932464 | AE60: 586.1665015 | AF60: 609.9178965 | AG60: 626.9955976 | AH60: 644.5514743 | AI60: 662.5989156 | AJ60: 681.1516852 | AL60: 100W Metal Halide - STANDARD Capex | AM60: =IFERROR((_xlfn.XLOOKUP($AL60,'I_Asset number input'!$P$5:$P$316,'I_Asset number input'!G$5:G$316)),0) -> 169.505 | AN60: =IFERROR((_xlfn.XLOOKUP($AL60,'I_Asset number input'!$P$5:$P$316,'I_Asset number input'!H$5:H$316)),0) -> 0 | AO60: =IFERROR((_xlfn.XLOOKUP($AL60,'I_Asset number input'!$P$5:$P$316,'I_Asset number input'!I$5:I$316)),0) -> 0 | AP60: =IFERROR((_xlfn.XLOOKUP($AL60,'I_Asset number input'!$P$5:$P$316,'I_Asset number input'!J$5:J$316)),0) -> 0 | AQ60: =IFERROR((_xlfn.XLOOKUP($AL60,'I_Asset number input'!$P$5:$P$316,'I_Asset number input'!K$5:K$316)),0) -> 0 | AR60: =IFERROR((_xlfn.XLOOKUP($AL60,'I_Asset number input'!$P$5:$P$316,'I_Asset number input'!L$5:L$316)),0) -> 0 | AS60: =IFERROR((_xlfn.XLOOKUP($AL60,'I_Asset number input'!$P$5:$P$316,'I_Asset number input'!M$5:M$316)),0) -> 0 | AU60: 15303.19133 | AV60: 0 | AW60: 0 | AX60: 0 | AY60: 0 | AZ60: 0 | BA60: 0
B61: Suburban 70W HPS c/w D2 PECB - STD | C61: 577 | D61: TC3 - Capital Funded by Endeavour Energy | E61: P | F61: Minor Road - Standard | G61: Lamp | H61: Luminaire | I61: Direct | J61: Suburban 70W HPS c/w D2 PECB - STD Capex | K61: =INDEX('I_Asset number input'!$C$5:$C$265,MATCH('C_CAPEX Tariff Summary'!B61,'I_Asset number input'!$D$5:$D$265,0)) -> HIGH LOW PRESSURE SODIUM | L61: Suburban 70W HPS c/w D2 PECB - STD | M61: =INDEX('Capex OHs Allocation'!$J$23:$J$119,MATCH(B61,'Capex OHs Allocation'!$D$23:$D$119,0))+INDEX('Capex OHs Allocation'!$L$23:$L$119,MATCH('C_CAPEX Tariff Summary'!B61,'Capex OHs Allocation'!$D$23:$D$119,0)) -> 46.93412352 | N61: =INDEX('Stock Cost'!$T$24:$T$115,MATCH('C_CAPEX Tariff Summary'!B61,'Stock Cost'!$C$24:$C$115,0)) -> 187.0191133 | O61: =IF(OR(H61="Luminaire",H61="NW"),IF(E61="P",I_CAPEX!D$41,I_CAPEX!D$42),IF(H61="Bracket",IF(E61="P",I_CAPEX!D$43,I_CAPEX!D$44),IF(H61="Column",IF(E61="P",I_CAPEX!D$45,I_CAPEX!D$46),0))) -> 3.240037959 | P61: =INDEX('Capex OHs Allocation'!$M$23:$M$119,MATCH('C_CAPEX Tariff Summary'!B61,'Capex OHs Allocation'!$D$23:$D$119,0)) -> 175.9719978 | Q61: 413.1652726 | R61: =INDEX('C_OPEX Calc'!$AK$10:$AK$147,MATCH('C_CAPEX Tariff Summary'!B61,'C_OPEX Calc'!$D$10:$D$147,0)) -> 43.82741992 | T61: =IF(H61="Luminaire",IF((MID(B61,1,3)="LED"),-PMT(return_on_assests_pct,LED_lantern_lifespan,Q61),-PMT(return_on_assests_pct,trad_lantern_lifespan,Q61)),IF(H61="NW",-PMT(return_on_assests_pct,Nightvision_lifespan,Q61),-PMT(return_on_assests_pct,pole_lifespan,Q61)))+R61 -> 73.16094147 | U61: 75.72032594 | V61: 81.65060703 | W61: 84.95907964 | X61: 87.33793387 | Y61: 89.78339601 | Z61: 92.2973311 | AA61: 94.88165637 | AC61: 413.1652726 | AD61: 427.6190065 | AE61: 461.1093657 | AF61: 479.7934608 | AG61: 493.2276777 | AH61: 507.0380526 | AI61: 521.2351181 | AJ61: 535.8297014 | AL61: Suburban 70W HPS c/w D2 PECB - STD Capex | AM61: =IFERROR((_xlfn.XLOOKUP($AL61,'I_Asset number input'!$P$5:$P$316,'I_Asset number input'!G$5:G$316)),0) -> 3.045 | AN61: =IFERROR((_xlfn.XLOOKUP($AL61,'I_Asset number input'!$P$5:$P$316,'I_Asset number input'!H$5:H$316)),0) -> 0 | AO61: =IFERROR((_xlfn.XLOOKUP($AL61,'I_Asset number input'!$P$5:$P$316,'I_Asset number input'!I$5:I$316)),0) -> 0 | AP61: =IFERROR((_xlfn.XLOOKUP($AL61,'I_Asset number input'!$P$5:$P$316,'I_Asset number input'!J$5:J$316)),0) -> 0 | AQ61: =IFERROR((_xlfn.XLOOKUP($AL61,'I_Asset number input'!$P$5:$P$316,'I_Asset number input'!K$5:K$316)),0) -> 0 | AR61: =IFERROR((_xlfn.XLOOKUP($AL61,'I_Asset number input'!$P$5:$P$316,'I_Asset number input'!L$5:L$316)),0) -> 0 | AS61: =IFERROR((_xlfn.XLOOKUP($AL61,'I_Asset number input'!$P$5:$P$316,'I_Asset number input'!M$5:M$316)),0) -> 0 | AU61: 230.5683925 | AV61: 0 | AW61: 0 | AX61: 0 | AY61: 0 | AZ61: 0 | BA61: 0
B62: 17W LED Cat P Luminaire | C62: 589 | D62: TC3 - Capital Funded by Endeavour Energy | E62: P | F62: Minor Road - Standard | G62: Lamp | H62: Luminaire | I62: Direct | J62: 17W LED Cat P Luminaire Capex | K62: =INDEX('I_Asset number input'!$C$5:$C$265,MATCH('C_CAPEX Tariff Summary'!B62,'I_Asset number input'!$D$5:$D$265,0)) -> LED | L62: 17W LED Cat P Luminaire | M62: =INDEX('Capex OHs Allocation'!$J$23:$J$119,MATCH(B62,'Capex OHs Allocation'!$D$23:$D$119,0))+INDEX('Capex OHs Allocation'!$L$23:$L$119,MATCH('C_CAPEX Tariff Summary'!B62,'Capex OHs Allocation'!$D$23:$D$119,0)) -> 46.93412352 | N62: =INDEX('Stock Cost'!$T$24:$T$115,MATCH('C_CAPEX Tariff Summary'!B62,'Stock Cost'!$C$24:$C$115,0)) -> 167.58 | O62: =IF(OR(H62="Luminaire",H62="NW"),IF(E62="P",I_CAPEX!D$41,I_CAPEX!D$42),IF(H62="Bracket",IF(E62="P",I_CAPEX!D$43,I_CAPEX!D$44),IF(H62="Column",IF(E62="P",I_CAPEX!D$45,I_CAPEX!D$46),0))) -> 3.240037959 | P62: =INDEX('Capex OHs Allocation'!$M$23:$M$119,MATCH('C_CAPEX Tariff Summary'!B62,'Capex OHs Allocation'!$D$23:$D$119,0)) -> 175.9719978 | Q62: 393.7261593 | R62: =INDEX('C_OPEX Calc'!$AK$10:$AK$147,MATCH('C_CAPEX Tariff Summary'!B62,'C_OPEX Calc'!$D$10:$D$147,0)) -> 29.8655006 | T62: =IF(H62="Luminaire",IF((MID(B62,1,3)="LED"),-PMT(return_on_assests_pct,LED_lantern_lifespan,Q62),-PMT(return_on_assests_pct,trad_lantern_lifespan,Q62)),IF(H62="NW",-PMT(return_on_assests_pct,Nightvision_lifespan,Q62),-PMT(return_on_assests_pct,pole_lifespan,Q62)))+R62 -> 57.81890217 | U62: 59.84157707 | V62: 64.52826283 | W62: 67.14294015 | X62: 69.02294247 | Y62: 70.95558486 | Z62: 72.94234123 | AA62: 74.98472679 | AC62: 393.7261593 | AD62: 407.499856 | AE62: 439.4145191 | AF62: 457.2195417 | AG62: 470.0216888 | AH62: 483.1822961 | AI62: 496.7114004 | AJ62: 510.6193196 | AL62: 17W LED Cat P Luminaire Capex | AM62: =IFERROR((_xlfn.XLOOKUP($AL62,'I_Asset number input'!$P$5:$P$316,'I_Asset number input'!G$5:G$316)),0) -> 17696.525 | AN62: =IFERROR((_xlfn.XLOOKUP($AL62,'I_Asset number input'!$P$5:$P$316,'I_Asset number input'!H$5:H$316)),0) -> 62263 | AO62: =IFERROR((_xlfn.XLOOKUP($AL62,'I_Asset number input'!$P$5:$P$316,'I_Asset number input'!I$5:I$316)),0) -> 63196.945 | AP62: =IFERROR((_xlfn.XLOOKUP($AL62,'I_Asset number input'!$P$5:$P$316,'I_Asset number input'!J$5:J$316)),0) -> 64144.89917 | AQ62: =IFERROR((_xlfn.XLOOKUP($AL62,'I_Asset number input'!$P$5:$P$316,'I_Asset number input'!K$5:K$316)),0) -> 65107.07266 | AR62: =IFERROR((_xlfn.XLOOKUP($AL62,'I_Asset number input'!$P$5:$P$316,'I_Asset number input'!L$5:L$316)),0) -> 66083.67875 | AS62: =IFERROR((_xlfn.XLOOKUP($AL62,'I_Asset number input'!$P$5:$P$316,'I_Asset number input'!M$5:M$316)),0) -> 67074.93393 | AU62: 1058987.965 | AV62: 4017723.229 | AW62: 4243228.695 | AX62: 4427469.685 | AY62: 4619710.419 | AZ62: 4820298.246 | BA62: 5029595.595
B63: 18W LED P4 Gerard | C63: 585 | D63: TC3 - Capital Funded by Endeavour Energy | E63: P | F63: Minor Road - Standard | G63: Lamp | H63: Luminaire | I63: Direct | J63: 18W LED P4 Gerard Capex | K63: =INDEX('I_Asset number input'!$C$5:$C$265,MATCH('C_CAPEX Tariff Summary'!B63,'I_Asset number input'!$D$5:$D$265,0)) -> LED | L63: 18W LED P4 Gerard | M63: =INDEX('Capex OHs Allocation'!$J$23:$J$119,MATCH(B63,'Capex OHs Allocation'!$D$23:$D$119,0))+INDEX('Capex OHs Allocation'!$L$23:$L$119,MATCH('C_CAPEX Tariff Summary'!B63,'Capex OHs Allocation'!$D$23:$D$119,0)) -> 46.93412352 | N63: =INDEX('Stock Cost'!$T$24:$T$115,MATCH('C_CAPEX Tariff Summary'!B63,'Stock Cost'!$C$24:$C$115,0)) -> 233.9600935 | O63: =IF(OR(H63="Luminaire",H63="NW"),IF(E63="P",I_CAPEX!D$41,I_CAPEX!D$42),IF(H63="Bracket",IF(E63="P",I_CAPEX!D$43,I_CAPEX!D$44),IF(H63="Column",IF(E63="P",I_CAPEX!D$45,I_CAPEX!D$46),0))) -> 3.240037959 | P63: =INDEX('Capex OHs Allocation'!$M$23:$M$119,MATCH('C_CAPEX Tariff Summary'!B63,'Capex OHs Allocation'!$D$23:$D$119,0)) -> 175.9719978 | Q63: 460.1062528 | R63: =INDEX('C_OPEX Calc'!$AK$10:$AK$147,MATCH('C_CAPEX Tariff Summary'!B63,'C_OPEX Calc'!$D$10:$D$147,0)) -> 29.8655006 | T63: =IF(H63="Luminaire",IF((MID(B63,1,3)="LED"),-PMT(return_on_assests_pct,LED_lantern_lifespan,Q63),-PMT(return_on_assests_pct,trad_lantern_lifespan,Q63)),IF(H63="NW",-PMT(return_on_assests_pct,Nightvision_lifespan,Q63),-PMT(return_on_assests_pct,pole_lifespan,Q63)))+R63 -> 62.53169395 | U63: 64.71923614 | V63: 69.78793147 | W63: 72.61572992 | X63: 74.64897036 | Y63: 76.73914153 | Z63: 78.88783749 | AA63: 81.09669694 | AC63: 460.1062528 | AD63: 476.20212 | AE63: 513.497422 | AF63: 534.3042748 | AG63: 549.2647944 | AH63: 564.6442087 | AI63: 580.4542465 | AJ63: 596.7069654 | AL63: 18W LED P4 Gerard Capex | AM63: =IFERROR((_xlfn.XLOOKUP($AL63,'I_Asset number input'!$P$5:$P$316,'I_Asset number input'!G$5:G$316)),0) -> 4315.78 | AN63: =IFERROR((_xlfn.XLOOKUP($AL63,'I_Asset number input'!$P$5:$P$316,'I_Asset number input'!H$5:H$316)),0) -> 4337 | AO63: =IFERROR((_xlfn.XLOOKUP($AL63,'I_Asset number input'!$P$5:$P$316,'I_Asset number input'!I$5:I$316)),0) -> 4402.055 | AP63: =IFERROR((_xlfn.XLOOKUP($AL63,'I_Asset number input'!$P$5:$P$316,'I_Asset number input'!J$5:J$316)),0) -> 4468.085825 | AQ63: =IFERROR((_xlfn.XLOOKUP($AL63,'I_Asset number input'!$P$5:$P$316,'I_Asset number input'!K$5:K$316)),0) -> 4535.107112 | AR63: =IFERROR((_xlfn.XLOOKUP($AL63,'I_Asset number input'!$P$5:$P$316,'I_Asset number input'!L$5:L$316)),0) -> 4603.133719 | AS63: =IFERROR((_xlfn.XLOOKUP($AL63,'I_Asset number input'!$P$5:$P$316,'I_Asset number input'!M$5:M$316)),0) -> 4672.180725 | AU63: 279313.985 | AV63: 302670.2588 | AW63: 319658.437 | AX63: 333538.0063 | AY63: 348020.2265 | AZ63: 363131.2648 | BA63: 378898.4243
B64: 25W LED P4 GE | C64: 588 | D64: TC3 - Capital Funded by Endeavour Energy | E64: P | F64: Minor Road - Standard | G64: Lamp | H64: Luminaire | I64: Direct | J64: 25W LED P4 GE Capex | K64: =INDEX('I_Asset number input'!$C$5:$C$265,MATCH('C_CAPEX Tariff Summary'!B64,'I_Asset number input'!$D$5:$D$265,0)) -> LED | L64: 25W LED P4 Gerard | M64: =INDEX('Capex OHs Allocation'!$J$23:$J$119,MATCH(B64,'Capex OHs Allocation'!$D$23:$D$119,0))+INDEX('Capex OHs Allocation'!$L$23:$L$119,MATCH('C_CAPEX Tariff Summary'!B64,'Capex OHs Allocation'!$D$23:$D$119,0)) -> 46.93412352 | N64: =INDEX('Stock Cost'!$T$24:$T$115,MATCH('C_CAPEX Tariff Summary'!B64,'Stock Cost'!$C$24:$C$115,0)) -> 233.9600935 | O64: =IF(OR(H64="Luminaire",H64="NW"),IF(E64="P",I_CAPEX!D$41,I_CAPEX!D$42),IF(H64="Bracket",IF(E64="P",I_CAPEX!D$43,I_CAPEX!D$44),IF(H64="Column",IF(E64="P",I_CAPEX!D$45,I_CAPEX!D$46),0))) -> 3.240037959 | P64: =INDEX('Capex OHs Allocation'!$M$23:$M$119,MATCH('C_CAPEX Tariff Summary'!B64,'Capex OHs Allocation'!$D$23:$D$119,0)) -> 175.9719978 | Q64: 460.1062528 | R64: =INDEX('C_OPEX Calc'!$AK$10:$AK$147,MATCH('C_CAPEX Tariff Summary'!B64,'C_OPEX Calc'!$D$10:$D$147,0)) -> 29.8655006 | T64: =IF(H64="Luminaire",IF((MID(B64,1,3)="LED"),-PMT(return_on_assests_pct,LED_lantern_lifespan,Q64),-PMT(return_on_assests_pct,trad_lantern_lifespan,Q64)),IF(H64="NW",-PMT(return_on_assests_pct,Nightvision_lifespan,Q64),-PMT(return_on_assests_pct,pole_lifespan,Q64)))+R64 -> 62.53169395 | U64: 64.71923614 | V64: 69.78793147 | W64: 72.61572992 | X64: 74.64897036 | Y64: 76.73914153 | Z64: 78.88783749 | AA64: 81.09669694 | AC64: 460.1062528 | AD64: 476.20212 | AE64: 513.497422 | AF64: 534.3042748 | AG64: 549.2647944 | AH64: 564.6442087 | AI64: 580.4542465 | AJ64: 596.7069654 | AL64: 25W LED P4 Gerard Capex | AM64: =IFERROR((_xlfn.XLOOKUP($AL64,'I_Asset number input'!$P$5:$P$316,'I_Asset number input'!G$5:G$316)),0) -> 4519.795 | AN64: =IFERROR((_xlfn.XLOOKUP($AL64,'I_Asset number input'!$P$5:$P$316,'I_Asset number input'!H$5:H$316)),0) -> 4543 | AO64: =IFERROR((_xlfn.XLOOKUP($AL64,'I_Asset number input'!$P$5:$P$316,'I_Asset number input'!I$5:I$316)),0) -> 4611.145 | AP64: =IFERROR((_xlfn.XLOOKUP($AL64,'I_Asset number input'!$P$5:$P$316,'I_Asset number input'!J$5:J$316)),0) -> 4680.312175 | AQ64: =IFERROR((_xlfn.XLOOKUP($AL64,'I_Asset number input'!$P$5:$P$316,'I_Asset number input'!K$5:K$316)),0) -> 4750.516858 | AR64: =IFERROR((_xlfn.XLOOKUP($AL64,'I_Asset number input'!$P$5:$P$316,'I_Asset number input'!L$5:L$316)),0) -> 4821.77461 | AS64: =IFERROR((_xlfn.XLOOKUP($AL64,'I_Asset number input'!$P$5:$P$316,'I_Asset number input'!M$5:M$316)),0) -> 4894.10123 | AU64: 292517.6799 | AV64: 317046.5727 | AW64: 334841.6599 | AX64: 349380.4848 | AY64: 364550.5855 | AZ64: 380379.3719 | BA64: 396895.4442
B65: 25W LED | C65: 588 | D65: TC3 - Capital Funded by Endeavour Energy | E65: P | F65: Minor Road - Standard | G65: Lamp | H65: Luminaire | I65: Direct | J65: 25W LED Capex | K65: =INDEX('I_Asset number input'!$C$5:$C$265,MATCH('C_CAPEX Tariff Summary'!B65,'I_Asset number input'!$D$5:$D$265,0)) -> LED | L65: 25W LED | M65: =INDEX('Capex OHs Allocation'!$J$23:$J$119,MATCH(B65,'Capex OHs Allocation'!$D$23:$D$119,0))+INDEX('Capex OHs Allocation'!$L$23:$L$119,MATCH('C_CAPEX Tariff Summary'!B65,'Capex OHs Allocation'!$D$23:$D$119,0)) -> 46.93412352 | N65: =INDEX('Stock Cost'!$T$24:$T$115,MATCH('C_CAPEX Tariff Summary'!B65,'Stock Cost'!$C$24:$C$115,0)) -> 233.9621064 | O65: =IF(OR(H65="Luminaire",H65="NW"),IF(E65="P",I_CAPEX!D$41,I_CAPEX!D$42),IF(H65="Bracket",IF(E65="P",I_CAPEX!D$43,I_CAPEX!D$44),IF(H65="Column",IF(E65="P",I_CAPEX!D$45,I_CAPEX!D$46),0))) -> 3.240037959 | P65: =INDEX('Capex OHs Allocation'!$M$23:$M$119,MATCH('C_CAPEX Tariff Summary'!B65,'Capex OHs Allocation'!$D$23:$D$119,0)) -> 175.9719978 | Q65: 460.1082658 | R65: =INDEX('C_OPEX Calc'!$AK$10:$AK$147,MATCH('C_CAPEX Tariff Summary'!B65,'C_OPEX Calc'!$D$10:$D$147,0)) -> 29.8655006 | T65: =IF(H65="Luminaire",IF((MID(B65,1,3)="LED"),-PMT(return_on_assests_pct,LED_lantern_lifespan,Q65),-PMT(return_on_assests_pct,trad_lantern_lifespan,Q65)),IF(H65="NW",-PMT(return_on_assests_pct,Nightvision_lifespan,Q65),-PMT(return_on_assests_pct,pole_lifespan,Q65)))+R65 -> 62.53183687 | U65: 64.71938406 | V65: 69.78809097 | W65: 72.61589588 | X65: 74.64914097 | Y65: 76.73931692 | Z65: 78.88801779 | AA65: 81.09688229 | AC65: 460.1082658 | AD65: 476.2042034 | AE65: 513.4996686 | AF65: 534.3066124 | AG65: 549.2671975 | AH65: 564.646679 | AI65: 580.4567861 | AJ65: 596.7095761 | AL65: =J65 -> 25W LED Capex | AM65: =IFERROR((_xlfn.XLOOKUP($AL65,'I_Asset number input'!$P$5:$P$316,'I_Asset number input'!G$5:G$316)),0) -> 727.755 | AN65: =IFERROR((_xlfn.XLOOKUP($AL65,'I_Asset number input'!$P$5:$P$316,'I_Asset number input'!H$5:H$316)),0) -> 731 | AO65: =IFERROR((_xlfn.XLOOKUP($AL65,'I_Asset number input'!$P$5:$P$316,'I_Asset number input'!I$5:I$316)),0) -> 741.965 | AP65: =IFERROR((_xlfn.XLOOKUP($AL65,'I_Asset number input'!$P$5:$P$316,'I_Asset number input'!J$5:J$316)),0) -> 753.094475 | AQ65: =IFERROR((_xlfn.XLOOKUP($AL65,'I_Asset number input'!$P$5:$P$316,'I_Asset number input'!K$5:K$316)),0) -> 764.3908921 | AR65: =IFERROR((_xlfn.XLOOKUP($AL65,'I_Asset number input'!$P$5:$P$316,'I_Asset number input'!L$5:L$316)),0) -> 775.8567555 | AS65: =IFERROR((_xlfn.XLOOKUP($AL65,'I_Asset number input'!$P$5:$P$316,'I_Asset number input'!M$5:M$316)),0) -> 787.4946068 | AU65: 47099.85535 | AV65: 51015.0945 | AW65: 53878.45319 | AX65: 56217.85563 | AY65: 58658.83492 | AZ65: 61205.80153 | BA65: 63863.35743
B66: 33W LED | C66: 587 | D66: TC3 - Capital Funded by Endeavour Energy | E66: P | F66: Minor Road - Standard | G66: Lamp | H66: Luminaire | I66: Direct | J66: 33W LED Capex | K66: =INDEX('I_Asset number input'!$C$5:$C$265,MATCH('C_CAPEX Tariff Summary'!B66,'I_Asset number input'!$D$5:$D$265,0)) -> LED | L66: 33W LED | M66: =INDEX('Capex OHs Allocation'!$J$23:$J$119,MATCH(B66,'Capex OHs Allocation'!$D$23:$D$119,0))+INDEX('Capex OHs Allocation'!$L$23:$L$119,MATCH('C_CAPEX Tariff Summary'!B66,'Capex OHs Allocation'!$D$23:$D$119,0)) -> 46.93412352 | N66: =INDEX('Stock Cost'!$T$24:$T$115,MATCH('C_CAPEX Tariff Summary'!B66,'Stock Cost'!$C$24:$C$115,0)) -> 236.98 | O66: =IF(OR(H66="Luminaire",H66="NW"),IF(E66="P",I_CAPEX!D$41,I_CAPEX!D$42),IF(H66="Bracket",IF(E66="P",I_CAPEX!D$43,I_CAPEX!D$44),IF(H66="Column",IF(E66="P",I_CAPEX!D$45,I_CAPEX!D$46),0))) -> 3.240037959 | P66: =INDEX('Capex OHs Allocation'!$M$23:$M$119,MATCH('C_CAPEX Tariff Summary'!B66,'Capex OHs Allocation'!$D$23:$D$119,0)) -> 175.9719978 | Q66: 463.1261593 | R66: =INDEX('C_OPEX Calc'!$AK$10:$AK$147,MATCH('C_CAPEX Tariff Summary'!B66,'C_OPEX Calc'!$D$10:$D$147,0)) -> 29.8655006 | T66: =IF(H66="Luminaire",IF((MID(B66,1,3)="LED"),-PMT(return_on_assests_pct,LED_lantern_lifespan,Q66),-PMT(return_on_assests_pct,trad_lantern_lifespan,Q66)),IF(H66="NW",-PMT(return_on_assests_pct,Nightvision_lifespan,Q66),-PMT(return_on_assests_pct,pole_lifespan,Q66)))+R66 -> 62.74609845 | U66: 64.94114114 | V66: 70.02721568 | W66: 72.86470989 | X66: 74.90492177 | Y66: 77.00225958 | Z66: 79.15832284 | AA66: 81.37475588 | AC66: 463.1261593 | AD66: 479.3276717 | AE66: 516.8677614 | AF66: 537.8111799 | AG66: 552.8698929 | AH66: 568.3502499 | AI66: 584.2640569 | AJ66: 600.6234505 | AL66: 33W LED Capex | AM66: =IFERROR((_xlfn.XLOOKUP($AL66,'I_Asset number input'!$P$5:$P$316,'I_Asset number input'!G$5:G$316)),0) -> 89.32 | AN66: =IFERROR((_xlfn.XLOOKUP($AL66,'I_Asset number input'!$P$5:$P$316,'I_Asset number input'!H$5:H$316)),0) -> 90 | AO66: =IFERROR((_xlfn.XLOOKUP($AL66,'I_Asset number input'!$P$5:$P$316,'I_Asset number input'!I$5:I$316)),0) -> 91.35 | AP66: =IFERROR((_xlfn.XLOOKUP($AL66,'I_Asset number input'!$P$5:$P$316,'I_Asset number input'!J$5:J$316)),0) -> 92.72025 | AQ66: =IFERROR((_xlfn.XLOOKUP($AL66,'I_Asset number input'!$P$5:$P$316,'I_Asset number input'!K$5:K$316)),0) -> 94.11105375 | AR66: =IFERROR((_xlfn.XLOOKUP($AL66,'I_Asset number input'!$P$5:$P$316,'I_Asset number input'!L$5:L$316)),0) -> 95.52271956 | AS66: =IFERROR((_xlfn.XLOOKUP($AL66,'I_Asset number input'!$P$5:$P$316,'I_Asset number input'!M$5:M$316)),0) -> 96.95556035 | AU66: 5800.542727 | AV66: 6302.449411 | AW66: 6656.191248 | AX66: 6945.203072 | AY66: 7246.76379 | AZ66: 7561.418274 | BA66: 7889.735055
B67: 42W LED P3 Gerard | C67: 586 | D67: TC3 - Capital Funded by Endeavour Energy | E67: P | F67: Minor Road - Standard | G67: Lamp | H67: Luminaire | I67: Direct | J67: 42W LED P3 Gerard Capex | K67: LED | L67: 42W LED P3 Gerard | M67: =INDEX('Capex OHs Allocation'!$J$23:$J$119,MATCH(B67,'Capex OHs Allocation'!$D$23:$D$119,0))+INDEX('Capex OHs Allocation'!$L$23:$L$119,MATCH('C_CAPEX Tariff Summary'!B67,'Capex OHs Allocation'!$D$23:$D$119,0)) -> 46.93412352 | N67: =INDEX('Stock Cost'!$T$24:$T$115,MATCH('C_CAPEX Tariff Summary'!B67,'Stock Cost'!$C$24:$C$115,0)) -> 279.0008084 | O67: =IF(OR(H67="Luminaire",H67="NW"),IF(E67="P",I_CAPEX!D$41,I_CAPEX!D$42),IF(H67="Bracket",IF(E67="P",I_CAPEX!D$43,I_CAPEX!D$44),IF(H67="Column",IF(E67="P",I_CAPEX!D$45,I_CAPEX!D$46),0))) -> 3.240037959 | P67: =INDEX('Capex OHs Allocation'!$M$23:$M$119,MATCH('C_CAPEX Tariff Summary'!B67,'Capex OHs Allocation'!$D$23:$D$119,0)) -> 175.9719978 | Q67: 505.1469677 | R67: =INDEX('C_OPEX Calc'!$AK$10:$AK$147,MATCH('C_CAPEX Tariff Summary'!B67,'C_OPEX Calc'!$D$10:$D$147,0)) -> 33.80896283 | T67: =IF(H67="Luminaire",IF((MID(B67,1,3)="LED"),-PMT(return_on_assests_pct,LED_lantern_lifespan,Q67),-PMT(return_on_assests_pct,trad_lantern_lifespan,Q67)),IF(H67="NW",-PMT(return_on_assests_pct,Nightvision_lifespan,Q67),-PMT(return_on_assests_pct,pole_lifespan,Q67)))+R67 -> 69.67291472 | U67: 72.11027778 | V67: 77.75782633 | W67: 80.90856394 | X67: 83.17400373 | Y67: 85.50287583 | Z67: 87.89695636 | AA67: 90.35807113 | AC67: 505.1469677 | AD67: 522.8184913 | AE67: 563.7647045 | AF67: 586.6083814 | AG67: 603.0334161 | AH67: 619.9183517 | AI67: 637.2760656 | AJ67: 655.1197954 | AL67: 42W LED P3 Gerard Capex | AM67: =IFERROR((_xlfn.XLOOKUP($AL67,'I_Asset number input'!$P$5:$P$316,'I_Asset number input'!G$5:G$316)),0) -> 0 | AN67: =IFERROR((_xlfn.XLOOKUP($AL67,'I_Asset number input'!$P$5:$P$316,'I_Asset number input'!H$5:H$316)),0) -> 0 | AO67: =IFERROR((_xlfn.XLOOKUP($AL67,'I_Asset number input'!$P$5:$P$316,'I_Asset number input'!I$5:I$316)),0) -> 0 | AP67: =IFERROR((_xlfn.XLOOKUP($AL67,'I_Asset number input'!$P$5:$P$316,'I_Asset number input'!J$5:J$316)),0) -> 0 | AQ67: =IFERROR((_xlfn.XLOOKUP($AL67,'I_Asset number input'!$P$5:$P$316,'I_Asset number input'!K$5:K$316)),0) -> 0 | AR67: =IFERROR((_xlfn.XLOOKUP($AL67,'I_Asset number input'!$P$5:$P$316,'I_Asset number input'!L$5:L$316)),0) -> 0 | AS67: =IFERROR((_xlfn.XLOOKUP($AL67,'I_Asset number input'!$P$5:$P$316,'I_Asset number input'!M$5:M$316)),0) -> 0 | AU67: 0 | AV67: 0 | AW67: 0 | AX67: 0 | AY67: 0 | AZ67: 0 | BA67: 0
B68: 82W LED Gerard V5 Cat Luminaire | C68: 650 | D68: TC3 - Capital Funded by Endeavour Energy | E68: P | F68: Minor Road - Standard | G68: Lamp | H68: Luminaire | I68: Direct | J68: 82W LED Gerard V5 Cat Luminaire Capex | K68: =INDEX('I_Asset number input'!$C$5:$C$265,MATCH('C_CAPEX Tariff Summary'!B68,'I_Asset number input'!$D$5:$D$265,0)) -> LED | L68: 82W LED Gerard V5 Cat Luminaire | M68: =INDEX('Capex OHs Allocation'!$J$23:$J$119,MATCH(B68,'Capex OHs Allocation'!$D$23:$D$119,0))+INDEX('Capex OHs Allocation'!$L$23:$L$119,MATCH('C_CAPEX Tariff Summary'!B68,'Capex OHs Allocation'!$D$23:$D$119,0)) -> 46.93412352 | N68: =INDEX('Stock Cost'!$T$24:$T$115,MATCH('C_CAPEX Tariff Summary'!B68,'Stock Cost'!$C$24:$C$115,0)) -> 592.3231447 | O68: =IF(OR(H68="Luminaire",H68="NW"),IF(E68="P",I_CAPEX!D$41,I_CAPEX!D$42),IF(H68="Bracket",IF(E68="P",I_CAPEX!D$43,I_CAPEX!D$44),IF(H68="Column",IF(E68="P",I_CAPEX!D$45,I_CAPEX!D$46),0))) -> 3.240037959 | P68: =INDEX('Capex OHs Allocation'!$M$23:$M$119,MATCH('C_CAPEX Tariff Summary'!B68,'Capex OHs Allocation'!$D$23:$D$119,0)) -> 175.9719978 | Q68: 818.4693041 | R68: =INDEX('C_OPEX Calc'!$AK$10:$AK$147,MATCH('C_CAPEX Tariff Summary'!B68,'C_OPEX Calc'!$D$10:$D$147,0)) -> 33.80896283 | T68: =IF(H68="Luminaire",IF((MID(B68,1,3)="LED"),-PMT(return_on_assests_pct,LED_lantern_lifespan,Q68),-PMT(return_on_assests_pct,trad_lantern_lifespan,Q68)),IF(H68="NW",-PMT(return_on_assests_pct,Nightvision_lifespan,Q68),-PMT(return_on_assests_pct,pole_lifespan,Q68)))+R68 -> 91.91788088 | U68: 95.13343814 | V68: 102.5841196 | W68: 106.7408156 | X68: 109.7295584 | Y68: 112.8019861 | Z68: 115.9604417 | AA68: 119.207334 | AC68: 818.4693041 | AD68: 847.1017626 | AE68: 913.4452643 | AF68: 950.4579546 | AG68: 977.0707774 | AH68: 1004.428759 | AI68: 1032.552764 | AJ68: 1061.464242 | AL68: 82W LED Gerard V5 Cat Luminaire Capex | AM68: =IFERROR((_xlfn.XLOOKUP($AL68,'I_Asset number input'!$P$5:$P$316,'I_Asset number input'!G$5:G$316)),0) -> 71.05 | AN68: =IFERROR((_xlfn.XLOOKUP($AL68,'I_Asset number input'!$P$5:$P$316,'I_Asset number input'!H$5:H$316)),0) -> 71 | AO68: =IFERROR((_xlfn.XLOOKUP($AL68,'I_Asset number input'!$P$5:$P$316,'I_Asset number input'!I$5:I$316)),0) -> 72.065 | AP68: =IFERROR((_xlfn.XLOOKUP($AL68,'I_Asset number input'!$P$5:$P$316,'I_Asset number input'!J$5:J$316)),0) -> 73.145975 | AQ68: =IFERROR((_xlfn.XLOOKUP($AL68,'I_Asset number input'!$P$5:$P$316,'I_Asset number input'!K$5:K$316)),0) -> 74.24316462 | AR68: =IFERROR((_xlfn.XLOOKUP($AL68,'I_Asset number input'!$P$5:$P$316,'I_Asset number input'!L$5:L$316)),0) -> 75.35681209 | AS68: =IFERROR((_xlfn.XLOOKUP($AL68,'I_Asset number input'!$P$5:$P$316,'I_Asset number input'!M$5:M$316)),0) -> 76.48716428 | AU68: 6759.23078 | AV68: 7283.472493 | AW68: 7692.276876 | AX68: 8026.275538 | AY68: 8374.776421 | AZ68: 8738.409214 | BA68: 9117.830942
B69: 100W LED Gerard V4 Cat Luminaire | C69: 651 | D69: TC3 - Capital Funded by Endeavour Energy | E69: P | F69: Minor Road - Standard | G69: Lamp | H69: Luminaire | I69: Direct | J69: 100W LED Gerard V4 Cat Luminaire Capex | K69: =INDEX('I_Asset number input'!$C$5:$C$265,MATCH('C_CAPEX Tariff Summary'!B69,'I_Asset number input'!$D$5:$D$265,0)) -> LED | L69: 100W LED Gerard V4 Cat Luminaire | M69: =INDEX('Capex OHs Allocation'!$J$23:$J$119,MATCH(B69,'Capex OHs Allocation'!$D$23:$D$119,0))+INDEX('Capex OHs Allocation'!$L$23:$L$119,MATCH('C_CAPEX Tariff Summary'!B69,'Capex OHs Allocation'!$D$23:$D$119,0)) -> 46.93412352 | N69: =INDEX('Stock Cost'!$T$24:$T$115,MATCH('C_CAPEX Tariff Summary'!B69,'Stock Cost'!$C$24:$C$115,0)) -> 592.3231447 | O69: =IF(OR(H69="Luminaire",H69="NW"),IF(E69="P",I_CAPEX!D$41,I_CAPEX!D$42),IF(H69="Bracket",IF(E69="P",I_CAPEX!D$43,I_CAPEX!D$44),IF(H69="Column",IF(E69="P",I_CAPEX!D$45,I_CAPEX!D$46),0))) -> 3.240037959 | P69: =INDEX('Capex OHs Allocation'!$M$23:$M$119,MATCH('C_CAPEX Tariff Summary'!B69,'Capex OHs Allocation'!$D$23:$D$119,0)) -> 175.9719978 | Q69: 818.4693041 | R69: =INDEX('C_OPEX Calc'!$AK$10:$AK$147,MATCH('C_CAPEX Tariff Summary'!B69,'C_OPEX Calc'!$D$10:$D$147,0)) -> 33.80896283 | T69: =IF(H69="Luminaire",IF((MID(B69,1,3)="LED"),-PMT(return_on_assests_pct,LED_lantern_lifespan,Q69),-PMT(return_on_assests_pct,trad_lantern_lifespan,Q69)),IF(H69="NW",-PMT(return_on_assests_pct,Nightvision_lifespan,Q69),-PMT(return_on_assests_pct,pole_lifespan,Q69)))+R69 -> 91.91788088 | U69: 95.13343814 | V69: 102.5841196 | W69: 106.7408156 | X69: 109.7295584 | Y69: 112.8019861 | Z69: 115.9604417 | AA69: 119.207334 | AC69: 818.4693041 | AD69: 847.1017626 | AE69: 913.4452643 | AF69: 950.4579546 | AG69: 977.0707774 | AH69: 1004.428759 | AI69: 1032.552764 | AJ69: 1061.464242 | AL69: 100W LED Gerard V4 Cat Luminaire Capex | AM69: =IFERROR((_xlfn.XLOOKUP($AL69,'I_Asset number input'!$P$5:$P$316,'I_Asset number input'!G$5:G$316)),0) -> 152.25 | AN69: =IFERROR((_xlfn.XLOOKUP($AL69,'I_Asset number input'!$P$5:$P$316,'I_Asset number input'!H$5:H$316)),0) -> 153 | AO69: =IFERROR((_xlfn.XLOOKUP($AL69,'I_Asset number input'!$P$5:$P$316,'I_Asset number input'!I$5:I$316)),0) -> 155.295 | AP69: =IFERROR((_xlfn.XLOOKUP($AL69,'I_Asset number input'!$P$5:$P$316,'I_Asset number input'!J$5:J$316)),0) -> 157.624425 | AQ69: =IFERROR((_xlfn.XLOOKUP($AL69,'I_Asset number input'!$P$5:$P$316,'I_Asset number input'!K$5:K$316)),0) -> 159.9887914 | AR69: =IFERROR((_xlfn.XLOOKUP($AL69,'I_Asset number input'!$P$5:$P$316,'I_Asset number input'!L$5:L$316)),0) -> 162.3886232 | AS69: =IFERROR((_xlfn.XLOOKUP($AL69,'I_Asset number input'!$P$5:$P$316,'I_Asset number input'!M$5:M$316)),0) -> 164.8244526 | AU69: 14484.06596 | AV69: 15695.3703 | AW69: 16576.31496 | AX69: 17296.05855 | AY69: 18047.05342 | AZ69: 18830.65647 | BA69: 19648.28358
B70: 198W LED Gerard V2/V3 Cat Luminaire | C70: 652 | D70: TC3 - Capital Funded by Endeavour Energy | E70: P | F70: Minor Road - Standard | G70: Lamp | H70: Luminaire | I70: Direct | J70: 198W LED Gerard V2/V3 Cat Luminaire Capex | K70: =INDEX('I_Asset number input'!$C$5:$C$265,MATCH('C_CAPEX Tariff Summary'!B70,'I_Asset number input'!$D$5:$D$265,0)) -> LED | L70: 198W LED Gerard V2/V3 Cat Luminaire | M70: =INDEX('Capex OHs Allocation'!$J$23:$J$119,MATCH(B70,'Capex OHs Allocation'!$D$23:$D$119,0))+INDEX('Capex OHs Allocation'!$L$23:$L$119,MATCH('C_CAPEX Tariff Summary'!B70,'Capex OHs Allocation'!$D$23:$D$119,0)) -> 46.93412352 | N70: =INDEX('Stock Cost'!$T$24:$T$115,MATCH('C_CAPEX Tariff Summary'!B70,'Stock Cost'!$C$24:$C$115,0)) -> 736.2521332 | O70: =IF(OR(H70="Luminaire",H70="NW"),IF(E70="P",I_CAPEX!D$41,I_CAPEX!D$42),IF(H70="Bracket",IF(E70="P",I_CAPEX!D$43,I_CAPEX!D$44),IF(H70="Column",IF(E70="P",I_CAPEX!D$45,I_CAPEX!D$46),0))) -> 3.240037959 | P70: =INDEX('Capex OHs Allocation'!$M$23:$M$119,MATCH('C_CAPEX Tariff Summary'!B70,'Capex OHs Allocation'!$D$23:$D$119,0)) -> 175.9719978 | Q70: 962.3982925 | R70: =INDEX('C_OPEX Calc'!$AK$10:$AK$147,MATCH('C_CAPEX Tariff Summary'!B70,'C_OPEX Calc'!$D$10:$D$147,0)) -> 33.80896283 | T70: =IF(H70="Luminaire",IF((MID(B70,1,3)="LED"),-PMT(return_on_assests_pct,LED_lantern_lifespan,Q70),-PMT(return_on_assests_pct,trad_lantern_lifespan,Q70)),IF(H70="NW",-PMT(return_on_assests_pct,Nightvision_lifespan,Q70),-PMT(return_on_assests_pct,pole_lifespan,Q70)))+R70 -> 102.1364166 | U70: 105.7094482 | V70: 113.988424 | W70: 118.6072209 | X70: 121.9282231 | Y70: 125.3422134 | Z70: 128.8517954 | AA70: 132.4596456 | AC70: 962.3982925 | AD70: 996.0658096 | AE70: 1074.07591 | AF70: 1117.597335 | AG70: 1148.89006 | AH70: 1181.058982 | AI70: 1214.128633 | AJ70: 1248.124235 | AL70: 198W LED Gerard V2/V3 Cat Luminaire Capex | AM70: =IFERROR((_xlfn.XLOOKUP($AL70,'I_Asset number input'!$P$5:$P$316,'I_Asset number input'!G$5:G$316)),0) -> 241.57 | AN70: =IFERROR((_xlfn.XLOOKUP($AL70,'I_Asset number input'!$P$5:$P$316,'I_Asset number input'!H$5:H$316)),0) -> 248 | AO70: =IFERROR((_xlfn.XLOOKUP($AL70,'I_Asset number input'!$P$5:$P$316,'I_Asset number input'!I$5:I$316)),0) -> 251.72 | AP70: =IFERROR((_xlfn.XLOOKUP($AL70,'I_Asset number input'!$P$5:$P$316,'I_Asset number input'!J$5:J$316)),0) -> 255.4958 | AQ70: =IFERROR((_xlfn.XLOOKUP($AL70,'I_Asset number input'!$P$5:$P$316,'I_Asset number input'!K$5:K$316)),0) -> 259.328237 | AR70: =IFERROR((_xlfn.XLOOKUP($AL70,'I_Asset number input'!$P$5:$P$316,'I_Asset number input'!L$5:L$316)),0) -> 263.2181606 | AS70: =IFERROR((_xlfn.XLOOKUP($AL70,'I_Asset number input'!$P$5:$P$316,'I_Asset number input'!M$5:M$316)),0) -> 267.166433 | AU70: 25536.2314 | AV70: 28269.12914 | AW70: 29855.80966 | AX70: 31152.14891 | AY70: 32504.77522 | AZ70: 33916.13256 | BA70: 35388.77103
B71: 33W LED P3 Gerard | C71: 653 | D71: TC3 - Capital Funded by Endeavour Energy | E71: P | F71: Minor Road - Standard | G71: Lamp | H71: Luminaire | I71: Direct | J71: 33W LED P3 Gerard Capex | K71: LED | L71: 33W LED P3 Gerard | M71: =INDEX('Capex OHs Allocation'!$J$23:$J$119,MATCH(B71,'Capex OHs Allocation'!$D$23:$D$119,0))+INDEX('Capex OHs Allocation'!$L$23:$L$119,MATCH('C_CAPEX Tariff Summary'!B71,'Capex OHs Allocation'!$D$23:$D$119,0)) -> 46.93412352 | N71: =INDEX('Stock Cost'!$T$24:$T$115,MATCH('C_CAPEX Tariff Summary'!B71,'Stock Cost'!$C$24:$C$115,0)) -> 279.0008084 | O71: =IF(OR(H71="Luminaire",H71="NW"),IF(E71="P",I_CAPEX!D$41,I_CAPEX!D$42),IF(H71="Bracket",IF(E71="P",I_CAPEX!D$43,I_CAPEX!D$44),IF(H71="Column",IF(E71="P",I_CAPEX!D$45,I_CAPEX!D$46),0))) -> 3.240037959 | P71: =INDEX('Capex OHs Allocation'!$M$23:$M$119,MATCH('C_CAPEX Tariff Summary'!B71,'Capex OHs Allocation'!$D$23:$D$119,0)) -> 175.9719978 | Q71: 505.1469677 | R71: =INDEX('C_OPEX Calc'!$AK$10:$AK$147,MATCH('C_CAPEX Tariff Summary'!B71,'C_OPEX Calc'!$D$10:$D$147,0)) -> 29.8655006 | T71: =IF(H71="Luminaire",IF((MID(B71,1,3)="LED"),-PMT(return_on_assests_pct,LED_lantern_lifespan,Q71),-PMT(return_on_assests_pct,trad_lantern_lifespan,Q71)),IF(H71="NW",-PMT(return_on_assests_pct,Nightvision_lifespan,Q71),-PMT(return_on_assests_pct,pole_lifespan,Q71)))+R71 -> 65.7294525 | U71: 68.02886167 | V71: 73.35676098 | W71: 76.32916796 | X71: 78.46638466 | Y71: 80.66344343 | Z71: 82.92201985 | AA71: 85.2438364 | AC71: 505.1469677 | AD71: 522.8184913 | AE71: 563.7647045 | AF71: 586.6083814 | AG71: 603.0334161 | AH71: 619.9183517 | AI71: 637.2760656 | AJ71: 655.1197954 | AL71: 33W LED P3 Gerard Luminaire Capex | AM71: =IFERROR((_xlfn.XLOOKUP($AL71,'I_Asset number input'!$P$5:$P$316,'I_Asset number input'!G$5:G$316)),0) -> 196.91 | AN71: =IFERROR((_xlfn.XLOOKUP($AL71,'I_Asset number input'!$P$5:$P$316,'I_Asset number input'!H$5:H$316)),0) -> 6533 | AO71: =IFERROR((_xlfn.XLOOKUP($AL71,'I_Asset number input'!$P$5:$P$316,'I_Asset number input'!I$5:I$316)),0) -> 6630.995 | AP71: =IFERROR((_xlfn.XLOOKUP($AL71,'I_Asset number input'!$P$5:$P$316,'I_Asset number input'!J$5:J$316)),0) -> 6730.459925 | AQ71: =IFERROR((_xlfn.XLOOKUP($AL71,'I_Asset number input'!$P$5:$P$316,'I_Asset number input'!K$5:K$316)),0) -> 6831.416824 | AR71: =IFERROR((_xlfn.XLOOKUP($AL71,'I_Asset number input'!$P$5:$P$316,'I_Asset number input'!L$5:L$316)),0) -> 6933.888076 | AS71: =IFERROR((_xlfn.XLOOKUP($AL71,'I_Asset number input'!$P$5:$P$316,'I_Asset number input'!M$5:M$316)),0) -> 7037.896397 | AU71: 13395.56315 | AV71: 479239.7195 | AW71: 506138.3311 | AX71: 528114.8574 | AY71: 551045.6045 | AZ71: 574972.0047 | BA71: 599937.2891
B72: 60W LED RoadLED Midi Optic Tuner | C72: 659 | D72: TC3 - Capital Funded by Endeavour Energy | E72: P | F72: Minor Road - Standard | G72: Lamp | H72: Luminaire | I72: Direct | J72: 60W LED RoadLED Midi Optic Tuner Capex | K72: =INDEX('I_Asset number input'!$C$5:$C$265,MATCH('C_CAPEX Tariff Summary'!B72,'I_Asset number input'!$D$5:$D$265,0)) -> LED | L72: 60W LED RoadLED Midi Optic Tuner | M72: =INDEX('Capex OHs Allocation'!$J$23:$J$119,MATCH(B72,'Capex OHs Allocation'!$D$23:$D$119,0))+INDEX('Capex OHs Allocation'!$L$23:$L$119,MATCH('C_CAPEX Tariff Summary'!B72,'Capex OHs Allocation'!$D$23:$D$119,0)) -> 46.93412352 | N72: =INDEX('Stock Cost'!$T$24:$T$115,MATCH('C_CAPEX Tariff Summary'!B72,'Stock Cost'!$C$24:$C$115,0)) -> 470.5254416 | O72: =IF(OR(H72="Luminaire",H72="NW"),IF(E72="P",I_CAPEX!D$41,I_CAPEX!D$42),IF(H72="Bracket",IF(E72="P",I_CAPEX!D$43,I_CAPEX!D$44),IF(H72="Column",IF(E72="P",I_CAPEX!D$45,I_CAPEX!D$46),0))) -> 3.240037959 | P72: =INDEX('Capex OHs Allocation'!$M$23:$M$119,MATCH('C_CAPEX Tariff Summary'!B72,'Capex OHs Allocation'!$D$23:$D$119,0)) -> 175.9719978 | Q72: 696.6716009 | R72: =INDEX('C_OPEX Calc'!$AK$10:$AK$147,MATCH('C_CAPEX Tariff Summary'!B72,'C_OPEX Calc'!$D$10:$D$147,0)) -> 33.80896283 | T72: =IF(H72="Luminaire",IF((MID(B72,1,3)="LED"),-PMT(return_on_assests_pct,LED_lantern_lifespan,Q72),-PMT(return_on_assests_pct,trad_lantern_lifespan,Q72)),IF(H72="NW",-PMT(return_on_assests_pct,Nightvision_lifespan,Q72),-PMT(return_on_assests_pct,pole_lifespan,Q72)))+R72 -> 83.27060148 | U72: 86.18365153 | V72: 92.93340165 | W72: 96.69905172 | X72: 99.40662517 | Y72: 102.1900107 | Z72: 105.051331 | AA72: 107.9927682 | AC72: 696.6716009 | AD72: 721.0432184 | AE72: 777.5140393 | AF72: 809.018813 | AG72: 831.6713398 | AH72: 854.9581373 | AI72: 878.8969651 | AJ72: 903.5060802 | AL72: =J72 -> 60W LED RoadLED Midi Optic Tuner Capex | AM72: =IFERROR((_xlfn.XLOOKUP($AL72,'I_Asset number input'!$P$5:$P$316,'I_Asset number input'!G$5:G$316)),0) -> 0 | AN72: =IFERROR((_xlfn.XLOOKUP($AL72,'I_Asset number input'!$P$5:$P$316,'I_Asset number input'!H$5:H$316)),0) -> 0 | AO72: =IFERROR((_xlfn.XLOOKUP($AL72,'I_Asset number input'!$P$5:$P$316,'I_Asset number input'!I$5:I$316)),0) -> 0 | AP72: =IFERROR((_xlfn.XLOOKUP($AL72,'I_Asset number input'!$P$5:$P$316,'I_Asset number input'!J$5:J$316)),0) -> 0 | AQ72: =IFERROR((_xlfn.XLOOKUP($AL72,'I_Asset number input'!$P$5:$P$316,'I_Asset number input'!K$5:K$316)),0) -> 0 | AR72: =IFERROR((_xlfn.XLOOKUP($AL72,'I_Asset number input'!$P$5:$P$316,'I_Asset number input'!L$5:L$316)),0) -> 0 | AS72: =IFERROR((_xlfn.XLOOKUP($AL72,'I_Asset number input'!$P$5:$P$316,'I_Asset number input'!M$5:M$316)),0) -> 0 | AU72: 0 | AV72: 0 | AW72: 0 | AX72: 0 | AY72: 0 | AZ72: 0 | BA72: 0
B73: 80W LED RoadLED Midi Optic Tuner | C73: 660 | D73: TC3 - Capital Funded by Endeavour Energy | E73: P | F73: Minor Road - Standard | G73: Lamp | H73: Luminaire | I73: Direct | J73: 80W LED RoadLED Midi Optic Tuner Capex | K73: =INDEX('I_Asset number input'!$C$5:$C$265,MATCH('C_CAPEX Tariff Summary'!B73,'I_Asset number input'!$D$5:$D$265,0)) -> LED | L73: 80W LED RoadLED Midi Optic Tuner | M73: =INDEX('Capex OHs Allocation'!$J$23:$J$119,MATCH(B73,'Capex OHs Allocation'!$D$23:$D$119,0))+INDEX('Capex OHs Allocation'!$L$23:$L$119,MATCH('C_CAPEX Tariff Summary'!B73,'Capex OHs Allocation'!$D$23:$D$119,0)) -> 46.93412352 | N73: =INDEX('Stock Cost'!$T$24:$T$115,MATCH('C_CAPEX Tariff Summary'!B73,'Stock Cost'!$C$24:$C$115,0)) -> 557.0588562 | O73: =IF(OR(H73="Luminaire",H73="NW"),IF(E73="P",I_CAPEX!D$41,I_CAPEX!D$42),IF(H73="Bracket",IF(E73="P",I_CAPEX!D$43,I_CAPEX!D$44),IF(H73="Column",IF(E73="P",I_CAPEX!D$45,I_CAPEX!D$46),0))) -> 3.240037959 | P73: =INDEX('Capex OHs Allocation'!$M$23:$M$119,MATCH('C_CAPEX Tariff Summary'!B73,'Capex OHs Allocation'!$D$23:$D$119,0)) -> 175.9719978 | Q73: 783.2050155 | R73: =INDEX('C_OPEX Calc'!$AK$10:$AK$147,MATCH('C_CAPEX Tariff Summary'!B73,'C_OPEX Calc'!$D$10:$D$147,0)) -> 33.80896283 | T73: =IF(H73="Luminaire",IF((MID(B73,1,3)="LED"),-PMT(return_on_assests_pct,LED_lantern_lifespan,Q73),-PMT(return_on_assests_pct,trad_lantern_lifespan,Q73)),IF(H73="NW",-PMT(return_on_assests_pct,Nightvision_lifespan,Q73),-PMT(return_on_assests_pct,pole_lifespan,Q73)))+R73 -> 89.4142199 | U73: 92.54219176 | V73: 99.78993143 | W73: =V73*(1+CPIFY25) -> 103.8334072 | X73: =W73*(1+CPIFY26) -> 106.7407426 | Y73: =X73*(1+CPIFY27) -> 109.7294834 | Z73: =Y73*(1+CPIFY28) -> 112.801909 | AA73: =Z73*(1+CPIFY29) -> 115.9603624 | AC73: 783.2050155 | AD73: =AC73*(1+CPIFY23) -> 810.6038257 | AE73: =AD73*(1+CPIFY24) -> 874.0888739 | AF73: =AE73*(1+CPIFY25) -> 909.5068482 | AG73: =AF73*(1+CPIFY26) -> 934.9730399 | AH73: =AG73*(1+CPIFY27) -> 961.152285 | AI73: =AH73*(1+CPIFY28) -> 988.064549 | AJ73: =AI73*(1+CPIFY29) -> 1015.730356 | AL73: 80W LED RoadLED Midi Optic Tuner Capex | AM73: =IFERROR((_xlfn.XLOOKUP($AL73,'I_Asset number input'!$P$5:$P$316,'I_Asset number input'!G$5:G$316)),0) -> 0 | AN73: =IFERROR((_xlfn.XLOOKUP($AL73,'I_Asset number input'!$P$5:$P$316,'I_Asset number input'!H$5:H$316)),0) -> 0 | AO73: =IFERROR((_xlfn.XLOOKUP($AL73,'I_Asset number input'!$P$5:$P$316,'I_Asset number input'!I$5:I$316)),0) -> 0 | AP73: =IFERROR((_xlfn.XLOOKUP($AL73,'I_Asset number input'!$P$5:$P$316,'I_Asset number input'!J$5:J$316)),0) -> 0 | AQ73: =IFERROR((_xlfn.XLOOKUP($AL73,'I_Asset number input'!$P$5:$P$316,'I_Asset number input'!K$5:K$316)),0) -> 0 | AR73: =IFERROR((_xlfn.XLOOKUP($AL73,'I_Asset number input'!$P$5:$P$316,'I_Asset number input'!L$5:L$316)),0) -> 0 | AS73: =IFERROR((_xlfn.XLOOKUP($AL73,'I_Asset number input'!$P$5:$P$316,'I_Asset number input'!M$5:M$316)),0) -> 0 | AU73: 0 | AV73: 0 | AW73: 0 | AX73: 0 | AY73: 0 | AZ73: 0 | BA73: 0
B74: 70W LED RoadLED Midi | C74: 661 | D74: TC3 - Capital Funded by Endeavour Energy | E74: P | F74: Minor Road - Standard | G74: Lamp | H74: Luminaire | I74: Direct | J74: 70W LED RoadLED Midi Capex | K74: =INDEX('I_Asset number input'!$C$5:$C$265,MATCH('C_CAPEX Tariff Summary'!B74,'I_Asset number input'!$D$5:$D$265,0)) -> LED | L74: 70W LED RoadLED Midi | M74: =INDEX('Capex OHs Allocation'!$J$23:$J$119,MATCH(B74,'Capex OHs Allocation'!$D$23:$D$119,0))+INDEX('Capex OHs Allocation'!$L$23:$L$119,MATCH('C_CAPEX Tariff Summary'!B74,'Capex OHs Allocation'!$D$23:$D$119,0)) -> 46.93412352 | N74: =INDEX('Stock Cost'!$T$24:$T$115,MATCH('C_CAPEX Tariff Summary'!B74,'Stock Cost'!$C$24:$C$115,0)) -> 372.85 | O74: =IF(OR(H74="Luminaire",H74="NW"),IF(E74="P",I_CAPEX!D$41,I_CAPEX!D$42),IF(H74="Bracket",IF(E74="P",I_CAPEX!D$43,I_CAPEX!D$44),IF(H74="Column",IF(E74="P",I_CAPEX!D$45,I_CAPEX!D$46),0))) -> 3.240037959 | P74: =INDEX('Capex OHs Allocation'!$M$23:$M$119,MATCH('C_CAPEX Tariff Summary'!B74,'Capex OHs Allocation'!$D$23:$D$119,0)) -> 175.9719978 | Q74: 598.9961593 | R74: =INDEX('C_OPEX Calc'!$AK$10:$AK$147,MATCH('C_CAPEX Tariff Summary'!B74,'C_OPEX Calc'!$D$10:$D$147,0)) -> 33.80896283 | T74: =IF(H74="Luminaire",IF((MID(B74,1,3)="LED"),-PMT(return_on_assests_pct,LED_lantern_lifespan,Q74),-PMT(return_on_assests_pct,trad_lantern_lifespan,Q74)),IF(H74="NW",-PMT(return_on_assests_pct,Nightvision_lifespan,Q74),-PMT(return_on_assests_pct,pole_lifespan,Q74)))+R74 -> 76.33593184 | U74: 79.0063868 | V74: 85.19402632 | W74: 88.64607785 | X74: 91.12816803 | Y74: 93.67975673 | Z74: 96.30278992 | AA74: 98.99926804 | AC74: 598.9961593 | AD74: 619.9508031 | AE74: 668.5042461 | AF74: 695.5919563 | AG74: 715.0685311 | AH74: 735.09045 | AI74: 755.6729826 | AJ74: 776.8318261 | AL74: 70W LED RoadLED Midi Capex | AM74: =IFERROR((_xlfn.XLOOKUP($AL74,'I_Asset number input'!$P$5:$P$316,'I_Asset number input'!G$5:G$316)),0) -> 137.025 | AN74: =IFERROR((_xlfn.XLOOKUP($AL74,'I_Asset number input'!$P$5:$P$316,'I_Asset number input'!H$5:H$316)),0) -> 2593 | AO74: =IFERROR((_xlfn.XLOOKUP($AL74,'I_Asset number input'!$P$5:$P$316,'I_Asset number input'!I$5:I$316)),0) -> 2631.895 | AP74: =IFERROR((_xlfn.XLOOKUP($AL74,'I_Asset number input'!$P$5:$P$316,'I_Asset number input'!J$5:J$316)),0) -> 2671.373425 | AQ74: =IFERROR((_xlfn.XLOOKUP($AL74,'I_Asset number input'!$P$5:$P$316,'I_Asset number input'!K$5:K$316)),0) -> 2711.444026 | AR74: =IFERROR((_xlfn.XLOOKUP($AL74,'I_Asset number input'!$P$5:$P$316,'I_Asset number input'!L$5:L$316)),0) -> 2752.115687 | AS74: =IFERROR((_xlfn.XLOOKUP($AL74,'I_Asset number input'!$P$5:$P$316,'I_Asset number input'!M$5:M$316)),0) -> 2793.397422 | AU74: 10825.85015 | AV74: 220908.1103 | AW74: 233307.1691 | AX74: 243437.3663 | AY74: 254007.4168 | AZ74: 265036.4188 | BA74: 276544.3001
B75: 80W LED RoadLED Midi | C75: 662 | D75: TC3 - Capital Funded by Endeavour Energy | E75: P | F75: Minor Road - Standard | G75: Lamp | H75: Luminaire | I75: Direct | J75: 80W LED RoadLED Midi Capex | K75: =INDEX('I_Asset number input'!$C$5:$C$265,MATCH('C_CAPEX Tariff Summary'!B75,'I_Asset number input'!$D$5:$D$265,0)) -> LED | L75: 80W LED RoadLED Midi | M75: =INDEX('Capex OHs Allocation'!$J$23:$J$119,MATCH(B75,'Capex OHs Allocation'!$D$23:$D$119,0))+INDEX('Capex OHs Allocation'!$L$23:$L$119,MATCH('C_CAPEX Tariff Summary'!B75,'Capex OHs Allocation'!$D$23:$D$119,0)) -> 46.93412352 | N75: =INDEX('Stock Cost'!$T$24:$T$115,MATCH('C_CAPEX Tariff Summary'!B75,'Stock Cost'!$C$24:$C$115,0)) -> 380.71 | O75: =IF(OR(H75="Luminaire",H75="NW"),IF(E75="P",I_CAPEX!D$41,I_CAPEX!D$42),IF(H75="Bracket",IF(E75="P",I_CAPEX!D$43,I_CAPEX!D$44),IF(H75="Column",IF(E75="P",I_CAPEX!D$45,I_CAPEX!D$46),0))) -> 3.240037959 | P75: =INDEX('Capex OHs Allocation'!$M$23:$M$119,MATCH('C_CAPEX Tariff Summary'!B75,'Capex OHs Allocation'!$D$23:$D$119,0)) -> 175.9719978 | Q75: 606.8561593 | R75: =INDEX('C_OPEX Calc'!$AK$10:$AK$147,MATCH('C_CAPEX Tariff Summary'!B75,'C_OPEX Calc'!$D$10:$D$147,0)) -> 33.80896283 | T75: =IF(H75="Luminaire",IF((MID(B75,1,3)="LED"),-PMT(return_on_assests_pct,LED_lantern_lifespan,Q75),-PMT(return_on_assests_pct,trad_lantern_lifespan,Q75)),IF(H75="NW",-PMT(return_on_assests_pct,Nightvision_lifespan,Q75),-PMT(return_on_assests_pct,pole_lifespan,Q75)))+R75 -> 76.89396877 | U75: 79.58394549 | V75: 85.81681839 | W75: 89.29410537 | X75: 91.79434032 | Y75: 94.36458185 | Z75: 97.00679014 | AA75: 99.72298027 | AC75: 606.8561593 | AD75: 628.085769 | AE75: 677.276328 | AF75: 704.7194819 | AG75: 724.4516274 | AH75: 744.736273 | AI75: 765.5888886 | AJ75: 787.0253775 | AL75: 80W LED RoadLED Midi Capex | AM75: =IFERROR((_xlfn.XLOOKUP($AL75,'I_Asset number input'!$P$5:$P$316,'I_Asset number input'!G$5:G$316)),0) -> 474.005 | AN75: =IFERROR((_xlfn.XLOOKUP($AL75,'I_Asset number input'!$P$5:$P$316,'I_Asset number input'!H$5:H$316)),0) -> 14560 | AO75: =IFERROR((_xlfn.XLOOKUP($AL75,'I_Asset number input'!$P$5:$P$316,'I_Asset number input'!I$5:I$316)),0) -> 14778.4 | AP75: =IFERROR((_xlfn.XLOOKUP($AL75,'I_Asset number input'!$P$5:$P$316,'I_Asset number input'!J$5:J$316)),0) -> 15000.076 | AQ75: =IFERROR((_xlfn.XLOOKUP($AL75,'I_Asset number input'!$P$5:$P$316,'I_Asset number input'!K$5:K$316)),0) -> 15225.07714 | AR75: =IFERROR((_xlfn.XLOOKUP($AL75,'I_Asset number input'!$P$5:$P$316,'I_Asset number input'!L$5:L$316)),0) -> 15453.4533 | AS75: =IFERROR((_xlfn.XLOOKUP($AL75,'I_Asset number input'!$P$5:$P$316,'I_Asset number input'!M$5:M$316)),0) -> 15685.2551 | AU75: 37723.18808 | AV75: 1249492.876 | AW75: 1319624.007 | AX75: 1376922.081 | AY75: 1436708.038 | AZ75: 1499089.901 | BA75: 1564180.384
B76: 165W LED RoadLED Midi | C76: 664 | D76: TC3 - Capital Funded by Endeavour Energy | E76: P | F76: Minor Road - Standard | G76: Lamp | H76: Luminaire | I76: Direct | J76: 165W LED RoadLED Midi Capex | K76: =INDEX('I_Asset number input'!$C$5:$C$265,MATCH('C_CAPEX Tariff Summary'!B76,'I_Asset number input'!$D$5:$D$265,0)) -> LED | L76: 165W LED RoadLED Midi | M76: =INDEX('Capex OHs Allocation'!$J$23:$J$119,MATCH(B76,'Capex OHs Allocation'!$D$23:$D$119,0))+INDEX('Capex OHs Allocation'!$L$23:$L$119,MATCH('C_CAPEX Tariff Summary'!B76,'Capex OHs Allocation'!$D$23:$D$119,0)) -> 46.93412352 | N76: =INDEX('Stock Cost'!$T$24:$T$115,MATCH('C_CAPEX Tariff Summary'!B76,'Stock Cost'!$C$24:$C$115,0)) -> 411.81 | O76: =IF(OR(H76="Luminaire",H76="NW"),IF(E76="P",I_CAPEX!D$41,I_CAPEX!D$42),IF(H76="Bracket",IF(E76="P",I_CAPEX!D$43,I_CAPEX!D$44),IF(H76="Column",IF(E76="P",I_CAPEX!D$45,I_CAPEX!D$46),0))) -> 3.240037959 | P76: =INDEX('Capex OHs Allocation'!$M$23:$M$119,MATCH('C_CAPEX Tariff Summary'!B76,'Capex OHs Allocation'!$D$23:$D$119,0)) -> 175.9719978 | Q76: 637.9561593 | R76: =INDEX('C_OPEX Calc'!$AK$10:$AK$147,MATCH('C_CAPEX Tariff Summary'!B76,'C_OPEX Calc'!$D$10:$D$147,0)) -> 33.80896283 | T76: =IF(H76="Luminaire",IF((MID(B76,1,3)="LED"),-PMT(return_on_assests_pct,LED_lantern_lifespan,Q76),-PMT(return_on_assests_pct,trad_lantern_lifespan,Q76)),IF(H76="NW",-PMT(return_on_assests_pct,Nightvision_lifespan,Q76),-PMT(return_on_assests_pct,pole_lifespan,Q76)))+R76 -> 79.10197748 | U76: 81.86919683 | V76: 88.28104654 | W76: 91.85818374 | X76: 94.43021289 | Y76: 97.07425885 | Z76: 99.7923381 | AA76: 102.5865236 | AC76: 637.9561593 | AD76: 660.2737383 | AE76: 711.9852017 | AF76: 740.834755 | AG76: 761.5781281 | AH76: 782.9023157 | AI76: 804.8235805 | AJ76: 827.3586408 | AL76: 165W LED RoadLED Midi Capex | AM76: =IFERROR((_xlfn.XLOOKUP($AL76,'I_Asset number input'!$P$5:$P$316,'I_Asset number input'!G$5:G$316)),0) -> 1129.695 | AN76: =IFERROR((_xlfn.XLOOKUP($AL76,'I_Asset number input'!$P$5:$P$316,'I_Asset number input'!H$5:H$316)),0) -> 21471 | AO76: =IFERROR((_xlfn.XLOOKUP($AL76,'I_Asset number input'!$P$5:$P$316,'I_Asset number input'!I$5:I$316)),0) -> 21793.065 | AP76: =IFERROR((_xlfn.XLOOKUP($AL76,'I_Asset number input'!$P$5:$P$316,'I_Asset number input'!J$5:J$316)),0) -> 22119.96097 | AQ76: =IFERROR((_xlfn.XLOOKUP($AL76,'I_Asset number input'!$P$5:$P$316,'I_Asset number input'!K$5:K$316)),0) -> 22451.76039 | AR76: =IFERROR((_xlfn.XLOOKUP($AL76,'I_Asset number input'!$P$5:$P$316,'I_Asset number input'!L$5:L$316)),0) -> 22788.5368 | AS76: =IFERROR((_xlfn.XLOOKUP($AL76,'I_Asset number input'!$P$5:$P$316,'I_Asset number input'!M$5:M$316)),0) -> 23130.36485 | AU76: 92487.22231 | AV76: 1895482.35 | AW76: 2001871.369 | AX76: 2088792.624 | AY76: 2179488 | AZ76: 2274121.369 | BA76: 2372863.718
B77: 150W Sodium - STANDARD | C77: 559 | D77: TC3 - Capital Funded by Endeavour Energy | E77: V | F77: Major Road - Standard | G77: Lamp | H77: Luminaire | I77: Direct | J77: 150W Sodium - STANDARD Capex | K77: =INDEX('I_Asset number input'!$C$5:$C$265,MATCH('C_CAPEX Tariff Summary'!B77,'I_Asset number input'!$D$5:$D$265,0)) -> HIGH LOW PRESSURE SODIUM | L77: 150W Sodium - STANDARD | M77: =INDEX('Capex OHs Allocation'!$J$23:$J$119,MATCH(B77,'Capex OHs Allocation'!$D$23:$D$119,0))+INDEX('Capex OHs Allocation'!$L$23:$L$119,MATCH('C_CAPEX Tariff Summary'!B77,'Capex OHs Allocation'!$D$23:$D$119,0)) -> 46.93412352 | N77: =INDEX('Stock Cost'!$T$24:$T$115,MATCH('C_CAPEX Tariff Summary'!B77,'Stock Cost'!$C$24:$C$115,0)) -> 259.5552975 | O77: =IF(OR(H77="Luminaire",H77="NW"),IF(E77="P",I_CAPEX!D$41,I_CAPEX!D$42),IF(H77="Bracket",IF(E77="P",I_CAPEX!D$43,I_CAPEX!D$44),IF(H77="Column",IF(E77="P",I_CAPEX!D$45,I_CAPEX!D$46),0))) -> 32.86324216 | P77: =INDEX('Capex OHs Allocation'!$M$23:$M$119,MATCH('C_CAPEX Tariff Summary'!B77,'Capex OHs Allocation'!$D$23:$D$119,0)) -> 175.9719978 | Q77: 515.324661 | R77: =INDEX('C_OPEX Calc'!$AK$10:$AK$147,MATCH('C_CAPEX Tariff Summary'!B77,'C_OPEX Calc'!$D$10:$D$147,0)) -> 49.92918944 | T77: =IF(H77="Luminaire",IF((MID(B77,1,3)="LED"),-PMT(return_on_assests_pct,LED_lantern_lifespan,Q77),-PMT(return_on_assests_pct,trad_lantern_lifespan,Q77)),IF(H77="NW",-PMT(return_on_assests_pct,Nightvision_lifespan,Q77),-PMT(return_on_assests_pct,pole_lifespan,Q77)))+R77 -> 86.51572769 | U77: 89.54230178 | V77: 96.5550954 | W77: 100.4674961 | X77: 103.2805859 | Y77: 106.1724424 | Z77: 109.1452707 | AA77: 112.2013383 | AC77: 515.324661 | AD77: 533.3522302 | AE77: 575.1234271 | AF77: 598.427358 | AG77: 615.183324 | AH77: 632.4084571 | AI77: 650.1158939 | AJ77: 668.3191389 | AL77: 150W Sodium - STANDARD Capex | AM77: =IFERROR((_xlfn.XLOOKUP($AL77,'I_Asset number input'!$P$5:$P$316,'I_Asset number input'!G$5:G$316)),0) -> 3015.565 | AN77: =IFERROR((_xlfn.XLOOKUP($AL77,'I_Asset number input'!$P$5:$P$316,'I_Asset number input'!H$5:H$316)),0) -> 0 | AO77: =IFERROR((_xlfn.XLOOKUP($AL77,'I_Asset number input'!$P$5:$P$316,'I_Asset number input'!I$5:I$316)),0) -> 0 | AP77: =IFERROR((_xlfn.XLOOKUP($AL77,'I_Asset number input'!$P$5:$P$316,'I_Asset number input'!J$5:J$316)),0) -> 0 | AQ77: =IFERROR((_xlfn.XLOOKUP($AL77,'I_Asset number input'!$P$5:$P$316,'I_Asset number input'!K$5:K$316)),0) -> 0 | AR77: =IFERROR((_xlfn.XLOOKUP($AL77,'I_Asset number input'!$P$5:$P$316,'I_Asset number input'!L$5:L$316)),0) -> 0 | AS77: =IFERROR((_xlfn.XLOOKUP($AL77,'I_Asset number input'!$P$5:$P$316,'I_Asset number input'!M$5:M$316)),0) -> 0 | AU77: 270020.6313 | AV77: 0 | AW77: 0 | AX77: 0 | AY77: 0 | AZ77: 0 | BA77: 0
B78: 150W Metal Halide - STANDARD | C78: 560 | D78: TC3 - Capital Funded by Endeavour Energy | E78: V | F78: Major Road - Standard | G78: Lamp | H78: Luminaire | I78: Direct | J78: 150W Metal Halide - STANDARD Capex | K78: =INDEX('I_Asset number input'!$C$5:$C$265,MATCH('C_CAPEX Tariff Summary'!B78,'I_Asset number input'!$D$5:$D$265,0)) -> METAL HALIDE | L78: 150W Metal Halide - STANDARD | M78: =INDEX('Capex OHs Allocation'!$J$23:$J$119,MATCH(B78,'Capex OHs Allocation'!$D$23:$D$119,0))+INDEX('Capex OHs Allocation'!$L$23:$L$119,MATCH('C_CAPEX Tariff Summary'!B78,'Capex OHs Allocation'!$D$23:$D$119,0)) -> 46.93412352 | N78: =INDEX('Stock Cost'!$T$24:$T$115,MATCH('C_CAPEX Tariff Summary'!B78,'Stock Cost'!$C$24:$C$115,0)) -> 274.2290088 | O78: =IF(OR(H78="Luminaire",H78="NW"),IF(E78="P",I_CAPEX!D$41,I_CAPEX!D$42),IF(H78="Bracket",IF(E78="P",I_CAPEX!D$43,I_CAPEX!D$44),IF(H78="Column",IF(E78="P",I_CAPEX!D$45,I_CAPEX!D$46),0))) -> 32.86324216 | P78: =INDEX('Capex OHs Allocation'!$M$23:$M$119,MATCH('C_CAPEX Tariff Summary'!B78,'Capex OHs Allocation'!$D$23:$D$119,0)) -> 175.9719978 | Q78: 529.9983723 | R78: =INDEX('C_OPEX Calc'!$AK$10:$AK$147,MATCH('C_CAPEX Tariff Summary'!B78,'C_OPEX Calc'!$D$10:$D$147,0)) -> 53.41930134 | T78: =IF(H78="Luminaire",IF((MID(B78,1,3)="LED"),-PMT(return_on_assests_pct,LED_lantern_lifespan,Q78),-PMT(return_on_assests_pct,trad_lantern_lifespan,Q78)),IF(H78="NW",-PMT(return_on_assests_pct,Nightvision_lifespan,Q78),-PMT(return_on_assests_pct,pole_lifespan,Q78)))+R78 -> 91.04763002 | U78: 94.23274336 | V78: 101.612884 | W78: 105.7302256 | X78: 108.690672 | Y78: 111.7340108 | Z78: 114.8625631 | AA78: 118.0787148 | AC78: 529.9983723 | AD78: 548.539271 | AE78: 591.4998899 | AF78: 615.4673931 | AG78: 632.7004801 | AH78: 650.4160936 | AI78: 668.6277442 | AJ78: 687.349321 | AL78: 150W Metal Halide - STANDARD Capex | AM78: =IFERROR((_xlfn.XLOOKUP($AL78,'I_Asset number input'!$P$5:$P$316,'I_Asset number input'!G$5:G$316)),0) -> 267.96 | AN78: =IFERROR((_xlfn.XLOOKUP($AL78,'I_Asset number input'!$P$5:$P$316,'I_Asset number input'!H$5:H$316)),0) -> 0 | AO78: =IFERROR((_xlfn.XLOOKUP($AL78,'I_Asset number input'!$P$5:$P$316,'I_Asset number input'!I$5:I$316)),0) -> 0 | AP78: =IFERROR((_xlfn.XLOOKUP($AL78,'I_Asset number input'!$P$5:$P$316,'I_Asset number input'!J$5:J$316)),0) -> 0 | AQ78: =IFERROR((_xlfn.XLOOKUP($AL78,'I_Asset number input'!$P$5:$P$316,'I_Asset number input'!K$5:K$316)),0) -> 0 | AR78: =IFERROR((_xlfn.XLOOKUP($AL78,'I_Asset number input'!$P$5:$P$316,'I_Asset number input'!L$5:L$316)),0) -> 0 | AS78: =IFERROR((_xlfn.XLOOKUP($AL78,'I_Asset number input'!$P$5:$P$316,'I_Asset number input'!M$5:M$316)),0) -> 0 | AU78: 25250.60591 | AV78: 0 | AW78: 0 | AX78: 0 | AY78: 0 | AZ78: 0 | BA78: 0
B79: 250W Sodium - STANDARD | C79: 561 | D79: TC3 - Capital Funded by Endeavour Energy | E79: V | F79: Major Road - Standard | G79: Lamp | H79: Luminaire | I79: Direct | J79: 250W Sodium - STANDARD Capex | K79: =INDEX('I_Asset number input'!$C$5:$C$265,MATCH('C_CAPEX Tariff Summary'!B79,'I_Asset number input'!$D$5:$D$265,0)) -> HIGH LOW PRESSURE SODIUM | L79: 250W Sodium - STANDARD | M79: =INDEX('Capex OHs Allocation'!$J$23:$J$119,MATCH(B79,'Capex OHs Allocation'!$D$23:$D$119,0))+INDEX('Capex OHs Allocation'!$L$23:$L$119,MATCH('C_CAPEX Tariff Summary'!B79,'Capex OHs Allocation'!$D$23:$D$119,0)) -> 46.93412352 | N79: =INDEX('Stock Cost'!$T$24:$T$115,MATCH('C_CAPEX Tariff Summary'!B79,'Stock Cost'!$C$24:$C$115,0)) -> 287.835834 | O79: =IF(OR(H79="Luminaire",H79="NW"),IF(E79="P",I_CAPEX!D$41,I_CAPEX!D$42),IF(H79="Bracket",IF(E79="P",I_CAPEX!D$43,I_CAPEX!D$44),IF(H79="Column",IF(E79="P",I_CAPEX!D$45,I_CAPEX!D$46),0))) -> 32.86324216 | P79: =INDEX('Capex OHs Allocation'!$M$23:$M$119,MATCH('C_CAPEX Tariff Summary'!B79,'Capex OHs Allocation'!$D$23:$D$119,0)) -> 175.9719978 | Q79: =SUM(M79:P79) -> 543.6051975 | R79: =INDEX('C_OPEX Calc'!$AK$10:$AK$147,MATCH('C_CAPEX Tariff Summary'!B79,'C_OPEX Calc'!$D$10:$D$147,0)) -> 52.36041456 | T79: =IF(H79="Luminaire",IF((MID(B79,1,3)="LED"),-PMT(return_on_assests_pct,LED_lantern_lifespan,Q79),-PMT(return_on_assests_pct,trad_lantern_lifespan,Q79)),IF(H79="NW",-PMT(return_on_assests_pct,Nightvision_lifespan,Q79),-PMT(return_on_assests_pct,pole_lifespan,Q79)))+R79 -> 90.95478788 | U79: =T79*(1+CPIFY23) -> 94.13665333 | V79: 101.5092684 | W79: 105.6224115 | X79: 108.579839 | Y79: 111.6200745 | Z79: 114.7454366 | AA79: 117.9583089 | AC79: =Q79 -> 543.6051975 | AD79: 562.6221028 | AE79: 606.6856641 | AF79: 631.268493 | AG79: 648.9440108 | AH79: 667.1144431 | AI79: 685.7936475 | AJ79: 704.9958696 | AL79: 250W Sodium - STANDARD Capex | AM79: =IFERROR((_xlfn.XLOOKUP($AL79,'I_Asset number input'!$P$5:$P$316,'I_Asset number input'!G$5:G$316)),0) -> 4789.785 | AN79: =IFERROR((_xlfn.XLOOKUP($AL79,'I_Asset number input'!$P$5:$P$316,'I_Asset number input'!H$5:H$316)),0) -> 0 | AO79: =IFERROR((_xlfn.XLOOKUP($AL79,'I_Asset number input'!$P$5:$P$316,'I_Asset number input'!I$5:I$316)),0) -> 0 | AP79: =IFERROR((_xlfn.XLOOKUP($AL79,'I_Asset number input'!$P$5:$P$316,'I_Asset number input'!J$5:J$316)),0) -> 0 | AQ79: =IFERROR((_xlfn.XLOOKUP($AL79,'I_Asset number input'!$P$5:$P$316,'I_Asset number input'!K$5:K$316)),0) -> 0 | AR79: =IFERROR((_xlfn.XLOOKUP($AL79,'I_Asset number input'!$P$5:$P$316,'I_Asset number input'!L$5:L$316)),0) -> 0 | AS79: =IFERROR((_xlfn.XLOOKUP($AL79,'I_Asset number input'!$P$5:$P$316,'I_Asset number input'!M$5:M$316)),0) -> 0 | AU79: =U79*AM79 -> 450894.3301 | AV79: =V79*AN79 -> 0 | AW79: =W79*AO79 -> 0 | AX79: =X79*AP79 -> 0 | AY79: =Y79*AQ79 -> 0 | AZ79: =Z79*AR79 -> 0 | BA79: =AA79*AS79 -> 0
B80: 250W Metal Halide - STANDARD | C80: 562 | D80: TC3 - Capital Funded by Endeavour Energy | E80: V | F80: Major Road - Standard | G80: Lamp | H80: Luminaire | I80: Direct | J80: 250W Metal Halide - STANDARD Capex | K80: =INDEX('I_Asset number input'!$C$5:$C$265,MATCH('C_CAPEX Tariff Summary'!B80,'I_Asset number input'!$D$5:$D$265,0)) -> METAL HALIDE | L80: 250W Metal Halide - STANDARD | M80: =INDEX('Capex OHs Allocation'!$J$23:$J$119,MATCH(B80,'Capex OHs Allocation'!$D$23:$D$119,0))+INDEX('Capex OHs Allocation'!$L$23:$L$119,MATCH('C_CAPEX Tariff Summary'!B80,'Capex OHs Allocation'!$D$23:$D$119,0)) -> 46.93412352 | N80: =INDEX('Stock Cost'!$T$24:$T$115,MATCH('C_CAPEX Tariff Summary'!B80,'Stock Cost'!$C$24:$C$115,0)) -> 289.3858385 | O80: =IF(OR(H80="Luminaire",H80="NW"),IF(E80="P",I_CAPEX!D$41,I_CAPEX!D$42),IF(H80="Bracket",IF(E80="P",I_CAPEX!D$43,I_CAPEX!D$44),IF(H80="Column",IF(E80="P",I_CAPEX!D$45,I_CAPEX!D$46),0))) -> 32.86324216 | P80: =INDEX('Capex OHs Allocation'!$M$23:$M$119,MATCH('C_CAPEX Tariff Summary'!B80,'Capex OHs Allocation'!$D$23:$D$119,0)) -> 175.9719978 | Q80: 545.155202 | R80: =INDEX('C_OPEX Calc'!$AK$10:$AK$147,MATCH('C_CAPEX Tariff Summary'!B80,'C_OPEX Calc'!$D$10:$D$147,0)) -> 52.7291811 | T80: =IF(H80="Luminaire",IF((MID(B80,1,3)="LED"),-PMT(return_on_assests_pct,LED_lantern_lifespan,Q80),-PMT(return_on_assests_pct,trad_lantern_lifespan,Q80)),IF(H80="NW",-PMT(return_on_assests_pct,Nightvision_lifespan,Q80),-PMT(return_on_assests_pct,pole_lifespan,Q80)))+R80 -> 91.43360019 | U80: 94.6322159 | V80: 102.0436425 | W80: 106.1784384 | X80: 109.1514347 | Y80: 112.2076749 | Z80: 115.3494898 | AA80: 118.5792755 | AC80: 545.155202 | AD80: 564.226331 | AE80: 608.4155326 | AF80: 633.0684555 | AG80: 650.7943723 | AH80: 669.0166147 | AI80: 687.7490799 | AJ80: 707.0060541 | AL80: 250W Metal Halide - STANDARD Capex | AM80: =IFERROR((_xlfn.XLOOKUP($AL80,'I_Asset number input'!$P$5:$P$316,'I_Asset number input'!G$5:G$316)),0) -> 122.815 | AN80: =IFERROR((_xlfn.XLOOKUP($AL80,'I_Asset number input'!$P$5:$P$316,'I_Asset number input'!H$5:H$316)),0) -> 0 | AO80: =IFERROR((_xlfn.XLOOKUP($AL80,'I_Asset number input'!$P$5:$P$316,'I_Asset number input'!I$5:I$316)),0) -> 0 | AP80: =IFERROR((_xlfn.XLOOKUP($AL80,'I_Asset number input'!$P$5:$P$316,'I_Asset number input'!J$5:J$316)),0) -> 0 | AQ80: =IFERROR((_xlfn.XLOOKUP($AL80,'I_Asset number input'!$P$5:$P$316,'I_Asset number input'!K$5:K$316)),0) -> 0 | AR80: =IFERROR((_xlfn.XLOOKUP($AL80,'I_Asset number input'!$P$5:$P$316,'I_Asset number input'!L$5:L$316)),0) -> 0 | AS80: =IFERROR((_xlfn.XLOOKUP($AL80,'I_Asset number input'!$P$5:$P$316,'I_Asset number input'!M$5:M$316)),0) -> 0 | AU80: 11622.2556 | AV80: 0 | AW80: 0 | AX80: 0 | AY80: 0 | AZ80: 0 | BA80: 0
B81: 400W Sodium - STANDARD | C81: 563 | D81: TC3 - Capital Funded by Endeavour Energy | E81: V | F81: Major Road - Standard | G81: Lamp | H81: Luminaire | I81: Direct | J81: 400W Sodium - STANDARD Capex | K81: =INDEX('I_Asset number input'!$C$5:$C$265,MATCH('C_CAPEX Tariff Summary'!B81,'I_Asset number input'!$D$5:$D$265,0)) -> HIGH LOW PRESSURE SODIUM | L81: 400W Sodium - STANDARD | M81: =INDEX('Capex OHs Allocation'!$J$23:$J$119,MATCH(B81,'Capex OHs Allocation'!$D$23:$D$119,0))+INDEX('Capex OHs Allocation'!$L$23:$L$119,MATCH('C_CAPEX Tariff Summary'!B81,'Capex OHs Allocation'!$D$23:$D$119,0)) -> 46.93412352 | N81: =INDEX('Stock Cost'!$T$24:$T$115,MATCH('C_CAPEX Tariff Summary'!B81,'Stock Cost'!$C$24:$C$115,0)) -> 375.2118014 | O81: =IF(OR(H81="Luminaire",H81="NW"),IF(E81="P",I_CAPEX!D$41,I_CAPEX!D$42),IF(H81="Bracket",IF(E81="P",I_CAPEX!D$43,I_CAPEX!D$44),IF(H81="Column",IF(E81="P",I_CAPEX!D$45,I_CAPEX!D$46),0))) -> 32.86324216 | P81: =INDEX('Capex OHs Allocation'!$M$23:$M$119,MATCH('C_CAPEX Tariff Summary'!B81,'Capex OHs Allocation'!$D$23:$D$119,0)) -> 175.9719978 | Q81: 630.9811649 | R81: =INDEX('C_OPEX Calc'!$AK$10:$AK$147,MATCH('C_CAPEX Tariff Summary'!B81,'C_OPEX Calc'!$D$10:$D$147,0)) -> 50.49550949 | T81: =IF(H81="Luminaire",IF((MID(B81,1,3)="LED"),-PMT(return_on_assests_pct,LED_lantern_lifespan,Q81),-PMT(return_on_assests_pct,trad_lantern_lifespan,Q81)),IF(H81="NW",-PMT(return_on_assests_pct,Nightvision_lifespan,Q81),-PMT(return_on_assests_pct,pole_lifespan,Q81)))+R81 -> 95.29332001 | U81: 98.62696005 | V81: 106.3512479 | W81: 110.6605875 | X81: 113.7590839 | Y81: 116.9443383 | Z81: 120.2187798 | AA81: 123.5849056 | AC81: 630.9811649 | AD81: 653.0547381 | AE81: 704.2008223 | AF81: 732.7349535 | AG81: 753.2515322 | AH81: 774.3425751 | AI81: 796.0241672 | AJ81: 818.3128438 | AL81: 400W Sodium - STANDARD Capex | AM81: =IFERROR((_xlfn.XLOOKUP($AL81,'I_Asset number input'!$P$5:$P$316,'I_Asset number input'!G$5:G$316)),0) -> 484.155 | AN81: =IFERROR((_xlfn.XLOOKUP($AL81,'I_Asset number input'!$P$5:$P$316,'I_Asset number input'!H$5:H$316)),0) -> 0 | AO81: =IFERROR((_xlfn.XLOOKUP($AL81,'I_Asset number input'!$P$5:$P$316,'I_Asset number input'!I$5:I$316)),0) -> 0 | AP81: =IFERROR((_xlfn.XLOOKUP($AL81,'I_Asset number input'!$P$5:$P$316,'I_Asset number input'!J$5:J$316)),0) -> 0 | AQ81: =IFERROR((_xlfn.XLOOKUP($AL81,'I_Asset number input'!$P$5:$P$316,'I_Asset number input'!K$5:K$316)),0) -> 0 | AR81: =IFERROR((_xlfn.XLOOKUP($AL81,'I_Asset number input'!$P$5:$P$316,'I_Asset number input'!L$5:L$316)),0) -> 0 | AS81: =IFERROR((_xlfn.XLOOKUP($AL81,'I_Asset number input'!$P$5:$P$316,'I_Asset number input'!M$5:M$316)),0) -> 0 | AU81: 47750.73584 | AV81: 0 | AW81: 0 | AX81: 0 | AY81: 0 | AZ81: 0 | BA81: 0
B82: 80W Mercury - AEROSCREEN | C82: 564 | D82: TC3 - Capital Funded by Endeavour Energy | E82: P | F82: Minor Road - Fully Cut Off (Low Glare) | G82: Lamp | H82: Luminaire | I82: Direct | J82: 80W Mercury - AEROSCREEN Capex | K82: =INDEX('I_Asset number input'!$C$5:$C$265,MATCH('C_CAPEX Tariff Summary'!B82,'I_Asset number input'!$D$5:$D$265,0)) -> MERCURY | L82: 80W Mercury - AEROSCREEN | M82: =INDEX('Capex OHs Allocation'!$J$23:$J$119,MATCH(B82,'Capex OHs Allocation'!$D$23:$D$119,0))+INDEX('Capex OHs Allocation'!$L$23:$L$119,MATCH('C_CAPEX Tariff Summary'!B82,'Capex OHs Allocation'!$D$23:$D$119,0)) -> 46.93412352 | N82: =INDEX('Stock Cost'!$T$24:$T$115,MATCH('C_CAPEX Tariff Summary'!B82,'Stock Cost'!$C$24:$C$115,0)) -> 182.5683861 | O82: =IF(OR(H82="Luminaire",H82="NW"),IF(E82="P",I_CAPEX!D$41,I_CAPEX!D$42),IF(H82="Bracket",IF(E82="P",I_CAPEX!D$43,I_CAPEX!D$44),IF(H82="Column",IF(E82="P",I_CAPEX!D$45,I_CAPEX!D$46),0))) -> 3.240037959 | P82: =INDEX('Capex OHs Allocation'!$M$23:$M$119,MATCH('C_CAPEX Tariff Summary'!B82,'Capex OHs Allocation'!$D$23:$D$119,0)) -> 175.9719978 | Q82: 408.7145454 | R82: =INDEX('C_OPEX Calc'!$AK$10:$AK$147,MATCH('C_CAPEX Tariff Summary'!B82,'C_OPEX Calc'!$D$10:$D$147,0)) -> 49.61705461 | T82: =IF(H82="Luminaire",IF((MID(B82,1,3)="LED"),-PMT(return_on_assests_pct,LED_lantern_lifespan,Q82),-PMT(return_on_assests_pct,trad_lantern_lifespan,Q82)),IF(H82="NW",-PMT(return_on_assests_pct,Nightvision_lifespan,Q82),-PMT(return_on_assests_pct,pole_lifespan,Q82)))+R82 -> 78.63458759 | U82: 81.38545627 | V82: 87.75942028 | W82: 91.31542125 | X82: 93.87225305 | Y82: 96.50067613 | Z82: 99.20269506 | AA82: 101.9803705 | AC82: 408.7145454 | AD82: 423.0125799 | AE82: 456.1421718 | AF82: 474.6249969 | AG82: 487.9144968 | AH82: 501.5761027 | AI82: 515.6202336 | AJ82: 530.0576001 | AL82: 80W Mercury - AEROSCREEN Capex | AM82: =IFERROR((_xlfn.XLOOKUP($AL82,'I_Asset number input'!$P$5:$P$316,'I_Asset number input'!G$5:G$316)),0) -> 0 | AN82: =IFERROR((_xlfn.XLOOKUP($AL82,'I_Asset number input'!$P$5:$P$316,'I_Asset number input'!H$5:H$316)),0) -> 0 | AO82: =IFERROR((_xlfn.XLOOKUP($AL82,'I_Asset number input'!$P$5:$P$316,'I_Asset number input'!I$5:I$316)),0) -> 0 | AP82: =IFERROR((_xlfn.XLOOKUP($AL82,'I_Asset number input'!$P$5:$P$316,'I_Asset number input'!J$5:J$316)),0) -> 0 | AQ82: =IFERROR((_xlfn.XLOOKUP($AL82,'I_Asset number input'!$P$5:$P$316,'I_Asset number input'!K$5:K$316)),0) -> 0 | AR82: =IFERROR((_xlfn.XLOOKUP($AL82,'I_Asset number input'!$P$5:$P$316,'I_Asset number input'!L$5:L$316)),0) -> 0 | AS82: =IFERROR((_xlfn.XLOOKUP($AL82,'I_Asset number input'!$P$5:$P$316,'I_Asset number input'!M$5:M$316)),0) -> 0 | AU82: 0 | AV82: 0 | AW82: 0 | AX82: 0 | AY82: 0 | AZ82: 0 | BA82: 0
B83: Urban A/Screen 42W CFL c/w D2 PECB | C83: 578 | D83: TC3 - Capital Funded by Endeavour Energy | E83: P | F83: Minor Road - Fully Cut Off (Low Glare) | G83: Lamp | H83: Luminaire | I83: Direct | J83: Urban A/Screen 42W CFL c/w D2 PECB Capex | K83: =INDEX('I_Asset number input'!$C$5:$C$265,MATCH('C_CAPEX Tariff Summary'!B83,'I_Asset number input'!$D$5:$D$265,0)) -> FLUORESCENT | L83: Urban A/Screen 42W CFL c/w D2 PECB | M83: =INDEX('Capex OHs Allocation'!$J$23:$J$119,MATCH(B83,'Capex OHs Allocation'!$D$23:$D$119,0))+INDEX('Capex OHs Allocation'!$L$23:$L$119,MATCH('C_CAPEX Tariff Summary'!B83,'Capex OHs Allocation'!$D$23:$D$119,0)) -> 46.93412352 | N83: =INDEX('Stock Cost'!$T$24:$T$115,MATCH('C_CAPEX Tariff Summary'!B83,'Stock Cost'!$C$24:$C$115,0)) -> 304.7469869 | O83: =IF(OR(H83="Luminaire",H83="NW"),IF(E83="P",I_CAPEX!D$41,I_CAPEX!D$42),IF(H83="Bracket",IF(E83="P",I_CAPEX!D$43,I_CAPEX!D$44),IF(H83="Column",IF(E83="P",I_CAPEX!D$45,I_CAPEX!D$46),0))) -> 3.240037959 | P83: =INDEX('Capex OHs Allocation'!$M$23:$M$119,MATCH('C_CAPEX Tariff Summary'!B83,'Capex OHs Allocation'!$D$23:$D$119,0)) -> 175.9719978 | Q83: 530.8931462 | R83: =INDEX('C_OPEX Calc'!$AK$10:$AK$147,MATCH('C_CAPEX Tariff Summary'!B83,'C_OPEX Calc'!$D$10:$D$147,0)) -> 42.86072477 | T83: =IF(H83="Luminaire",IF((MID(B83,1,3)="LED"),-PMT(return_on_assests_pct,LED_lantern_lifespan,Q83),-PMT(return_on_assests_pct,trad_lantern_lifespan,Q83)),IF(H83="NW",-PMT(return_on_assests_pct,Nightvision_lifespan,Q83),-PMT(return_on_assests_pct,pole_lifespan,Q83)))+R83 -> 80.55257976 | U83: 83.37054544 | V83: 89.8999781 | W83: 93.54271421 | X83: 96.16191021 | Y83: 98.8544437 | Z83: 101.6223681 | AA83: 104.4677944 | AC83: 530.8931462 | AD83: 549.4653467 | AE83: 592.4984942 | AF83: 616.5064607 | AG83: 633.7686416 | AH83: 651.5141636 | AI83: 669.7565601 | AJ83: 688.5097438 | AL83: Urban A/Screen 42W CFL c/w D2 PECB Capex | AM83: =IFERROR((_xlfn.XLOOKUP($AL83,'I_Asset number input'!$P$5:$P$316,'I_Asset number input'!G$5:G$316)),0) -> 48.72 | AN83: =IFERROR((_xlfn.XLOOKUP($AL83,'I_Asset number input'!$P$5:$P$316,'I_Asset number input'!H$5:H$316)),0) -> 0 | AO83: =IFERROR((_xlfn.XLOOKUP($AL83,'I_Asset number input'!$P$5:$P$316,'I_Asset number input'!I$5:I$316)),0) -> 0 | AP83: =IFERROR((_xlfn.XLOOKUP($AL83,'I_Asset number input'!$P$5:$P$316,'I_Asset number input'!J$5:J$316)),0) -> 0 | AQ83: =IFERROR((_xlfn.XLOOKUP($AL83,'I_Asset number input'!$P$5:$P$316,'I_Asset number input'!K$5:K$316)),0) -> 0 | AR83: =IFERROR((_xlfn.XLOOKUP($AL83,'I_Asset number input'!$P$5:$P$316,'I_Asset number input'!L$5:L$316)),0) -> 0 | AS83: =IFERROR((_xlfn.XLOOKUP($AL83,'I_Asset number input'!$P$5:$P$316,'I_Asset number input'!M$5:M$316)),0) -> 0 | AU83: 4061.812974 | AV83: 0 | AW83: 0 | AX83: 0 | AY83: 0 | AZ83: 0 | BA83: 0
B84: 150W Sodium - AEROSCREEN | C84: 565 | D84: TC3 - Capital Funded by Endeavour Energy | E84: V | F84: Major Road - Fully Cut Off (Low Glare) | G84: Lamp | H84: Luminaire | I84: Direct | J84: 150W Sodium - AEROSCREEN Capex | K84: =INDEX('I_Asset number input'!$C$5:$C$265,MATCH('C_CAPEX Tariff Summary'!B84,'I_Asset number input'!$D$5:$D$265,0)) -> HIGH LOW PRESSURE SODIUM | L84: 150W Sodium - AEROSCREEN | M84: =INDEX('Capex OHs Allocation'!$J$23:$J$119,MATCH(B84,'Capex OHs Allocation'!$D$23:$D$119,0))+INDEX('Capex OHs Allocation'!$L$23:$L$119,MATCH('C_CAPEX Tariff Summary'!B84,'Capex OHs Allocation'!$D$23:$D$119,0)) -> 46.93412352 | N84: =INDEX('Stock Cost'!$T$24:$T$115,MATCH('C_CAPEX Tariff Summary'!B84,'Stock Cost'!$C$24:$C$115,0)) -> 311.9384038 | O84: =IF(OR(H84="Luminaire",H84="NW"),IF(E84="P",I_CAPEX!D$41,I_CAPEX!D$42),IF(H84="Bracket",IF(E84="P",I_CAPEX!D$43,I_CAPEX!D$44),IF(H84="Column",IF(E84="P",I_CAPEX!D$45,I_CAPEX!D$46),0))) -> 32.86324216 | P84: =INDEX('Capex OHs Allocation'!$M$23:$M$119,MATCH('C_CAPEX Tariff Summary'!B84,'Capex OHs Allocation'!$D$23:$D$119,0)) -> 175.9719978 | Q84: 567.7077673 | R84: =INDEX('C_OPEX Calc'!$AK$10:$AK$147,MATCH('C_CAPEX Tariff Summary'!B84,'C_OPEX Calc'!$D$10:$D$147,0)) -> 49.92918944 | T84: =IF(H84="Luminaire",IF((MID(B84,1,3)="LED"),-PMT(return_on_assests_pct,LED_lantern_lifespan,Q84),-PMT(return_on_assests_pct,trad_lantern_lifespan,Q84)),IF(H84="NW",-PMT(return_on_assests_pct,Nightvision_lifespan,Q84),-PMT(return_on_assests_pct,pole_lifespan,Q84)))+R84 -> 90.23477447 | U84: 93.39145173 | V84: 100.7057039 | W84: 104.7862867 | X84: 107.7203028 | Y84: 110.7364712 | Z84: 113.8370924 | AA84: 117.024531 | AC84: 567.7077673 | AD84: 587.5678513 | AE84: 633.5851191 | AF84: 659.2579107 | AG84: 677.7171322 | AH84: 696.6932119 | AI84: 716.2006218 | AJ84: 736.2542392 | AL84: 150W Sodium - AEROSCREEN Capex | AM84: =IFERROR((_xlfn.XLOOKUP($AL84,'I_Asset number input'!$P$5:$P$316,'I_Asset number input'!G$5:G$316)),0) -> 80.185 | AN84: =IFERROR((_xlfn.XLOOKUP($AL84,'I_Asset number input'!$P$5:$P$316,'I_Asset number input'!H$5:H$316)),0) -> 0 | AO84: =IFERROR((_xlfn.XLOOKUP($AL84,'I_Asset number input'!$P$5:$P$316,'I_Asset number input'!I$5:I$316)),0) -> 0 | AP84: =IFERROR((_xlfn.XLOOKUP($AL84,'I_Asset number input'!$P$5:$P$316,'I_Asset number input'!J$5:J$316)),0) -> 0 | AQ84: =IFERROR((_xlfn.XLOOKUP($AL84,'I_Asset number input'!$P$5:$P$316,'I_Asset number input'!K$5:K$316)),0) -> 0 | AR84: =IFERROR((_xlfn.XLOOKUP($AL84,'I_Asset number input'!$P$5:$P$316,'I_Asset number input'!L$5:L$316)),0) -> 0 | AS84: =IFERROR((_xlfn.XLOOKUP($AL84,'I_Asset number input'!$P$5:$P$316,'I_Asset number input'!M$5:M$316)),0) -> 0 | AU84: 7488.593557 | AV84: 0 | AW84: 0 | AX84: 0 | AY84: 0 | AZ84: 0 | BA84: 0
B85: 150W Metal Halide - AEROSCREEN | C85: 566 | D85: TC3 - Capital Funded by Endeavour Energy | E85: V | F85: Major Road - Fully Cut Off (Low Glare) | G85: Lamp | H85: Luminaire | I85: Direct | J85: 150W Metal Halide - AEROSCREEN Capex | K85: =INDEX('I_Asset number input'!$C$5:$C$265,MATCH('C_CAPEX Tariff Summary'!B85,'I_Asset number input'!$D$5:$D$265,0)) -> METAL HALIDE | L85: 150W Metal Halide - AEROSCREEN | M85: =INDEX('Capex OHs Allocation'!$J$23:$J$119,MATCH(B85,'Capex OHs Allocation'!$D$23:$D$119,0))+INDEX('Capex OHs Allocation'!$L$23:$L$119,MATCH('C_CAPEX Tariff Summary'!B85,'Capex OHs Allocation'!$D$23:$D$119,0)) -> 46.93412352 | N85: =INDEX('Stock Cost'!$T$24:$T$115,MATCH('C_CAPEX Tariff Summary'!B85,'Stock Cost'!$C$24:$C$115,0)) -> 326.6080892 | O85: =IF(OR(H85="Luminaire",H85="NW"),IF(E85="P",I_CAPEX!D$41,I_CAPEX!D$42),IF(H85="Bracket",IF(E85="P",I_CAPEX!D$43,I_CAPEX!D$44),IF(H85="Column",IF(E85="P",I_CAPEX!D$45,I_CAPEX!D$46),0))) -> 32.86324216 | P85: =INDEX('Capex OHs Allocation'!$M$23:$M$119,MATCH('C_CAPEX Tariff Summary'!B85,'Capex OHs Allocation'!$D$23:$D$119,0)) -> 175.9719978 | Q85: 582.3774527 | R85: =INDEX('C_OPEX Calc'!$AK$10:$AK$147,MATCH('C_CAPEX Tariff Summary'!B85,'C_OPEX Calc'!$D$10:$D$147,0)) -> 53.41930134 | T85: =IF(H85="Luminaire",IF((MID(B85,1,3)="LED"),-PMT(return_on_assests_pct,LED_lantern_lifespan,Q85),-PMT(return_on_assests_pct,trad_lantern_lifespan,Q85)),IF(H85="NW",-PMT(return_on_assests_pct,Nightvision_lifespan,Q85),-PMT(return_on_assests_pct,pole_lifespan,Q85)))+R85 -> 94.76639097 | U85: 98.08159748 | V85: =U85*(1+CPIFY24) -> 105.7631735 | W85: 110.0486844 | X85: 113.1300476 | Y85: 116.2976889 | Z85: 119.5540242 | AA85: 122.9015369 | AC85: 582.3774527 | AD85: 602.7507253 | AE85: 649.9570888 | AF85: 676.2932705 | AG85: 695.2294821 | AH85: 714.6959076 | AI85: 734.707393 | AJ85: 755.2792 | AL85: 150W Metal Halide - AEROSCREEN Capex | AM85: =IFERROR((_xlfn.XLOOKUP($AL85,'I_Asset number input'!$P$5:$P$316,'I_Asset number input'!G$5:G$316)),0) -> 110.635 | AN85: =IFERROR((_xlfn.XLOOKUP($AL85,'I_Asset number input'!$P$5:$P$316,'I_Asset number input'!H$5:H$316)),0) -> 0 | AO85: =IFERROR((_xlfn.XLOOKUP($AL85,'I_Asset number input'!$P$5:$P$316,'I_Asset number input'!I$5:I$316)),0) -> 0 | AP85: =IFERROR((_xlfn.XLOOKUP($AL85,'I_Asset number input'!$P$5:$P$316,'I_Asset number input'!J$5:J$316)),0) -> 0 | AQ85: =IFERROR((_xlfn.XLOOKUP($AL85,'I_Asset number input'!$P$5:$P$316,'I_Asset number input'!K$5:K$316)),0) -> 0 | AR85: =IFERROR((_xlfn.XLOOKUP($AL85,'I_Asset number input'!$P$5:$P$316,'I_Asset number input'!L$5:L$316)),0) -> 0 | AS85: =IFERROR((_xlfn.XLOOKUP($AL85,'I_Asset number input'!$P$5:$P$316,'I_Asset number input'!M$5:M$316)),0) -> 0 | AU85: 10851.25754 | AV85: 0 | AW85: 0 | AX85: 0 | AY85: 0 | AZ85: 0 | BA85: 0
B86: 250W Sodium (w/o PECB) - AEROSCREEN | C86: 568 | D86: TC3 - Capital Funded by Endeavour Energy | E86: V | F86: Major Road - Fully Cut Off (Low Glare) | G86: Lamp | H86: Luminaire | I86: Direct | J86: 250W Sodium (w/o PECB) - AEROSCREEN Capex | K86: =INDEX('I_Asset number input'!$C$5:$C$265,MATCH('C_CAPEX Tariff Summary'!B86,'I_Asset number input'!$D$5:$D$265,0)) -> HIGH LOW PRESSURE SODIUM | L86: 250W Sodium (w/o PECB) - AEROSCREEN | M86: =INDEX('Capex OHs Allocation'!$J$23:$J$119,MATCH(B86,'Capex OHs Allocation'!$D$23:$D$119,0))+INDEX('Capex OHs Allocation'!$L$23:$L$119,MATCH('C_CAPEX Tariff Summary'!B86,'Capex OHs Allocation'!$D$23:$D$119,0)) -> 46.93412352 | N86: =INDEX('Stock Cost'!$T$24:$T$115,MATCH('C_CAPEX Tariff Summary'!B86,'Stock Cost'!$C$24:$C$115,0)) -> 310.2021975 | O86: =IF(OR(H86="Luminaire",H86="NW"),IF(E86="P",I_CAPEX!D$41,I_CAPEX!D$42),IF(H86="Bracket",IF(E86="P",I_CAPEX!D$43,I_CAPEX!D$44),IF(H86="Column",IF(E86="P",I_CAPEX!D$45,I_CAPEX!D$46),0))) -> 32.86324216 | P86: =INDEX('Capex OHs Allocation'!$M$23:$M$119,MATCH('C_CAPEX Tariff Summary'!B86,'Capex OHs Allocation'!$D$23:$D$119,0)) -> 175.9719978 | Q86: 565.971561 | R86: =INDEX('C_OPEX Calc'!$AK$10:$AK$147,MATCH('C_CAPEX Tariff Summary'!B86,'C_OPEX Calc'!$D$10:$D$147,0)) -> 52.36041456 | T86: =IF(H86="Luminaire",IF((MID(B86,1,3)="LED"),-PMT(return_on_assests_pct,LED_lantern_lifespan,Q86),-PMT(return_on_assests_pct,trad_lantern_lifespan,Q86)),IF(H86="NW",-PMT(return_on_assests_pct,Nightvision_lifespan,Q86),-PMT(return_on_assests_pct,pole_lifespan,Q86)))+R86 -> 92.54273404 | U86: 95.7801505 | V86: 103.2814813 | W86: 107.4664343 | X86: 110.4754945 | Y86: 113.5688083 | Z86: 116.748735 | AA86: 120.0176995 | AC86: 565.971561 | AD86: 585.7709074 | AE86: 631.6474418 | AF86: 657.2417188 | AG86: 675.644487 | AH86: 694.5625326 | AI86: 714.0102835 | AJ86: 734.0025715 | AL86: 250W Sodium (w/o PECB) - AEROSCREEN Capex | AM86: =IFERROR((_xlfn.XLOOKUP($AL86,'I_Asset number input'!$P$5:$P$316,'I_Asset number input'!G$5:G$316)),0) -> 93.38 | AN86: =IFERROR((_xlfn.XLOOKUP($AL86,'I_Asset number input'!$P$5:$P$316,'I_Asset number input'!H$5:H$316)),0) -> 0 | AO86: =IFERROR((_xlfn.XLOOKUP($AL86,'I_Asset number input'!$P$5:$P$316,'I_Asset number input'!I$5:I$316)),0) -> 0 | AP86: =IFERROR((_xlfn.XLOOKUP($AL86,'I_Asset number input'!$P$5:$P$316,'I_Asset number input'!J$5:J$316)),0) -> 0 | AQ86: =IFERROR((_xlfn.XLOOKUP($AL86,'I_Asset number input'!$P$5:$P$316,'I_Asset number input'!K$5:K$316)),0) -> 0 | AR86: =IFERROR((_xlfn.XLOOKUP($AL86,'I_Asset number input'!$P$5:$P$316,'I_Asset number input'!L$5:L$316)),0) -> 0 | AS86: =IFERROR((_xlfn.XLOOKUP($AL86,'I_Asset number input'!$P$5:$P$316,'I_Asset number input'!M$5:M$316)),0) -> 0 | AU86: 8943.950454 | AV86: 0 | AW86: 0 | AX86: 0 | AY86: 0 | AZ86: 0 | BA86: 0
B87: 250W Metal Halide - AEROSCREEN | C87: 569 | D87: TC3 - Capital Funded by Endeavour Energy | E87: V | F87: Major Road - Fully Cut Off (Low Glare) | G87: Lamp | H87: Luminaire | I87: Direct | J87: 250W Metal Halide - AEROSCREEN Capex | K87: =INDEX('I_Asset number input'!$C$5:$C$265,MATCH('C_CAPEX Tariff Summary'!B87,'I_Asset number input'!$D$5:$D$265,0)) -> METAL HALIDE | L87: 250W Metal Halide - AEROSCREEN | M87: =INDEX('Capex OHs Allocation'!$J$23:$J$119,MATCH(B87,'Capex OHs Allocation'!$D$23:$D$119,0))+INDEX('Capex OHs Allocation'!$L$23:$L$119,MATCH('C_CAPEX Tariff Summary'!B87,'Capex OHs Allocation'!$D$23:$D$119,0)) -> 46.93412352 | N87: =INDEX('Stock Cost'!$T$24:$T$115,MATCH('C_CAPEX Tariff Summary'!B87,'Stock Cost'!$C$24:$C$115,0)) -> 311.750189 | O87: =IF(OR(H87="Luminaire",H87="NW"),IF(E87="P",I_CAPEX!D$41,I_CAPEX!D$42),IF(H87="Bracket",IF(E87="P",I_CAPEX!D$43,I_CAPEX!D$44),IF(H87="Column",IF(E87="P",I_CAPEX!D$45,I_CAPEX!D$46),0))) -> 32.86324216 | P87: =INDEX('Capex OHs Allocation'!$M$23:$M$119,MATCH('C_CAPEX Tariff Summary'!B87,'Capex OHs Allocation'!$D$23:$D$119,0)) -> 175.9719978 | Q87: 567.5195525 | R87: =INDEX('C_OPEX Calc'!$AK$10:$AK$147,MATCH('C_CAPEX Tariff Summary'!B87,'C_OPEX Calc'!$D$10:$D$147,0)) -> 52.7291811 | T87: =IF(H87="Luminaire",IF((MID(B87,1,3)="LED"),-PMT(return_on_assests_pct,LED_lantern_lifespan,Q87),-PMT(return_on_assests_pct,trad_lantern_lifespan,Q87)),IF(H87="NW",-PMT(return_on_assests_pct,Nightvision_lifespan,Q87),-PMT(return_on_assests_pct,pole_lifespan,Q87)))+R87 -> 93.02140343 | U87: 96.27556515 | V87: 103.815696 | W87: 108.0222953 | X87: 111.0469195 | Y87: 114.1562333 | Z87: 117.3526078 | AA87: 120.6384808 | AC87: 567.5195525 | AD87: 587.3730522 | AE87: 633.3750637 | AF87: 659.0393438 | AG87: 677.4924454 | AH87: 696.4622339 | AI87: 715.9631764 | AJ87: 736.0101454 | AL87: 250W Metal Halide - AEROSCREEN Capex | AM87: =IFERROR((_xlfn.XLOOKUP($AL87,'I_Asset number input'!$P$5:$P$316,'I_Asset number input'!G$5:G$316)),0) -> 85.26 | AN87: =IFERROR((_xlfn.XLOOKUP($AL87,'I_Asset number input'!$P$5:$P$316,'I_Asset number input'!H$5:H$316)),0) -> 0 | AO87: =IFERROR((_xlfn.XLOOKUP($AL87,'I_Asset number input'!$P$5:$P$316,'I_Asset number input'!I$5:I$316)),0) -> 0 | AP87: =IFERROR((_xlfn.XLOOKUP($AL87,'I_Asset number input'!$P$5:$P$316,'I_Asset number input'!J$5:J$316)),0) -> 0 | AQ87: =IFERROR((_xlfn.XLOOKUP($AL87,'I_Asset number input'!$P$5:$P$316,'I_Asset number input'!K$5:K$316)),0) -> 0 | AR87: =IFERROR((_xlfn.XLOOKUP($AL87,'I_Asset number input'!$P$5:$P$316,'I_Asset number input'!L$5:L$316)),0) -> 0 | AS87: =IFERROR((_xlfn.XLOOKUP($AL87,'I_Asset number input'!$P$5:$P$316,'I_Asset number input'!M$5:M$316)),0) -> 0 | AU87: 8208.454685 | AV87: 0 | AW87: 0 | AX87: 0 | AY87: 0 | AZ87: 0 | BA87: 0
B88: 400W Sodium - AEROSCREEN | C88: 570 | D88: TC3 - Capital Funded by Endeavour Energy | E88: V | F88: Major Road - Fully Cut Off (Low Glare) | G88: Lamp | H88: Luminaire | I88: Direct | J88: 400W Sodium - AEROSCREEN Capex | K88: =INDEX('I_Asset number input'!$C$5:$C$265,MATCH('C_CAPEX Tariff Summary'!B88,'I_Asset number input'!$D$5:$D$265,0)) -> HIGH LOW PRESSURE SODIUM | L88: 400W Sodium - AEROSCREEN | M88: =INDEX('Capex OHs Allocation'!$J$23:$J$119,MATCH(B88,'Capex OHs Allocation'!$D$23:$D$119,0))+INDEX('Capex OHs Allocation'!$L$23:$L$119,MATCH('C_CAPEX Tariff Summary'!B88,'Capex OHs Allocation'!$D$23:$D$119,0)) -> 46.93412352 | N88: =INDEX('Stock Cost'!$T$24:$T$115,MATCH('C_CAPEX Tariff Summary'!B88,'Stock Cost'!$C$24:$C$115,0)) -> 360.8189026 | O88: =IF(OR(H88="Luminaire",H88="NW"),IF(E88="P",I_CAPEX!D$41,I_CAPEX!D$42),IF(H88="Bracket",IF(E88="P",I_CAPEX!D$43,I_CAPEX!D$44),IF(H88="Column",IF(E88="P",I_CAPEX!D$45,I_CAPEX!D$46),0))) -> 32.86324216 | P88: =INDEX('Capex OHs Allocation'!$M$23:$M$119,MATCH('C_CAPEX Tariff Summary'!B88,'Capex OHs Allocation'!$D$23:$D$119,0)) -> 175.9719978 | Q88: 616.5882661 | R88: =INDEX('C_OPEX Calc'!$AK$10:$AK$147,MATCH('C_CAPEX Tariff Summary'!B88,'C_OPEX Calc'!$D$10:$D$147,0)) -> 50.49550949 | T88: =IF(H88="Luminaire",IF((MID(B88,1,3)="LED"),-PMT(return_on_assests_pct,LED_lantern_lifespan,Q88),-PMT(return_on_assests_pct,trad_lantern_lifespan,Q88)),IF(H88="NW",-PMT(return_on_assests_pct,Nightvision_lifespan,Q88),-PMT(return_on_assests_pct,pole_lifespan,Q88)))+R88 -> 94.27146644 | U88: 97.56935904 | V88: 105.2108175 | W88: 109.473947 | X88: 112.5392175 | Y88: 115.6903156 | Z88: 118.9296444 | AA88: 122.2596744 | AC88: 616.5882661 | AD88: 638.1583334 | AE88: 688.1377577 | AF88: 716.0210155 | AG88: 736.0696039 | AH88: 756.6795528 | AI88: 777.8665803 | AJ88: 799.6468445 | AL88: 400W Sodium - AEROSCREEN Capex | AM88: =IFERROR((_xlfn.XLOOKUP($AL88,'I_Asset number input'!$P$5:$P$316,'I_Asset number input'!G$5:G$316)),0) -> 27.405 | AN88: =IFERROR((_xlfn.XLOOKUP($AL88,'I_Asset number input'!$P$5:$P$316,'I_Asset number input'!H$5:H$316)),0) -> 0 | AO88: =IFERROR((_xlfn.XLOOKUP($AL88,'I_Asset number input'!$P$5:$P$316,'I_Asset number input'!I$5:I$316)),0) -> 0 | AP88: =IFERROR((_xlfn.XLOOKUP($AL88,'I_Asset number input'!$P$5:$P$316,'I_Asset number input'!J$5:J$316)),0) -> 0 | AQ88: =IFERROR((_xlfn.XLOOKUP($AL88,'I_Asset number input'!$P$5:$P$316,'I_Asset number input'!K$5:K$316)),0) -> 0 | AR88: =IFERROR((_xlfn.XLOOKUP($AL88,'I_Asset number input'!$P$5:$P$316,'I_Asset number input'!L$5:L$316)),0) -> 0 | AS88: =IFERROR((_xlfn.XLOOKUP($AL88,'I_Asset number input'!$P$5:$P$316,'I_Asset number input'!M$5:M$316)),0) -> 0 | AU88: 2673.888284 | AV88: 0 | AW88: 0 | AX88: 0 | AY88: 0 | AZ88: 0 | BA88: 0
B89: 400W Metal Halide - AEROSCREEN | C89: 571 | D89: TC3 - Capital Funded by Endeavour Energy | E89: V | F89: Major Road - Fully Cut Off (Low Glare) | G89: Lamp | H89: Luminaire | I89: Direct | J89: 400W Metal Halide - AEROSCREEN Capex | K89: =INDEX('I_Asset number input'!$C$5:$C$265,MATCH('C_CAPEX Tariff Summary'!B89,'I_Asset number input'!$D$5:$D$265,0)) -> METAL HALIDE | L89: 400W Metal Halide - AEROSCREEN | M89: =INDEX('Capex OHs Allocation'!$J$23:$J$119,MATCH(B89,'Capex OHs Allocation'!$D$23:$D$119,0))+INDEX('Capex OHs Allocation'!$L$23:$L$119,MATCH('C_CAPEX Tariff Summary'!B89,'Capex OHs Allocation'!$D$23:$D$119,0)) -> 46.93412352 | N89: =INDEX('Stock Cost'!$T$24:$T$115,MATCH('C_CAPEX Tariff Summary'!B89,'Stock Cost'!$C$24:$C$115,0)) -> 368.6796396 | O89: =IF(OR(H89="Luminaire",H89="NW"),IF(E89="P",I_CAPEX!D$41,I_CAPEX!D$42),IF(H89="Bracket",IF(E89="P",I_CAPEX!D$43,I_CAPEX!D$44),IF(H89="Column",IF(E89="P",I_CAPEX!D$45,I_CAPEX!D$46),0))) -> 32.86324216 | P89: =INDEX('Capex OHs Allocation'!$M$23:$M$119,MATCH('C_CAPEX Tariff Summary'!B89,'Capex OHs Allocation'!$D$23:$D$119,0)) -> 175.9719978 | Q89: 624.4490031 | R89: =INDEX('C_OPEX Calc'!$AK$10:$AK$147,MATCH('C_CAPEX Tariff Summary'!B89,'C_OPEX Calc'!$D$10:$D$147,0)) -> 52.36568266 | T89: =IF(H89="Luminaire",IF((MID(B89,1,3)="LED"),-PMT(return_on_assests_pct,LED_lantern_lifespan,Q89),-PMT(return_on_assests_pct,trad_lantern_lifespan,Q89)),IF(H89="NW",-PMT(return_on_assests_pct,Nightvision_lifespan,Q89),-PMT(return_on_assests_pct,pole_lifespan,Q89)))+R89 -> 96.69972887 | U89: 100.0825692 | V89: 107.9208578 | W89: 112.2937978 | X89: 115.4380241 | Y89: 118.6702888 | Z89: 121.9930569 | AA89: 125.4088625 | AC89: 624.4490031 | AD89: 646.2940621 | AE89: 696.9106622 | AF89: 725.149397 | AG89: 745.4535801 | AH89: 766.3262803 | AI89: 787.7834162 | AJ89: 809.8413518 | AL89: 400W Metal Halide - AEROSCREEN Capex | AM89: =IFERROR((_xlfn.XLOOKUP($AL89,'I_Asset number input'!$P$5:$P$316,'I_Asset number input'!G$5:G$316)),0) -> 147.175 | AN89: =IFERROR((_xlfn.XLOOKUP($AL89,'I_Asset number input'!$P$5:$P$316,'I_Asset number input'!H$5:H$316)),0) -> 0 | AO89: =IFERROR((_xlfn.XLOOKUP($AL89,'I_Asset number input'!$P$5:$P$316,'I_Asset number input'!I$5:I$316)),0) -> 0 | AP89: =IFERROR((_xlfn.XLOOKUP($AL89,'I_Asset number input'!$P$5:$P$316,'I_Asset number input'!J$5:J$316)),0) -> 0 | AQ89: =IFERROR((_xlfn.XLOOKUP($AL89,'I_Asset number input'!$P$5:$P$316,'I_Asset number input'!K$5:K$316)),0) -> 0 | AR89: =IFERROR((_xlfn.XLOOKUP($AL89,'I_Asset number input'!$P$5:$P$316,'I_Asset number input'!L$5:L$316)),0) -> 0 | AS89: =IFERROR((_xlfn.XLOOKUP($AL89,'I_Asset number input'!$P$5:$P$316,'I_Asset number input'!M$5:M$316)),0) -> 0 | AU89: 14729.65212 | AV89: 0 | AW89: 0 | AX89: 0 | AY89: 0 | AZ89: 0 | BA89: 0
B90: Roadster A/Screen 100W HPS c/w PECB | C90: 579 | D90: TC3 - Capital Funded by Endeavour Energy | E90: V | F90: Major Road - Fully Cut Off (Low Glare) | G90: Lamp | H90: Luminaire | I90: Direct | J90: Roadster A/Screen 100W HPS c/w PECB Capex | K90: =INDEX('I_Asset number input'!$C$5:$C$265,MATCH('C_CAPEX Tariff Summary'!B90,'I_Asset number input'!$D$5:$D$265,0)) -> HIGH LOW PRESSURE SODIUM | L90: Roadster A/Screen 100W HPS c/w PECB | M90: =INDEX('Capex OHs Allocation'!$J$23:$J$119,MATCH(B90,'Capex OHs Allocation'!$D$23:$D$119,0))+INDEX('Capex OHs Allocation'!$L$23:$L$119,MATCH('C_CAPEX Tariff Summary'!B90,'Capex OHs Allocation'!$D$23:$D$119,0)) -> 46.93412352 | N90: =INDEX('Stock Cost'!$T$24:$T$115,MATCH('C_CAPEX Tariff Summary'!B90,'Stock Cost'!$C$24:$C$115,0)) -> 277.6722331 | O90: =IF(OR(H90="Luminaire",H90="NW"),IF(E90="P",I_CAPEX!D$41,I_CAPEX!D$42),IF(H90="Bracket",IF(E90="P",I_CAPEX!D$43,I_CAPEX!D$44),IF(H90="Column",IF(E90="P",I_CAPEX!D$45,I_CAPEX!D$46),0))) -> 32.86324216 | P90: =INDEX('Capex OHs Allocation'!$M$23:$M$119,MATCH('C_CAPEX Tariff Summary'!B90,'Capex OHs Allocation'!$D$23:$D$119,0)) -> 175.9719978 | Q90: 533.4415966 | R90: =INDEX('C_OPEX Calc'!$AK$10:$AK$147,MATCH('C_CAPEX Tariff Summary'!B90,'C_OPEX Calc'!$D$10:$D$147,0)) -> 50.99597836 | T90: =IF(H90="Luminaire",IF((MID(B90,1,3)="LED"),-PMT(return_on_assests_pct,LED_lantern_lifespan,Q90),-PMT(return_on_assests_pct,trad_lantern_lifespan,Q90)),IF(H90="NW",-PMT(return_on_assests_pct,Nightvision_lifespan,Q90),-PMT(return_on_assests_pct,pole_lifespan,Q90)))+R90 -> 88.86876585 | U90: 91.97765613 | V90: 99.18118237 | W90: 103.1999917 | X90: 106.0895915 | Y90: 109.0601001 | Z90: 112.1137829 | AA90: 115.2529688 | AC90: 533.4415966 | AD90: 552.1029494 | AE90: 595.3426692 | AF90: 619.4658814 | AG90: 636.810926 | AH90: 654.641632 | AI90: 672.9715977 | AJ90: 691.8148024 | AL90: Roadster A/Screen 100W HPS c/w PECB Capex | AM90: =IFERROR((_xlfn.XLOOKUP($AL90,'I_Asset number input'!$P$5:$P$316,'I_Asset number input'!G$5:G$316)),0) -> 2.03 | AN90: =IFERROR((_xlfn.XLOOKUP($AL90,'I_Asset number input'!$P$5:$P$316,'I_Asset number input'!H$5:H$316)),0) -> 0 | AO90: =IFERROR((_xlfn.XLOOKUP($AL90,'I_Asset number input'!$P$5:$P$316,'I_Asset number input'!I$5:I$316)),0) -> 0 | AP90: =IFERROR((_xlfn.XLOOKUP($AL90,'I_Asset number input'!$P$5:$P$316,'I_Asset number input'!J$5:J$316)),0) -> 0 | AQ90: =IFERROR((_xlfn.XLOOKUP($AL90,'I_Asset number input'!$P$5:$P$316,'I_Asset number input'!K$5:K$316)),0) -> 0 | AR90: =IFERROR((_xlfn.XLOOKUP($AL90,'I_Asset number input'!$P$5:$P$316,'I_Asset number input'!L$5:L$316)),0) -> 0 | AS90: =IFERROR((_xlfn.XLOOKUP($AL90,'I_Asset number input'!$P$5:$P$316,'I_Asset number input'!M$5:M$316)),0) -> 0 | AU90: 186.7146419 | AV90: 0 | AW90: 0 | AX90: 0 | AY90: 0 | AZ90: 0 | BA90: 0
B91: 80W Mercury - POST TOP | C91: 572 | D91: TC3 - Capital Funded by Endeavour Energy | E91: P | F91: Post Top - Standard | G91: Lamp | H91: Luminaire | I91: Direct | J91: 80W Mercury - POST TOP Capex | K91: =INDEX('I_Asset number input'!$C$5:$C$265,MATCH('C_CAPEX Tariff Summary'!B91,'I_Asset number input'!$D$5:$D$265,0)) -> MERCURY | L91: 80W Mercury - POST TOP | M91: =INDEX('Capex OHs Allocation'!$J$23:$J$119,MATCH(B91,'Capex OHs Allocation'!$D$23:$D$119,0))+INDEX('Capex OHs Allocation'!$L$23:$L$119,MATCH('C_CAPEX Tariff Summary'!B91,'Capex OHs Allocation'!$D$23:$D$119,0)) -> 46.93412352 | N91: =INDEX('Stock Cost'!$T$24:$T$115,MATCH('C_CAPEX Tariff Summary'!B91,'Stock Cost'!$C$24:$C$115,0)) -> 512.4979135 | O91: =IF(OR(H91="Luminaire",H91="NW"),IF(E91="P",I_CAPEX!D$41,I_CAPEX!D$42),IF(H91="Bracket",IF(E91="P",I_CAPEX!D$43,I_CAPEX!D$44),IF(H91="Column",IF(E91="P",I_CAPEX!D$45,I_CAPEX!D$46),0))) -> 3.240037959 | P91: =INDEX('Capex OHs Allocation'!$M$23:$M$119,MATCH('C_CAPEX Tariff Summary'!B91,'Capex OHs Allocation'!$D$23:$D$119,0)) -> 175.9719978 | Q91: 738.6440728 | R91: =INDEX('C_OPEX Calc'!$AK$10:$AK$147,MATCH('C_CAPEX Tariff Summary'!B91,'C_OPEX Calc'!$D$10:$D$147,0)) -> 42.50512846 | T91: =IF(H91="Luminaire",IF((MID(B91,1,3)="LED"),-PMT(return_on_assests_pct,LED_lantern_lifespan,Q91),-PMT(return_on_assests_pct,trad_lantern_lifespan,Q91)),IF(H91="NW",-PMT(return_on_assests_pct,Nightvision_lifespan,Q91),-PMT(return_on_assests_pct,pole_lifespan,Q91)))+R91 -> 94.94668941 | U91: 98.26820329 | V91: 105.964394 | W91: =V91*(1+CPIFY25) -> 110.2580583 | X91: =W91*(1+CPIFY26) -> 113.3452839 | Y91: =X91*(1+CPIFY27) -> 116.5189518 | Z91: =Y91*(1+CPIFY28) -> 119.7814825 | AA91: =Z91*(1+CPIFY29) -> 123.135364 | AC91: 738.6440728 | AD91: =AC91*(1+CPIFY23) -> 764.4840105 | AE91: =AD91*(1+CPIFY24) -> 824.3570368 | AF91: =AE91*(1+CPIFY25) -> 857.7598831 | AG91: =AF91*(1+CPIFY26) -> 881.7771599 | AH91: =AG91*(1+CPIFY27) -> 906.4669203 | AI91: =AH91*(1+CPIFY28) -> 931.8479941 | AJ91: =AI91*(1+CPIFY29) -> 957.939738 | AL91: 80W Mercury - POST TOP Capex | AM91: =IFERROR((_xlfn.XLOOKUP($AL91,'I_Asset number input'!$P$5:$P$316,'I_Asset number input'!G$5:G$316)),0) -> 51.765 | AN91: =IFERROR((_xlfn.XLOOKUP($AL91,'I_Asset number input'!$P$5:$P$316,'I_Asset number input'!H$5:H$316)),0) -> 0 | AO91: =IFERROR((_xlfn.XLOOKUP($AL91,'I_Asset number input'!$P$5:$P$316,'I_Asset number input'!I$5:I$316)),0) -> 0 | AP91: =IFERROR((_xlfn.XLOOKUP($AL91,'I_Asset number input'!$P$5:$P$316,'I_Asset number input'!J$5:J$316)),0) -> 0 | AQ91: =IFERROR((_xlfn.XLOOKUP($AL91,'I_Asset number input'!$P$5:$P$316,'I_Asset number input'!K$5:K$316)),0) -> 0 | AR91: =IFERROR((_xlfn.XLOOKUP($AL91,'I_Asset number input'!$P$5:$P$316,'I_Asset number input'!L$5:L$316)),0) -> 0 | AS91: =IFERROR((_xlfn.XLOOKUP($AL91,'I_Asset number input'!$P$5:$P$316,'I_Asset number input'!M$5:M$316)),0) -> 0 | AU91: 5086.853543 | AV91: 0 | AW91: 0 | AX91: 0 | AY91: 0 | AZ91: 0 | BA91: 0
B92: B2001 42WCFL c/w D2 PECB green - PT | C92: 580 | D92: TC3 - Capital Funded by Endeavour Energy | E92: P | F92: Post Top - Standard | G92: Lamp | H92: Luminaire | I92: Direct | J92: B2001 42WCFL c/w D2 PECB green - PT Capex | K92: =INDEX('I_Asset number input'!$C$5:$C$265,MATCH('C_CAPEX Tariff Summary'!B92,'I_Asset number input'!$D$5:$D$265,0)) -> FLUORESCENT | L92: B2001 42WCFL c/w D2 PECB green - PT | M92: =INDEX('Capex OHs Allocation'!$J$23:$J$119,MATCH(B92,'Capex OHs Allocation'!$D$23:$D$119,0))+INDEX('Capex OHs Allocation'!$L$23:$L$119,MATCH('C_CAPEX Tariff Summary'!B92,'Capex OHs Allocation'!$D$23:$D$119,0)) -> 46.93412352 | N92: =INDEX('Stock Cost'!$T$24:$T$115,MATCH('C_CAPEX Tariff Summary'!B92,'Stock Cost'!$C$24:$C$115,0)) -> 577.2760232 | O92: =IF(OR(H92="Luminaire",H92="NW"),IF(E92="P",I_CAPEX!D$41,I_CAPEX!D$42),IF(H92="Bracket",IF(E92="P",I_CAPEX!D$43,I_CAPEX!D$44),IF(H92="Column",IF(E92="P",I_CAPEX!D$45,I_CAPEX!D$46),0))) -> 3.240037959 | P92: =INDEX('Capex OHs Allocation'!$M$23:$M$119,MATCH('C_CAPEX Tariff Summary'!B92,'Capex OHs Allocation'!$D$23:$D$119,0)) -> 175.9719978 | Q92: 803.4221825 | R92: =INDEX('C_OPEX Calc'!$AK$10:$AK$147,MATCH('C_CAPEX Tariff Summary'!B92,'C_OPEX Calc'!$D$10:$D$147,0)) -> 42.86072477 | T92: =IF(H92="Luminaire",IF((MID(B92,1,3)="LED"),-PMT(return_on_assests_pct,LED_lantern_lifespan,Q92),-PMT(return_on_assests_pct,trad_lantern_lifespan,Q92)),IF(H92="NW",-PMT(return_on_assests_pct,Nightvision_lifespan,Q92),-PMT(return_on_assests_pct,pole_lifespan,Q92)))+R92 -> 99.90134136 | U92: 103.3961835 | V92: 111.4939885 | W92: 116.0117113 | X92: 119.2600392 | Y92: 122.5993203 | Z92: 126.0321012 | AA92: 129.5610001 | AC92: 803.4221825 | AD92: 831.5282486 | AE92: 896.6520604 | AF92: 932.9842922 | AG92: 959.1078524 | AH92: 985.9628722 | AI92: 1013.569833 | AJ92: 1041.949788 | AL92: B2001 42WCFL c/w D2 PECB green - PT Capex | AM92: =IFERROR((_xlfn.XLOOKUP($AL92,'I_Asset number input'!$P$5:$P$316,'I_Asset number input'!G$5:G$316)),0) -> 21.315 | AN92: =IFERROR((_xlfn.XLOOKUP($AL92,'I_Asset number input'!$P$5:$P$316,'I_Asset number input'!H$5:H$316)),0) -> 0 | AO92: =IFERROR((_xlfn.XLOOKUP($AL92,'I_Asset number input'!$P$5:$P$316,'I_Asset number input'!I$5:I$316)),0) -> 0 | AP92: =IFERROR((_xlfn.XLOOKUP($AL92,'I_Asset number input'!$P$5:$P$316,'I_Asset number input'!J$5:J$316)),0) -> 0 | AQ92: =IFERROR((_xlfn.XLOOKUP($AL92,'I_Asset number input'!$P$5:$P$316,'I_Asset number input'!K$5:K$316)),0) -> 0 | AR92: =IFERROR((_xlfn.XLOOKUP($AL92,'I_Asset number input'!$P$5:$P$316,'I_Asset number input'!L$5:L$316)),0) -> 0 | AS92: =IFERROR((_xlfn.XLOOKUP($AL92,'I_Asset number input'!$P$5:$P$316,'I_Asset number input'!M$5:M$316)),0) -> 0 | AU92: 2203.889652 | AV92: 0 | AW92: 0 | AX92: 0 | AY92: 0 | AZ92: 0 | BA92: 0
B93: 17W LED B2001 NUWE Post Top | C93: 665 | D93: TC3 - Capital Funded by Endeavour Energy | E93: P | F93: Post Top - Standard | G93: Lamp | H93: Luminaire | I93: Direct | J93: 17W LED B2001 NUWE Post Top Capex | K93: =INDEX('I_Asset number input'!$C$5:$C$265,MATCH('C_CAPEX Tariff Summary'!B93,'I_Asset number input'!$D$5:$D$265,0)) -> LED | L93: 17W LED B2001 NUWE Post Top | M93: =INDEX('Capex OHs Allocation'!$J$23:$J$119,MATCH(B93,'Capex OHs Allocation'!$D$23:$D$119,0))+INDEX('Capex OHs Allocation'!$L$23:$L$119,MATCH('C_CAPEX Tariff Summary'!B93,'Capex OHs Allocation'!$D$23:$D$119,0)) -> 46.93412352 | N93: =INDEX('Stock Cost'!$T$24:$T$115,MATCH('C_CAPEX Tariff Summary'!B93,'Stock Cost'!$C$24:$C$115,0)) -> 600 | O93: =IF(OR(H93="Luminaire",H93="NW"),IF(E93="P",I_CAPEX!D$41,I_CAPEX!D$42),IF(H93="Bracket",IF(E93="P",I_CAPEX!D$43,I_CAPEX!D$44),IF(H93="Column",IF(E93="P",I_CAPEX!D$45,I_CAPEX!D$46),0))) -> 3.240037959 | P93: =INDEX('Capex OHs Allocation'!$M$23:$M$119,MATCH('C_CAPEX Tariff Summary'!B93,'Capex OHs Allocation'!$D$23:$D$119,0)) -> 175.9719978 | Q93: 826.1461593 | R93: =INDEX('C_OPEX Calc'!$AK$10:$AK$147,MATCH('C_CAPEX Tariff Summary'!B93,'C_OPEX Calc'!$D$10:$D$147,0)) -> 29.8655006 | T93: =IF(H93="Luminaire",IF((MID(B93,1,3)="LED"),-PMT(return_on_assests_pct,LED_lantern_lifespan,Q93),-PMT(return_on_assests_pct,trad_lantern_lifespan,Q93)),IF(H93="NW",-PMT(return_on_assests_pct,Nightvision_lifespan,Q93),-PMT(return_on_assests_pct,pole_lifespan,Q93)))+R93 -> 88.51945284 | U93: 91.61612312 | V93: 98.79133474 | W93: 102.7943475 | X93: 105.6725893 | Y93: 108.6314218 | Z93: 111.6731016 | AA93: 114.7999484 | AC93: 826.1461593 | AD93: 855.0471768 | AE93: 922.0129491 | AF93: 959.372801 | AG93: 986.2352395 | AH93: 1013.849826 | AI93: 1042.237621 | AJ93: 1071.420275 | AL93: 17W LED B2001 NUWE Post Top Capex | AM93: =IFERROR((_xlfn.XLOOKUP($AL93,'I_Asset number input'!$P$5:$P$316,'I_Asset number input'!G$5:G$316)),0) -> 1.015 | AN93: =IFERROR((_xlfn.XLOOKUP($AL93,'I_Asset number input'!$P$5:$P$316,'I_Asset number input'!H$5:H$316)),0) -> 473 | AO93: =IFERROR((_xlfn.XLOOKUP($AL93,'I_Asset number input'!$P$5:$P$316,'I_Asset number input'!I$5:I$316)),0) -> 480.095 | AP93: =IFERROR((_xlfn.XLOOKUP($AL93,'I_Asset number input'!$P$5:$P$316,'I_Asset number input'!J$5:J$316)),0) -> 487.296425 | AQ93: =IFERROR((_xlfn.XLOOKUP($AL93,'I_Asset number input'!$P$5:$P$316,'I_Asset number input'!K$5:K$316)),0) -> 494.6058714 | AR93: =IFERROR((_xlfn.XLOOKUP($AL93,'I_Asset number input'!$P$5:$P$316,'I_Asset number input'!L$5:L$316)),0) -> 502.0249594 | AS93: =IFERROR((_xlfn.XLOOKUP($AL93,'I_Asset number input'!$P$5:$P$316,'I_Asset number input'!M$5:M$316)),0) -> 509.5553338 | AU93: 92.99036497 | AV93: 46728.30133 | AW93: 49351.05228 | AX93: 51493.87497 | AY93: 53729.73902 | AZ93: 56062.68429 | BA93: 58496.92604
B94: 250W Sodium - FLOODLIGHT | C94: 573 | D94: TC3 - Capital Funded by Endeavour Energy | E94: V | F94: FLOODLIGHT | G94: Lamp | H94: Luminaire | I94: Direct | J94: 250W Sodium - FLOODLIGHT Capex | K94: =INDEX('I_Asset number input'!$C$5:$C$265,MATCH('C_CAPEX Tariff Summary'!B94,'I_Asset number input'!$D$5:$D$265,0)) -> HIGH LOW PRESSURE SODIUM | L94: 250W Sodium - FLOODLIGHT | M94: =INDEX('Capex OHs Allocation'!$J$23:$J$119,MATCH(B94,'Capex OHs Allocation'!$D$23:$D$119,0))+INDEX('Capex OHs Allocation'!$L$23:$L$119,MATCH('C_CAPEX Tariff Summary'!B94,'Capex OHs Allocation'!$D$23:$D$119,0)) -> 46.93412352 | N94: =INDEX('Stock Cost'!$T$24:$T$115,MATCH('C_CAPEX Tariff Summary'!B94,'Stock Cost'!$C$24:$C$115,0)) -> 534.3791457 | O94: =IF(OR(H94="Luminaire",H94="NW"),IF(E94="P",I_CAPEX!D$41,I_CAPEX!D$42),IF(H94="Bracket",IF(E94="P",I_CAPEX!D$43,I_CAPEX!D$44),IF(H94="Column",IF(E94="P",I_CAPEX!D$45,I_CAPEX!D$46),0))) -> 32.86324216 | P94: =INDEX('Capex OHs Allocation'!$M$23:$M$119,MATCH('C_CAPEX Tariff Summary'!B94,'Capex OHs Allocation'!$D$23:$D$119,0)) -> 175.9719978 | Q94: 790.1485092 | R94: =INDEX('C_OPEX Calc'!$AK$10:$AK$147,MATCH('C_CAPEX Tariff Summary'!B94,'C_OPEX Calc'!$D$10:$D$147,0)) -> 46.21386624 | T94: =IF(H94="Luminaire",IF((MID(B94,1,3)="LED"),-PMT(return_on_assests_pct,LED_lantern_lifespan,Q94),-PMT(return_on_assests_pct,trad_lantern_lifespan,Q94)),IF(H94="NW",-PMT(return_on_assests_pct,Nightvision_lifespan,Q94),-PMT(return_on_assests_pct,pole_lifespan,Q94)))+R94 -> 102.312091 | U94: 105.8912682 | V94: 114.1844838 | W94: 118.8112251 | X94: 122.1379394 | Y94: 125.5578017 | Z94: 129.0734202 | AA94: 132.6874759 | AC94: 790.1485092 | AD94: 817.7902233 | AE94: 881.8380973 | AF94: 917.5700691 | AG94: 943.2620311 | AH94: 969.6733679 | AI94: 996.8242222 | AJ94: 1024.7353 | AL94: 250W Sodium - FLOODLIGHT Capex | AM94: =IFERROR((_xlfn.XLOOKUP($AL94,'I_Asset number input'!$P$5:$P$316,'I_Asset number input'!G$5:G$316)),0) -> 49.735 | AN94: =IFERROR((_xlfn.XLOOKUP($AL94,'I_Asset number input'!$P$5:$P$316,'I_Asset number input'!H$5:H$316)),0) -> 0 | AO94: =IFERROR((_xlfn.XLOOKUP($AL94,'I_Asset number input'!$P$5:$P$316,'I_Asset number input'!I$5:I$316)),0) -> 0 | AP94: =IFERROR((_xlfn.XLOOKUP($AL94,'I_Asset number input'!$P$5:$P$316,'I_Asset number input'!J$5:J$316)),0) -> 0 | AQ94: =IFERROR((_xlfn.XLOOKUP($AL94,'I_Asset number input'!$P$5:$P$316,'I_Asset number input'!K$5:K$316)),0) -> 0 | AR94: =IFERROR((_xlfn.XLOOKUP($AL94,'I_Asset number input'!$P$5:$P$316,'I_Asset number input'!L$5:L$316)),0) -> 0 | AS94: =IFERROR((_xlfn.XLOOKUP($AL94,'I_Asset number input'!$P$5:$P$316,'I_Asset number input'!M$5:M$316)),0) -> 0 | AU94: 5266.502226 | AV94: 0 | AW94: 0 | AX94: 0 | AY94: 0 | AZ94: 0 | BA94: 0
B95: 250W Metal Halide - FLOODLIGHT | C95: 574 | D95: TC3 - Capital Funded by Endeavour Energy | E95: V | F95: FLOODLIGHT | G95: Lamp | H95: Luminaire | I95: Direct | J95: 250W Metal Halide - FLOODLIGHT Capex | K95: =INDEX('I_Asset number input'!$C$5:$C$265,MATCH('C_CAPEX Tariff Summary'!B95,'I_Asset number input'!$D$5:$D$265,0)) -> METAL HALIDE | L95: 250W Metal Halide - FLOODLIGHT | M95: =INDEX('Capex OHs Allocation'!$J$23:$J$119,MATCH(B95,'Capex OHs Allocation'!$D$23:$D$119,0))+INDEX('Capex OHs Allocation'!$L$23:$L$119,MATCH('C_CAPEX Tariff Summary'!B95,'Capex OHs Allocation'!$D$23:$D$119,0)) -> 46.93412352 | N95: =INDEX('Stock Cost'!$T$24:$T$115,MATCH('C_CAPEX Tariff Summary'!B95,'Stock Cost'!$C$24:$C$115,0)) -> 535.9251242 | O95: =IF(OR(H95="Luminaire",H95="NW"),IF(E95="P",I_CAPEX!D$41,I_CAPEX!D$42),IF(H95="Bracket",IF(E95="P",I_CAPEX!D$43,I_CAPEX!D$44),IF(H95="Column",IF(E95="P",I_CAPEX!D$45,I_CAPEX!D$46),0))) -> 32.86324216 | P95: =INDEX('Capex OHs Allocation'!$M$23:$M$119,MATCH('C_CAPEX Tariff Summary'!B95,'Capex OHs Allocation'!$D$23:$D$119,0)) -> 175.9719978 | Q95: 791.6944877 | R95: =INDEX('C_OPEX Calc'!$AK$10:$AK$147,MATCH('C_CAPEX Tariff Summary'!B95,'C_OPEX Calc'!$D$10:$D$147,0)) -> 46.58263279 | T95: =IF(H95="Luminaire",IF((MID(B95,1,3)="LED"),-PMT(return_on_assests_pct,LED_lantern_lifespan,Q95),-PMT(return_on_assests_pct,trad_lantern_lifespan,Q95)),IF(H95="NW",-PMT(return_on_assests_pct,Nightvision_lifespan,Q95),-PMT(return_on_assests_pct,pole_lifespan,Q95)))+R95 -> 102.7906175 | U95: 106.386535 | V95: 114.718539 | W95: 119.3669201 | X95: 122.7091939 | Y95: 126.1450513 | Z95: 129.6771127 | AA95: 133.3080719 | AC95: 791.6944877 | AD95: 819.3902846 | AE95: 883.5634726 | AF95: 919.3653565 | AG95: 945.1075864 | AH95: 971.5705989 | AI95: 998.7745756 | AJ95: 1026.740264 | AL95: 250W Metal Halide - FLOODLIGHT Capex | AM95: =IFERROR((_xlfn.XLOOKUP($AL95,'I_Asset number input'!$P$5:$P$316,'I_Asset number input'!G$5:G$316)),0) -> 28.42 | AN95: =IFERROR((_xlfn.XLOOKUP($AL95,'I_Asset number input'!$P$5:$P$316,'I_Asset number input'!H$5:H$316)),0) -> 0 | AO95: =IFERROR((_xlfn.XLOOKUP($AL95,'I_Asset number input'!$P$5:$P$316,'I_Asset number input'!I$5:I$316)),0) -> 0 | AP95: =IFERROR((_xlfn.XLOOKUP($AL95,'I_Asset number input'!$P$5:$P$316,'I_Asset number input'!J$5:J$316)),0) -> 0 | AQ95: =IFERROR((_xlfn.XLOOKUP($AL95,'I_Asset number input'!$P$5:$P$316,'I_Asset number input'!K$5:K$316)),0) -> 0 | AR95: =IFERROR((_xlfn.XLOOKUP($AL95,'I_Asset number input'!$P$5:$P$316,'I_Asset number input'!L$5:L$316)),0) -> 0 | AS95: =IFERROR((_xlfn.XLOOKUP($AL95,'I_Asset number input'!$P$5:$P$316,'I_Asset number input'!M$5:M$316)),0) -> 0 | AU95: 3023.505324 | AV95: 0 | AW95: 0 | AX95: 0 | AY95: 0 | AZ95: 0 | BA95: 0
B96: 400W Sodium - FLOODLIGHT | C96: 575 | D96: TC3 - Capital Funded by Endeavour Energy | E96: V | F96: FLOODLIGHT | G96: Lamp | H96: Luminaire | I96: Direct | J96: 400W Sodium - FLOODLIGHT Capex | K96: =INDEX('I_Asset number input'!$C$5:$C$265,MATCH('C_CAPEX Tariff Summary'!B96,'I_Asset number input'!$D$5:$D$265,0)) -> HIGH LOW PRESSURE SODIUM | L96: 400W Sodium - FLOODLIGHT | M96: =INDEX('Capex OHs Allocation'!$J$23:$J$119,MATCH(B96,'Capex OHs Allocation'!$D$23:$D$119,0))+INDEX('Capex OHs Allocation'!$L$23:$L$119,MATCH('C_CAPEX Tariff Summary'!B96,'Capex OHs Allocation'!$D$23:$D$119,0)) -> 46.93412352 | N96: =INDEX('Stock Cost'!$T$24:$T$115,MATCH('C_CAPEX Tariff Summary'!B96,'Stock Cost'!$C$24:$C$115,0)) -> 555.8879742 | O96: =IF(OR(H96="Luminaire",H96="NW"),IF(E96="P",I_CAPEX!D$41,I_CAPEX!D$42),IF(H96="Bracket",IF(E96="P",I_CAPEX!D$43,I_CAPEX!D$44),IF(H96="Column",IF(E96="P",I_CAPEX!D$45,I_CAPEX!D$46),0))) -> 32.86324216 | P96: =INDEX('Capex OHs Allocation'!$M$23:$M$119,MATCH('C_CAPEX Tariff Summary'!B96,'Capex OHs Allocation'!$D$23:$D$119,0)) -> 175.9719978 | Q96: 811.6573377 | R96: =INDEX('C_OPEX Calc'!$AK$10:$AK$147,MATCH('C_CAPEX Tariff Summary'!B96,'C_OPEX Calc'!$D$10:$D$147,0)) -> 44.34896117 | T96: =IF(H96="Luminaire",IF((MID(B96,1,3)="LED"),-PMT(return_on_assests_pct,LED_lantern_lifespan,Q96),-PMT(return_on_assests_pct,trad_lantern_lifespan,Q96)),IF(H96="NW",-PMT(return_on_assests_pct,Nightvision_lifespan,Q96),-PMT(return_on_assests_pct,pole_lifespan,Q96)))+R96 -> 101.9742496 | U96: 105.5416082 | V96: 113.807439 | W96: 118.4189025 | X96: 121.7346318 | Y96: 125.1432014 | Z96: 128.6472111 | AA96: 132.249333 | AC96: 811.6573377 | AD96: 840.0514938 | AE96: 905.8428309 | AF96: 942.5474716 | AG96: 968.9388008 | AH96: 996.0690872 | AI96: 1023.959022 | AJ96: 1052.629874 | AL96: 400W Sodium - FLOODLIGHT Capex | AM96: =IFERROR((_xlfn.XLOOKUP($AL96,'I_Asset number input'!$P$5:$P$316,'I_Asset number input'!G$5:G$316)),0) -> 82.215 | AN96: =IFERROR((_xlfn.XLOOKUP($AL96,'I_Asset number input'!$P$5:$P$316,'I_Asset number input'!H$5:H$316)),0) -> 0 | AO96: =IFERROR((_xlfn.XLOOKUP($AL96,'I_Asset number input'!$P$5:$P$316,'I_Asset number input'!I$5:I$316)),0) -> 0 | AP96: =IFERROR((_xlfn.XLOOKUP($AL96,'I_Asset number input'!$P$5:$P$316,'I_Asset number input'!J$5:J$316)),0) -> 0 | AQ96: =IFERROR((_xlfn.XLOOKUP($AL96,'I_Asset number input'!$P$5:$P$316,'I_Asset number input'!K$5:K$316)),0) -> 0 | AR96: =IFERROR((_xlfn.XLOOKUP($AL96,'I_Asset number input'!$P$5:$P$316,'I_Asset number input'!L$5:L$316)),0) -> 0 | AS96: =IFERROR((_xlfn.XLOOKUP($AL96,'I_Asset number input'!$P$5:$P$316,'I_Asset number input'!M$5:M$316)),0) -> 0 | AU96: 8677.103316 | AV96: 0 | AW96: 0 | AX96: 0 | AY96: 0 | AZ96: 0 | BA96: 0
B97: 400W Metal Halide - FLOODLIGHT | C97: 576 | D97: TC3 - Capital Funded by Endeavour Energy | E97: V | F97: FLOODLIGHT | G97: Lamp | H97: Luminaire | I97: Direct | J97: 400W Metal Halide - FLOODLIGHT Capex | K97: =INDEX('I_Asset number input'!$C$5:$C$265,MATCH('C_CAPEX Tariff Summary'!B97,'I_Asset number input'!$D$5:$D$265,0)) -> METAL HALIDE | L97: 400W Metal Halide - FLOODLIGHT | M97: =INDEX('Capex OHs Allocation'!$J$23:$J$119,MATCH(B97,'Capex OHs Allocation'!$D$23:$D$119,0))+INDEX('Capex OHs Allocation'!$L$23:$L$119,MATCH('C_CAPEX Tariff Summary'!B97,'Capex OHs Allocation'!$D$23:$D$119,0)) -> 46.93412352 | N97: =INDEX('Stock Cost'!$T$24:$T$115,MATCH('C_CAPEX Tariff Summary'!B97,'Stock Cost'!$C$24:$C$115,0)) -> 563.7487113 | O97: =IF(OR(H97="Luminaire",H97="NW"),IF(E97="P",I_CAPEX!D$41,I_CAPEX!D$42),IF(H97="Bracket",IF(E97="P",I_CAPEX!D$43,I_CAPEX!D$44),IF(H97="Column",IF(E97="P",I_CAPEX!D$45,I_CAPEX!D$46),0))) -> 32.86324216 | P97: =INDEX('Capex OHs Allocation'!$M$23:$M$119,MATCH('C_CAPEX Tariff Summary'!B97,'Capex OHs Allocation'!$D$23:$D$119,0)) -> 175.9719978 | Q97: 819.5180748 | R97: =INDEX('C_OPEX Calc'!$AK$10:$AK$147,MATCH('C_CAPEX Tariff Summary'!B97,'C_OPEX Calc'!$D$10:$D$147,0)) -> 46.21913434 | T97: =IF(H97="Luminaire",IF((MID(B97,1,3)="LED"),-PMT(return_on_assests_pct,LED_lantern_lifespan,Q97),-PMT(return_on_assests_pct,trad_lantern_lifespan,Q97)),IF(H97="NW",-PMT(return_on_assests_pct,Nightvision_lifespan,Q97),-PMT(return_on_assests_pct,pole_lifespan,Q97)))+R97 -> 104.402512 | U97: 108.0548183 | V97: 116.5174793 | W97: 121.2387533 | X97: =W97*(1+CPIFY26) -> 124.6334384 | Y97: 128.1231747 | Z97: 131.7106236 | AA97: 135.398521 | AC97: 819.5180748 | AD97: 848.1872225 | AE97: 914.6157354 | AF97: 951.6758531 | AG97: 978.322777 | AH97: 1005.715815 | AI97: 1033.875858 | AJ97: 1062.824382 | AL97: 400W Metal Halide - FLOODLIGHT Capex | AM97: =IFERROR((_xlfn.XLOOKUP($AL97,'I_Asset number input'!$P$5:$P$316,'I_Asset number input'!G$5:G$316)),0) -> 83.23 | AN97: =IFERROR((_xlfn.XLOOKUP($AL97,'I_Asset number input'!$P$5:$P$316,'I_Asset number input'!H$5:H$316)),0) -> 0 | AO97: =IFERROR((_xlfn.XLOOKUP($AL97,'I_Asset number input'!$P$5:$P$316,'I_Asset number input'!I$5:I$316)),0) -> 0 | AP97: =IFERROR((_xlfn.XLOOKUP($AL97,'I_Asset number input'!$P$5:$P$316,'I_Asset number input'!J$5:J$316)),0) -> 0 | AQ97: =IFERROR((_xlfn.XLOOKUP($AL97,'I_Asset number input'!$P$5:$P$316,'I_Asset number input'!K$5:K$316)),0) -> 0 | AR97: =IFERROR((_xlfn.XLOOKUP($AL97,'I_Asset number input'!$P$5:$P$316,'I_Asset number input'!L$5:L$316)),0) -> 0 | AS97: =IFERROR((_xlfn.XLOOKUP($AL97,'I_Asset number input'!$P$5:$P$316,'I_Asset number input'!M$5:M$316)),0) -> 0 | AU97: 8993.402531 | AV97: 0 | AW97: 0 | AX97: 0 | AY97: 0 | AZ97: 0 | BA97: 0
B98: 150W Sodium - FLOODLIGHT | C98: 581 | D98: TC3 - Capital Funded by Endeavour Energy | E98: V | F98: FLOODLIGHT | G98: Lamp | H98: Luminaire | I98: Direct | J98: 150W Sodium - FLOODLIGHT Capex | K98: =INDEX('I_Asset number input'!$C$5:$C$265,MATCH('C_CAPEX Tariff Summary'!B98,'I_Asset number input'!$D$5:$D$265,0)) -> HIGH LOW PRESSURE SODIUM | L98: 150W Sodium - FLOODLIGHT | M98: =INDEX('Capex OHs Allocation'!$J$23:$J$119,MATCH(B98,'Capex OHs Allocation'!$D$23:$D$119,0))+INDEX('Capex OHs Allocation'!$L$23:$L$119,MATCH('C_CAPEX Tariff Summary'!B98,'Capex OHs Allocation'!$D$23:$D$119,0)) -> 46.93412352 | N98: =INDEX('Stock Cost'!$T$24:$T$115,MATCH('C_CAPEX Tariff Summary'!B98,'Stock Cost'!$C$24:$C$115,0)) -> 517.7618898 | O98: =IF(OR(H98="Luminaire",H98="NW"),IF(E98="P",I_CAPEX!D$41,I_CAPEX!D$42),IF(H98="Bracket",IF(E98="P",I_CAPEX!D$43,I_CAPEX!D$44),IF(H98="Column",IF(E98="P",I_CAPEX!D$45,I_CAPEX!D$46),0))) -> 32.86324216 | P98: =INDEX('Capex OHs Allocation'!$M$23:$M$119,MATCH('C_CAPEX Tariff Summary'!B98,'Capex OHs Allocation'!$D$23:$D$119,0)) -> 175.9719978 | Q98: 773.5312533 | R98: =INDEX('C_OPEX Calc'!$AK$10:$AK$147,MATCH('C_CAPEX Tariff Summary'!B98,'C_OPEX Calc'!$D$10:$D$147,0)) -> 43.78264112 | T98: =IF(H98="Luminaire",IF((MID(B98,1,3)="LED"),-PMT(return_on_assests_pct,LED_lantern_lifespan,Q98),-PMT(return_on_assests_pct,trad_lantern_lifespan,Q98)),IF(H98="NW",-PMT(return_on_assests_pct,Nightvision_lifespan,Q98),-PMT(return_on_assests_pct,pole_lifespan,Q98)))+R98 -> 98.70108948 | U98: 102.1539433 | V98: 110.1544582 | W98: 114.6179034 | X98: 117.8272047 | Y98: 121.1263664 | Z98: 124.5179047 | AA98: 128.004406 | AC98: 773.5312533 | AD98: 800.5916469 | AE98: 863.2925591 | AF98: 898.273068 | AG98: 923.4247139 | AH98: 949.2806059 | AI98: 975.8604628 | AJ98: 1003.184556 | AL98: 150W Sodium - FLOODLIGHT Capex | AM98: =IFERROR((_xlfn.XLOOKUP($AL98,'I_Asset number input'!$P$5:$P$316,'I_Asset number input'!G$5:G$316)),0) -> 4.06 | AN98: =IFERROR((_xlfn.XLOOKUP($AL98,'I_Asset number input'!$P$5:$P$316,'I_Asset number input'!H$5:H$316)),0) -> 0 | AO98: =IFERROR((_xlfn.XLOOKUP($AL98,'I_Asset number input'!$P$5:$P$316,'I_Asset number input'!I$5:I$316)),0) -> 0 | AP98: =IFERROR((_xlfn.XLOOKUP($AL98,'I_Asset number input'!$P$5:$P$316,'I_Asset number input'!J$5:J$316)),0) -> 0 | AQ98: =IFERROR((_xlfn.XLOOKUP($AL98,'I_Asset number input'!$P$5:$P$316,'I_Asset number input'!K$5:K$316)),0) -> 0 | AR98: =IFERROR((_xlfn.XLOOKUP($AL98,'I_Asset number input'!$P$5:$P$316,'I_Asset number input'!L$5:L$316)),0) -> 0 | AS98: =IFERROR((_xlfn.XLOOKUP($AL98,'I_Asset number input'!$P$5:$P$316,'I_Asset number input'!M$5:M$316)),0) -> 0 | AU98: 414.7450098 | AV98: 0 | AW98: 0 | AX98: 0 | AY98: 0 | AZ98: 0 | BA98: 0
B99: 150W Metal Halide - FLOODLIGHT | C99: 582 | D99: TC3 - Capital Funded by Endeavour Energy | E99: V | F99: FLOODLIGHT | G99: Lamp | H99: Luminaire | I99: Direct | J99: 150W Metal Halide - FLOODLIGHT Capex | K99: =INDEX('I_Asset number input'!$C$5:$C$265,MATCH('C_CAPEX Tariff Summary'!B99,'I_Asset number input'!$D$5:$D$265,0)) -> METAL HALIDE | L99: 150W Metal Halide - FLOODLIGHT | M99: =INDEX('Capex OHs Allocation'!$J$23:$J$119,MATCH(B99,'Capex OHs Allocation'!$D$23:$D$119,0))+INDEX('Capex OHs Allocation'!$L$23:$L$119,MATCH('C_CAPEX Tariff Summary'!B99,'Capex OHs Allocation'!$D$23:$D$119,0)) -> 46.93412352 | N99: =INDEX('Stock Cost'!$T$24:$T$115,MATCH('C_CAPEX Tariff Summary'!B99,'Stock Cost'!$C$24:$C$115,0)) -> 532.4265426 | O99: =IF(OR(H99="Luminaire",H99="NW"),IF(E99="P",I_CAPEX!D$41,I_CAPEX!D$42),IF(H99="Bracket",IF(E99="P",I_CAPEX!D$43,I_CAPEX!D$44),IF(H99="Column",IF(E99="P",I_CAPEX!D$45,I_CAPEX!D$46),0))) -> 32.86324216 | P99: =INDEX('Capex OHs Allocation'!$M$23:$M$119,MATCH('C_CAPEX Tariff Summary'!B99,'Capex OHs Allocation'!$D$23:$D$119,0)) -> 175.9719978 | Q99: 788.1959061 | R99: =INDEX('C_OPEX Calc'!$AK$10:$AK$147,MATCH('C_CAPEX Tariff Summary'!B99,'C_OPEX Calc'!$D$10:$D$147,0)) -> 47.27275303 | T99: =IF(H99="Luminaire",IF((MID(B99,1,3)="LED"),-PMT(return_on_assests_pct,LED_lantern_lifespan,Q99),-PMT(return_on_assests_pct,trad_lantern_lifespan,Q99)),IF(H99="NW",-PMT(return_on_assests_pct,Nightvision_lifespan,Q99),-PMT(return_on_assests_pct,pole_lifespan,Q99)))+R99 -> 103.2323487 | U99: 106.8437192 | V99: 115.2115291 | W99: 119.8798861 | X99: 123.236523 | Y99: 126.6871456 | Z99: 130.2343857 | AA99: 133.8809485 | AC99: 788.1959061 | AD99: 815.7693124 | AE99: 879.6589123 | AF99: 915.3025838 | AG99: 940.9310562 | AH99: 967.2771258 | AI99: 994.3608853 | AJ99: 1022.20299 | AL99: 150W Metal Halide - FLOODLIGHT Capex | AM99: =IFERROR((_xlfn.XLOOKUP($AL99,'I_Asset number input'!$P$5:$P$316,'I_Asset number input'!G$5:G$316)),0) -> 1.015 | AN99: =IFERROR((_xlfn.XLOOKUP($AL99,'I_Asset number input'!$P$5:$P$316,'I_Asset number input'!H$5:H$316)),0) -> 0 | AO99: =IFERROR((_xlfn.XLOOKUP($AL99,'I_Asset number input'!$P$5:$P$316,'I_Asset number input'!I$5:I$316)),0) -> 0 | AP99: =IFERROR((_xlfn.XLOOKUP($AL99,'I_Asset number input'!$P$5:$P$316,'I_Asset number input'!J$5:J$316)),0) -> 0 | AQ99: =IFERROR((_xlfn.XLOOKUP($AL99,'I_Asset number input'!$P$5:$P$316,'I_Asset number input'!K$5:K$316)),0) -> 0 | AR99: =IFERROR((_xlfn.XLOOKUP($AL99,'I_Asset number input'!$P$5:$P$316,'I_Asset number input'!L$5:L$316)),0) -> 0 | AS99: =IFERROR((_xlfn.XLOOKUP($AL99,'I_Asset number input'!$P$5:$P$316,'I_Asset number input'!M$5:M$316)),0) -> 0 | AU99: 108.446375 | AV99: 0 | AW99: 0 | AX99: 0 | AY99: 0 | AZ99: 0 | BA99: 0
B100: 75W LED Aglo Nilum Plus FLOODLIGHT | C100: 655 | D100: TC3 - Capital Funded by Endeavour Energy | E100: P | F100: FLOODLIGHT | G100: Lamp | H100: Luminaire | I100: Direct | J100: 75W LED Aglo Nilum Plus FLOODLIGHT Capex | K100: =INDEX('I_Asset number input'!$C$5:$C$265,MATCH('C_CAPEX Tariff Summary'!B100,'I_Asset number input'!$D$5:$D$265,0)) -> LED | L100: 75W LED Aglo Nilum Plus FLOODLIGHT | M100: =INDEX('Capex OHs Allocation'!$J$23:$J$119,MATCH(B100,'Capex OHs Allocation'!$D$23:$D$119,0))+INDEX('Capex OHs Allocation'!$L$23:$L$119,MATCH('C_CAPEX Tariff Summary'!B100,'Capex OHs Allocation'!$D$23:$D$119,0)) -> 46.93412352 | N100: =INDEX('Stock Cost'!$T$24:$T$115,MATCH('C_CAPEX Tariff Summary'!B100,'Stock Cost'!$C$24:$C$115,0)) -> 451.1437935 | O100: =IF(OR(H100="Luminaire",H100="NW"),IF(E100="P",I_CAPEX!D$41,I_CAPEX!D$42),IF(H100="Bracket",IF(E100="P",I_CAPEX!D$43,I_CAPEX!D$44),IF(H100="Column",IF(E100="P",I_CAPEX!D$45,I_CAPEX!D$46),0))) -> 3.240037959 | P100: =INDEX('Capex OHs Allocation'!$M$23:$M$119,MATCH('C_CAPEX Tariff Summary'!B100,'Capex OHs Allocation'!$D$23:$D$119,0)) -> 175.9719978 | Q100: 677.2899528 | R100: =INDEX('C_OPEX Calc'!$AK$10:$AK$147,MATCH('C_CAPEX Tariff Summary'!B100,'C_OPEX Calc'!$D$10:$D$147,0)) -> 29.8655006 | T100: =IF(H100="Luminaire",IF((MID(B100,1,3)="LED"),-PMT(return_on_assests_pct,LED_lantern_lifespan,Q100),-PMT(return_on_assests_pct,trad_lantern_lifespan,Q100)),IF(H100="NW",-PMT(return_on_assests_pct,Nightvision_lifespan,Q100),-PMT(return_on_assests_pct,pole_lifespan,Q100)))+R100 -> 77.95109913 | U100: 80.67805738 | V100: 86.99661917 | W100: 90.52171153 | X100: 93.05631946 | Y100: 95.6618964 | Z100: 98.3404295 | AA100: 101.0939615 | AC100: 677.2899528 | AD100: 700.9835433 | AE100: 755.8833262 | AF100: 786.5116261 | AG100: 808.5339516 | AH100: 831.1729022 | AI100: 854.4457435 | AJ100: 878.3702243 | AL100: 75W LED Aglo Nilum Plus FLOODLIGHT Capex | AM100: =IFERROR((_xlfn.XLOOKUP($AL100,'I_Asset number input'!$P$5:$P$316,'I_Asset number input'!G$5:G$316)),0) -> 1.015 | AN100: =IFERROR((_xlfn.XLOOKUP($AL100,'I_Asset number input'!$P$5:$P$316,'I_Asset number input'!H$5:H$316)),0) -> 12 | AO100: =IFERROR((_xlfn.XLOOKUP($AL100,'I_Asset number input'!$P$5:$P$316,'I_Asset number input'!I$5:I$316)),0) -> 12.18 | AP100: =IFERROR((_xlfn.XLOOKUP($AL100,'I_Asset number input'!$P$5:$P$316,'I_Asset number input'!J$5:J$316)),0) -> 12.3627 | AQ100: =IFERROR((_xlfn.XLOOKUP($AL100,'I_Asset number input'!$P$5:$P$316,'I_Asset number input'!K$5:K$316)),0) -> 12.5481405 | AR100: =IFERROR((_xlfn.XLOOKUP($AL100,'I_Asset number input'!$P$5:$P$316,'I_Asset number input'!L$5:L$316)),0) -> 12.73636261 | AS100: =IFERROR((_xlfn.XLOOKUP($AL100,'I_Asset number input'!$P$5:$P$316,'I_Asset number input'!M$5:M$316)),0) -> 12.92740805 | AU100: 81.88822824 | AV100: 1043.95943 | AW100: 1102.554446 | AX100: 1150.427361 | AY100: 1200.378917 | AZ100: 1252.499369 | BA100: 1306.882892
B101: 100W LED Aglo Nilum Plus FLOODLIGHT | C101: 656 | D101: TC3 - Capital Funded by Endeavour Energy | E101: P | F101: FLOODLIGHT | G101: Lamp | H101: Luminaire | I101: Direct | J101: 100W LED Aglo Nilum Plus FLOODLIGHT Capex | K101: =INDEX('I_Asset number input'!$C$5:$C$265,MATCH('C_CAPEX Tariff Summary'!B101,'I_Asset number input'!$D$5:$D$265,0)) -> LED | L101: 100W LED Aglo Nilum Plus FLOODLIGHT | M101: =INDEX('Capex OHs Allocation'!$J$23:$J$119,MATCH(B101,'Capex OHs Allocation'!$D$23:$D$119,0))+INDEX('Capex OHs Allocation'!$L$23:$L$119,MATCH('C_CAPEX Tariff Summary'!B101,'Capex OHs Allocation'!$D$23:$D$119,0)) -> 46.93412352 | N101: =INDEX('Stock Cost'!$T$24:$T$115,MATCH('C_CAPEX Tariff Summary'!B101,'Stock Cost'!$C$24:$C$115,0)) -> 478.6525614 | O101: =IF(OR(H101="Luminaire",H101="NW"),IF(E101="P",I_CAPEX!D$41,I_CAPEX!D$42),IF(H101="Bracket",IF(E101="P",I_CAPEX!D$43,I_CAPEX!D$44),IF(H101="Column",IF(E101="P",I_CAPEX!D$45,I_CAPEX!D$46),0))) -> 3.240037959 | P101: =INDEX('Capex OHs Allocation'!$M$23:$M$119,MATCH('C_CAPEX Tariff Summary'!B101,'Capex OHs Allocation'!$D$23:$D$119,0)) -> 175.9719978 | Q101: 704.7987207 | R101: =INDEX('C_OPEX Calc'!$AK$10:$AK$147,MATCH('C_CAPEX Tariff Summary'!B101,'C_OPEX Calc'!$D$10:$D$147,0)) -> 29.8655006 | T101: =IF(H101="Luminaire",IF((MID(B101,1,3)="LED"),-PMT(return_on_assests_pct,LED_lantern_lifespan,Q101),-PMT(return_on_assests_pct,trad_lantern_lifespan,Q101)),IF(H101="NW",-PMT(return_on_assests_pct,Nightvision_lifespan,Q101),-PMT(return_on_assests_pct,pole_lifespan,Q101)))+R101 -> 79.9041409 | U101: 82.69942228 | V101: 89.17629377 | W101: 92.78970629 | X101: 95.38781806 | Y101: 98.05867697 | Z101: 100.8043199 | AA101: 103.6268409 | AC101: 704.7987207 | AD101: 729.4546486 | AE101: 786.5842378 | AF101: 818.4565349 | AG101: 841.3733178 | AH101: 864.9317707 | AI101: 889.1498603 | AJ101: 914.0460564 | AL101: 100W LED Aglo Nilum Plus FLOODLIGHT Capex | AM101: =IFERROR((_xlfn.XLOOKUP($AL101,'I_Asset number input'!$P$5:$P$316,'I_Asset number input'!G$5:G$316)),0) -> 17.255 | AN101: =IFERROR((_xlfn.XLOOKUP($AL101,'I_Asset number input'!$P$5:$P$316,'I_Asset number input'!H$5:H$316)),0) -> 492 | AO101: =IFERROR((_xlfn.XLOOKUP($AL101,'I_Asset number input'!$P$5:$P$316,'I_Asset number input'!I$5:I$316)),0) -> 499.38 | AP101: =IFERROR((_xlfn.XLOOKUP($AL101,'I_Asset number input'!$P$5:$P$316,'I_Asset number input'!J$5:J$316)),0) -> 506.8707 | AQ101: =IFERROR((_xlfn.XLOOKUP($AL101,'I_Asset number input'!$P$5:$P$316,'I_Asset number input'!K$5:K$316)),0) -> 514.4737605 | AR101: =IFERROR((_xlfn.XLOOKUP($AL101,'I_Asset number input'!$P$5:$P$316,'I_Asset number input'!L$5:L$316)),0) -> 522.1908669 | AS101: =IFERROR((_xlfn.XLOOKUP($AL101,'I_Asset number input'!$P$5:$P$316,'I_Asset number input'!M$5:M$316)),0) -> 530.0237299 | AU101: 1426.978531 | AV101: 43874.73654 | AW101: 46337.32353 | AX101: 48349.29011 | AY101: 50448.61629 | AZ101: 52639.09521 | BA101: 54924.68472
B102: 150W LED Aglo Nilum Plus FLOODLIGHT | C102: 657 | D102: TC3 - Capital Funded by Endeavour Energy | E102: V | F102: FLOODLIGHT | G102: Lamp | H102: Luminaire | I102: Direct | J102: 150W LED Aglo Nilum Plus FLOODLIGHT Capex | K102: =INDEX('I_Asset number input'!$C$5:$C$265,MATCH('C_CAPEX Tariff Summary'!B102,'I_Asset number input'!$D$5:$D$265,0)) -> LED | L102: 150W LED Aglo Nilum Plus FLOODLIGHT | M102: =INDEX('Capex OHs Allocation'!$J$23:$J$119,MATCH(B102,'Capex OHs Allocation'!$D$23:$D$119,0))+INDEX('Capex OHs Allocation'!$L$23:$L$119,MATCH('C_CAPEX Tariff Summary'!B102,'Capex OHs Allocation'!$D$23:$D$119,0)) -> 46.93412352 | N102: =INDEX('Stock Cost'!$T$24:$T$115,MATCH('C_CAPEX Tariff Summary'!B102,'Stock Cost'!$C$24:$C$115,0)) -> 533.6700972 | O102: =IF(OR(H102="Luminaire",H102="NW"),IF(E102="P",I_CAPEX!D$41,I_CAPEX!D$42),IF(H102="Bracket",IF(E102="P",I_CAPEX!D$43,I_CAPEX!D$44),IF(H102="Column",IF(E102="P",I_CAPEX!D$45,I_CAPEX!D$46),0))) -> 32.86324216 | P102: =INDEX('Capex OHs Allocation'!$M$23:$M$119,MATCH('C_CAPEX Tariff Summary'!B102,'Capex OHs Allocation'!$D$23:$D$119,0)) -> 175.9719978 | Q102: 789.4394607 | R102: =INDEX('C_OPEX Calc'!$AK$10:$AK$147,MATCH('C_CAPEX Tariff Summary'!B102,'C_OPEX Calc'!$D$10:$D$147,0)) -> 29.8655006 | T102: =IF(H102="Luminaire",IF((MID(B102,1,3)="LED"),-PMT(return_on_assests_pct,LED_lantern_lifespan,Q102),-PMT(return_on_assests_pct,trad_lantern_lifespan,Q102)),IF(H102="NW",-PMT(return_on_assests_pct,Nightvision_lifespan,Q102),-PMT(return_on_assests_pct,pole_lifespan,Q102)))+R102 -> 85.91338499 | U102: 88.91888736 | V102: 95.88285628 | W102: 99.76801789 | X102: 102.5615224 | Y102: 105.433245 | Z102: 108.3853759 | AA102: 111.4201664 | AC102: 789.4394607 | AD102: 817.0563701 | AE102: 881.0467701 | AF102: 916.7466775 | AG102: 942.4155844 | AH102: 968.8032208 | AI102: 995.929711 | AJ102: 1023.815743 | AL102: 150W LED Aglo Nilum Plus FLOODLIGHT Capex | AM102: =IFERROR((_xlfn.XLOOKUP($AL102,'I_Asset number input'!$P$5:$P$316,'I_Asset number input'!G$5:G$316)),0) -> 13.195 | AN102: =IFERROR((_xlfn.XLOOKUP($AL102,'I_Asset number input'!$P$5:$P$316,'I_Asset number input'!H$5:H$316)),0) -> 605 | AO102: =IFERROR((_xlfn.XLOOKUP($AL102,'I_Asset number input'!$P$5:$P$316,'I_Asset number input'!I$5:I$316)),0) -> 614.075 | AP102: =IFERROR((_xlfn.XLOOKUP($AL102,'I_Asset number input'!$P$5:$P$316,'I_Asset number input'!J$5:J$316)),0) -> 623.286125 | AQ102: =IFERROR((_xlfn.XLOOKUP($AL102,'I_Asset number input'!$P$5:$P$316,'I_Asset number input'!K$5:K$316)),0) -> 632.6354169 | AR102: =IFERROR((_xlfn.XLOOKUP($AL102,'I_Asset number input'!$P$5:$P$316,'I_Asset number input'!L$5:L$316)),0) -> 642.1249481 | AS102: =IFERROR((_xlfn.XLOOKUP($AL102,'I_Asset number input'!$P$5:$P$316,'I_Asset number input'!M$5:M$316)),0) -> 651.7568224 | AU102: 1173.284719 | AV102: 58009.12805 | AW102: 61265.04559 | AX102: 63925.17387 | AY102: 66700.80491 | AZ102: 69596.95386 | BA102: 72618.8536
B103: 300W LED Aglo Nilum Plus FLOODLIGHT | C103: 658 | D103: TC3 - Capital Funded by Endeavour Energy | E103: V | F103: FLOODLIGHT | G103: Lamp | H103: Luminaire | I103: Direct | J103: =B103&" "&"Capex" -> 300W LED Aglo Nilum Plus FLOODLIGHT Capex | K103: =INDEX('I_Asset number input'!$C$5:$C$265,MATCH('C_CAPEX Tariff Summary'!B103,'I_Asset number input'!$D$5:$D$265,0)) -> LED | L103: 300W LED Aglo Nilum Plus FLOODLIGHT | M103: =INDEX('Capex OHs Allocation'!$J$23:$J$119,MATCH(B103,'Capex OHs Allocation'!$D$23:$D$119,0))+INDEX('Capex OHs Allocation'!$L$23:$L$119,MATCH('C_CAPEX Tariff Summary'!B103,'Capex OHs Allocation'!$D$23:$D$119,0)) -> 46.93412352 | N103: =INDEX('Stock Cost'!$T$24:$T$115,MATCH('C_CAPEX Tariff Summary'!B103,'Stock Cost'!$C$24:$C$115,0)) -> 878.6300466 | O103: =IF(OR(H103="Luminaire",H103="NW"),IF(E103="P",I_CAPEX!D$41,I_CAPEX!D$42),IF(H103="Bracket",IF(E103="P",I_CAPEX!D$43,I_CAPEX!D$44),IF(H103="Column",IF(E103="P",I_CAPEX!D$45,I_CAPEX!D$46),0))) -> 32.86324216 | P103: =INDEX('Capex OHs Allocation'!$M$23:$M$119,MATCH('C_CAPEX Tariff Summary'!B103,'Capex OHs Allocation'!$D$23:$D$119,0)) -> 175.9719978 | Q103: 1134.39941 | R103: =INDEX('C_OPEX Calc'!$AK$10:$AK$147,MATCH('C_CAPEX Tariff Summary'!B103,'C_OPEX Calc'!$D$10:$D$147,0)) -> 29.8655006 | T103: =IF(H103="Luminaire",IF((MID(B103,1,3)="LED"),-PMT(return_on_assests_pct,LED_lantern_lifespan,Q103),-PMT(return_on_assests_pct,trad_lantern_lifespan,Q103)),IF(H103="NW",-PMT(return_on_assests_pct,Nightvision_lifespan,Q103),-PMT(return_on_assests_pct,pole_lifespan,Q103)))+R103 -> 110.4045288 | U103: 114.2668033 | V103: 123.2159758 | W103: 128.2086721 | X103: 131.7985149 | Y103: 135.4888733 | Z103: 139.2825618 | AA103: 143.1824735 | AC103: 1134.39941 | AD103: 1174.084031 | AE103: 1266.036202 | AF103: 1317.335834 | AG103: 1354.221237 | AH103: 1392.139432 | AI103: 1431.119336 | AJ103: 1471.190677 | AL103: 300W LED Aglo Nilum Plus FLOODLIGHT Capex | AM103: =IFERROR((_xlfn.XLOOKUP($AL103,'I_Asset number input'!$P$5:$P$316,'I_Asset number input'!G$5:G$316)),0) -> 7.105 | AN103: =IFERROR((_xlfn.XLOOKUP($AL103,'I_Asset number input'!$P$5:$P$316,'I_Asset number input'!H$5:H$316)),0) -> 18 | AO103: =IFERROR((_xlfn.XLOOKUP($AL103,'I_Asset number input'!$P$5:$P$316,'I_Asset number input'!I$5:I$316)),0) -> 18.27 | AP103: =IFERROR((_xlfn.XLOOKUP($AL103,'I_Asset number input'!$P$5:$P$316,'I_Asset number input'!J$5:J$316)),0) -> 18.54405 | AQ103: =IFERROR((_xlfn.XLOOKUP($AL103,'I_Asset number input'!$P$5:$P$316,'I_Asset number input'!K$5:K$316)),0) -> 18.82221075 | AR103: =IFERROR((_xlfn.XLOOKUP($AL103,'I_Asset number input'!$P$5:$P$316,'I_Asset number input'!L$5:L$316)),0) -> 19.10454391 | AS103: =IFERROR((_xlfn.XLOOKUP($AL103,'I_Asset number input'!$P$5:$P$316,'I_Asset number input'!M$5:M$316)),0) -> 19.39111207 | AU103: 811.8656372 | AV103: 2217.887565 | AW103: 2342.372439 | AX103: 2444.07825 | AY103: 2550.200128 | AZ103: 2660.929818 | BA103: 2776.46739
B104: 33W LED P4 Pecan | C104: 587 | D104: TC3 - Capital Funded by Endeavour Energy | E104: P | F104: Minor Road Standard | G104: Lamp | H104: Luminaire | I104: Direct | J104: =B104&" "&"Capex" -> 33W LED P4 Pecan Capex | K104: =INDEX('I_Asset number input'!$C$5:$C$265,MATCH('C_CAPEX Tariff Summary'!B104,'I_Asset number input'!$D$5:$D$265,0)) -> LED | L104: 33W LED P4 Pecan | M104: =INDEX('Capex OHs Allocation'!$J$23:$J$119,MATCH(B104,'Capex OHs Allocation'!$D$23:$D$119,0))+INDEX('Capex OHs Allocation'!$L$23:$L$119,MATCH('C_CAPEX Tariff Summary'!B104,'Capex OHs Allocation'!$D$23:$D$119,0)) -> 46.93412352 | N104: =N66 -> 236.98 | O104: =IF(OR(H104="Luminaire",H104="NW"),IF(E104="P",I_CAPEX!D$41,I_CAPEX!D$42),IF(H104="Bracket",IF(E104="P",I_CAPEX!D$43,I_CAPEX!D$44),IF(H104="Column",IF(E104="P",I_CAPEX!D$45,I_CAPEX!D$46),0))) -> 3.240037959 | P104: =INDEX('Capex OHs Allocation'!$M$23:$M$119,MATCH('C_CAPEX Tariff Summary'!B104,'Capex OHs Allocation'!$D$23:$D$119,0)) -> 175.9719978 | Q104: 463.1261593 | R104: =INDEX('C_OPEX Calc'!$AK$10:$AK$147,MATCH('C_CAPEX Tariff Summary'!B104,'C_OPEX Calc'!$D$10:$D$147,0)) -> 29.8655006 | T104: =IF(H104="Luminaire",IF((MID(B104,1,3)="LED"),-PMT(return_on_assests_pct,LED_lantern_lifespan,Q104),-PMT(return_on_assests_pct,trad_lantern_lifespan,Q104)),IF(H104="NW",-PMT(return_on_assests_pct,Nightvision_lifespan,Q104),-PMT(return_on_assests_pct,pole_lifespan,Q104)))+R104 -> 62.74609845 | U104: 64.94114114 | V104: 70.02721568 | W104: =V104*(1+CPIFY25) -> 72.86470989 | X104: =W104*(1+CPIFY26) -> 74.90492177 | Y104: =X104*(1+CPIFY27) -> 77.00225958 | Z104: =Y104*(1+CPIFY28) -> 79.15832284 | AA104: =Z104*(1+CPIFY29) -> 81.37475588 | AC104: 463.1261593 | AD104: =AC104*(1+CPIFY23) -> 479.3276717 | AE104: =AD104*(1+CPIFY24) -> 516.8677614 | AF104: =AE104*(1+CPIFY25) -> 537.8111799 | AG104: =AF104*(1+CPIFY26) -> 552.8698929 | AH104: =AG104*(1+CPIFY27) -> 568.3502499 | AI104: =AH104*(1+CPIFY28) -> 584.2640569 | AJ104: =AI104*(1+CPIFY29) -> 600.6234505 | AL104: =J104 -> 33W LED P4 Pecan Capex | AM104: =IFERROR((_xlfn.XLOOKUP($AL104,'I_Asset number input'!$P$5:$P$316,'I_Asset number input'!G$5:G$316)),0) -> 0 | AN104: =IFERROR((_xlfn.XLOOKUP($AL104,'I_Asset number input'!$P$5:$P$316,'I_Asset number input'!H$5:H$316)),0) -> 0 | AO104: =IFERROR((_xlfn.XLOOKUP($AL104,'I_Asset number input'!$P$5:$P$316,'I_Asset number input'!I$5:I$316)),0) -> 0 | AP104: =IFERROR((_xlfn.XLOOKUP($AL104,'I_Asset number input'!$P$5:$P$316,'I_Asset number input'!J$5:J$316)),0) -> 0 | AQ104: =IFERROR((_xlfn.XLOOKUP($AL104,'I_Asset number input'!$P$5:$P$316,'I_Asset number input'!K$5:K$316)),0) -> 0 | AR104: =IFERROR((_xlfn.XLOOKUP($AL104,'I_Asset number input'!$P$5:$P$316,'I_Asset number input'!L$5:L$316)),0) -> 0 | AS104: =IFERROR((_xlfn.XLOOKUP($AL104,'I_Asset number input'!$P$5:$P$316,'I_Asset number input'!M$5:M$316)),0) -> 0 | AU104: 0 | AV104: 0 | AW104: 0 | AX104: 0 | AY104: 0 | AZ104: 0 | BA104: 0
B105: 13W LED STREETLED3 STD Visor S-S | C105: 433 | D105: TC3 - Capital Funded by Endeavour Energy | E105: P | F105: Minor Road Standard | G105: Lamp | H105: Luminaire | I105: Direct | J105: 13W LED STREETLED3 STD Visor S-S Capex | K105: =INDEX('I_Asset number input'!$C$5:$C$265,MATCH('C_CAPEX Tariff Summary'!B105,'I_Asset number input'!$D$5:$D$265,0)) -> LED | L105: 13W LED STREETLED3 STD Visor S-S | M105: =INDEX('Capex OHs Allocation'!$J$23:$J$119,MATCH(B105,'Capex OHs Allocation'!$D$23:$D$119,0))+INDEX('Capex OHs Allocation'!$L$23:$L$119,MATCH('C_CAPEX Tariff Summary'!B105,'Capex OHs Allocation'!$D$23:$D$119,0)) -> 46.93412352 | N105: =INDEX('Stock Cost'!$T$24:$T$115,MATCH('C_CAPEX Tariff Summary'!B105,'Stock Cost'!$C$24:$C$115,0)) -> 160 | O105: =IF(OR(H105="Luminaire",H105="NW"),IF(E105="P",I_CAPEX!D$41,I_CAPEX!D$42),IF(H105="Bracket",IF(E105="P",I_CAPEX!D$43,I_CAPEX!D$44),IF(H105="Column",IF(E105="P",I_CAPEX!D$45,I_CAPEX!D$46),0))) -> 3.240037959 | P105: =INDEX('Capex OHs Allocation'!$M$23:$M$119,MATCH('C_CAPEX Tariff Summary'!B105,'Capex OHs Allocation'!$D$23:$D$119,0)) -> 175.9719978 | Q105: 386.1461593 | R105: =INDEX('C_OPEX Calc'!$AK$10:$AK$147,MATCH('C_CAPEX Tariff Summary'!B105,'C_OPEX Calc'!$D$10:$D$147,0)) -> 29.8655006 | T105: =IF(H105="Luminaire",IF((MID(B105,1,3)="LED"),-PMT(return_on_assests_pct,LED_lantern_lifespan,Q105),-PMT(return_on_assests_pct,trad_lantern_lifespan,Q105)),IF(H105="NW",-PMT(return_on_assests_pct,Nightvision_lifespan,Q105),-PMT(return_on_assests_pct,pole_lifespan,Q105)))+R105 -> 57.28074442 | U105: 59.28459299 | V105: 63.92765674 | W105: 66.51799757 | X105: 68.3805015 | Y105: 70.29515554 | Z105: 72.2634199 | AA105: 74.28679566 | AC105: 386.1461593 | AD105: 399.6546854 | AE105: 430.9549286 | AF105: 448.4171696 | AG105: 460.9728504 | AH105: 473.8800902 | AI105: 487.1487327 | AJ105: 500.7888972 | AL105: 13W LED STREETLED3 STD Visor S-S Capex | AM105: =IFERROR((_xlfn.XLOOKUP($AL105,'I_Asset number input'!$P$5:$P$316,'I_Asset number input'!G$5:G$316)),0) -> 0 | AN105: =IFERROR((_xlfn.XLOOKUP($AL105,'I_Asset number input'!$P$5:$P$316,'I_Asset number input'!H$5:H$316)),0) -> 0 | AO105: =IFERROR((_xlfn.XLOOKUP($AL105,'I_Asset number input'!$P$5:$P$316,'I_Asset number input'!I$5:I$316)),0) -> 0 | AP105: =IFERROR((_xlfn.XLOOKUP($AL105,'I_Asset number input'!$P$5:$P$316,'I_Asset number input'!J$5:J$316)),0) -> 0 | AQ105: =IFERROR((_xlfn.XLOOKUP($AL105,'I_Asset number input'!$P$5:$P$316,'I_Asset number input'!K$5:K$316)),0) -> 0 | AR105: =IFERROR((_xlfn.XLOOKUP($AL105,'I_Asset number input'!$P$5:$P$316,'I_Asset number input'!L$5:L$316)),0) -> 0 | AS105: =IFERROR((_xlfn.XLOOKUP($AL105,'I_Asset number input'!$P$5:$P$316,'I_Asset number input'!M$5:M$316)),0) -> 0 | AU105: 0 | AV105: 0 | AW105: 0 | AX105: 0 | AY105: 0 | AZ105: 0 | BA105: 0
B106: 24W LED STREETLED3 STD Visor S-S | C106: 431 | D106: TC3 - Capital Funded by Endeavour Energy | E106: P | F106: Minor Road Standard | G106: Lamp | H106: Luminaire | I106: Direct | J106: 24W LED STREETLED3 STD Visor S-S Capex | K106: =INDEX('I_Asset number input'!$C$5:$C$265,MATCH('C_CAPEX Tariff Summary'!B106,'I_Asset number input'!$D$5:$D$265,0)) -> LED | L106: 24W LED STREETLED3 STD Visor S-S | M106: =INDEX('Capex OHs Allocation'!$J$23:$J$119,MATCH(B106,'Capex OHs Allocation'!$D$23:$D$119,0))+INDEX('Capex OHs Allocation'!$L$23:$L$119,MATCH('C_CAPEX Tariff Summary'!B106,'Capex OHs Allocation'!$D$23:$D$119,0)) -> 46.93412352 | N106: =INDEX('Stock Cost'!$T$24:$T$115,MATCH('C_CAPEX Tariff Summary'!B106,'Stock Cost'!$C$24:$C$115,0)) -> 195 | O106: =IF(OR(H106="Luminaire",H106="NW"),IF(E106="P",I_CAPEX!D$41,I_CAPEX!D$42),IF(H106="Bracket",IF(E106="P",I_CAPEX!D$43,I_CAPEX!D$44),IF(H106="Column",IF(E106="P",I_CAPEX!D$45,I_CAPEX!D$46),0))) -> 3.240037959 | P106: =INDEX('Capex OHs Allocation'!$M$23:$M$119,MATCH('C_CAPEX Tariff Summary'!B106,'Capex OHs Allocation'!$D$23:$D$119,0)) -> 175.9719978 | Q106: 421.1461593 | R106: =INDEX('C_OPEX Calc'!$AK$10:$AK$147,MATCH('C_CAPEX Tariff Summary'!B106,'C_OPEX Calc'!$D$10:$D$147,0)) -> 29.8655006 | T106: =IF(H106="Luminaire",IF((MID(B106,1,3)="LED"),-PMT(return_on_assests_pct,LED_lantern_lifespan,Q106),-PMT(return_on_assests_pct,trad_lantern_lifespan,Q106)),IF(H106="NW",-PMT(return_on_assests_pct,Nightvision_lifespan,Q106),-PMT(return_on_assests_pct,pole_lifespan,Q106)))+R106 -> 59.76564168 | U106: 61.85641925 | V106: 66.70090385 | W106: 69.40361632 | X106: 71.34691758 | Y106: 73.34463127 | Z106: 75.39828094 | AA106: 77.50943281 | AC106: 421.1461593 | AD106: 435.8790881 | AE106: 470.0163621 | AF106: 489.0613676 | AG106: 502.7550859 | AH106: 516.8322283 | AI106: 531.3035307 | AJ106: 546.1800295 | AL106: 24W LED STREETLED3 STD Visor S-S Capex | AM106: =IFERROR((_xlfn.XLOOKUP($AL106,'I_Asset number input'!$P$5:$P$316,'I_Asset number input'!G$5:G$316)),0) -> 0 | AN106: =IFERROR((_xlfn.XLOOKUP($AL106,'I_Asset number input'!$P$5:$P$316,'I_Asset number input'!H$5:H$316)),0) -> 0 | AO106: =IFERROR((_xlfn.XLOOKUP($AL106,'I_Asset number input'!$P$5:$P$316,'I_Asset number input'!I$5:I$316)),0) -> 0 | AP106: =IFERROR((_xlfn.XLOOKUP($AL106,'I_Asset number input'!$P$5:$P$316,'I_Asset number input'!J$5:J$316)),0) -> 0 | AQ106: =IFERROR((_xlfn.XLOOKUP($AL106,'I_Asset number input'!$P$5:$P$316,'I_Asset number input'!K$5:K$316)),0) -> 0 | AR106: =IFERROR((_xlfn.XLOOKUP($AL106,'I_Asset number input'!$P$5:$P$316,'I_Asset number input'!L$5:L$316)),0) -> 0 | AS106: =IFERROR((_xlfn.XLOOKUP($AL106,'I_Asset number input'!$P$5:$P$316,'I_Asset number input'!M$5:M$316)),0) -> 0 | AU106: 0 | AV106: 0 | AW106: 0 | AX106: 0 | AY106: 0 | AZ106: 0 | BA106: 0
B107: 18W LED Bourke Hill S-S | C107: 437 | D107: TC3 - Capital Funded by Endeavour Energy | E107: P | F107: Minor Road Standard | G107: Lamp | H107: Luminaire | I107: Direct | J107: 18W LED Bourke Hill S-S Capex | K107: =INDEX('I_Asset number input'!$C$5:$C$265,MATCH('C_CAPEX Tariff Summary'!B107,'I_Asset number input'!$D$5:$D$265,0)) -> LED | L107: 18W LED Bourke Hill S-S | M107: =INDEX('Capex OHs Allocation'!$J$23:$J$119,MATCH(B107,'Capex OHs Allocation'!$D$23:$D$119,0))+INDEX('Capex OHs Allocation'!$L$23:$L$119,MATCH('C_CAPEX Tariff Summary'!B107,'Capex OHs Allocation'!$D$23:$D$119,0)) -> 46.93412352 | N107: =INDEX('Stock Cost'!$T$24:$T$115,MATCH('C_CAPEX Tariff Summary'!B107,'Stock Cost'!$C$24:$C$115,0)) -> 720 | O107: =IF(OR(H107="Luminaire",H107="NW"),IF(E107="P",I_CAPEX!D$41,I_CAPEX!D$42),IF(H107="Bracket",IF(E107="P",I_CAPEX!D$43,I_CAPEX!D$44),IF(H107="Column",IF(E107="P",I_CAPEX!D$45,I_CAPEX!D$46),0))) -> 3.240037959 | P107: =INDEX('Capex OHs Allocation'!$M$23:$M$119,MATCH('C_CAPEX Tariff Summary'!B107,'Capex OHs Allocation'!$D$23:$D$119,0)) -> 175.9719978 | Q107: 946.1461593 | R107: =INDEX('C_OPEX Calc'!$AK$10:$AK$147,MATCH('C_CAPEX Tariff Summary'!B107,'C_OPEX Calc'!$D$10:$D$147,0)) -> 29.8655006 | T107: =IF(H107="Luminaire",IF((MID(B107,1,3)="LED"),-PMT(return_on_assests_pct,LED_lantern_lifespan,Q107),-PMT(return_on_assests_pct,trad_lantern_lifespan,Q107)),IF(H107="NW",-PMT(return_on_assests_pct,Nightvision_lifespan,Q107),-PMT(return_on_assests_pct,pole_lifespan,Q107)))+R107 -> 97.03910059 | U107: 100.4338132 | V107: 108.2996106 | W107: 112.6878975 | X107: 115.8431587 | Y107: 119.0867671 | Z107: 122.4211966 | AA107: 125.8489901 | AC107: 946.1461593 | AD107: 979.245129 | AE107: 1055.937864 | AF107: 1098.724337 | AG107: 1129.488618 | AH107: 1161.1143 | AI107: 1193.6255 | AJ107: 1227.047014 | AL107: 18W LED Bourke Hill S-S Capex | AM107: =IFERROR((_xlfn.XLOOKUP($AL107,'I_Asset number input'!$P$5:$P$316,'I_Asset number input'!G$5:G$316)),0) -> 0 | AN107: =IFERROR((_xlfn.XLOOKUP($AL107,'I_Asset number input'!$P$5:$P$316,'I_Asset number input'!H$5:H$316)),0) -> 0 | AO107: =IFERROR((_xlfn.XLOOKUP($AL107,'I_Asset number input'!$P$5:$P$316,'I_Asset number input'!I$5:I$316)),0) -> 0 | AP107: =IFERROR((_xlfn.XLOOKUP($AL107,'I_Asset number input'!$P$5:$P$316,'I_Asset number input'!J$5:J$316)),0) -> 0 | AQ107: =IFERROR((_xlfn.XLOOKUP($AL107,'I_Asset number input'!$P$5:$P$316,'I_Asset number input'!K$5:K$316)),0) -> 0 | AR107: =IFERROR((_xlfn.XLOOKUP($AL107,'I_Asset number input'!$P$5:$P$316,'I_Asset number input'!L$5:L$316)),0) -> 0 | AS107: =IFERROR((_xlfn.XLOOKUP($AL107,'I_Asset number input'!$P$5:$P$316,'I_Asset number input'!M$5:M$316)),0) -> 0 | AU107: 0 | AV107: 0 | AW107: 0 | AX107: 0 | AY107: 0 | AZ107: 0 | BA107: 0
B108: 24W LED Bourke Hill S-S | C108: 438 | D108: TC3 - Capital Funded by Endeavour Energy | E108: P | F108: Minor Road Standard | G108: Lamp | H108: Luminaire | I108: Direct | J108: 24W LED Bourke Hill S-S Capex | K108: =INDEX('I_Asset number input'!$C$5:$C$265,MATCH('C_CAPEX Tariff Summary'!B108,'I_Asset number input'!$D$5:$D$265,0)) -> LED | L108: 24W LED Bourke Hill S-S | M108: =INDEX('Capex OHs Allocation'!$J$23:$J$119,MATCH(B108,'Capex OHs Allocation'!$D$23:$D$119,0))+INDEX('Capex OHs Allocation'!$L$23:$L$119,MATCH('C_CAPEX Tariff Summary'!B108,'Capex OHs Allocation'!$D$23:$D$119,0)) -> 46.93412352 | N108: =INDEX('Stock Cost'!$T$24:$T$115,MATCH('C_CAPEX Tariff Summary'!B108,'Stock Cost'!$C$24:$C$115,0)) -> 745 | O108: =IF(OR(H108="Luminaire",H108="NW"),IF(E108="P",I_CAPEX!D$41,I_CAPEX!D$42),IF(H108="Bracket",IF(E108="P",I_CAPEX!D$43,I_CAPEX!D$44),IF(H108="Column",IF(E108="P",I_CAPEX!D$45,I_CAPEX!D$46),0))) -> 3.240037959 | P108: =INDEX('Capex OHs Allocation'!$M$23:$M$119,MATCH('C_CAPEX Tariff Summary'!B108,'Capex OHs Allocation'!$D$23:$D$119,0)) -> 175.9719978 | Q108: 971.1461593 | R108: =INDEX('C_OPEX Calc'!$AK$10:$AK$147,MATCH('C_CAPEX Tariff Summary'!B108,'C_OPEX Calc'!$D$10:$D$147,0)) -> 29.8655006 | T108: =IF(H108="Luminaire",IF((MID(B108,1,3)="LED"),-PMT(return_on_assests_pct,LED_lantern_lifespan,Q108),-PMT(return_on_assests_pct,trad_lantern_lifespan,Q108)),IF(H108="NW",-PMT(return_on_assests_pct,Nightvision_lifespan,Q108),-PMT(return_on_assests_pct,pole_lifespan,Q108)))+R108 -> 98.81402721 | U108: 102.2708319 | V108: 110.2805014 | W108: 114.7490538 | X108: 117.9620273 | Y108: 121.264964 | Z108: 124.660383 | AA108: 128.1508738 | AC108: 971.1461593 | AD108: 1005.119702 | AE108: 1083.838888 | AF108: 1127.755907 | AG108: 1159.333072 | AH108: 1191.794398 | AI108: 1225.164641 | AJ108: 1259.469251 | AL108: 24W LED Bourke Hill S-S Capex | AM108: =IFERROR((_xlfn.XLOOKUP($AL108,'I_Asset number input'!$P$5:$P$316,'I_Asset number input'!G$5:G$316)),0) -> 0 | AN108: =IFERROR((_xlfn.XLOOKUP($AL108,'I_Asset number input'!$P$5:$P$316,'I_Asset number input'!H$5:H$316)),0) -> 0 | AO108: =IFERROR((_xlfn.XLOOKUP($AL108,'I_Asset number input'!$P$5:$P$316,'I_Asset number input'!I$5:I$316)),0) -> 0 | AP108: =IFERROR((_xlfn.XLOOKUP($AL108,'I_Asset number input'!$P$5:$P$316,'I_Asset number input'!J$5:J$316)),0) -> 0 | AQ108: =IFERROR((_xlfn.XLOOKUP($AL108,'I_Asset number input'!$P$5:$P$316,'I_Asset number input'!K$5:K$316)),0) -> 0 | AR108: =IFERROR((_xlfn.XLOOKUP($AL108,'I_Asset number input'!$P$5:$P$316,'I_Asset number input'!L$5:L$316)),0) -> 0 | AS108: =IFERROR((_xlfn.XLOOKUP($AL108,'I_Asset number input'!$P$5:$P$316,'I_Asset number input'!M$5:M$316)),0) -> 0 | AU108: 0 | AV108: 0 | AW108: 0 | AX108: 0 | AY108: 0 | AZ108: 0 | BA108: 0
B109: 30W LED ATS PLED MKII | C109: 454 | D109: TC3 - Capital Funded by Endeavour Energy | E109: P | F109: Minor Road Standard | G109: Lamp | H109: Luminaire | I109: Direct | J109: 30W LED ATS PLED MKII Capex | K109: =INDEX('I_Asset number input'!$C$5:$C$265,MATCH('C_CAPEX Tariff Summary'!B109,'I_Asset number input'!$D$5:$D$265,0)) -> LED | L109: 30W LED ATS PLED MKII | M109: =INDEX('Capex OHs Allocation'!$J$23:$J$119,MATCH(B109,'Capex OHs Allocation'!$D$23:$D$119,0))+INDEX('Capex OHs Allocation'!$L$23:$L$119,MATCH('C_CAPEX Tariff Summary'!B109,'Capex OHs Allocation'!$D$23:$D$119,0)) -> 46.93412352 | N109: =INDEX('Stock Cost'!$T$24:$T$115,MATCH('C_CAPEX Tariff Summary'!B109,'Stock Cost'!$C$24:$C$115,0)) -> 220 | O109: =IF(OR(H109="Luminaire",H109="NW"),IF(E109="P",I_CAPEX!D$41,I_CAPEX!D$42),IF(H109="Bracket",IF(E109="P",I_CAPEX!D$43,I_CAPEX!D$44),IF(H109="Column",IF(E109="P",I_CAPEX!D$45,I_CAPEX!D$46),0))) -> 3.240037959 | P109: =INDEX('Capex OHs Allocation'!$M$23:$M$119,MATCH('C_CAPEX Tariff Summary'!B109,'Capex OHs Allocation'!$D$23:$D$119,0)) -> 175.9719978 | Q109: 446.1461593 | R109: =INDEX('C_OPEX Calc'!$AK$10:$AK$147,MATCH('C_CAPEX Tariff Summary'!B109,'C_OPEX Calc'!$D$10:$D$147,0)) -> 29.8655006 | T109: =IF(H109="Luminaire",IF((MID(B109,1,3)="LED"),-PMT(return_on_assests_pct,LED_lantern_lifespan,Q109),-PMT(return_on_assests_pct,trad_lantern_lifespan,Q109)),IF(H109="NW",-PMT(return_on_assests_pct,Nightvision_lifespan,Q109),-PMT(return_on_assests_pct,pole_lifespan,Q109)))+R109 -> 61.54056829 | U109: 63.693438 | V109: 68.68179465 | W109: 71.46477257 | X109: 73.4657862 | Y109: 75.52282821 | Z109: 77.6374674 | AA109: 79.81131649 | AC109: 446.1461593 | AD109: 461.7536615 | AE109: 497.917386 | AF109: 518.0929376 | AG109: 532.5995398 | AH109: 547.5123269 | AI109: 562.8426721 | AJ109: 578.6022669 | AL109: 30W LED ATS PLED MKII Capex | AM109: =IFERROR((_xlfn.XLOOKUP($AL109,'I_Asset number input'!$P$5:$P$316,'I_Asset number input'!G$5:G$316)),0) -> 0 | AN109: =IFERROR((_xlfn.XLOOKUP($AL109,'I_Asset number input'!$P$5:$P$316,'I_Asset number input'!H$5:H$316)),0) -> 0 | AO109: =IFERROR((_xlfn.XLOOKUP($AL109,'I_Asset number input'!$P$5:$P$316,'I_Asset number input'!I$5:I$316)),0) -> 0 | AP109: =IFERROR((_xlfn.XLOOKUP($AL109,'I_Asset number input'!$P$5:$P$316,'I_Asset number input'!J$5:J$316)),0) -> 0 | AQ109: =IFERROR((_xlfn.XLOOKUP($AL109,'I_Asset number input'!$P$5:$P$316,'I_Asset number input'!K$5:K$316)),0) -> 0 | AR109: =IFERROR((_xlfn.XLOOKUP($AL109,'I_Asset number input'!$P$5:$P$316,'I_Asset number input'!L$5:L$316)),0) -> 0 | AS109: =IFERROR((_xlfn.XLOOKUP($AL109,'I_Asset number input'!$P$5:$P$316,'I_Asset number input'!M$5:M$316)),0) -> 0 | AU109: 0 | AV109: 0 | AW109: 0 | AX109: 0 | AY109: 0 | AZ109: 0 | BA109: 0
B110: 20W LED ATS PLED MKII | C110: 455 | D110: TC3 - Capital Funded by Endeavour Energy | E110: P | F110: Minor Road Standard | G110: Lamp | H110: Luminaire | I110: Direct | J110: 20W LED ATS PLED MKII Capex | K110: =INDEX('I_Asset number input'!$C$5:$C$265,MATCH('C_CAPEX Tariff Summary'!B110,'I_Asset number input'!$D$5:$D$265,0)) -> LED | L110: 20W LED ATS PLED MKII | M110: =INDEX('Capex OHs Allocation'!$J$23:$J$119,MATCH(B110,'Capex OHs Allocation'!$D$23:$D$119,0))+INDEX('Capex OHs Allocation'!$L$23:$L$119,MATCH('C_CAPEX Tariff Summary'!B110,'Capex OHs Allocation'!$D$23:$D$119,0)) -> 46.93412352 | N110: =INDEX('Stock Cost'!$T$24:$T$115,MATCH('C_CAPEX Tariff Summary'!B110,'Stock Cost'!$C$24:$C$115,0)) -> 155.2 | O110: =IF(OR(H110="Luminaire",H110="NW"),IF(E110="P",I_CAPEX!D$41,I_CAPEX!D$42),IF(H110="Bracket",IF(E110="P",I_CAPEX!D$43,I_CAPEX!D$44),IF(H110="Column",IF(E110="P",I_CAPEX!D$45,I_CAPEX!D$46),0))) -> 3.240037959 | P110: =INDEX('Capex OHs Allocation'!$M$23:$M$119,MATCH('C_CAPEX Tariff Summary'!B110,'Capex OHs Allocation'!$D$23:$D$119,0)) -> 175.9719978 | Q110: 381.3461593 | R110: =INDEX('C_OPEX Calc'!$AK$10:$AK$147,MATCH('C_CAPEX Tariff Summary'!B110,'C_OPEX Calc'!$D$10:$D$147,0)) -> 29.8655006 | T110: =IF(H110="Luminaire",IF((MID(B110,1,3)="LED"),-PMT(return_on_assests_pct,LED_lantern_lifespan,Q110),-PMT(return_on_assests_pct,trad_lantern_lifespan,Q110)),IF(H110="NW",-PMT(return_on_assests_pct,Nightvision_lifespan,Q110),-PMT(return_on_assests_pct,pole_lifespan,Q110)))+R110 -> 56.93995851 | U110: 58.93188538 | V110: 63.54732571 | W110: 66.12225557 | X110: 67.97367873 | Y110: 69.87694173 | Z110: 71.8334961 | AA110: 73.84483399 | AC110: 381.3461593 | AD110: 394.6867673 | AE110: 425.5979321 | AF110: 442.8431082 | AG110: 455.2427152 | AH110: 467.9895113 | AI110: 481.0932176 | AJ110: 494.5638277 | AL110: 20W LED ATS PLED MKII Capex | AM110: =IFERROR((_xlfn.XLOOKUP($AL110,'I_Asset number input'!$P$5:$P$316,'I_Asset number input'!G$5:G$316)),0) -> 0 | AN110: =IFERROR((_xlfn.XLOOKUP($AL110,'I_Asset number input'!$P$5:$P$316,'I_Asset number input'!H$5:H$316)),0) -> 0 | AO110: =IFERROR((_xlfn.XLOOKUP($AL110,'I_Asset number input'!$P$5:$P$316,'I_Asset number input'!I$5:I$316)),0) -> 0 | AP110: =IFERROR((_xlfn.XLOOKUP($AL110,'I_Asset number input'!$P$5:$P$316,'I_Asset number input'!J$5:J$316)),0) -> 0 | AQ110: =IFERROR((_xlfn.XLOOKUP($AL110,'I_Asset number input'!$P$5:$P$316,'I_Asset number input'!K$5:K$316)),0) -> 0 | AR110: =IFERROR((_xlfn.XLOOKUP($AL110,'I_Asset number input'!$P$5:$P$316,'I_Asset number input'!L$5:L$316)),0) -> 0 | AS110: =IFERROR((_xlfn.XLOOKUP($AL110,'I_Asset number input'!$P$5:$P$316,'I_Asset number input'!M$5:M$316)),0) -> 0 | AU110: 0 | AV110: 0 | AW110: 0 | AX110: 0 | AY110: 0 | AZ110: 0 | BA110: 0
B111: 13W LED ATS PLED MKII | C111: 456 | D111: TC3 - Capital Funded by Endeavour Energy | E111: P | F111: Minor Road Standard | G111: Lamp | H111: Luminaire | I111: Direct | J111: 13W LED ATS PLED MKII Capex | K111: =INDEX('I_Asset number input'!$C$5:$C$265,MATCH('C_CAPEX Tariff Summary'!B111,'I_Asset number input'!$D$5:$D$265,0)) -> LED | L111: 13W LED ATS PLED MKII | M111: =INDEX('Capex OHs Allocation'!$J$23:$J$119,MATCH(B111,'Capex OHs Allocation'!$D$23:$D$119,0))+INDEX('Capex OHs Allocation'!$L$23:$L$119,MATCH('C_CAPEX Tariff Summary'!B111,'Capex OHs Allocation'!$D$23:$D$119,0)) -> 46.93412352 | N111: =INDEX('Stock Cost'!$T$24:$T$115,MATCH('C_CAPEX Tariff Summary'!B111,'Stock Cost'!$C$24:$C$115,0)) -> 139.9 | O111: =IF(OR(H111="Luminaire",H111="NW"),IF(E111="P",I_CAPEX!D$41,I_CAPEX!D$42),IF(H111="Bracket",IF(E111="P",I_CAPEX!D$43,I_CAPEX!D$44),IF(H111="Column",IF(E111="P",I_CAPEX!D$45,I_CAPEX!D$46),0))) -> 3.240037959 | P111: =INDEX('Capex OHs Allocation'!$M$23:$M$119,MATCH('C_CAPEX Tariff Summary'!B111,'Capex OHs Allocation'!$D$23:$D$119,0)) -> 175.9719978 | Q111: =SUM(M111:P111) -> 366.0461593 | R111: =INDEX('C_OPEX Calc'!$AK$10:$AK$147,MATCH('C_CAPEX Tariff Summary'!B111,'C_OPEX Calc'!$D$10:$D$147,0)) -> 29.8655006 | T111: =IF(H111="Luminaire",IF((MID(B111,1,3)="LED"),-PMT(return_on_assests_pct,LED_lantern_lifespan,Q111),-PMT(return_on_assests_pct,trad_lantern_lifespan,Q111)),IF(H111="NW",-PMT(return_on_assests_pct,Nightvision_lifespan,Q111),-PMT(return_on_assests_pct,pole_lifespan,Q111)))+R111 -> 55.85370342 | U111: =T111*(1+CPIFY23) -> 57.8076299 | V111: 62.33502054 | W111: 64.86082795 | X111: 66.67693113 | Y111: 68.5438852 | Z111: 70.46311399 | AA111: 72.43608118 | AC111: =Q111 -> 366.0461593 | AD111: 378.8515284 | AE111: 408.5225054 | AF111: 425.0757874 | AG111: 436.9779094 | AH111: 449.2132909 | AI111: 461.791263 | AJ111: 474.7214184 | AL111: 13W LED ATS PLED MKII Capex | AM111: =IFERROR((_xlfn.XLOOKUP($AL111,'I_Asset number input'!$P$5:$P$316,'I_Asset number input'!G$5:G$316)),0) -> 0 | AN111: =IFERROR((_xlfn.XLOOKUP($AL111,'I_Asset number input'!$P$5:$P$316,'I_Asset number input'!H$5:H$316)),0) -> 0 | AO111: =IFERROR((_xlfn.XLOOKUP($AL111,'I_Asset number input'!$P$5:$P$316,'I_Asset number input'!I$5:I$316)),0) -> 0 | AP111: =IFERROR((_xlfn.XLOOKUP($AL111,'I_Asset number input'!$P$5:$P$316,'I_Asset number input'!J$5:J$316)),0) -> 0 | AQ111: =IFERROR((_xlfn.XLOOKUP($AL111,'I_Asset number input'!$P$5:$P$316,'I_Asset number input'!K$5:K$316)),0) -> 0 | AR111: =IFERROR((_xlfn.XLOOKUP($AL111,'I_Asset number input'!$P$5:$P$316,'I_Asset number input'!L$5:L$316)),0) -> 0 | AS111: =IFERROR((_xlfn.XLOOKUP($AL111,'I_Asset number input'!$P$5:$P$316,'I_Asset number input'!M$5:M$316)),0) -> 0 | AU111: =U111*AM111 -> 0 | AV111: =V111*AN111 -> 0 | AW111: =W111*AO111 -> 0 | AX111: =X111*AP111 -> 0 | AY111: =Y111*AQ111 -> 0 | AZ111: =Z111*AR111 -> 0 | BA111: =AA111*AS111 -> 0
B112: 37W LED 4K ROADLED MIDI STD Visor S-S | C112: 439 | D112: TC3 - Capital Funded by Endeavour Energy | E112: V | F112: Major Road Standard | G112: Lamp | H112: Luminaire | I112: Direct | J112: 37W LED 4K ROADLED MIDI STD Visor S-S Capex | K112: =INDEX('I_Asset number input'!$C$5:$C$265,MATCH('C_CAPEX Tariff Summary'!B112,'I_Asset number input'!$D$5:$D$265,0)) -> LED | L112: 37W LED 4K ROADLED MIDI STD Visor S-S | M112: =INDEX('Capex OHs Allocation'!$J$23:$J$119,MATCH(B112,'Capex OHs Allocation'!$D$23:$D$119,0))+INDEX('Capex OHs Allocation'!$L$23:$L$119,MATCH('C_CAPEX Tariff Summary'!B112,'Capex OHs Allocation'!$D$23:$D$119,0)) -> 46.93412352 | N112: =INDEX('Stock Cost'!$T$24:$T$115,MATCH('C_CAPEX Tariff Summary'!B112,'Stock Cost'!$C$24:$C$115,0)) -> 372.85 | O112: =IF(OR(H112="Luminaire",H112="NW"),IF(E112="P",I_CAPEX!D$41,I_CAPEX!D$42),IF(H112="Bracket",IF(E112="P",I_CAPEX!D$43,I_CAPEX!D$44),IF(H112="Column",IF(E112="P",I_CAPEX!D$45,I_CAPEX!D$46),0))) -> 32.86324216 | P112: =INDEX('Capex OHs Allocation'!$M$23:$M$119,MATCH('C_CAPEX Tariff Summary'!B112,'Capex OHs Allocation'!$D$23:$D$119,0)) -> 175.9719978 | Q112: 628.6193635 | R112: =INDEX('C_OPEX Calc'!$AK$10:$AK$147,MATCH('C_CAPEX Tariff Summary'!B112,'C_OPEX Calc'!$D$10:$D$147,0)) -> 33.80896283 | T112: =IF(H112="Luminaire",IF((MID(B112,1,3)="LED"),-PMT(return_on_assests_pct,LED_lantern_lifespan,Q112),-PMT(return_on_assests_pct,trad_lantern_lifespan,Q112)),IF(H112="NW",-PMT(return_on_assests_pct,Nightvision_lifespan,Q112),-PMT(return_on_assests_pct,pole_lifespan,Q112)))+R112 -> 78.43909238 | U112: 81.18312207 | V112: 87.54123962 | W112: 91.08839994 | X112: 93.63887514 | Y112: 96.26076365 | Z112: 98.95606503 | AA112: 101.7268348 | AC112: 628.6193635 | AD112: 650.6103139 | AE112: 701.5649552 | AF112: 729.9922813 | AG112: 750.4320652 | AH112: 771.444163 | AI112: 793.0445996 | AJ112: 815.2498484 | AL112: 37W LED 4K ROADLED MIDI STD Visor S-S Capex | AM112: =IFERROR((_xlfn.XLOOKUP($AL112,'I_Asset number input'!$P$5:$P$316,'I_Asset number input'!G$5:G$316)),0) -> 0 | AN112: =IFERROR((_xlfn.XLOOKUP($AL112,'I_Asset number input'!$P$5:$P$316,'I_Asset number input'!H$5:H$316)),0) -> 0 | AO112: =IFERROR((_xlfn.XLOOKUP($AL112,'I_Asset number input'!$P$5:$P$316,'I_Asset number input'!I$5:I$316)),0) -> 0 | AP112: =IFERROR((_xlfn.XLOOKUP($AL112,'I_Asset number input'!$P$5:$P$316,'I_Asset number input'!J$5:J$316)),0) -> 0 | AQ112: =IFERROR((_xlfn.XLOOKUP($AL112,'I_Asset number input'!$P$5:$P$316,'I_Asset number input'!K$5:K$316)),0) -> 0 | AR112: =IFERROR((_xlfn.XLOOKUP($AL112,'I_Asset number input'!$P$5:$P$316,'I_Asset number input'!L$5:L$316)),0) -> 0 | AS112: =IFERROR((_xlfn.XLOOKUP($AL112,'I_Asset number input'!$P$5:$P$316,'I_Asset number input'!M$5:M$316)),0) -> 0 | AU112: 0 | AV112: 0 | AW112: 0 | AX112: 0 | AY112: 0 | AZ112: 0 | BA112: 0
